Workbook

Sheet Raw data
A1: Sample number | B1: Identifier | C1: ID | D1: Acid | E1: pH | F1: salt | G1: Day | H1: Replicate | I1: Peak force (g) | J1: 5 second force (g) | K1: Gradient 5 to 13 second(g/sec) | L1: Average Peak force | M1: Average 5 second force | N1: average stretch quality
A2: 1 | B2: Extensibility Day 10 Sample 01 | C2: LC4 | D2: L | E2: 4 | F2: C | G2: 10 | H2: 1 | I2: 60.59255717 | J2: 8.188477307 | K2: 0.299047976 | L2: =AVERAGE(I2:I5) -> 61.46523354 | M2: =AVERAGE(J2:J5) -> 7.889429331 | N2: 0.3690523886
A3: 1 | B3: Extensibility Day 10 Sample 01 | C3: LC4 | D3: L | E3: 4 | F3: C | G3: 10 | H3: 1 | I3: 43.55225978 | J3: 6.437687338 | K3: 0.303125903
A4: 1 | B4: Extensibility Day 10 Sample 01 | C4: LC4 | D4: L | E4: 4 | F4: C | G4: 10 | H4: 1 | I4: 73.72891918 | J4: 7.416389805 | K4: 0.3316713916
A5: 1 | B5: Extensibility Day 10 Sample 01 | C5: LC4 | D5: L | E5: 4 | F5: C | G5: 10 | H5: 1 | I5: 67.98719804 | J5: 9.515162873 | K5: 0.5423642838
A6: 2 | B6: Extensibility Day 10 Sample 02 | C6: LR4 | D6: L | E6: 4 | F6: R | G6: 10 | H6: 1 | I6: 39.65919885 | J6: 6.709549134 | K6: 0.4077926946 | L6: =AVERAGE(I6:I8) -> 39.82594076 | M6: =AVERAGE(J6:J8) -> 5.774344555 | N6: 0.3642948071
A7: 2 | B7: Extensibility Day 10 Sample 02 | C7: LR4 | D7: L | E7: 4 | F7: R | G7: 10 | H7: 1 | I7: 37.48430448 | J7: 4.904386806 | K7: 0.4676022898
A8: 2 | B8: Extensibility Day 10 Sample 02 | C8: LR4 | D8: L | E8: 4 | F8: R | G8: 10 | H8: 1 | I8: 42.33431893 | J8: 5.709097724 | K8: 0.2174894371
A9: 3 | B9: Extensibility Day 10 Sample 03 | C9: LD4 | D9: L | E9: 4 | F9: D | G9: 10 | H9: 1 | I9: 31.1009895 | J9: 4.947884694 | K9: 0.2677838694 | L9: =AVERAGE(I9:I13) -> 38.68484618 | M9: =AVERAGE(J9:J13) -> 5.54815554 | N9: 0.3702757667
A10: 3 | B10: Extensibility Day 10 Sample 03 | C10: LD4 | D10: L | E10: 4 | F10: D | G10: 10 | H10: 1 | I10: 37.72354286 | J10: 5.306742265 | K10: 0.3221562287
A11: 3 | B11: Extensibility Day 10 Sample 03 | C11: LD4 | D11: L | E11: 4 | F11: D | G11: 10 | H11: 1 | I11: 44.32434728 | J11: 5.426361456 | K11: 0.5437235927
A12: 3 | B12: Extensibility Day 10 Sample 03 | C12: LD4 | D12: L | E12: 4 | F12: D | G12: 10 | H12: 1 | I12: 35.83138476 | J12: 5.208872018 | K12: 0.221567364
A13: 3 | B13: Extensibility Day 10 Sample 03 | C13: LD4 | D13: L | E13: 4 | F13: D | G13: 10 | H13: 1 | I13: 44.44396647 | J13: 6.850917268 | K13: 0.4961477784
A14: 6 | B14: Extensibility Day 10 Sample 06 | C14: AC6 | D14: A | E14: 6 | F14: C | G14: 10 | H14: 1 | I14: 99.63191113 | J14: 15.98547363 | K14: -0.6565462382 | L14: =AVERAGE(I14:I16) -> 96.90966835 | M14: =AVERAGE(J14:J16) -> 17.18166553 | N14: -0.4376974922
A15: 6 | B15: Extensibility Day 10 Sample 06 | C15: AC6 | D15: A | E15: 6 | F15: C | G15: 10 | H15: 1 | I15: 120.8045078 | J15: 20.56362628 | K15: 0.04621650538
A16: 6 | B16: Extensibility Day 10 Sample 06 | C16: AC6 | D16: A | E16: 6 | F16: C | G16: 10 | H16: 1 | I16: 70.29258607 | J16: 14.99589669 | K16: -0.7027627436
A17: 7 | B17: Extensibility Day 10 Sample 07 | C17: AR6 | D17: A | E17: 6 | F17: R | G17: 10 | H17: 1 | I17: 178.0368532 | J17: 28.24100341 | K17: -3.569545386 | L17: =AVERAGE(I17:I19) -> 89.33741111 | M17: =AVERAGE(J17:J19) -> 14.05344246 | N17: =AVERAGE(K17:K19) -> -1.599906672
A18: 7 | B18: Extensibility Day 10 Sample 07 | C18: AR6 | D18: A | E18: 6 | F18: R | G18: 10 | H18: 1 | I18: 46.83635028 | J18: 6.840042797 | K18: -0.6619834742
A19: 7 | B19: Extensibility Day 10 Sample 07 | C19: AR6 | D19: A | E19: 6 | F19: R | G19: 10 | H19: 1 | I19: 43.13902985 | J19: 7.079281177 | K19: -0.5681911544
A20: 8 | B20: Extensibility Day 10 Sample 08 | C20: AD6 | D20: A | E20: 6 | F20: D | G20: 10 | H20: 1 | I20: 46.46661824 | J20: 9.178054245 | K20: 0.671498637 | L20: =AVERAGE(I20:I23) -> 58.49650272 | M20: =AVERAGE(J20:J23) -> 8.857257326 | N20: 0.278318514
A21: 8 | B21: Extensibility Day 10 Sample 08 | C21: AD6 | D21: A | E21: 6 | F21: D | G21: 10 | H21: 1 | I21: 65.75793131 | J21: 10.28725037 | K21: -0.0299047976
A22: 8 | B22: Extensibility Day 10 Sample 08 | C22: AD6 | D22: A | E22: 6 | F22: D | G22: 10 | H22: 1 | I22: 65.1815843 | J22: 9.373794739 | K22: 0.8753949843
A23: 8 | B23: Extensibility Day 10 Sample 08 | C23: AD6 | D23: A | E23: 6 | F23: D | G23: 10 | H23: 1 | I23: 56.57987706 | J23: 6.589929944 | K23: -0.4037147676
A24: 11 | B24: Extensibility Day 10 Sample 11 | C24: CC6 | D24: C | E24: 6 | F24: C | G24: 10 | H24: 1 | I24: 42.05158266 | J24: 6.970536459 | K24: 0.4608057448 | L24: =AVERAGE(I24:I26) -> 43.38551788 | M24: =AVERAGE(J24:J26) -> 8.434965335 | N24: 0.3162658898
A25: 11 | B25: Extensibility Day 10 Sample 11 | C25: CC6 | D25: C | E25: 6 | F25: C | G25: 10 | H25: 1 | I25: 40.61615238 | J25: 8.732200899 | K25: 0.1155412635
A26: 11 | B26: Extensibility Day 10 Sample 11 | C26: CC6 | D26: C | E26: 6 | F26: C | G26: 10 | H26: 1 | I26: 47.48881859 | J26: 9.602158648 | K26: 0.372450661
A27: 11 | B27: Extensibility Day 10 Sample 11 | C27: CR6 | D27: C | E27: 6 | F27: R | G27: 10 | H27: 1 | I27: 43.26952351 | J27: 8.09060706 | K27: 0.3819658239 | L27: =AVERAGE(I27:I29) -> 41.72172368 | M27: =AVERAGE(J27:J29) -> 7.945614102 | N27: 0.4580871269
A28: 12 | B28: Extensibility Day 10 Sample 12 | C28: CR6 | D28: C | E28: 6 | F28: R | G28: 10 | H28: 1 | I28: 40.01805643 | J28: 7.655628186 | K28: 0.4771174526
A29: 12 | B29: Extensibility Day 10 Sample 12 | C29: CR6 | D29: C | E29: 6 | F29: R | G29: 10 | H29: 1 | I29: 41.87759111 | J29: 8.09060706 | K29: 0.5151781041
A30: 12 | B30: Extensibility Day 10 Sample 12 | C30: CD6 | D30: C | E30: 6 | F30: D | G30: 10 | H30: 1 | I30: 43.41089164 | J30: 7.960113398 | K30: 0.225645291 | L30: =AVERAGE(I30:I34) -> 43.84587052 | M30: =AVERAGE(J30:J34) -> 7.19020079 | N30: 0.1549612239
A31: 12 | B31: Extensibility Day 10 Sample 12 | C31: CD6 | D31: C | E31: 6 | F31: D | G31: 10 | H31: 1 | I31: 47.53231648 | J31: 7.807870792 | K31: 0.3874030598
A32: 13 | B32: Extensibility Day 10 Sample 13 | C32: CD6 | D32: C | E32: 6 | F32: D | G32: 10 | H32: 1 | I32: 41.17075044 | J32: 6.753047022 | K32: 0.1087447185
A33: 13 | B33: Extensibility Day 10 Sample 13 | C33: CD6 | D33: C | E33: 6 | F33: D | G33: 10 | H33: 1 | I33: 49.42447458 | J33: 6.633427831 | K33: 0.1576798419
A34: 13 | B34: Extensibility Day 10 Sample 13 | C34: CD6 | D34: C | E34: 6 | F34: D | G34: 10 | H34: 1 | I34: 37.69091945 | J34: 6.796544909 | K34: -0.1046667916
A35: 16 | B35: Extensibility Day 10 Sample 16 | C35: AC4 | D35: A | E35: 4 | F35: C | G35: 10 | H35: 1 | I35: 35.15716751 | J35: 6.883540684 | K35: 0.1753508587 | L35: =AVERAGE(I35:I40) -> 36.91339471 | M35: =AVERAGE(J35:J40) -> 6.689612603 | N35: 0.2032166928
A36: 16 | B36: Extensibility Day 10 Sample 16 | C36: AC4 | D36: A | E36: 4 | F36: C | G36: 10 | H36: 1 | I36: 35.99450184 | J36: 5.024005997 | K36: 0.3901216778
A37: 16 | B37: Extensibility Day 10 Sample 16 | C37: AC4 | D37: A | E37: 4 | F37: C | G37: 10 | H37: 1 | I37: 36.45122966 | J37: 7.198900368 | K37: 0.2840955772
A38: 16 | B38: Extensibility Day 10 Sample 16 | C38: AC4 | D38: A | E38: 4 | F38: C | G38: 10 | H38: 1 | I38: 35.55952297 | J38: 7.285896143 | K38: 0.1033074826
A39: 16 | B39: Extensibility Day 10 Sample 16 | C39: AC4 | D39: A | E39: 4 | F39: C | G39: 10 | H39: 1 | I39: 39.15897315 | J39: 6.872666212 | K39: 0.1332122802
A40: 16 | B40: Extensibility Day 10 Sample 16 | C40: AC4 | D40: A | E40: 4 | F40: C | G40: 10 | H40: 1 | I40: 39.15897315 | J40: 6.872666212 | K40: 0.1332122802
A41: 17 | B41: Extensibility Day 10 Sample 17 | C41: AR4 | D41: A | E41: 4 | F41: R | G41: 10 | H41: 1 | I41: 34.25458634 | J41: 6.937913043 | K41: 0.1984591113 | L41: =AVERAGE(I41:I43) -> 36.91520712 | M41: =AVERAGE(J41:J43) -> 7.188025896 | N41: 0.2405976898
A42: 17 | B42: Extensibility Day 10 Sample 17 | C42: AR4 | D42: A | E42: 4 | F42: R | G42: 10 | H42: 1 | I42: 36.53822543 | J42: 6.774795966 | K42: 0.2093335832
A43: 17 | B43: Extensibility Day 10 Sample 17 | C43: AR4 | D43: A | E43: 4 | F43: R | G43: 10 | H43: 1 | I43: 39.95280959 | J43: 7.851368679 | K43: 0.3140003748
A44: 18 | B44: Extensibility Day 10 Sample 18 | C44: AD4 | D44: A | E44: 4 | F44: D | G44: 10 | H44: 1 | I44: 42.06245713 | J44: 5.524231702 | K44: 0.03262341556 | L44: =AVERAGE(I44:I47) -> 40.1648618 | M44: =AVERAGE(J44:J47) -> 5.643850893 | N44: 0.1807880946
A45: 18 | B45: Extensibility Day 10 Sample 18 | C45: AD4 | D45: A | E45: 4 | F45: D | G45: 10 | H45: 1 | I45: 41.06200572 | J45: 5.56772959 | K45: 0.2419569988
A46: 18 | B46: Extensibility Day 10 Sample 18 | C46: AD4 | D46: A | E46: 4 | F46: D | G46: 10 | H46: 1 | I46: 37.96278124 | J46: 5.524231702 | K46: 0.1386495161
A47: 18 | B47: Extensibility Day 10 Sample 18 | C47: AD4 | D47: A | E47: 4 | F47: D | G47: 10 | H47: 1 | I47: 39.57220308 | J47: 5.959210576 | K47: 0.3099224479
A48: 21 | B48: Extensibility Day 10 Sample 21 | C48: LC6 | D48: L | E48: 6 | F48: C | G48: 10 | H48: 1 | I48: 50.39230257 | J48: 14.35430285 | K48: 1.272313207 | L48: =AVERAGE(I48:I51) -> 51.49062423 | M48: =AVERAGE(J48:J51) -> 13.2423881 | N48: 0.8220421068
A49: 21 | B49: Extensibility Day 10 Sample 21 | C49: LC6 | D49: L | E49: 6 | F49: C | G49: 10 | H49: 1 | I49: 47.66281014 | J49: 12.54914052 | K49: 0.5342084299
A50: 21 | B50: Extensibility Day 10 Sample 21 | C50: LC6 | D50: L | E50: 6 | F50: C | G50: 10 | H50: 1 | I50: 54.94870628 | J50: 12.4403958 | K50: 0.6266414406
A51: 21 | B51: Extensibility Day 10 Sample 21 | C51: LC6 | D51: L | E51: 6 | F51: C | G51: 10 | H51: 1 | I51: 52.95867793 | J51: 13.62571323 | K51: 0.8550053496
A52: 22 | B52: Extensibility Day 10 Sample 22 | C52: LR6 | D52: L | E52: 6 | F52: R | G52: 10 | H52: 1 | I52: 45.1290582 | J52: 8.775698787 | K52: 0.6470310754 | L52: =AVERAGE(I52:I55) -> 46.34428043 | M52: =AVERAGE(J52:J55) -> 9.270487256 | N52: 0.5984357793
A53: 22 | B53: Extensibility Day 10 Sample 22 | C53: LR6 | D53: L | E53: 6 | F53: R | G53: 10 | H53: 1 | I53: 46.54273954 | J53: 8.166728363 | K53: 0.4417754191
A54: 22 | B54: Extensibility Day 10 Sample 22 | C54: LR6 | D54: L | E54: 6 | F54: R | G54: 10 | H54: 1 | I54: 43.35651928 | J54: 9.656531007 | K54: 0.5056629412
A55: 22 | B55: Extensibility Day 10 Sample 22 | C55: LR6 | D55: L | E55: 6 | F55: R | G55: 10 | H55: 1 | I55: 50.34880469 | J55: 10.48299087 | K55: 0.7992736813
A56: 23 | B56: Extensibility Day 10 Sample 23 | C56: LD6 | D56: L | E56: 6 | F56: D | G56: 10 | H56: 1 | I56: 45.98814147 | J56: 9.504288401 | K56: 0.4947884694 | L56: =AVERAGE(I56:I59) -> 46.33068734 | M56: =AVERAGE(J56:J59) -> 9.023093021 | N56: 0.3789073787
A57: 23 | B57: Extensibility Day 10 Sample 23 | C57: LD6 | D57: L | E57: 6 | F57: D | G57: 10 | H57: 1 | I57: 47.56493989 | J57: 9.776150197 | K57: 0.3507017173
A58: 23 | B58: Extensibility Day 10 Sample 23 | C58: LD6 | D58: L | E58: 6 | F58: D | G58: 10 | H58: 1 | I58: 47.67368461 | J58: 8.786573259 | K58: 0.4295416383
A59: 23 | B59: Extensibility Day 10 Sample 23 | C59: LD6 | D59: L | E59: 6 | F59: D | G59: 10 | H59: 1 | I59: 44.09598337 | J59: 8.025360229 | K59: 0.2405976898
A60: 26 | B60: Extensibility Day 10 Sample 26 | C60: CR6 | D60: C | E60: 6 | F60: R | G60: 10 | H60: 2 | I60: 37.73478408 | J60: 4.172596316 | K60: 0.2777951352 | L60: =AVERAGE(I60:I62) -> 41.15525479 | M60: =AVERAGE(J60:J62) -> 4.932280972 | N60: 0.3411021898
A61: 26 | B61: Extensibility Day 10 Sample 26 | C61: CR6 | D61: C | E61: 6 | F61: R | G61: 10 | H61: 2 | I61: 50.17320299 | J61: 5.38582405 | K61: 0.4535430779
A62: 26 | B62: Extensibility Day 10 Sample 26 | C62: CR6 | D62: C | E62: 6 | F62: R | G62: 10 | H62: 2 | I62: 35.5577773 | J62: 5.238422549 | K62: 0.2919683564
A63: 27 | B63: Extensibility Day 10 Sample 27 | C63: CC6 | D63: C | E63: 6 | F63: C | G63: 10 | H63: 2 | I63: 39.41289347 | J63: 2.290392543 | K63: 0.3500785632 | L63: =AVERAGE(I63:I66) -> 35.93478499 | M63: =AVERAGE(J63:J66) -> 3.299525891 | N63: 0.4510627641
A64: 27 | B64: Extensibility Day 10 Sample 27 | C64: CC6 | D64: C | E64: 6 | F64: C | G64: 10 | H64: 2 | I64: 34.83210838 | J64: 3.11810866 | K64: 0.5697634916
A65: 27 | B65: Extensibility Day 10 Sample 27 | C65: CC6 | D65: C | E65: 6 | F65: C | G65: 10 | H65: 2 | I65: 37.17919381 | J65: 3.866454739 | K65: 0.6548028187
A66: 27 | B66: Extensibility Day 10 Sample 27 | C66: CC6 | D66: C | E66: 6 | F66: C | G66: 10 | H66: 2 | I66: 32.3149443 | J66: 3.923147623 | K66: 0.2296061832
A67: 28 | B67: Extensibility Day 10 Sample 28 | C67: CD6 | D67: C | E67: 6 | F67: D | G67: 10 | H67: 2 | I67: 34.83210838 | J67: 2.721258467 | K67: 0.1629920436 | L67: =AVERAGE(I67:I70) -> 32.60407801 | M67: =AVERAGE(J67:J70) -> 1.125353762 | N67: 0.143858195
A68: 28 | B68: Extensibility Day 10 Sample 28 | C68: CD6 | D68: C | E68: 6 | F68: D | G68: 10 | H68: 2 | I68: 32.7571488 | J68: 0.6009445782 | K68: 0.0538582405
A69: 28 | B69: Extensibility Day 10 Sample 28 | C69: CD6 | D69: C | E69: 6 | F69: D | G69: 10 | H69: 2 | I69: 32.14486564 | J69: 0.8844090018 | K69: 0.09637790404
A70: 28 | B70: Extensibility Day 10 Sample 28 | C70: CD6 | D70: C | E70: 6 | F70: D | G70: 10 | H70: 2 | I70: 30.68218922 | J70: 0.2948030006 | K70: 0.2622045919
A71: 30 | B71: Extensibility Day 10 Sample 30 | C71: AR4 | D71: A | E71: 4 | F71: R | G71: 10 | H71: 2 | I71: 40.93226278 | J71: 3.333541622 | K71: 0.610865833 | L71: =AVERAGE(I71:I74) -> 38.63620094 | M71: =AVERAGE(J71:J74) -> 3.753068969 | N71: 0.5095273015
A72: 30 | B72: Extensibility Day 10 Sample 30 | C72: AR4 | D72: A | E72: 4 | F72: R | G72: 10 | H72: 2 | I72: 38.13163427 | J72: 3.707714661 | K72: 0.3132281881
A73: 30 | B73: Extensibility Day 10 Sample 30 | C73: AR4 | D73: A | E73: 4 | F73: R | G73: 10 | H73: 2 | I73: 36.03399754 | J73: 4.30865924 | K73: 0.4209446691
A74: 30 | B74: Extensibility Day 10 Sample 30 | C74: AR4 | D74: A | E74: 4 | F74: R | G74: 10 | H74: 2 | I74: 39.4469092 | J74: 3.662360354 | K74: 0.6930705158
A75: 31 | B75: Extensibility Day 10 Sample 31 | C75: AC4 | D75: A | E75: 4 | F75: C | G75: 10 | H75: 2 | I75: 40.51273543 | J75: 7.302043553 | K75: 0.7653539439 | L75: =AVERAGE(I75:I77) -> 45.11619767 | M75: =AVERAGE(J75:J77) -> 7.933224337 | N75: 0.5258265059
A76: 31 | B76: Extensibility Day 10 Sample 31 | C76: AC4 | D76: A | E76: 4 | F76: C | G76: 10 | H76: 2 | I76: 45.08218194 | J76: 8.866767172 | K76: 0.6987398043
A77: 31 | B77: Extensibility Day 10 Sample 31 | C77: AC4 | D77: A | E77: 4 | F77: C | G77: 10 | H77: 2 | I77: 49.75367564 | J77: 7.630862285 | K77: 0.1133857695
A78: 32 | B78: Extensibility Day 10 Sample 32 | C78: AD4 | D78: A | E78: 4 | F78: D | G78: 10 | H78: 2 | I78: 38.00690992 | J78: 4.490076471 | K78: 0.1700786542 | L78: =AVERAGE(I78:I81) -> 36.84754043 | M78: =AVERAGE(J78:J81) -> 2.372597226 | N78: 0.04570863832
A79: 322 | B79: Extensibility Day 10 Sample 32 | C79: AD4 | D79: A | E79: 4 | F79: D | G79: 10 | H79: 2 | I79: 33.0519518 | J79: 2.086298158 | K79: 0.1374802455
A80: 32 | B80: Extensibility Day 10 Sample 32 | C80: AD4 | D80: A | E80: 4 | F80: D | G80: 10 | H80: 2 | I80: 38.0182485 | J80: 2.279053966 | K80: -0.3288187314
A81: 32 | B81: Extensibility Day 10 Sample 32 | C81: AD4 | D81: A | E81: 4 | F81: D | G81: 10 | H81: 2 | I81: 38.3130515 | J81: 0.634960309 | K81: 0.204094385
A82: 34 | B82: Extensibility Day 10 Sample 34 | C82: LR6 | D82: L | E82: 6 | F82: R | G82: 10 | H82: 2 | I82: 57.12375066 | J82: 11.76944287 | K82: 0.8957475788 | L82: =AVERAGE(I82:I85) -> 52.13761144 | M82: =AVERAGE(J82:J85) -> 10.62708124 | N82: 0.5357477607
A83: 34 | B83: Extensibility Day 10 Sample 34 | C83: LR6 | D83: L | E83: 6 | F83: R | G83: 10 | H83: 2 | I83: 49.60627414 | J83: 10.17070352 | K83: -0.4478737894
A84: 34 | B84: Extensibility Day 10 Sample 34 | C84: LR6 | D84: L | E84: 6 | F84: R | G84: 10 | H84: 2 | I84: 53.42737457 | J84: 10.65826233 | K84: 0.8305507613
A85: 34 | B85: Extensibility Day 10 Sample 34 | C85: LR6 | D85: L | E85: 6 | F85: R | G85: 10 | H85: 2 | I85: 48.39304641 | J85: 9.909916251 | K85: 0.8645664922
A86: 35 | B86: Extensibility Day 10 Sample 35 | C86: LC6 | D86: L | E86: 6 | F86: C | G86: 10 | H86: 2 | I86: 73.17917561 | J86: 20.01258831 | K86: -0.1644093657 | L86: =AVERAGE(I86:I88) -> 66.18705316 | M86: =AVERAGE(J86:J88) -> 16.06298401 | N86: -0.1790550276
A87: 35 | B87: Extensibility Day 10 Sample 35 | C87: LC6 | D87: L | E87: 6 | F87: C | G87: 10 | H87: 2 | I87: 50.96690337 | J87: 8.696688518 | K87: -1.079999454
A88: 35 | B88: Extensibility Day 10 Sample 35 | C88: LC6 | D88: L | E88: 6 | F88: C | G88: 10 | H88: 2 | I88: 74.4150805 | J88: 19.47967519 | K88: 0.707243737
A89: 36 | B89: Extensibility Day 10 Sample 36 | C89: LD6 | D89: L | E89: 6 | F89: D | G89: 10 | H89: 2 | I89: 86.28657056 | J89: 22.26896512 | K89: -0.5399997271 | L89: =AVERAGE(I89:I92) -> 63.57823558 | M89: =AVERAGE(J89:J92) -> 15.64723619 | N89: 0.155196772
A90: 36 | B90: Extensibility Day 10 Sample 36 | C90: LD6 | D90: L | E90: 6 | F90: D | G90: 10 | H90: 2 | I90: 50.76280899 | J90: 11.14582114 | K90: 0.4223619913
A91: 36 | B91: Extensibility Day 10 Sample 36 | C91: LD6 | D91: L | E91: 6 | F91: D | G91: 10 | H91: 2 | I91: 54.77666523 | J91: 13.22078072 | K91: 0.1686613321
A92: 36 | B92: Extensibility Day 10 Sample 36 | C92: LD6 | D92: L | E92: 6 | F92: D | G92: 10 | H92: 2 | I92: 62.48689755 | J92: 15.95337776 | K92: 0.5697634916
A93: 38 | B93: Extensibility Day 10 Sample 38 | C93: AR6 | D93: A | E93: 6 | F93: R | G93: 10 | H93: 2 | I93: 71.71965741 | J93: 15.62576666 | K93: -0.04216563078 | L93: =AVERAGE(I93:I96) -> 61.20545335 | M93: =AVERAGE(J93:J96) -> 12.6524096 | N93: -0.05814776503
A94: 38 | B94: Extensibility Day 10 Sample 38 | C94: AR6 | D94: A | E94: 6 | F94: R | G94: 10 | H94: 2 | I94: 70.6315121 | J94: 9.205709326 | K94: -0.5767170145
A95: 38 | B95: Extensibility Day 10 Sample 38 | C95: AR6 | D95: A | E95: 6 | F95: R | G95: 10 | H95: 2 | I95: 52.60094431 | J95: 11.47993303 | K95: 0.07344980845
A96: 38 | B96: Extensibility Day 10 Sample 38 | C96: AR6 | D96: A | E96: 6 | F96: R | G96: 10 | H96: 2 | I96: 49.86969958 | J96: 14.29822938 | K96: 0.3128417768
A97: 39 | B97: Extensibility Day 10 Sample 39 | C97: AC6 | D97: A | E97: 6 | F97: C | G97: 10 | H97: 2 | I97: 93.56593696 | J97: 22.07620931 | K97: -2.603620731 | L97: =AVERAGE(I97:I99) -> 79.04499942 | M97: =AVERAGE(J97:J99) -> 21.1010917 | N97: -2.160471349
A98: 39 | B98: Extensibility Day 10 Sample 39 | C98: AC6 | D98: A | E98: 6 | F98: C | G98: 10 | H98: 2 | I98: 80.68531355 | J98: 23.38014566 | K98: -1.795747124
A99: 39 | B99: Extensibility Day 10 Sample 39 | C99: AC6 | D99: A | E99: 6 | F99: C | G99: 10 | H99: 2 | I99: 62.88374774 | J99: 17.84692011 | K99: -2.082046192
A100: 40 | B100: Extensibility Day 10 Sample 40 | C100: AD6 | D100: A | E100: 6 | F100: D | G100: 10 | H100: 2 | I100: 79.51744012 | J100: 18.90140777 | K100: -1.295432416 | L100: =AVERAGE(I100:I103) -> 83.69570573 | M100: =AVERAGE(J100:J103) -> 24.45447583 | N100: -0.1785825869
A101: 40 | B101: Extensibility Day 10 Sample 40 | C101: AD6 | D101: A | E101: 6 | F101: D | G101: 10 | H101: 2 | I101: 94.20089727 | J101: 30.08124464 | K101: 1.782991225
A102: 40 | B102: Extensibility Day 10 Sample 40 | C102: AD6 | D102: A | E102: 6 | F102: D | G102: 10 | H102: 2 | I102: 81.55838398 | J102: 21.41857185 | K102: -1.628503114
A103: 40 | B103: Extensibility Day 10 Sample 40 | C103: AD6 | D103: A | E103: 6 | F103: D | G103: 10 | H103: 2 | I103: 79.50610155 | J103: 27.41667906 | K103: 0.4266139576
A104: 42 | B104: Extensibility Day 10 Sample 42 | C104: LR4 | D104: L | E104: 4 | F104: R | G104: 10 | H104: 2 | I104: 47.97351906 | J104: 1.326613503 | K104: 0.08645664922 | L104: =AVERAGE(I104:I106) -> 47.6106846 | M104: =AVERAGE(J104:J106) -> 5.03810769 | N104: 0.1162204137
A105: 42 | B105: Extensibility Day 10 Sample 42 | C105: LR4 | D105: L | E105: 4 | F105: R | G105: 10 | H105: 2 | I105: 47.58800744 | J105: 4.796218048 | K105: 0.3840942941
A106: 42 | B106: Extensibility Day 10 Sample 42 | C106: LR4 | D106: L | E106: 4 | F106: R | G106: 10 | H106: 2 | I106: 47.27052729 | J106: 8.991491518 | K106: -0.1218897022
A107: 43 | B107: Extensibility Day 10 Sample 43 | C107: LC4 | D107: L | E107: 4 | F107: C | G107: 10 | H107: 2 | I107: 63.77949532 | J107: 15.5905433 | K107: -0.02125983177 | L107: =AVERAGE(I107:I110) -> 54.25225604 | M107: =AVERAGE(J107:J110) -> 13.34550507 | N107: 0.08681097975
A108: 43 | B108: Extensibility Day 10 Sample 43 | C108: LC4 | D108: L | E108: 4 | F108: C | G108: 10 | H108: 2 | I108: 65.53697475 | J108: 15.36377176 | K108: 0.07795271651
A109: 43 | B109: Extensibility Day 10 Sample 43 | C109: LC4 | D109: L | E109: 4 | F109: C | G109: 10 | H109: 2 | I109: 44.20911151 | J109: 10.46550652 | K109: 0.1062991589
A110: 43 | B110: Extensibility Day 10 Sample 43 | C110: LC4 | D110: L | E110: 4 | F110: C | G110: 10 | H110: 2 | I110: 43.48344259 | J110: 11.96219868 | K110: 0.1842518754
A111: 44 | B111: Extensibility Day 10 Sample 44 | C111: LD4 | D111: L | E111: 4 | F111: D | G111: 10 | H111: 2 | I111: 46.14800817 | J111: 2.834644237 | K111: 0.4733855875 | L111: =AVERAGE(I111:I114) -> 44.62013493 | M111: =AVERAGE(J111:J114) -> 4.039368037 | N111: 0.406771448
A112: 44 | B112: Extensibility Day 10 Sample 44 | C112: LD4 | D112: L | E112: 4 | F112: D | G112: 10 | H112: 2 | I112: 47.67871606 | J112: 7.676216593 | K112: 0.6618894292
A113: 44 | B113: Extensibility Day 10 Sample 44 | C113: LD4 | D113: L | E113: 4 | F113: D | G113: 10 | H113: 2 | I113: 45.03682763 | J113: 3.945824777 | K113: -0.02976376448
A114: 44 | B114: Extensibility Day 10 Sample 44 | C114: LD4 | D114: L | E114: 4 | F114: D | G114: 10 | H114: 2 | I114: 39.61698785 | J114: 1.700786542 | K114: 0.5215745395
A115: 1 | B115: Extensibility Day 30 Sample 01 | C115: LC4 | D115: L | E115: 4 | F115: C | G115: 30 | H115: 1 | I115: 55.27494044 | J115: 8.732200899 | K115: 0.300407285 | L115: =AVERAGE(I115:I118) -> 51.33838163 | M115: =AVERAGE(J115:J118) -> 8.378780564 | N115: 0.4434745553
A116: 1 | B116: Extensibility Day 30 Sample 01 | C116: LC4 | D116: L | E116: 4 | F116: C | G116: 30 | H116: 1 | I116: 46.77110345 | J116: 7.927489982 | K116: 0.5763470083
A117: 1 | B117: Extensibility Day 30 Sample 01 | C117: LC4 | D117: L | E117: 4 | F117: C | G117: 30 | H117: 1 | I117: 59.55948235 | J117: 8.536460406 | K117: 0.4173078574
A118: 1 | B118: Extensibility Day 30 Sample 01 | C118: LC4 | D118: L | E118: 4 | F118: C | G118: 30 | H118: 1 | I118: 43.74800027 | J118: 8.318970969 | K118: 0.4798360706
A119: 2 | B119: Extensibility Day 30 Sample 02 | C119: LR4 | D119: L | E119: 4 | F119: R | G119: 30 | H119: 1 | I119: 41.82321875 | J119: 6.655176775 | K119: 0.4635243628 | L119: =AVERAGE(I119:I121) -> 43.65013002 | M119: =AVERAGE(J119:J121) -> 6.513808641 | N119: 0.2813769592
A120: 2 | B120: Extensibility Day 30 Sample 02 | C120: LR4 | D120: L | E120: 4 | F120: R | G120: 30 | H120: 1 | I120: 51.94735205 | J120: 6.350691563 | K120: 0.2569093976
A121: 2 | B121: Extensibility Day 30 Sample 02 | C121: LR4 | D121: L | E121: 4 | F121: R | G121: 30 | H121: 1 | I121: 37.17981927 | J121: 6.535557585 | K121: 0.1236971173
A122: 3 | B122: Extensibility Day 30 Sample 03 | C122: LD4 | D122: L | E122: 4 | F122: D | G122: 30 | H122: 1 | I122: 40.56178002 | J122: 5.600353005 | K122: 0.14680537 | L122: =AVERAGE(I122:I125) -> 37.86219238 | M122: =AVERAGE(J122:J125) -> 5.864058948 | N122: 0.2290435634
A123: 3 | B123: Extensibility Day 30 Sample 03 | C123: LD4 | D123: L | E123: 4 | F123: D | G123: 30 | H123: 1 | I123: 36.53822543 | J123: 5.730846667 | K123: 0.2528314706
A124: 3 | B124: Extensibility Day 30 Sample 03 | C124: LD4 | D124: L | E124: 4 | F124: D | G124: 30 | H124: 1 | I124: 37.91928336 | J124: 6.372440507 | K124: 0.2868141952
A125: 3 | B125: Extensibility Day 30 Sample 03 | C125: LD4 | D125: L | E125: 4 | F125: D | G125: 30 | H125: 1 | I125: 36.42948071 | J125: 5.752595611 | K125: 0.2297232179
A126: 6 | B126: Extensibility Day 30 Sample 06 | C126: AC6 | D126: A | E126: 6 | F126: C | G126: 30 | H126: 1 | I126: 74.67499823 | J126: 14.80015619 | K126: -0.1848660215 | L126: =AVERAGE(I126:I129) -> 72.3098006 | M126: =AVERAGE(J126:J129) -> 12.98955663 | N126: 0.4672624625
A127: 6 | B127: Extensibility Day 30 Sample 06 | C127: AC6 | D127: A | E127: 6 | F127: C | G127: 30 | H127: 1 | I127: 92.48738312 | J127: 14.40867521 | K127: 0.7027627436
A128: 6 | B128: Extensibility Day 30 Sample 06 | C128: AC6 | D128: A | E128: 6 | F128: C | G128: 30 | H128: 1 | I128: 62.11498323 | J128: 10.77660161 | K128: 0.5749876993
A129: 6 | B129: Extensibility Day 30 Sample 06 | C129: AC6 | D129: A | E129: 6 | F129: C | G129: 30 | H129: 1 | I129: 59.96183781 | J129: 11.97279351 | K129: 0.7761654286
A130: 7 | B130: Extensibility Day 30 Sample 07 | C130: AR6 | D130: A | E130: 6 | F130: R | G130: 30 | H130: 1 | I130: 90.12762273 | J130: 12.7122576 | K130: 0.1970998024 | L130: =AVERAGE(I130:I132) -> 75.67182481 | M130: =AVERAGE(J130:J132) -> 11.95466939 | N130: 0.1350246922
A131: 7 | B131: Extensibility Day 30 Sample 07 | C131: AR6 | D131: A | E131: 6 | F131: R | G131: 30 | H131: 1 | I131: 73.69629576 | J131: 9.863145972 | K131: -0.07204337604
A132: 7 | B132: Extensibility Day 30 Sample 07 | C132: AR6 | D132: A | E132: 6 | F132: R | G132: 30 | H132: 1 | I132: 63.19155595 | J132: 13.28860461 | K132: 0.2800176503
A133: 8 | B133: Extensibility Day 30 Sample 08 | C133: AD6 | D133: A | E133: 6 | F133: D | G133: 30 | H133: 1 | I133: 55.60117459 | J133: 8.449464631 | K133: 0.4363381832 | L133: =AVERAGE(I133:I135) -> 58.64602671 | M133: =AVERAGE(J133:J135) -> 8.69595266 | N133: 0.521068443
A134: 8 | B134: Extensibility Day 30 Sample 08 | C134: AD6 | D134: A | E134: 6 | F134: D | G134: 30 | H134: 1 | I134: 59.40723974 | J134: 8.55820935 | K134: 0.6810137999
A135: 8 | B135: Extensibility Day 30 Sample 08 | C135: AD6 | D135: A | E135: 6 | F135: D | G135: 30 | H135: 1 | I135: 60.9296658 | J135: 9.080183999 | K135: 0.445853346
A136: 11 | B136: Extensibility Day 30 Sample 11 | C136: CC6 | D136: C | E136: 6 | F136: C | G136: 30 | H136: 1 | I136: 44.96594112 | J136: 6.666051247 | K136: 0.2419569988 | L136: =AVERAGE(I136:I139) -> 43.29399107 | M136: =AVERAGE(J136:J139) -> 6.837324179 | N136: 0.3758489335
A137: 11 | B137: Extensibility Day 30 Sample 11 | C137: CC6 | D137: C | E137: 6 | F137: C | G137: 30 | H137: 1 | I137: 41.97546136 | J137: 7.133653537 | K137: 0.2854548862
A138: 11 | B138: Extensibility Day 30 Sample 11 | C138: CC6 | D138: C | E138: 6 | F138: C | G138: 30 | H138: 1 | I138: 40.23554586 | J138: 6.415938394 | K138: 0.4322602562
A139: 11 | B139: Extensibility Day 30 Sample 11 | C139: CC6 | D139: C | E139: 6 | F139: C | G139: 30 | H139: 1 | I139: 45.99901595 | J139: 7.133653537 | K139: 0.5437235927
A140: 12 | B140: Extensibility Day 30 Sample 12 | C140: CR6 | D140: C | E140: 6 | F140: R | G140: 30 | H140: 1 | I140: 44.433092 | J140: 5.002257053 | K140: 0.3072038299 | L140: =AVERAGE(I140:I143) -> 41.87215388 | M140: =AVERAGE(J140:J143) -> 5.755314229 | N140: 0.2368595901
A141: 12 | B141: Extensibility Day 30 Sample 12 | C141: CR6 | D141: C | E141: 6 | F141: R | G141: 30 | H141: 1 | I141: 42.6170552 | J141: 6.339817091 | K141: 0.2120522012
A142: 12 | B142: Extensibility Day 30 Sample 12 | C142: CR6 | D142: C | E142: 6 | F142: R | G142: 30 | H142: 1 | I142: 38.02802808 | J142: 6.535557585 | K142: 0.1916625664
A143: 12 | B143: Extensibility Day 30 Sample 12 | C143: CR6 | D143: C | E143: 6 | F143: R | G143: 30 | H143: 1 | I143: 42.41044023 | J143: 5.143625187 | K143: 0.2365197628
A144: 13 | B144: Extensibility Day 30 Sample 13 | C144: CD6 | D144: C | E144: 6 | F144: D | G144: 30 | H144: 1 | I144: 35.84225923 | J144: 4.012680114 | K144: 0.09651093771 | L144: =AVERAGE(I144:I147) -> 34.94239669 | M144: =AVERAGE(J144:J147) -> 3.865874744 | N144: 0.04587667814
A145: 13 | B145: Extensibility Day 30 Sample 13 | C145: CD6 | D145: C | E145: 6 | F145: D | G145: 30 | H145: 1 | I145: 35.63564427 | J145: 3.882186452 | K145: 0.01903032575
A146: 13 | B146: Extensibility Day 30 Sample 13 | C146: CD6 | D146: C | E146: 6 | F146: D | G146: 30 | H146: 1 | I146: 33.95010113 | J146: 3.588575712 | K146: 0.04077926946
A147: 13 | B147: Extensibility Day 30 Sample 13 | C147: CD6 | D147: C | E147: 6 | F147: D | G147: 30 | H147: 1 | I147: 34.34158212 | J147: 3.980056699 | K147: 0.02718617964
A148: 16 | B148: Extensibility Day 30 Sample 16 | C148: AC4 | D148: A | E148: 4 | F148: C | G148: 30 | H148: 2 | I148: 35.80963582 | J148: 4.034429058 | K148: 0.2297232179 | L148: =AVERAGE(I148:I151) -> 35.83410338 | M148: =AVERAGE(J148:J151) -> 5.236058198 | N148: 0.1862253305
A149: 16 | B149: Extensibility Day 30 Sample 16 | C149: AC4 | D149: A | E149: 4 | F149: C | G149: 30 | H149: 2 | I149: 34.03709691 | J149: 5.176248603 | K149: 0.1073854096
A150: 16 | B150: Extensibility Day 30 Sample 16 | C150: AC4 | D150: A | E150: 4 | F150: C | G150: 30 | H150: 2 | I150: 36.40773177 | J150: 5.448110399 | K150: 0.1454460611
A151: 16 | B151: Extensibility Day 30 Sample 16 | C151: AC4 | D151: A | E151: 4 | F151: C | G151: 30 | H151: 2 | I151: 37.08194902 | J151: 6.285444732 | K151: 0.2623466335
A152: 17 | B152: Extensibility Day 30 Sample 17 | C152: AR4 | D152: A | E152: 4 | F152: R | G152: 30 | H152: 2 | I152: 37.97365572 | J152: 5.002257053 | K152: 0.2745804143 | L152: =AVERAGE(I152:I155) -> 35.13813718 | M152: =AVERAGE(J152:J155) -> 4.795642088 | N152: 0.1586993236
A153: 17 | B153: Extensibility Day 30 Sample 17 | C153: AR4 | D153: A | E153: 4 | F153: R | G153: 30 | H153: 2 | I153: 32.98227314 | J153: 4.371537686 | K153: 0.07883992095
A154: 17 | B154: Extensibility Day 30 Sample 17 | C154: AR4 | D154: A | E154: 4 | F154: R | G154: 30 | H154: 2 | I154: 35.22241434 | J154: 5.111001772 | K154: 0.1957404934
A155: 17 | B155: Extensibility Day 30 Sample 17 | C155: AR4 | D155: A | E155: 4 | F155: R | G155: 30 | H155: 2 | I155: 34.37420553 | J155: 4.697771841 | K155: 0.08563646586
A156: 18 | B156: Extensibility Day 30 Sample 18 | C156: AD4 | D156: A | E156: 4 | F156: D | G156: 30 | H156: 2 | I156: 34.60256944 | J156: 3.273216028 | K156: 0.03806065149 | L156: =AVERAGE(I156:I159) -> 34.93152222 | M156: =AVERAGE(J156:J159) -> 3.721787992 | N156: 0.0822381934
A157: 18 | B157: Extensibility Day 30 Sample 18 | C157: AD4 | D157: A | E157: 4 | F157: D | G157: 30 | H157: 2 | I157: 33.38462859 | J157: 3.403709691 | K157: 0.09379231975
A158: 18 | B158: Extensibility Day 30 Sample 18 | C158: AD4 | D158: A | E158: 4 | F158: D | G158: 30 | H158: 2 | I158: 35.95100395 | J158: 4.012680114 | K158: 0.07748061197
A159: 18 | B159: Extensibility Day 30 Sample 18 | C159: AD4 | D159: A | E159: 4 | F159: D | G159: 30 | H159: 2 | I159: 35.78788687 | J159: 4.197546136 | K159: 0.1196191904
A160: 21 | B160: Extensibility Day 30 Sample 21 | C160: LC6 | D160: L | E160: 6 | F160: C | G160: 30 | H160: 2 | I160: 45.21605397 | J160: 9.55866076 | K160: 0.4336195652 | L160: =AVERAGE(I160:I163) -> 43.56313425 | M160: =AVERAGE(J160:J163) -> 9.126400504 | N160: 0.3816259967
A161: 21 | B161: Extensibility Day 30 Sample 21 | C161: LC6 | D161: L | E161: 6 | F161: C | G161: 30 | H161: 2 | I161: 41.921089 | J161: 7.307645086 | K161: 0.2147708191
A162: 21 | B162: Extensibility Day 30 Sample 21 | C162: LC6 | D162: L | E162: 6 | F162: C | G162: 30 | H162: 2 | I162: 44.05248548 | J162: 10.50473981 | K162: 0.4934291604
A163: 21 | B163: Extensibility Day 30 Sample 21 | C163: LC6 | D163: L | E163: 6 | F163: C | G163: 30 | H163: 2 | I163: 43.06290854 | J163: 9.134556358 | K163: 0.3846844419
A164: 22 | B164: Extensibility Day 30 Sample 22 | C164: LR6 | D164: L | E164: 6 | F164: R | G164: 30 | H164: 2 | I164: 46.92334605 | J164: 7.068406706 | K164: -0.1603984599 | L164: =AVERAGE(I164:I167) -> 41.84224908 | M164: =AVERAGE(J164:J167) -> 7.35658021 | N164: 0.1485045063
A165: 22 | B165: Extensibility Day 30 Sample 22 | C165: LR6 | D165: L | E165: 6 | F165: R | G165: 30 | H165: 2 | I165: 40.74664604 | J165: 7.883992095 | K165: 0.3914809868
A166: 22 | B166: Extensibility Day 30 Sample 22 | C166: LR6 | D166: L | E166: 6 | F166: R | G166: 30 | H166: 2 | I166: 39.11547526 | J166: 7.655628186 | K166: 0.1318529712
A167: 22 | B167: Extensibility Day 30 Sample 22 | C167: LR6 | D167: L | E167: 6 | F167: R | G167: 30 | H167: 2 | I167: 40.58352896 | J167: 6.818293853 | K167: 0.2310825269
A168: 23 | B168: Extensibility Day 30 Sample 23 | C168: LD6 | D168: L | E168: 6 | F168: D | G168: 30 | H168: 2 | I168: 37.97365572 | J168: 5.654725364 | K168: 0.3112817568 | L168: =AVERAGE(I168:I171) -> 38.2427989 | M168: =AVERAGE(J168:J171) -> 5.999989846 | N168: 0.2001582476
A169: 23 | B169: Extensibility Day 30 Sample 23 | C169: LD6 | D169: L | E169: 6 | F169: D | G169: 30 | H169: 2 | I169: 36.79921276 | J169: 5.86134033 | K169: 0.222926673
A170: 23 | B170: Extensibility Day 30 Sample 23 | C170: LD6 | D170: L | E170: 6 | F170: D | G170: 30 | H170: 2 | I170: 40.00718195 | J170: 6.372440507 | K170: 0.09651093771
A171: 23 | B171: Extensibility Day 30 Sample 23 | C171: LD6 | D171: L | E171: 6 | F171: D | G171: 30 | H171: 2 | I171: 38.19114515 | J171: 6.111453182 | K171: 0.1699136227
A172: 26 | B172: Extensibility Day 30 Sample 26 | C172: CR6 | D172: C | E172: 6 | F172: R | G172: 30 | H172: 2 | I172: 39.89858145 | J172: 9.075359719 | K172: 0.5555220191 | L172: =AVERAGE(I172:I175) -> 38.35027008 | M172: =AVERAGE(J172:J175) -> 7.659053581 | N172: 0.2554163739
A173: 26 | B173: Extensibility Day 30 Sample 26 | C173: CR6 | D173: C | E173: 6 | F173: R | G173: 30 | H173: 2 | I173: 35.78441838 | J173: 5.610222371 | K173: 0.0481269076
A174: 26 | B174: Extensibility Day 30 Sample 26 | C174: CR6 | D174: C | E174: 6 | F174: R | G174: 30 | H174: 2 | I174: 41.20763334 | J174: 10.21940506 | K174: 0.1760069764
A175: 26 | B175: Extensibility Day 30 Sample 26 | C175: CR6 | D175: C | E175: 6 | F175: R | G175: 30 | H175: 2 | I175: 36.51044716 | J175: 5.731227168 | K175: 0.2420095925
A176: 27 | B176: Extensibility Day 30 Sample 27 | C176: CC6 | D176: C | E176: 6 | F176: C | G176: 30 | H176: 2 | I176: 39.41289347 | J176: 2.290392543 | K176: 0.3500785632 | L176: =AVERAGE(I176:I179) -> 35.93478499 | M176: =AVERAGE(J176:J179) -> 3.299525891 | N176: 0.4510627641
A177: 27 | B177: Extensibility Day 30 Sample 27 | C177: CC6 | D177: C | E177: 6 | F177: C | G177: 30 | H177: 2 | I177: 34.83210838 | J177: 3.11810866 | K177: 0.5697634916
A178: 27 | B178: Extensibility Day 30 Sample 27 | C178: CC6 | D178: C | E178: 6 | F178: C | G178: 30 | H178: 2 | I178: 37.17919381 | J178: 3.866454739 | K178: 0.6548028187
A179: 27 | B179: Extensibility Day 30 Sample 27 | C179: CC6 | D179: C | E179: 6 | F179: C | G179: 30 | H179: 2 | I179: 32.3149443 | J179: 3.923147623 | K179: 0.2296061832
A180: 28 | B180: Extensibility Day 30 Sample 28 | C180: CD6 | D180: C | E180: 6 | F180: D | G180: 30 | H180: 2 | I180: 29.07415241 | J180: 0.7480296495 | K180: 0.1168796327 | L180: =AVERAGE(I180:I182) -> 30.63621432 | M180: =AVERAGE(J180:J182) -> 1.397055375 | N180: 0.1168796327
A181: 28 | B181: Extensibility Day 30 Sample 28 | C181: CD6 | D181: C | E181: 6 | F181: D | G181: 30 | H181: 2 | I181: 32.42928539 | J181: 1.947077176 | K181: 0.1347553413
A182: 28 | B182: Extensibility Day 30 Sample 28 | C182: CD6 | D182: C | E182: 6 | F182: D | G182: 30 | H182: 2 | I182: 30.40520517 | J182: 1.496059299 | K182: 0.0990039242
A183: 30 | B183: Extensibility Day 30 Sample 30 | C183: AR4 | D183: A | E183: 4 | F183: R | G183: 30 | H183: 2 | I183: 32.14327406 | J183: 1.705067583 | K183: 0.1801321399 | L183: =AVERAGE(I183:I185) -> 30.79388724 | M183: =AVERAGE(J183:J185) -> 2.11941734 | N183: 0.1452974258
A184: 30 | B184: Extensibility Day 30 Sample 30 | C184: AR4 | D184: A | E184: 4 | F184: R | G184: 30 | H184: 2 | I184: 29.20615764 | J184: 2.838112494 | K184: 0.3162625356
A185: 30 | B185: Extensibility Day 30 Sample 30 | C185: AR4 | D185: A | E185: 4 | F185: R | G185: 30 | H185: 2 | I185: 31.03223002 | J185: 1.815071944 | K185: -0.06050239812
A186: 31 | B186: Extensibility Day 30 Sample 31 | C186: AC4 | D186: A | E186: 4 | F186: C | G186: 30 | H186: 2 | I186: 33.69433554 | J186: 4.301170485 | K186: 0.4001408603 | L186: =AVERAGE(I186:I189) -> 33.59808172 | M186: =AVERAGE(J186:J189) -> 4.127913617 | N186: 0.4190478597
A187: 31 | B187: Extensibility Day 30 Sample 31 | C187: AC4 | D187: A | E187: 4 | F187: C | G187: 30 | H187: 2 | I187: 36.8294598 | J187: 7.304289519 | K187: 0.8277828107
A188: 31 | B188: Extensibility Day 30 Sample 31 | C188: AC4 | D188: A | E188: 4 | F188: C | G188: 30 | H188: 2 | I188: 31.89026403 | J188: 3.465137347 | K188: 0.3685146068
A189: 31 | B189: Extensibility Day 30 Sample 31 | C189: AC4 | D189: A | E189: 4 | F189: C | G189: 30 | H189: 2 | I189: 31.97826752 | J189: 1.441057119 | K189: 0.07975316116
A190: 32 | B190: Extensibility Day 30 Sample 32 | C190: AD4 | D190: A | E190: 4 | F190: D | G190: 30 | H190: 2 | I190: 40.20659366 | J190: 8.98735623 | K190: 0.1168796327 | L190: =AVERAGE(I190:I193) -> 44.93403104 | M190: =AVERAGE(J190:J193) -> 6.462756163 | N190: 0.06600261614
A191: 32 | B191: Extensibility Day 30 Sample 32 | C191: AD4 | D191: A | E191: 4 | F191: D | G191: 30 | H191: 2 | I191: 36.57644977 | J191: 6.61126205 | K191: 0.0495019621
A192: 32 | B192: Extensibility Day 30 Sample 32 | C192: AD4 | D192: A | E192: 4 | F192: D | G192: 30 | H192: 2 | I192: 35.3334005 | J192: 5.830231092 | K192: 0.07287788865
A193: 32 | B193: Extensibility Day 30 Sample 32 | C193: AD4 | D193: A | E193: 4 | F193: D | G193: 30 | H193: 2 | I193: 67.61968023 | J193: 4.422175281 | K193: 0.02475098105
A194: 34 | B194: Extensibility Day 30 Sample 34 | C194: LR6 | D194: L | E194: 6 | F194: R | G194: 30 | H194: 2 | I194: 53.71085252 | J194: 6.441820238 | K194: 0.02584345112 | L194: =AVERAGE(I194:I197) -> 47.63628133 | M194: =AVERAGE(J194:J197) -> 6.838993276 | N194: 0.1258168015
A195: 34 | B195: Extensibility Day 30 Sample 34 | C195: LR6 | D195: L | E195: 6 | F195: R | G195: 30 | H195: 2 | I195: 45.7565103 | J195: 7.040300159 | K195: 0.4964662979
A196: 34 | B196: Extensibility Day 30 Sample 34 | C196: LR6 | D196: L | E196: 6 | F196: R | G196: 30 | H196: 2 | I196: 44.40721012 | J196: 7.638780079 | K196: 0.1047339861
A197: 34 | B197: Extensibility Day 30 Sample 34 | C197: LR6 | D197: L | E197: 6 | F197: R | G197: 30 | H197: 2 | I197: 46.67055236 | J197: 6.235072629 | K197: -0.1237765291
A198: 35 | B198: Extensibility Day 30 Sample 35 | C198: LC6 | D198: L | E198: 6 | F198: C | G198: 30 | H198: 2 | I198: 52.42684106 | J198: 10.91409746 | K198: 0.2570743296 | L198: =AVERAGE(I198:I201) -> 53.12053369 | M198: =AVERAGE(J198:J201) -> 11.86078388 | N198: -0.05576744716
A199: 35 | B199: Extensibility Day 30 Sample 35 | C199: LC6 | D199: L | E199: 6 | F199: C | G199: 30 | H199: 2 | I199: 51.5345619 | J199: 11.64315482 | K199: -0.2040272457
A200: 35 | B200: Extensibility Day 30 Sample 35 | C200: LC6 | D200: L | E200: 6 | F200: C | G200: 30 | H200: 2 | I200: 56.42033435 | J200: 12.7857074 | K200: -0.4406988507
... 26 more rows

Sheet ANOVA_HID (hidden)
B2: Category | C2: Mean | D2: Standard error
B3: AC4 | C3: 37.32692363 | D3: 2.911566064
B4: AC6 | C4: 79.69216278 | D4: 3.208389539
B5: AD4 | C5: 39.21948887 | D5: 3.001173604
B6: AD6 | C6: 65.71323039 | D6: 3.09959877
B7: AR4 | C7: 35.58747397 | D7: 3.208389539
B8: AR6 | C8: 70.33366675 | D8: 3.208389539
B9: CC6 | C9: 39.38738652 | D9: 3.09959877
B10: CD6 | C10: 36.3327434 | D10: 3.001173604
B11: CR6 | C11: 40.68004509 | D11: 3.208389539
B12: LC4 | C12: 52.37678503 | D12: 3.001173604
B13: LC6 | C13: 52.75055521 | D13: 3.09959877
B14: LD4 | C14: 38.71683846 | D14: 3.001173604
B15: LD6 | C15: 47.82708486 | D15: 3.09959877
B16: LR4 | C16: 43.43010551 | D16: 3.465456777
B17: LR6 | C17: 47.36870408 | D17: 2.911566064

Sheet ANOVA_HID1 (hidden)
B2: Category | C2: Mean | D2: Standard error
B3: AC4 | C3: 5.964307993 | D3: 0.854884425
B4: AC6 | C4: 17.77130338 | D4: 0.9420367548
B5: AD4 | C5: 4.550248069 | D5: 0.8811946955
B6: AD6 | C6: 13.49139584 | D6: 0.9100939681
B7: AR4 | C7: 4.436940996 | D7: 0.9420367548
B8: AR6 | C8: 12.80311517 | D8: 0.9420367548
B9: CC6 | C9: 5.270026657 | D9: 0.9100939681
B10: CD6 | C10: 3.756692756 | D10: 0.8811946955
B11: CR6 | C11: 6.592225461 | D11: 0.9420367548
B12: LC4 | C12: 9.392014295 | D12: 0.8811946955
B13: LC6 | C13: 12.3404828 | D13: 0.9100939681
B14: LD4 | C14: 4.626551025 | D14: 0.8811946955
B15: LD6 | C15: 9.5897135 | D15: 0.9100939681
B16: LR4 | C16: 5.611065221 | D16: 1.017515989
B17: LR6 | C17: 8.817671231 | D17: 0.854884425

Sheet ANOVA_HID2 (hidden)
B2: Category | C2: Mean | D2: Standard error
B3: AC4 | C3: 0.3069336727 | D3: 0.1215137635
B4: AC6 | C4: -0.6663307951 | D4: 0.1339016457
B5: AD4 | C5: 0.09368438561 | D5: 0.1252535204
B6: AD6 | C6: 0.1899324977 | D6: 0.1293612796
B7: AR4 | C7: 0.2736137034 | D7: 0.1339016457
B8: AR6 | C8: -0.3471305756 | D8: 0.1339016457
B9: CC6 | C9: 0.4040463678 | D9: 0.1293612796
B10: CD6 | C10: 0.1177740319 | D10: 0.1252535204
B11: CR6 | C11: 0.311905129 | D11: 0.1339016457
B12: LC4 | C12: 0.2121677894 | D12: 0.1252535204
B13: LC6 | C13: 0.2702958361 | D13: 0.1293612796
B14: LD4 | C14: 0.306289153 | D14: 0.1252535204
B15: LD6 | C15: 0.2341604284 | D15: 0.1293612796
B16: LR4 | C16: 0.1801397117 | D16: 0.1446303075
B17: LR6 | C17: 0.3290141248 | D17: 0.1215137635

Sheet ANOVA1_HID (hidden)
B2: Category | C2: Mean | D2: Standard error
B3: A | C3: 53.84838032 | D3: 1.2314777
B4: C | C4: 38.70345163 | D4: 1.741572465
B5: L | C5: 47.10183925 | D5: 1.2314777
B8: Acid\pH | C8: 4 | D8: 6
B9: A | C9: 37.45306722 | D9: 71.76883882
B10: C | D10: 38.70345163
B11: L | C11: 44.96952823 | D11: 49.14144109
B14: Acid\salt | C14: C | D14: D | E14: R
B15: A | C15: 56.45961228 | D15: 52.03904122 | E15: 52.96057036
B16: C
B17: L | C17: 52.55764157 | D17: 43.1250222 | E17: 45.46439126
B20: Acid\Day | C20: 10 | D20: 30
B21: A | C21: 56.43635287 | D21: 51.26040776
B22: C
B23: L | C23: 50.76459827 | D23: 43.27259117
B26: Category | C26: Mean | D26: Standard error
B27: 4 | C27: 41.08740001 | D27: 1.224692648
B28: 6 | C28: 52.89717674 | D28: 1.009242214
B31: pH\Acid | C31: A | D31: C | E31: L
B32: 4 | C32: 37.45306722 | E32: 44.96952823
B33: 6 | C33: 71.76883882 | D33: 38.70345163 | E33: 49.14144109
B36: pH\salt | C36: C | D36: D | E36: R
B37: 4
B38: 6 | C38: 56.7672592 | D38: 49.66149181 | E38: 52.40985579
B41: pH\Day | C41: 10 | D41: 30
B42: 4
B43: 6 | C43: 56.35948626 | D43: 49.53669985
B46: Category | C46: Mean | D46: Standard error
B47: C | C47: 51.56293074 | D47: 1.331381274
B48: D | C48: 45.27448539 | D48: 1.322819247
B49: R | C49: 47.50599367 | D49: 1.39636446
B52: salt\Acid | C52: A | D52: C | E52: L
B53: C | C53: 56.45961228 | E53: 52.55764157
B54: D | C54: 52.03904122 | E54: 43.1250222
B55: R | C55: 52.96057036 | E55: 45.46439126
B58: salt\pH | C58: 4 | D58: 6
B59: C | D59: 56.7672592
B60: D | D60: 49.66149181
B61: R | D61: 52.40985579
B64: salt\Day | C64: 10 | D64: 30
B65: C
B66: D
B67: R
B70: Category | C70: Mean | D70: Standard error
B71: 10 | C71: 50.85822737 | D71: 1.099027564
B72: 30 | C72: 45.35888742 | D72: 1.103923034
B75: Day\Acid | C75: A | D75: C | E75: L
B76: 10 | C76: 56.43635287 | E76: 50.76459827
B77: 30 | C77: 51.26040776 | E77: 43.27259117
B80: Day\pH | C80: 4 | D80: 6
B81: 10 | D81: 56.35948626
B82: 30 | D82: 49.53669985
B85: Day\salt | C85: C | D85: D | E85: R
B86: 10
B87: 30

Sheet ANOVA1_HID1 (hidden)
B2: Category | C2: Mean | D2: Standard error
B3: A | C3: 9.630301958 | D3: 0.3463717862
B4: C | C4: 5.14330312 | D4: 0.4898436777
B5: L | C5: 8.410614891 | D5: 0.3463717862
B8: Acid\pH | C8: 4 | D8: 6
B9: A | C9: 5.027965509 | D9: 14.66076273
B10: C | D10: 5.14330312
B11: L | C11: 6.627950631 | D11: 10.11577201
B14: Acid\salt | C14: C | D14: D | E14: R
B15: A | C15: 11.29649946 | D15: 8.876609894 | E15: 8.620028081
B16: C
B17: L | C17: 10.8186926 | D17: 7.028081255 | E17: 7.275191093
B20: Acid\Day | C20: 10 | D20: 30
B21: A | C21: 10.52099255 | D21: 8.739611367
B22: C
B23: L | C23: 9.580553031 | D23: 7.187497745
B26: Category | C26: Mean | D26: Standard error
B27: 4 | C27: 5.801584689 | D27: 0.3444633872
B28: 6 | C28: 9.904380225 | D28: 0.2838646841
B31: pH\Acid | C31: A | D31: C | E31: L
B32: 4 | C32: 5.027965509 | E32: 6.627950631
B33: 6 | C33: 14.66076273 | D33: 5.14330312 | E33: 10.11577201
B36: pH\salt | C36: C | D36: D | E36: R
B37: 4
B38: 6 | C38: 11.65808839 | D38: 8.83312444 | E38: 9.270621289
B41: pH\Day | C41: 10 | D41: 30
B42: 4
B43: 6 | C43: 11.1800662 | D43: 8.666214427
B46: Category | C46: Mean | D46: Standard error
B47: C | C47: 9.930147452 | D47: 0.3744711819
B48: D | C48: 7.091698843 | D48: 0.3720629821
B49: R | C49: 7.676532762 | D49: 0.3927486889
B52: salt\Acid | C52: A | D52: C | E52: L
B53: C | C53: 11.29649946 | E53: 10.8186926
B54: D | C54: 8.876609894 | E54: 7.028081255
B55: R | C55: 8.620028081 | E55: 7.275191093
B58: salt\pH | C58: 4 | D58: 6
B59: C | D59: 11.65808839
B60: D | D60: 8.83312444
B61: R | D61: 9.270621289
B64: salt\Day | C64: 10 | D64: 30
B65: C
B66: D
B67: R
B70: Category | C70: Mean | D70: Standard error
B71: 10 | C71: 9.130435469 | D71: 0.3091181761
B72: 30 | C72: 7.351713829 | D72: 0.3104951013
B75: Day\Acid | C75: A | D75: C | E75: L
B76: 10 | C76: 10.52099255 | E76: 9.580553031
B77: 30 | C77: 8.739611367 | E77: 7.187497745
B80: Day\pH | C80: 4 | D80: 6
B81: 10 | D81: 11.1800662
B82: 30 | D82: 8.666214427
B85: Day\salt | C85: C | D85: D | E85: R
B86: 10
B87: 30

Sheet ANOVA1_HID2 (hidden)
B2: Category | C2: Mean | D2: Standard error
B3: A | C3: -0.008800636358 | D3: 0.05072889988
B4: C | C4: 0.2735944852 | D4: 0.07174149821
B5: L | C5: 0.2628650109 | D5: 0.05072889988
B8: Acid\pH | C8: 4 | D8: 6
B9: A | C9: 0.2244130735 | D9: -0.2637086448
B10: C | D10: 0.2735944852
B11: L | C11: 0.2376588095 | D11: 0.2869752904
B14: Acid\salt | C14: C | D14: D | E14: R
B15: A | C15: -0.1326051192 | D15: 0.1402560528 | E15: -0.03675843611
B16: C
B17: L | C17: 0.2402942636 | D17: 0.2713881572 | E17: 0.2784177118
B20: Acid\Day | C20: 10 | D20: 30
B21: A | C21: -0.1325601113 | D21: 0.1149588386
B22: C
B23: L | C23: 0.3514699536 | D23: 0.1702325707
B26: Category | C26: Mean | D26: Standard error
B27: 4 | C27: 0.2308176052 | D27: 0.05044939968
B28: 6 | C28: 0.1057697274 | D28: 0.04157423817
B31: pH\Acid | C31: A | D31: C | E31: L
B32: 4 | C32: 0.2244130735 | E32: 0.2376588095
B33: 6 | C33: -0.2637086448 | D33: 0.2735944852 | E33: 0.2869752904
B36: pH\salt | C36: C | D36: D | E36: R
B37: 4
B38: 6 | C38: 0.01787504379 | D38: 0.1792560522 | E38: 0.1168377986
B41: pH\Day | C41: 10 | D41: 30
B42: 4
B43: 6 | C43: 0.05298690595 | D43: 0.1570001129
B46: Category | C46: Mean | D46: Standard error
B47: C | C47: 0.1220657012 | D47: 0.05484427961
B48: D | C48: 0.1877609618 | D48: 0.05449157962
B49: R | C49: 0.1590447361 | D49: 0.05752116572
B52: salt\Acid | C52: A | D52: C | E52: L
B53: C | C53: -0.1326051192 | E53: 0.2402942636
B54: D | C54: 0.1402560528 | E54: 0.2713881572
B55: R | C55: -0.03675843611 | E55: 0.2784177118
B58: salt\pH | C58: 4 | D58: 6
B59: C | D59: 0.01787504379
B60: D | D60: 0.1792560522
B61: R | D61: 0.1168377986
B64: salt\Day | C64: 10 | D64: 30
B65: C
B66: D
B67: R
B70: Category | C70: Mean | D70: Standard error
B71: 10 | C71: 0.1478165348 | D71: 0.0452728127
B72: 30 | C72: 0.1649489027 | D72: 0.04547447434
B75: Day\Acid | C75: A | D75: C | E75: L
B76: 10 | C76: -0.1325601113 | E76: 0.3514699536
B77: 30 | C77: 0.1149588386 | E77: 0.1702325707
B80: Day\pH | C80: 4 | D80: 6
B81: 10 | D81: 0.05298690595
B82: 30 | D82: 0.1570001129
B85: Day\salt | C85: C | D85: D | E85: R
B86: 10
B87: 30

Sheet ANOVA1_HID3 (hidden)
B2: Category | C2: Mean | D2: Standard error
B3: A | C3: 53.84838032 | D3: 1.242455226
B4: C | C4: 38.70345163 | D4: 1.757097031
B5: L | C5: 47.10183925 | D5: 1.242455226
B8: Acid\pH | C8: 4 | D8: 6
B9: A | C9: 37.45306722 | D9: 71.76883882
B10: C | D10: 38.70345163
B11: L | C11: 44.96952823 | D11: 49.14144109
B14: Acid\salt | C14: C | D14: D | E14: R
B15: A | C15: 56.45961228 | D15: 52.03904122 | E15: 52.96057036
B16: C | C16: 39.38738652 | D16: 36.3327434 | E16: 40.68004509
B17: L | C17: 52.55764157 | D17: 43.1250222 | E17: 45.46439126
B20: Acid\Day | C20: 10 | D20: 30
B21: A | C21: 56.43635287 | D21: 51.26040776
B22: C | C22: 39.64419516 | D22: 37.80360999
B23: L | C23: 50.76459827 | D23: 43.27259117
B26: Category | C26: Mean | D26: Standard error
B27: 4 | C27: 41.08740001 | D27: 1.23560969
B28: 6 | C28: 52.89717674 | D28: 1.018238708
B31: pH\Acid | C31: A | D31: C | E31: L
B32: 4 | C32: 37.45306722 | E32: 44.96952823
B33: 6 | C33: 71.76883882 | D33: 38.70345163 | E33: 49.14144109
B36: pH\salt | C36: C | D36: D | E36: R
B37: 4 | C37: 44.62382613 | D37: 38.96816367 | E37: 39.20715007
B38: 6 | C38: 56.7672592 | D38: 49.66149181 | E38: 52.40985579
B41: pH\Day | C41: 10 | D41: 30
B42: 4 | C42: 43.13305533 | D42: 38.9022682
B43: 6 | C43: 56.35948626 | D43: 49.53669985
B46: Category | C46: Mean | D46: Standard error
B47: C | C47: 51.56293074 | D47: 1.34324935
B48: D | C48: 45.27448539 | D48: 1.334611001
B49: R | C49: 47.50599367 | D49: 1.408811804
B52: salt\Acid | C52: A | D52: C | E52: L
B53: C | C53: 56.45961228 | D53: 39.38738652 | E53: 52.55764157
B54: D | C54: 52.03904122 | D54: 36.3327434 | E54: 43.1250222
B55: R | C55: 52.96057036 | D55: 40.68004509 | E55: 45.46439126
B58: salt\pH | C58: 4 | D58: 6
B59: C | C59: 44.62382613 | D59: 56.7672592
B60: D | C60: 38.96816367 | D60: 49.66149181
B61: R | C61: 39.20715007 | D61: 52.40985579
B64: salt\Day | C64: 10 | D64: 30
B65: C
B66: D
B67: R
B70: Category | C70: Mean | D70: Standard error
B71: 10 | C71: 50.85822737 | D71: 1.108824415
B72: 30 | C72: 45.35888742 | D72: 1.113763524
B75: Day\Acid | C75: A | D75: C | E75: L
B76: 10 | C76: 56.43635287 | D76: 39.64419516 | E76: 50.76459827
B77: 30 | C77: 51.26040776 | D77: 37.80360999 | E77: 43.27259117
B80: Day\pH | C80: 4 | D80: 6
B81: 10 | C81: 43.13305533 | D81: 56.35948626
B82: 30 | C82: 38.9022682 | D82: 49.53669985
B85: Day\salt | C85: C | D85: D | E85: R
B86: 10
B87: 30

Sheet ANOVA1_HID4 (hidden)
B2: Category | C2: Mean | D2: Standard error
B3: A | C3: 9.630301958 | D3: 0.3495482416
B4: C | C4: 5.14330312 | D4: 0.494335864
B5: L | C5: 8.410614891 | D5: 0.3495482416
B8: Acid\pH | C8: 4 | D8: 6
B9: A | C9: 5.027965509 | D9: 14.66076273
B10: C | D10: 5.14330312
B11: L | C11: 6.627950631 | D11: 10.11577201
B14: Acid\salt | C14: C | D14: D | E14: R
B15: A | C15: 11.29649946 | D15: 8.876609894 | E15: 8.620028081
B16: C | C16: 5.270026657 | D16: 3.756692756 | E16: 6.592225461
B17: L | C17: 10.8186926 | D17: 7.028081255 | E17: 7.275191093
B20: Acid\Day | C20: 10 | D20: 30
B21: A | C21: 10.52099255 | D21: 8.739611367
B22: C | C22: 5.344959263 | D22: 4.950414636
B23: L | C23: 9.580553031 | D23: 7.187497745
B26: Category | C26: Mean | D26: Standard error
B27: 4 | C27: 5.801584689 | D27: 0.3476223413
B28: 6 | C28: 9.904380225 | D28: 0.2864679085
B31: pH\Acid | C31: A | D31: C | E31: L
B32: 4 | C32: 5.027965509 | E32: 6.627950631
B33: 6 | C33: 14.66076273 | D33: 5.14330312 | E33: 10.11577201
B36: pH\salt | C36: C | D36: D | E36: R
B37: 4 | C37: 7.6262262 | D37: 4.588399547 | E37: 4.978844484
B38: 6 | C38: 11.65808839 | D38: 8.83312444 | E38: 9.270621289
B41: pH\Day | C41: 10 | D41: 30
B42: 4 | C42: 6.252230614 | D42: 5.320212906
B43: 6 | C43: 11.1800662 | D43: 8.666214427
B46: Category | C46: Mean | D46: Standard error
B47: C | C47: 9.930147452 | D47: 0.377905327
B48: D | C48: 7.091698843 | D48: 0.3754750425
B49: R | C49: 7.676532762 | D49: 0.3963504508
B52: salt\Acid | C52: A | D52: C | E52: L
B53: C | C53: 11.29649946 | D53: 5.270026657 | E53: 10.8186926
B54: D | C54: 8.876609894 | D54: 3.756692756 | E54: 7.028081255
B55: R | C55: 8.620028081 | D55: 6.592225461 | E55: 7.275191093
B58: salt\pH | C58: 4 | D58: 6
B59: C | C59: 7.6262262 | D59: 11.65808839
B60: D | C60: 4.588399547 | D60: 8.83312444
B61: R | C61: 4.978844484 | D61: 9.270621289
B64: salt\Day | C64: 10 | D64: 30
B65: C
B66: D
B67: R
B70: Category | C70: Mean | D70: Standard error
B71: 10 | C71: 9.130435469 | D71: 0.3119529915
B72: 30 | C72: 7.351713829 | D72: 0.313342544
B75: Day\Acid | C75: A | D75: C | E75: L
B76: 10 | C76: 10.52099255 | D76: 5.344959263 | E76: 9.580553031
B77: 30 | C77: 8.739611367 | D77: 4.950414636 | E77: 7.187497745
B80: Day\pH | C80: 4 | D80: 6
B81: 10 | C81: 6.252230614 | D81: 11.1800662
B82: 30 | C82: 5.320212906 | D82: 8.666214427
B85: Day\salt | C85: C | D85: D | E85: R
B86: 10
B87: 30

Sheet ANOVA1_HID5 (hidden)
B2: Category | C2: Mean | D2: Standard error
B3: A | C3: -0.008800636358 | D3: 0.05280232992
B4: C | C4: 0.2735944852 | D4: 0.0746737711
B5: L | C5: 0.2628650109 | D5: 0.05280232992
B8: Acid\pH | C8: 4 | D8: 6
B9: A | C9: 0.2244130735 | D9: -0.2637086448
B10: C | D10: 0.2735944852
B11: L | C11: 0.2376588095 | D11: 0.2869752904
B14: Acid\salt | C14: C | D14: D | E14: R
B15: A | C15: -0.1326051192 | D15: 0.1402560528 | E15: -0.03675843611
B16: C | C16: 0.4040463678 | D16: 0.1177740319 | E16: 0.311905129
B17: L | C17: 0.2402942636 | D17: 0.2713881572 | E17: 0.2784177118
B20: Acid\Day | C20: 10 | D20: 30
B21: A | C21: -0.1325601113 | D21: 0.1149588386
B22: C | C22: 0.2954934353 | D22: 0.2526476634
B23: L | C23: 0.3514699536 | D23: 0.1702325707
B26: Category | C26: Mean | D26: Standard error
B27: 4 | C27: 0.2308176052 | D27: 0.05251140578
B28: 6 | C28: 0.1057697274 | D28: 0.04327349194
B31: pH\Acid | C31: A | D31: C | E31: L
B32: 4 | C32: 0.2244130735 | E32: 0.2376588095
B33: 6 | C33: -0.2637086448 | D33: 0.2735944852 | E33: 0.2869752904
B36: pH\salt | C36: C | D36: D | E36: R
B37: 4 | C37: 0.2609865778 | D37: 0.1999867693 | E37: 0.2304718611
B38: 6 | C38: 0.01787504379 | D38: 0.1792560522 | E38: 0.1168377986
B41: pH\Day | C41: 10 | D41: 30
B42: 4 | C42: 0.2809815456 | D42: 0.1772333961
B43: 6 | C43: 0.05298690595 | D43: 0.1570001129
B46: Category | C46: Mean | D46: Standard error
B47: C | C47: 0.1220657012 | D47: 0.05708591657
B48: D | C48: 0.1877609618 | D48: 0.05671880076
B49: R | C49: 0.1590447361 | D49: 0.05987221441
B52: salt\Acid | C52: A | D52: C | E52: L
B53: C | C53: -0.1326051192 | D53: 0.4040463678 | E53: 0.2402942636
B54: D | C54: 0.1402560528 | D54: 0.1177740319 | E54: 0.2713881572
B55: R | C55: -0.03675843611 | D55: 0.311905129 | E55: 0.2784177118
B58: salt\pH | C58: 4 | D58: 6
B59: C | C59: 0.2609865778 | D59: 0.01787504379
B60: D | C60: 0.1999867693 | D60: 0.1792560522
B61: R | C61: 0.2304718611 | D61: 0.1168377986
B64: salt\Day | C64: 10 | D64: 30
B65: C
B66: D
B67: R
B70: Category | C70: Mean | D70: Standard error
B71: 10 | C71: 0.1478165348 | D71: 0.04712323742
B72: 30 | C72: 0.1649489027 | D72: 0.04733314152
B75: Day\Acid | C75: A | D75: C | E75: L
B76: 10 | C76: -0.1325601113 | D76: 0.2954934353 | E76: 0.3514699536
B77: 30 | C77: 0.1149588386 | D77: 0.2526476634 | E77: 0.1702325707
B80: Day\pH | C80: 4 | D80: 6
B81: 10 | C81: 0.2809815456 | D81: 0.05298690595
B82: 30 | C82: 0.1772333961 | D82: 0.1570001129
B85: Day\salt | C85: C | D85: D | E85: R
B86: 10
B87: 30

Sheet ANOVA1_HID6 (hidden)
B2: Category | C2: Mean | D2: Standard error
B3: A | C3: 53.84838032 | D3: 1.242455226
B4: C | C4: 38.70345163 | D4: 1.757097031
B5: L | C5: 47.10183925 | D5: 1.242455226
B8: Acid\pH | C8: 4 | D8: 6
B9: A | C9: 37.45306722 | D9: 71.76883882
B10: C | D10: 38.70345163
B11: L | C11: 44.96952823 | D11: 49.14144109
B14: Acid\salt | C14: C | D14: D | E14: R
B15: A | C15: 56.45961228 | D15: 52.03904122 | E15: 52.96057036
B16: C | C16: 39.38738652 | D16: 36.3327434 | E16: 40.68004509
B17: L | C17: 52.55764157 | D17: 43.1250222 | E17: 45.46439126
B20: Acid\Day | C20: 10 | D20: 30
B21: A | C21: 56.43635287 | D21: 51.26040776
B22: C | C22: 39.64419516 | D22: 37.80360999
B23: L | C23: 50.76459827 | D23: 43.27259117
B26: Category | C26: Mean | D26: Standard error
B27: 4 | C27: 41.08740001 | D27: 1.23560969
B28: 6 | C28: 52.89717674 | D28: 1.018238708
B31: pH\Acid | C31: A | D31: C | E31: L
B32: 4 | C32: 37.45306722 | E32: 44.96952823
B33: 6 | C33: 71.76883882 | D33: 38.70345163 | E33: 49.14144109
B36: pH\salt | C36: C | D36: D | E36: R
B37: 4 | C37: 44.62382613 | D37: 38.96816367 | E37: 39.20715007
B38: 6 | C38: 56.7672592 | D38: 49.66149181 | E38: 52.40985579
B41: pH\Day | C41: 10 | D41: 30
B42: 4 | C42: 43.13305533 | D42: 38.9022682
B43: 6 | C43: 56.35948626 | D43: 49.53669985
B46: Category | C46: Mean | D46: Standard error
B47: C | C47: 51.56293074 | D47: 1.34324935
B48: D | C48: 45.27448539 | D48: 1.334611001
B49: R | C49: 47.50599367 | D49: 1.408811804
B52: salt\Acid | C52: A | D52: C | E52: L
B53: C | C53: 56.45961228 | D53: 39.38738652 | E53: 52.55764157
B54: D | C54: 52.03904122 | D54: 36.3327434 | E54: 43.1250222
B55: R | C55: 52.96057036 | D55: 40.68004509 | E55: 45.46439126
B58: salt\pH | C58: 4 | D58: 6
B59: C | C59: 44.62382613 | D59: 56.7672592
B60: D | C60: 38.96816367 | D60: 49.66149181
B61: R | C61: 39.20715007 | D61: 52.40985579
B64: salt\Day | C64: 10 | D64: 30
B65: C
B66: D
B67: R
B70: Category | C70: Mean | D70: Standard error
B71: 10 | C71: 50.85822737 | D71: 1.108824415
B72: 30 | C72: 45.35888742 | D72: 1.113763524
B75: Day\Acid | C75: A | D75: C | E75: L
B76: 10 | C76: 56.43635287 | D76: 39.64419516 | E76: 50.76459827
B77: 30 | C77: 51.26040776 | D77: 37.80360999 | E77: 43.27259117
B80: Day\pH | C80: 4 | D80: 6
B81: 10 | C81: 43.13305533 | D81: 56.35948626
B82: 30 | C82: 38.9022682 | D82: 49.53669985
B85: Day\salt | C85: C | D85: D | E85: R
B86: 10
B87: 30

Sheet ANOVA1_HID7 (hidden)
B2: Category | C2: Mean | D2: Standard error
B3: A | C3: 9.630301958 | D3: 0.3495482416
B4: C | C4: 5.14330312 | D4: 0.494335864
B5: L | C5: 8.410614891 | D5: 0.3495482416
B8: Acid\pH | C8: 4 | D8: 6
B9: A | C9: 5.027965509 | D9: 14.66076273
B10: C | D10: 5.14330312
B11: L | C11: 6.627950631 | D11: 10.11577201
B14: Acid\salt | C14: C | D14: D | E14: R
B15: A | C15: 11.29649946 | D15: 8.876609894 | E15: 8.620028081
B16: C | C16: 5.270026657 | D16: 3.756692756 | E16: 6.592225461
B17: L | C17: 10.8186926 | D17: 7.028081255 | E17: 7.275191093
B20: Acid\Day | C20: 10 | D20: 30
B21: A | C21: 10.52099255 | D21: 8.739611367
B22: C | C22: 5.344959263 | D22: 4.950414636
B23: L | C23: 9.580553031 | D23: 7.187497745
B26: Category | C26: Mean | D26: Standard error
B27: 4 | C27: 5.801584689 | D27: 0.3476223413
B28: 6 | C28: 9.904380225 | D28: 0.2864679085
B31: pH\Acid | C31: A | D31: C | E31: L
B32: 4 | C32: 5.027965509 | E32: 6.627950631
B33: 6 | C33: 14.66076273 | D33: 5.14330312 | E33: 10.11577201
B36: pH\salt | C36: C | D36: D | E36: R
B37: 4 | C37: 7.6262262 | D37: 4.588399547 | E37: 4.978844484
B38: 6 | C38: 11.65808839 | D38: 8.83312444 | E38: 9.270621289
B41: pH\Day | C41: 10 | D41: 30
B42: 4 | C42: 6.252230614 | D42: 5.320212906
B43: 6 | C43: 11.1800662 | D43: 8.666214427
B46: Category | C46: Mean | D46: Standard error
B47: C | C47: 9.930147452 | D47: 0.377905327
B48: D | C48: 7.091698843 | D48: 0.3754750425
B49: R | C49: 7.676532762 | D49: 0.3963504508
B52: salt\Acid | C52: A | D52: C | E52: L
B53: C | C53: 11.29649946 | D53: 5.270026657 | E53: 10.8186926
B54: D | C54: 8.876609894 | D54: 3.756692756 | E54: 7.028081255
B55: R | C55: 8.620028081 | D55: 6.592225461 | E55: 7.275191093
B58: salt\pH | C58: 4 | D58: 6
B59: C | C59: 7.6262262 | D59: 11.65808839
B60: D | C60: 4.588399547 | D60: 8.83312444
B61: R | C61: 4.978844484 | D61: 9.270621289
B64: salt\Day | C64: 10 | D64: 30
B65: C
B66: D
B67: R
B70: Category | C70: Mean | D70: Standard error
B71: 10 | C71: 9.130435469 | D71: 0.3119529915
B72: 30 | C72: 7.351713829 | D72: 0.313342544
B75: Day\Acid | C75: A | D75: C | E75: L
B76: 10 | C76: 10.52099255 | D76: 5.344959263 | E76: 9.580553031
B77: 30 | C77: 8.739611367 | D77: 4.950414636 | E77: 7.187497745
B80: Day\pH | C80: 4 | D80: 6
B81: 10 | C81: 6.252230614 | D81: 11.1800662
B82: 30 | C82: 5.320212906 | D82: 8.666214427
B85: Day\salt | C85: C | D85: D | E85: R
B86: 10
B87: 30

Sheet ANOVA1_HID8 (hidden)
B2: Category | C2: Mean | D2: Standard error
B3: A | C3: -0.008800636358 | D3: 0.05280232992
B4: C | C4: 0.2735944852 | D4: 0.0746737711
B5: L | C5: 0.2628650109 | D5: 0.05280232992
B8: Acid\pH | C8: 4 | D8: 6
B9: A | C9: 0.2244130735 | D9: -0.2637086448
B10: C | D10: 0.2735944852
B11: L | C11: 0.2376588095 | D11: 0.2869752904
B14: Acid\salt | C14: C | D14: D | E14: R
B15: A | C15: -0.1326051192 | D15: 0.1402560528 | E15: -0.03675843611
B16: C | C16: 0.4040463678 | D16: 0.1177740319 | E16: 0.311905129
B17: L | C17: 0.2402942636 | D17: 0.2713881572 | E17: 0.2784177118
B20: Acid\Day | C20: 10 | D20: 30
B21: A | C21: -0.1325601113 | D21: 0.1149588386
B22: C | C22: 0.2954934353 | D22: 0.2526476634
B23: L | C23: 0.3514699536 | D23: 0.1702325707
B26: Category | C26: Mean | D26: Standard error
B27: 4 | C27: 0.2308176052 | D27: 0.05251140578
B28: 6 | C28: 0.1057697274 | D28: 0.04327349194
B31: pH\Acid | C31: A | D31: C | E31: L
B32: 4 | C32: 0.2244130735 | E32: 0.2376588095
B33: 6 | C33: -0.2637086448 | D33: 0.2735944852 | E33: 0.2869752904
B36: pH\salt | C36: C | D36: D | E36: R
B37: 4 | C37: 0.2609865778 | D37: 0.1999867693 | E37: 0.2304718611
B38: 6 | C38: 0.01787504379 | D38: 0.1792560522 | E38: 0.1168377986
B41: pH\Day | C41: 10 | D41: 30
B42: 4 | C42: 0.2809815456 | D42: 0.1772333961
B43: 6 | C43: 0.05298690595 | D43: 0.1570001129
B46: Category | C46: Mean | D46: Standard error
B47: C | C47: 0.1220657012 | D47: 0.05708591657
B48: D | C48: 0.1877609618 | D48: 0.05671880076
B49: R | C49: 0.1590447361 | D49: 0.05987221441
B52: salt\Acid | C52: A | D52: C | E52: L
B53: C | C53: -0.1326051192 | D53: 0.4040463678 | E53: 0.2402942636
B54: D | C54: 0.1402560528 | D54: 0.1177740319 | E54: 0.2713881572
B55: R | C55: -0.03675843611 | D55: 0.311905129 | E55: 0.2784177118
B58: salt\pH | C58: 4 | D58: 6
B59: C | C59: 0.2609865778 | D59: 0.01787504379
B60: D | C60: 0.1999867693 | D60: 0.1792560522
B61: R | C61: 0.2304718611 | D61: 0.1168377986
B64: salt\Day | C64: 10 | D64: 30
B65: C
B66: D
B67: R
B70: Category | C70: Mean | D70: Standard error
B71: 10 | C71: 0.1478165348 | D71: 0.04712323742
B72: 30 | C72: 0.1649489027 | D72: 0.04733314152
B75: Day\Acid | C75: A | D75: C | E75: L
B76: 10 | C76: -0.1325601113 | D76: 0.2954934353 | E76: 0.3514699536
B77: 30 | C77: 0.1149588386 | D77: 0.2526476634 | E77: 0.1702325707
B80: Day\pH | C80: 4 | D80: 6
B81: 10 | C81: 0.2809815456 | D81: 0.05298690595
B82: 30 | C82: 0.1772333961 | D82: 0.1570001129
B85: Day\salt | C85: C | D85: D | E85: R
B86: 10
B87: 30

Sheet ANOVA1_HID9 (hidden)
B2: Category | C2: Mean | D2: Standard error
B3: A | C3: 53.84838032 | D3: 1.242455226
B4: C | C4: 38.70345163 | D4: 1.757097031
B5: L | C5: 47.10183925 | D5: 1.242455226
B8: Acid\pH | C8: 4 | D8: 6
B9: A | C9: 37.45306722 | D9: 71.76883882
B10: C | D10: 38.70345163
B11: L | C11: 44.96952823 | D11: 49.14144109
B14: Acid\salt | C14: C | D14: D | E14: R
B15: A | C15: 56.45961228 | D15: 52.03904122 | E15: 52.96057036
B16: C | C16: 39.38738652 | D16: 36.3327434 | E16: 40.68004509
B17: L | C17: 52.55764157 | D17: 43.1250222 | E17: 45.46439126
B20: Acid\Day | C20: 10 | D20: 30
B21: A | C21: 56.43635287 | D21: 51.26040776
B22: C | C22: 39.64419516 | D22: 37.80360999
B23: L | C23: 50.76459827 | D23: 43.27259117
B26: Category | C26: Mean | D26: Standard error
B27: 4 | C27: 41.08740001 | D27: 1.23560969
B28: 6 | C28: 52.89717674 | D28: 1.018238708
B31: pH\Acid | C31: A | D31: C | E31: L
B32: 4 | C32: 37.45306722 | E32: 44.96952823
B33: 6 | C33: 71.76883882 | D33: 38.70345163 | E33: 49.14144109
B36: pH\salt | C36: C | D36: D | E36: R
B37: 4 | C37: 44.62382613 | D37: 38.96816367 | E37: 39.20715007
B38: 6 | C38: 56.7672592 | D38: 49.66149181 | E38: 52.40985579
B41: pH\Day | C41: 10 | D41: 30
B42: 4 | C42: 43.13305533 | D42: 38.9022682
B43: 6 | C43: 56.35948626 | D43: 49.53669985
B46: Category | C46: Mean | D46: Standard error
B47: C | C47: 51.56293074 | D47: 1.34324935
B48: D | C48: 45.27448539 | D48: 1.334611001
B49: R | C49: 47.50599367 | D49: 1.408811804
B52: salt\Acid | C52: A | D52: C | E52: L
B53: C | C53: 56.45961228 | D53: 39.38738652 | E53: 52.55764157
B54: D | C54: 52.03904122 | D54: 36.3327434 | E54: 43.1250222
B55: R | C55: 52.96057036 | D55: 40.68004509 | E55: 45.46439126
B58: salt\pH | C58: 4 | D58: 6
B59: C | C59: 44.62382613 | D59: 56.7672592
B60: D | C60: 38.96816367 | D60: 49.66149181
B61: R | C61: 39.20715007 | D61: 52.40985579
B64: salt\Day | C64: 10 | D64: 30
B65: C
B66: D
B67: R
B70: Category | C70: Mean | D70: Standard error
B71: 10 | C71: 50.85822737 | D71: 1.108824415
B72: 30 | C72: 45.35888742 | D72: 1.113763524
B75: Day\Acid | C75: A | D75: C | E75: L
B76: 10 | C76: 56.43635287 | D76: 39.64419516 | E76: 50.76459827
B77: 30 | C77: 51.26040776 | D77: 37.80360999 | E77: 43.27259117
B80: Day\pH | C80: 4 | D80: 6
B81: 10 | C81: 43.13305533 | D81: 56.35948626
B82: 30 | C82: 38.9022682 | D82: 49.53669985
B85: Day\salt | C85: C | D85: D | E85: R
B86: 10
B87: 30

Sheet ANOVA1_HID10 (hidden)
B2: Category | C2: Mean | D2: Standard error
B3: A | C3: 9.630301958 | D3: 0.3495482416
B4: C | C4: 5.14330312 | D4: 0.494335864
B5: L | C5: 8.410614891 | D5: 0.3495482416
B8: Acid\pH | C8: 4 | D8: 6
B9: A | C9: 5.027965509 | D9: 14.66076273
B10: C | D10: 5.14330312
B11: L | C11: 6.627950631 | D11: 10.11577201
B14: Acid\salt | C14: C | D14: D | E14: R
B15: A | C15: 11.29649946 | D15: 8.876609894 | E15: 8.620028081
B16: C | C16: 5.270026657 | D16: 3.756692756 | E16: 6.592225461
B17: L | C17: 10.8186926 | D17: 7.028081255 | E17: 7.275191093
B20: Acid\Day | C20: 10 | D20: 30
B21: A | C21: 10.52099255 | D21: 8.739611367
B22: C | C22: 5.344959263 | D22: 4.950414636
B23: L | C23: 9.580553031 | D23: 7.187497745
B26: Category | C26: Mean | D26: Standard error
B27: 4 | C27: 5.801584689 | D27: 0.3476223413
B28: 6 | C28: 9.904380225 | D28: 0.2864679085
B31: pH\Acid | C31: A | D31: C | E31: L
B32: 4 | C32: 5.027965509 | E32: 6.627950631
B33: 6 | C33: 14.66076273 | D33: 5.14330312 | E33: 10.11577201
B36: pH\salt | C36: C | D36: D | E36: R
B37: 4 | C37: 7.6262262 | D37: 4.588399547 | E37: 4.978844484
B38: 6 | C38: 11.65808839 | D38: 8.83312444 | E38: 9.270621289
B41: pH\Day | C41: 10 | D41: 30
B42: 4 | C42: 6.252230614 | D42: 5.320212906
B43: 6 | C43: 11.1800662 | D43: 8.666214427
B46: Category | C46: Mean | D46: Standard error
B47: C | C47: 9.930147452 | D47: 0.377905327
B48: D | C48: 7.091698843 | D48: 0.3754750425
B49: R | C49: 7.676532762 | D49: 0.3963504508
B52: salt\Acid | C52: A | D52: C | E52: L
B53: C | C53: 11.29649946 | D53: 5.270026657 | E53: 10.8186926
B54: D | C54: 8.876609894 | D54: 3.756692756 | E54: 7.028081255
B55: R | C55: 8.620028081 | D55: 6.592225461 | E55: 7.275191093
B58: salt\pH | C58: 4 | D58: 6
B59: C | C59: 7.6262262 | D59: 11.65808839
B60: D | C60: 4.588399547 | D60: 8.83312444
B61: R | C61: 4.978844484 | D61: 9.270621289
B64: salt\Day | C64: 10 | D64: 30
B65: C
B66: D
B67: R
B70: Category | C70: Mean | D70: Standard error
B71: 10 | C71: 9.130435469 | D71: 0.3119529915
B72: 30 | C72: 7.351713829 | D72: 0.313342544
B75: Day\Acid | C75: A | D75: C | E75: L
B76: 10 | C76: 10.52099255 | D76: 5.344959263 | E76: 9.580553031
B77: 30 | C77: 8.739611367 | D77: 4.950414636 | E77: 7.187497745
B80: Day\pH | C80: 4 | D80: 6
B81: 10 | C81: 6.252230614 | D81: 11.1800662
B82: 30 | C82: 5.320212906 | D82: 8.666214427
B85: Day\salt | C85: C | D85: D | E85: R
B86: 10
B87: 30

Sheet ANOVA1_HID11 (hidden)
B2: Category | C2: Mean | D2: Standard error
B3: A | C3: -0.008800636358 | D3: 0.05280232992
B4: C | C4: 0.2735944852 | D4: 0.0746737711
B5: L | C5: 0.2628650109 | D5: 0.05280232992
B8: Acid\pH | C8: 4 | D8: 6
B9: A | C9: 0.2244130735 | D9: -0.2637086448
B10: C | D10: 0.2735944852
B11: L | C11: 0.2376588095 | D11: 0.2869752904
B14: Acid\salt | C14: C | D14: D | E14: R
B15: A | C15: -0.1326051192 | D15: 0.1402560528 | E15: -0.03675843611
B16: C | C16: 0.4040463678 | D16: 0.1177740319 | E16: 0.311905129
B17: L | C17: 0.2402942636 | D17: 0.2713881572 | E17: 0.2784177118
B20: Acid\Day | C20: 10 | D20: 30
B21: A | C21: -0.1325601113 | D21: 0.1149588386
B22: C | C22: 0.2954934353 | D22: 0.2526476634
B23: L | C23: 0.3514699536 | D23: 0.1702325707
B26: Category | C26: Mean | D26: Standard error
B27: 4 | C27: 0.2308176052 | D27: 0.05251140578
B28: 6 | C28: 0.1057697274 | D28: 0.04327349194
B31: pH\Acid | C31: A | D31: C | E31: L
B32: 4 | C32: 0.2244130735 | E32: 0.2376588095
B33: 6 | C33: -0.2637086448 | D33: 0.2735944852 | E33: 0.2869752904
B36: pH\salt | C36: C | D36: D | E36: R
B37: 4 | C37: 0.2609865778 | D37: 0.1999867693 | E37: 0.2304718611
B38: 6 | C38: 0.01787504379 | D38: 0.1792560522 | E38: 0.1168377986
B41: pH\Day | C41: 10 | D41: 30
B42: 4 | C42: 0.2809815456 | D42: 0.1772333961
B43: 6 | C43: 0.05298690595 | D43: 0.1570001129
B46: Category | C46: Mean | D46: Standard error
B47: C | C47: 0.1220657012 | D47: 0.05708591657
B48: D | C48: 0.1877609618 | D48: 0.05671880076
B49: R | C49: 0.1590447361 | D49: 0.05987221441
B52: salt\Acid | C52: A | D52: C | E52: L
B53: C | C53: -0.1326051192 | D53: 0.4040463678 | E53: 0.2402942636
B54: D | C54: 0.1402560528 | D54: 0.1177740319 | E54: 0.2713881572
B55: R | C55: -0.03675843611 | D55: 0.311905129 | E55: 0.2784177118
B58: salt\pH | C58: 4 | D58: 6
B59: C | C59: 0.2609865778 | D59: 0.01787504379
B60: D | C60: 0.1999867693 | D60: 0.1792560522
B61: R | C61: 0.2304718611 | D61: 0.1168377986
B64: salt\Day | C64: 10 | D64: 30
B65: C
B66: D
B67: R
B70: Category | C70: Mean | D70: Standard error
B71: 10 | C71: 0.1478165348 | D71: 0.04712323742
B72: 30 | C72: 0.1649489027 | D72: 0.04733314152
B75: Day\Acid | C75: A | D75: C | E75: L
B76: 10 | C76: -0.1325601113 | D76: 0.2954934353 | E76: 0.3514699536
B77: 30 | C77: 0.1149588386 | D77: 0.2526476634 | E77: 0.1702325707
B80: Day\pH | C80: 4 | D80: 6
B81: 10 | C81: 0.2809815456 | D81: 0.05298690595
B82: 30 | C82: 0.1772333961 | D82: 0.1570001129
B85: Day\salt | C85: C | D85: D | E85: R
B86: 10
B87: 30

Sheet ANOVA_HID3 (hidden)
B2: Category | C2: Mean | D2: Standard error
B3: A | C3: 53.84838032 | D3: 1.226620939
B4: C | C4: 38.70345163 | D4: 1.734703967
B5: L | C5: 47.10183925 | D5: 1.226620939
B8: Acid\pH | C8: 4 | D8: 6
B9: A | C9: 37.45306722 | D9: 71.76883882
B10: C | D10: 38.70345163
B11: L | C11: 44.96952823 | D11: 49.14144109
B14: Acid\salt | C14: C | D14: D | E14: R
B15: A | C15: 56.45961228 | D15: 52.03904122 | E15: 52.96057036
B16: C | C16: 39.38738652 | D16: 36.3327434 | E16: 40.68004509
B17: L | C17: 52.55764157 | D17: 43.1250222 | E17: 45.46439126
B20: Acid\Day | C20: 10 | D20: 30
B21: A | C21: 56.43635287 | D21: 51.26040776
B22: C | C22: 39.64419516 | D22: 37.80360999
B23: L | C23: 50.76459827 | D23: 43.27259117
B26: Acid\Replicate | C26: 1 | D26: 2
B27: A | C27: 59.93349827 | D27: 50.32541729
B28: C | C28: 41.52109756 | D28: 35.75773089
B29: L | C29: 46.37651547 | D29: 47.56340892
B32: Category | C32: Mean | D32: Standard error
B33: 4 | C33: 41.08740001 | D33: 1.219862645
B34: 6 | C34: 52.89717674 | D34: 1.005261915
B37: pH\Acid | C37: A | D37: C | E37: L
B38: 4 | C38: 37.45306722 | E38: 44.96952823
B39: 6 | C39: 71.76883882 | D39: 38.70345163 | E39: 49.14144109
B42: pH\salt | C42: C | D42: D | E42: R
B43: 4 | C43: 44.62382613 | D43: 38.96816367 | E43: 39.20715007
B44: 6 | C44: 56.7672592 | D44: 49.66149181 | E44: 52.40985579
B47: pH\Day | C47: 10 | D47: 30
B48: 4 | C48: 43.13305533 | D48: 38.9022682
B49: 6 | C49: 56.35948626 | D49: 49.53669985
B52: pH\Replicate | C52: 1 | D52: 2
B53: 4 | C53: 42.76114195 | D53: 39.99185984
B54: 6 | C54: 54.84668396 | D54: 51.53992487
B57: Category | C57: Mean | D57: Standard error
B58: C | C58: 51.56293074 | D58: 1.326130507
B59: D | C59: 45.27448539 | D59: 1.317602249
B60: R | C60: 47.50599367 | D60: 1.39085741
B63: salt\Acid | C63: A | D63: C | E63: L
B64: C | C64: 56.45961228 | D64: 39.38738652 | E64: 52.55764157
B65: D | C65: 52.03904122 | D65: 36.3327434 | E65: 43.1250222
B66: R | C66: 52.96057036 | D66: 40.68004509 | E66: 45.46439126
B69: salt\pH | C69: 4 | D69: 6
B70: C | C70: 44.62382613 | D70: 56.7672592
B71: D | C71: 38.96816367 | D71: 49.66149181
B72: R | C72: 39.20715007 | D72: 52.40985579
B75: salt\Day | C75: 10 | D75: 30
B76: C
B77: D
B78: R
B81: salt\Replicate | C81: 1 | D81: 2
B82: C
B83: D
B84: R
B87: Category | C87: Mean | D87: Standard error
B88: 10 | C88: 50.85822737 | D88: 1.094693166
B89: 30 | C89: 45.35888742 | D89: 1.099569329
B92: Day\Acid | C92: A | D92: C | E92: L
B93: 10 | C93: 56.43635287 | D93: 39.64419516 | E93: 50.76459827
B94: 30 | C94: 51.26040776 | D94: 37.80360999 | E94: 43.27259117
B97: Day\pH | C97: 4 | D97: 6
B98: 10 | C98: 43.13305533 | D98: 56.35948626
B99: 30 | C99: 38.9022682 | D99: 49.53669985
B102: Day\salt | C102: C | D102: D | E102: R
B103: 10
B104: 30
B107: Day\Replicate | C107: 1 | D107: 2
B108: 10
B109: 30
B112: Category | C112: Mean | D112: Standard error
B113: 1 | C113: 50.06559042 | D113: 1.219862645
B114: 2 | C114: 46.80004743 | D114: 1.005261915
B117: Replicate\Acid | C117: A | D117: C | E117: L
B118: 1 | C118: 59.93349827 | D118: 41.52109756 | E118: 46.37651547
B119: 2 | C119: 50.32541729 | D119: 35.75773089 | E119: 47.56340892
B122: Replicate\pH | C122: 4 | D122: 6
B123: 1 | C123: 42.76114195 | D123: 54.84668396
B124: 2 | C124: 39.99185984 | D124: 51.53992487
B127: Replicate\salt | C127: C | D127: D | E127: R
B128: 1
B129: 2
B132: Replicate\Day | C132: 10 | D132: 30
B133: 1
B134: 2

Sheet ANOVA_HID4 (hidden)
B2: Category | C2: Mean | D2: Standard error
B3: A | C3: 9.630301958 | D3: 0.3162502567
B4: C | C4: 5.14330312 | D4: 0.4472454022
B5: L | C5: 8.410614891 | D5: 0.3162502567
B8: Acid\pH | C8: 4 | D8: 6
B9: A | C9: 5.027965509 | D9: 14.66076273
B10: C | D10: 5.14330312
B11: L | C11: 6.627950631 | D11: 10.11577201
B14: Acid\salt | C14: C | D14: D | E14: R
B15: A | C15: 11.29649946 | D15: 8.876609894 | E15: 8.620028081
B16: C | C16: 5.270026657 | D16: 3.756692756 | E16: 6.592225461
B17: L | C17: 10.8186926 | D17: 7.028081255 | E17: 7.275191093
B20: Acid\Day | C20: 10 | D20: 30
B21: A | C21: 10.52099255 | D21: 8.739611367
B22: C | C22: 5.344959263 | D22: 4.950414636
B23: L | C23: 9.580553031 | D23: 7.187497745
B26: Acid\Replicate | C26: 1 | D26: 2
B27: A | C27: 9.918836449 | D27: 9.463255674
B28: C | C28: 6.56203456 | D28: 3.660083888
B29: L | C29: 7.979376748 | D29: 8.685039164
B32: Category | C32: Mean | D32: Standard error
B33: 4 | C33: 5.801584689 | D33: 0.3145078178
B34: 6 | C34: 9.904380225 | D34: 0.2591789597
B37: pH\Acid | C37: A | D37: C | E37: L
B38: 4 | C38: 5.027965509 | E38: 6.627950631
B39: 6 | C39: 14.66076273 | D39: 5.14330312 | E39: 10.11577201
B42: pH\salt | C42: C | D42: D | E42: R
B43: 4 | C43: 7.6262262 | D43: 4.588399547 | E43: 4.978844484
B44: 6 | C44: 11.65808839 | D44: 8.83312444 | E44: 9.270621289
B47: pH\Day | C47: 10 | D47: 30
B48: 4 | C48: 6.252230614 | D48: 5.320212906
B49: 6 | C49: 11.1800662 | D49: 8.666214427
B52: pH\Replicate | C52: 1 | D52: 2
B53: 4 | C53: 6.594763043 | D53: 5.282413403
B54: 6 | C54: 9.456638443 | D54: 10.21609919
B57: Category | C57: Mean | D57: Standard error
B58: C | C58: 9.930147452 | D58: 0.3419060447
B59: D | C59: 7.091698843 | D59: 0.3397072692
B60: R | C60: 7.676532762 | D60: 0.3585940849
B63: salt\Acid | C63: A | D63: C | E63: L
B64: C | C64: 11.29649946 | D64: 5.270026657 | E64: 10.8186926
B65: D | C65: 8.876609894 | D65: 3.756692756 | E65: 7.028081255
B66: R | C66: 8.620028081 | D66: 6.592225461 | E66: 7.275191093
B69: salt\pH | C69: 4 | D69: 6
B70: C | C70: 7.6262262 | D70: 11.65808839
B71: D | C71: 4.588399547 | D71: 8.83312444
B72: R | C72: 4.978844484 | D72: 9.270621289
B75: salt\Day | C75: 10 | D75: 30
B76: C
B77: D
B78: R
B81: salt\Replicate | C81: 1 | D81: 2
B82: C
B83: D
B84: R
B87: Category | C87: Mean | D87: Standard error
B88: 10 | C88: 9.130435469 | D88: 0.2822363323
B89: 30 | C89: 7.351713829 | D89: 0.2834935159
B92: Day\Acid | C92: A | D92: C | E92: L
B93: 10 | C93: 10.52099255 | D93: 5.344959263 | E93: 9.580553031
B94: 30 | C94: 8.739611367 | D94: 4.950414636 | E94: 7.187497745
B97: Day\pH | C97: 4 | D97: 6
B98: 10 | C98: 6.252230614 | D98: 11.1800662
B99: 30 | C99: 5.320212906 | D99: 8.666214427
B102: Day\salt | C102: C | D102: D | E102: R
B103: 10
B104: 30
B107: Day\Replicate | C107: 1 | D107: 2
B108: 10
B109: 30
B112: Category | C112: Mean | D112: Standard error
B113: 1 | C113: 8.324467955 | D113: 0.3145078178
B114: 2 | C114: 8.191078903 | D114: 0.2591789597
B117: Replicate\Acid | C117: A | D117: C | E117: L
B118: 1 | C118: 9.918836449 | D118: 6.56203456 | E118: 7.979376748
B119: 2 | C119: 9.463255674 | D119: 3.660083888 | E119: 8.685039164
B122: Replicate\pH | C122: 4 | D122: 6
B123: 1 | C123: 6.594763043 | D123: 9.456638443
B124: 2 | C124: 5.282413403 | D124: 10.21609919
B127: Replicate\salt | C127: C | D127: D | E127: R
B128: 1
B129: 2
B132: Replicate\Day | C132: 10 | D132: 30
B133: 1
B134: 2

Sheet ANOVA_HID5 (hidden)
B2: Category | C2: Mean | D2: Standard error
B3: A | C3: -0.008800636358 | D3: 0.04955038553
B4: C | C4: 0.2735944852 | D4: 0.07007482724
B5: L | C5: 0.2628650109 | D5: 0.04955038553
B8: Acid\pH | C8: 4 | D8: 6
B9: A | C9: 0.2244130735 | D9: -0.2637086448
B10: C | D10: 0.2735944852
B11: L | C11: 0.2376588095 | D11: 0.2869752904
B14: Acid\salt | C14: C | D14: D | E14: R
B15: A | C15: -0.1326051192 | D15: 0.1402560528 | E15: -0.03675843611
B16: C | C16: 0.4040463678 | D16: 0.1177740319 | E16: 0.311905129
B17: L | C17: 0.2402942636 | D17: 0.2713881572 | E17: 0.2784177118
B20: Acid\Day | C20: 10 | D20: 30
B21: A | C21: -0.1325601113 | D21: 0.1149588386
B22: C | C22: 0.2954934353 | D22: 0.2526476634
B23: L | C23: 0.3514699536 | D23: 0.1702325707
B26: Acid\Replicate | C26: 1 | D26: 2
B27: A | C27: 0.0455162553 | D27: -0.04024725784
B28: C | C28: 0.2492263468 | D28: 0.2990702662
B29: L | C29: 0.432920492 | D29: 0.1546478865
B32: Category | C32: Mean | D32: Standard error
B33: 4 | C33: 0.2308176052 | D33: 0.04927737857
B34: 6 | C34: 0.1057697274 | D34: 0.04060840141
B37: pH\Acid | C37: A | D37: C | E37: L
B38: 4 | C38: 0.2244130735 | E38: 0.2376588095
B39: 6 | C39: -0.2637086448 | D39: 0.2735944852 | E39: 0.2869752904
B42: pH\salt | C42: C | D42: D | E42: R
B43: 4 | C43: 0.2609865778 | D43: 0.1999867693 | E43: 0.2304718611
B44: 6 | C44: 0.01787504379 | D44: 0.1792560522 | E44: 0.1168377986
B47: pH\Day | C47: 10 | D47: 30
B48: 4 | C48: 0.2809815456 | D48: 0.1772333961
B49: 6 | C49: 0.05298690595 | D49: 0.1570001129
B52: pH\Replicate | C52: 1 | D52: 2
B53: 4 | C53: 0.2949700491 | D53: 0.1888269146
B54: 6 | C54: 0.2139552337 | D54: 0.03045070394
B57: Category | C57: Mean | D57: Standard error
B58: C | C58: 0.1220657012 | D58: 0.05357015834
B59: D | C59: 0.1877609618 | D59: 0.05322565214
B60: R | C60: 0.1590447361 | D60: 0.05618485606
B63: salt\Acid | C63: A | D63: C | E63: L
B64: C | C64: -0.1326051192 | D64: 0.4040463678 | E64: 0.2402942636
B65: D | C65: 0.1402560528 | D65: 0.1177740319 | E65: 0.2713881572
B66: R | C66: -0.03675843611 | D66: 0.311905129 | E66: 0.2784177118
B69: salt\pH | C69: 4 | D69: 6
B70: C | C70: 0.2609865778 | D70: 0.01787504379
B71: D | C71: 0.1999867693 | D71: 0.1792560522
B72: R | C72: 0.2304718611 | D72: 0.1168377986
B75: salt\Day | C75: 10 | D75: 30
B76: C
B77: D
B78: R
B81: salt\Replicate | C81: 1 | D81: 2
B82: C
B83: D
B84: R
B87: Category | C87: Mean | D87: Standard error
B88: 10 | C88: 0.1478165348 | D88: 0.04422105208
B89: 30 | C89: 0.1649489027 | D89: 0.04441802879
B92: Day\Acid | C92: A | D92: C | E92: L
B93: 10 | C93: -0.1325601113 | D93: 0.2954934353 | E93: 0.3514699536
B94: 30 | C94: 0.1149588386 | D94: 0.2526476634 | E94: 0.1702325707
B97: Day\pH | C97: 4 | D97: 6
B98: 10 | C98: 0.2809815456 | D98: 0.05298690595
B99: 30 | C99: 0.1772333961 | D99: 0.1570001129
B102: Day\salt | C102: C | D102: D | E102: R
B103: 10
B104: 30
B107: Day\Replicate | C107: 1 | D107: 2
B108: 10
B109: 30
B112: Category | C112: Mean | D112: Standard error
B113: 1 | C113: 0.2460050508 | D113: 0.04927737857
B114: 2 | C114: 0.09545586505 | D114: 0.04060840141
B117: Replicate\Acid | C117: A | D117: C | E117: L
B118: 1 | C118: 0.0455162553 | D118: 0.2492263468 | E118: 0.432920492
B119: 2 | C119: -0.04024725784 | D119: 0.2990702662 | E119: 0.1546478865
B122: Replicate\pH | C122: 4 | D122: 6
B123: 1 | C123: 0.2949700491 | D123: 0.2139552337
B124: 2 | C124: 0.1888269146 | D124: 0.03045070394
B127: Replicate\salt | C127: C | D127: D | E127: R
B128: 1
B129: 2
B132: Replicate\Day | C132: 10 | D132: 30
B133: 1
B134: 2

Sheet Calcium comparison data
A1: Treatment | B1: Acid | C1: salting | D1: pH | E1: Replicate | F1: Means(Calcium) | G1: Peak force (g) | H1: 5 second force (g) | I1: Gradient 5 to 13 second(g/sec)
A2: AC4*1 | B2: A | C2: C | D2: 4 | E2: 1 | F2: 0.001493655336 | G2: 36.91339471 | H2: 6.689612603 | I2: 0.2032166928
A3: AC4*2 | B3: A | C3: C | D3: 4 | E3: 2 | F3: 0.001510357531 | G3: 37.55248486 | H3: 5.568687297 | I3: 0.3635065708
A4: AC6*1 | B4: A | C4: C | D4: 6 | E4: 1 | F4: 0.002048806115 | G4: 82.85260106 | H4: 14.78617473 | I4: 0.07942248194
A5: AC6*2 | B5: A | C5: C | D5: 6 | E5: 2 | F5: 0.002077238225 | G5: 76.53172449 | H5: 20.75643203 | I5: -1.412084072
A6: AD4*1 | B6: A | C6: D | D6: 4 | E6: 1 | F6: 0.001486395356 | G6: 40.1648618 | H6: 5.643850893 | I6: 0.1807880946
A7: AD4*2 | B7: A | C7: D | D7: 4 | E7: 2 | F7: 0.001448699942 | G7: 38.90436456 | H7: 4.185713794 | I7: 0.06464981595
A8: AD6*1 | B8: A | C8: D | D8: 6 | E8: 1 | F8: 0.001994634965 | G8: 58.56058443 | H8: 8.788126755 | I8: 0.3823541979
A9: AD6*2 | B9: A | C9: D | D9: 6 | E9: 2 | F9: 0.002038791219 | G9: 71.9717956 | H9: 17.60675629 | I9: 0.02156351005
A10: AR4*1 | B10: A | C10: R | D10: 4 | E10: 1 | F10: 0.001532421497 | G10: 36.91520712 | H10: 7.188025896 | I10: 0.2405976898
A11: AR4*2 | B11: A | C11: R | D11: 4 | E11: 2 | F11: 0.001526081055 | G11: 35.22536493 | H11: 3.686645114 | I11: 0.2826180707
A12: AR6*1 | B12: A | C12: R | D12: 6 | E12: 1 | F12: 0.002095900226 | G12: 82.50461796 | H12: 13.00405593 | I12: -0.7324409897
A13: AR6*2 | B13: A | C13: R | D13: 6 | E13: 2 | F13: 0.002122854281 | G13: 61.20545335 | H13: 12.6524096 | I13: -0.05814776503
A14: CC6*1 | B14: C | C14: C | D14: 6 | E14: 1 | F14: 0.001551967341 | G14: 43.33321685 | H14: 7.522027532 | I14: 0.3503133433
A15: CC6*2 | B15: C | C15: C | D15: 6 | E15: 2 | F15: 0.001435660652 | G15: 35.93478499 | H15: 3.299525891 | I15: 0.4510627641
A16: CD6*1 | B16: C | C16: D | D16: 6 | E16: 1 | F16: 0.001509089551 | G16: 39.88877104 | H16: 5.712722548 | I16: 0.1064792036
A17: CD6*2 | B17: C | C17: D | D17: 6 | E17: 2 | F17: 0.001374879041 | G17: 31.76070786 | H17: 1.24179731 | I17: 0.132295954
A18: CR6*1 | B18: C | C18: R | D18: 6 | E18: 1 | F18: 0.001577009586 | G18: 41.80768379 | H18: 6.694014175 | I18: 0.3316713916
A19: CR6*2 | B19: C | C19: R | D19: 6 | E19: 2 | F19: 0.001417707985 | G19: 39.55240639 | H19: 6.490436748 | I19: 0.2921388664
A20: LC4*1 | B20: L | C20: C | D20: 4 | E20: 1 | F20: 0.001319932193 | G20: 56.40180758 | H20: 8.134104947 | I20: 0.4062634719
A21: LC4*2 | B21: L | C21: C | D21: 4 | E21: 2 | F21: 0.001646553084 | G21: 48.35176248 | H21: 10.64992364 | I21: 0.01807210686
A22: LC6*1 | B22: L | C22: C | D22: 6 | E22: 1 | F22: 0.001874484031 | G22: 51.49062423 | H22: 13.2423881 | I22: 0.8220421068
A23: LC6*2 | B23: L | C23: C | D23: 6 | E23: 2 | F23: 0.001808280692 | G23: 53.20871193 | H23: 12.01251723 | I23: 0.06966082865
A24: LD4*1 | B24: L | C24: D | D24: 4 | E24: 1 | F24: 0.001516103943 | G24: 38.31922227 | H24: 5.688557055 | I24: 0.3075058986
A25: LD4*2 | B25: L | C25: D | D25: 4 | E25: 2 | F25: 0.001709410854 | G25: 39.22805928 | H25: 3.2611147 | I25: 0.3047247659
A26: LD6*1 | B26: L | C26: D | D26: 6 | E26: 1 | F26: 0.001883171709 | G26: 46.33068734 | H26: 9.023093021 | I26: 0.3789073787
A27: LD6*2 | B27: L | C27: D | D27: 6 | E27: 2 | F27: 0.001853628355 | G27: 48.37122942 | H27: 9.79575731 | I27: 0.1815251737
A28: LR4*1 | B28: L | C28: R | D28: 4 | E28: 1 | F28: 0.001374852548 | G28: 41.73803539 | H28: 6.144076598 | I28: 0.3228358832
A29: LR4*2 | B29: L | C29: R | D29: 4 | E29: 2 | F29: 0.001700970361 | G29: 45.12217563 | H29: 5.078053845 | I29: 0.03744354018
A30: LR6*1 | B30: L | C30: R | D30: 6 | E30: 1 | F30: 0.001877494538 | G30: 46.34428043 | H30: 9.270487256 | I30: 0.5984357793
A31: LR6*2 | B31: L | C31: R | D31: 6 | E31: 2 | F31: 0.001797645653 | G31: 47.20538062 | H31: 8.274218243 | I31: 0.2700230228

Sheet ANCOVA
B1: XLSTAT-Student 2020.5.1.1079 - ANCOVA - Start time: 03/06/2021 at 10:06:29
B2: Y / Dependent variables: Workbook = Extensibility complete data clean 3-6-2021.xlsm / Sheet = Calcium comparison data / Range = 'Calcium comparison data'!$I:$I / 30 rows and 1 column
B3: X / Quantitative: Workbook = Extensibility complete data clean 3-6-2021.xlsm / Sheet = Calcium comparison data / Range = 'Calcium comparison data'!$F:$F / 30 rows and 1 column
B4: X / Qualitative: Workbook = Extensibility complete data clean 3-6-2021.xlsm / Sheet = Calcium comparison data / Range = 'Calcium comparison data'!$B:$B,'Calcium comparison data'!$D:$D / 30 rows and 2 columns
B5: Constraints: a1=0
B6: Interactions / Level: 2
B7: Confidence interval (%): 95
B8: Tolerance: 0.0001
B9: Model selection: Best model / Adjusted R²
B10: Min variables: 2 / Max variables: 2
B11: Covariances: Corrections = HC0
B12: Use least squares means: No
B14: Please wait until the analysis is finished.
B17: Summary statistics (Quantitative data):
B19: Variable | C19: Observations | D19: Obs. with missing data | E19: Obs. without missing data | F19: Minimum | G19: Maximum | H19: Mean | I19: Std. deviation
B20: Gradient 5 to 13 second(g/sec) | C20: 30 | D20: 0 | E20: 30 | F20: -1.412084072 | G20: 0.8220421068 | H20: 0.1665815259 | I20: 0.3938899193
B21: Means(Calcium) | C21: 30 | D21: 0 | E21: 30 | F21: 0.001319932193 | G21: 0.002122854281 | H21: 0.001686822596 | I21: 0.0002489703923
B24: Summary statistics (Qualitative data):
B26: Variable | C26: Categories | D26: Counts | E26: Frequencies | F26: %
B27: Acid | C27: A | D27: 12 | E27: 12 | F27: 40
C28: C | D28: 6 | E28: 6 | F28: 20
C29: L | D29: 12 | E29: 12 | F29: 40
B30: pH | C30: 4 | D30: 12 | E30: 12 | F30: 40
C31: 6 | D31: 18 | E31: 18 | F31: 60
B34: Correlation matrix:
C36: Means(Calcium) | D36: Acid-A | E36: Acid-C | F36: Acid-L | G36: pH-4 | H36: pH-6 | I36: Means(Calcium)*Acid-A | J36: Means(Calcium)*Acid-C | K36: Means(Calcium)*Acid-L | L36: Means(Calcium)*pH-4 | M36: Means(Calcium)*pH-6 | N36: Acid-A*pH-4 | O36: Acid-A*pH-6 | P36: Acid-C*pH-6 | Q36: Acid-L*pH-4 | R36: Acid-L*pH-6 | S36: Gradient 5 to 13 second(g/sec)
B37: Means(Calcium) | C37: 1 | D37: 0.3152002455 | E37: -0.4271155429 | F37: 0.03353813491 | G37: -0.5493765561 | H37: 0.5493765561 | I37: 0.4565903541 | J37: -0.4190287334 | K37: 0.1024637993 | L37: -0.5190830911 | M37: 0.7034113878 | N37: -0.3824177547 | O37: 0.7684576389 | P37: -0.4271155429 | Q37: -0.2904283648 | R37: 0.3315040235 | S37: -0.4148353341
B38: Acid-A | C38: 0.3152002455 | D38: 1 | E38: -0.4082482905 | F38: -0.6666666667 | G38: 0.1666666667 | H38: -0.1666666667 | I38: 0.9794775283 | J38: -0.4076206742 | K38: -0.6599025915 | L38: 0.1536361744 | M38: -0.0421087521 | N38: 0.6123724357 | O38: 0.6123724357 | P38: -0.4082482905 | Q38: -0.4082482905 | R38: -0.4082482905 | S38: -0.4186700583
B39: Acid-C | C39: -0.4271155429 | D39: -0.4082482905 | E39: 1 | F39: -0.4082482905 | G39: -0.4082482905 | H39: 0.4082482905 | I39: -0.3998700265 | J39: 0.9984626604 | K39: -0.4041061573 | L39: -0.4063901855 | M39: 0.2218849731 | N39: -0.25 | O39: -0.25 | P39: 1 | Q39: -0.25 | R39: -0.25 | S39: 0.1429823535
B40: Acid-L | C40: 0.03353813491 | D40: -0.6666666667 | E40: -0.4082482905 | F40: 1 | G40: 0.1666666667 | H40: -0.1666666667 | I40: -0.6529850189 | J40: -0.4076206742 | K40: 0.9898538873 | L40: 0.1781800226 | M40: -0.1390595698 | N40: -0.4082482905 | O40: -0.4082482905 | P40: -0.4082482905 | Q40: 0.6123724357 | R40: 0.6123724357 | S40: 0.3019254555
B41: pH-4 | C41: -0.5493765561 | D41: 0.1666666667 | E41: -0.4082482905 | F41: 0.1666666667 | G41: 1 | H41: -1 | I41: 0.03415829018 | J41: -0.4076206742 | K41: 0.09096935525 | L41: 0.995448591 | M41: -0.9770992379 | N41: 0.6123724357 | O41: -0.4082482905 | P41: -0.4082482905 | Q41: 0.6123724357 | R41: -0.4082482905 | S41: 0.1288274992
B42: pH-6 | C42: 0.5493765561 | D42: -0.1666666667 | E42: 0.4082482905 | F42: -0.1666666667 | G42: -1 | H42: 1 | I42: -0.03415829018 | J42: 0.4076206742 | K42: -0.09096935525 | L42: -0.995448591 | M42: 0.9770992379 | N42: -0.6123724357 | O42: 0.4082482905 | P42: 0.4082482905 | Q42: -0.6123724357 | R42: 0.4082482905 | S42: -0.1288274992
B43: Means(Calcium)*Acid-A | C43: 0.4565903541 | D43: 0.9794775283 | E43: -0.3998700265 | F43: -0.6529850189 | G43: 0.03415829018 | H43: -0.03415829018 | I43: 1 | J43: -0.3992552905 | K43: -0.6463597593 | L43: 0.02411821493 | M43: 0.1040196479 | N43: 0.4417052172 | O43: 0.7579048622 | P43: -0.3998700265 | Q43: -0.3998700265 | R43: -0.3998700265 | S43: -0.4993021718
B44: Means(Calcium)*Acid-C | C44: -0.4190287334 | D44: -0.4076206742 | E44: 0.9984626604 | F44: -0.4076206742 | G44: -0.4076206742 | H44: 0.4076206742 | I44: -0.3992552905 | J44: 1 | K44: -0.4034849089 | L44: -0.4057654258 | M44: 0.2235629779 | N44: -0.2496156651 | O44: -0.2496156651 | P44: 0.9984626604 | Q44: -0.2496156651 | R44: -0.2496156651 | S44: 0.144532634
B45: Means(Calcium)*Acid-L | C45: 0.1024637993 | D45: -0.6599025915 | E45: -0.4041061573 | F45: 0.9898538873 | G45: 0.09096935525 | H45: -0.09096935525 | I45: -0.6463597593 | J45: -0.4034849089 | K45: 1 | L45: 0.1091427097 | M45: -0.06291835768 | N45: -0.4041061573 | O45: -0.4041061573 | P45: -0.4041061573 | Q45: 0.5155204086 | R45: 0.6967980633 | S45: 0.3069049466
B46: Means(Calcium)*pH-4 | C46: -0.5190830911 | D46: 0.1536361744 | E46: -0.4063901855 | F46: 0.1781800226 | G46: 0.995448591 | H46: -0.995448591 | I46: 0.02411821493 | J46: -0.4057654258 | K46: 0.1091427097 | L46: 1 | M46: -0.9726520597 | N46: 0.5945553022 | O46: -0.4063901855 | P46: -0.4063901855 | Q46: 0.6246152544 | R46: -0.4063901855 | S46: 0.1186832083
B47: Means(Calcium)*pH-6 | C47: 0.7034113878 | D47: -0.0421087521 | E47: 0.2218849731 | F47: -0.1390595698 | G47: -0.9770992379 | H47: 0.9770992379 | I47: 0.1040196479 | J47: 0.2235629779 | K47: -0.06291835768 | L47: -0.9726520597 | M47: 1 | N47: -0.5983486402 | O47: 0.5467761621 | P47: 0.2218849731 | Q47: -0.5983486402 | R47: 0.4280361453 | S47: -0.2114256967
B48: Acid-A*pH-4 | C48: -0.3824177547 | D48: 0.6123724357 | E48: -0.25 | F48: -0.4082482905 | G48: 0.6123724357 | H48: -0.6123724357 | I48: 0.4417052172 | J48: -0.2496156651 | K48: -0.4041061573 | L48: 0.5945553022 | M48: -0.5983486402 | N48: 1 | O48: -0.25 | P48: -0.25 | Q48: -0.25 | R48: -0.25 | S48: 0.0722769336
B49: Acid-A*pH-6 | C49: 0.7684576389 | D49: 0.6123724357 | E49: -0.25 | F49: -0.4082482905 | G49: -0.4082482905 | H49: 0.4082482905 | I49: 0.7579048622 | J49: -0.2496156651 | K49: -0.4041061573 | L49: -0.4063901855 | M49: 0.5467761621 | N49: -0.25 | O49: 1 | P49: -0.25 | Q49: -0.25 | R49: -0.25 | S49: -0.5850409403
B50: Acid-C*pH-6 | C50: -0.4271155429 | D50: -0.4082482905 | E50: 1 | F50: -0.4082482905 | G50: -0.4082482905 | H50: 0.4082482905 | I50: -0.3998700265 | J50: 0.9984626604 | K50: -0.4041061573 | L50: -0.4063901855 | M50: 0.2218849731 | N50: -0.25 | O50: -0.25 | P50: 1 | Q50: -0.25 | R50: -0.25 | S50: 0.1429823535
B51: Acid-L*pH-4 | C51: -0.2904283648 | D51: -0.4082482905 | E51: -0.25 | F51: 0.6123724357 | G51: 0.6123724357 | H51: -0.6123724357 | I51: -0.3998700265 | J51: -0.2496156651 | K51: 0.5155204086 | L51: 0.6246152544 | M51: -0.5983486402 | N51: -0.25 | O51: -0.25 | P51: -0.25 | Q51: 1 | R51: -0.25 | S51: 0.08550388539
B52: Acid-L*pH-6 | C52: 0.3315040235 | D52: -0.4082482905 | E52: -0.25 | F52: 0.6123724357 | G52: -0.4082482905 | H52: 0.4082482905 | I52: -0.3998700265 | J52: -0.2496156651 | K52: 0.6967980633 | L52: -0.4063901855 | M52: 0.4280361453 | N52: -0.25 | O52: -0.25 | P52: -0.25 | Q52: -0.25 | R52: 1 | S52: 0.2842777678
B53: Gradient 5 to 13 second(g/sec) | C53: -0.4148353341 | D53: -0.4186700583 | E53: 0.1429823535 | F53: 0.3019254555 | G53: 0.1288274992 | H53: -0.1288274992 | I53: -0.4993021718 | J53: 0.144532634 | K53: 0.3069049466 | L53: 0.1186832083 | M53: -0.2114256967 | N53: 0.0722769336 | O53: -0.5850409403 | P53: 0.1429823535 | Q53: 0.08550388539 | R53: 0.2842777678 | S53: 1
B56: Multicolinearity statistics:
C58: Means(Calcium) | D58: Acid-A | E58: Acid-C | F58: Acid-L | G58: pH-4 | H58: pH-6 | I58: Means(Calcium)*Acid-A | J58: Means(Calcium)*Acid-C | K58: Means(Calcium)*Acid-L | L58: Means(Calcium)*pH-4 | M58: Means(Calcium)*pH-6 | N58: Acid-A*pH-4 | O58: Acid-A*pH-6 | P58: Acid-C*pH-6 | Q58: Acid-L*pH-4 | R58: Acid-L*pH-6
B59: Tolerance | C59: 0 | D59: 0 | E59: 0 | F59: 0 | G59: 0 | H59: 0 | I59: 0.000534213364 | J59: 0.00107053491 | K59: 0.0004970622286 | L59: 0.0005851054831 | M59: 0.0004046286309 | N59: 0.008335244074 | O59: 0.008335244074 | P59: 0 | Q59: 0.008335244074 | R59: 0.008335244074
B60: VIF | I60: 1871.911239 | J60: 934.1124619 | K60: 2011.820538 | L60: 1709.093538 | M60: 2471.401981 | N60: 119.9724916 | O60: 119.9724916 | Q60: 119.9724916 | R60: 119.9724916
B63: Regression of variable Gradient 5 to 13 second(g/sec):
B65: Summary of the variables selection Gradient 5 to 13 second(g/sec):
B67: Nbr. of variables | C67: Variables | D67: MSE | E67: R² | F67: Adjusted R² | G67: Mallows' Cp | H67: Akaike's AIC | I67: Schwarz's SBC | J67: Amemiya's PC
B68: 2 | C68: Means(Calcium) / Acid*pH | D68: 0.1086183642 | E68: 0.3723336077 | F68: 0.2999105624 | G68: 1.168069424 | H68: -62.89046891 | I68: -57.28567938 | J68: 0.7621663335
B69: The best model for the selected selection criterion is displayed in blue
B72: Goodness of fit statistics (Gradient 5 to 13 second(g/sec)):
B74: Observations | C74: 30
B75: Sum of weights | C75: 30
B76: DF | C76: 26
B77: R² | C77: 0.3723336077
B78: Adjusted R² | C78: 0.2999105624
B79: MSE | C79: 0.1086183642
B80: RMSE | C80: 0.3295730028
B81: MAPE | C81: 158.0182313
B82: DW | C82: 2.3924626
B83: Cp | C83: 1.168069424
B84: AIC | C84: -62.89046891
B85: SBC | C85: -57.28567938
B86: PC | C86: 0.820794513
B89: Analysis of variance (Gradient 5 to 13 second(g/sec)):
B91: Source | C91: DF | D91: Sum of squares | E91: Mean squares | F91: F | G91: Pr > F
B92: Model | C92: 3 | D92: 1.67525132 | E92: 0.5584171067 | F92: 5.141092954 | G92: 0.00633525437
B93: Error | C93: 26 | D93: 2.824077468 | E93: 0.1086183642
B94: Corrected Total | C94: 29 | D94: 4.499328788
B95: Computed against model Y=Mean(Y)
B98: Type I Sum of Squares analysis (Gradient 5 to 13 second(g/sec)):
B100: Source | C100: DF | D100: Sum of squares | E100: Mean squares | F100: F | G100: Pr > F
B101: Means(Calcium) | C101: 1 | D101: 0.7742820872 | E101: 0.7742820872 | F101: 7.128463894 | G101: 0.01290428566
B102: Acid | C102: 0 | D102: 0
B103: pH | C103: 0 | D103: 0
B104: Means(Calcium)*Acid | C104: 0 | D104: 0
B105: Means(Calcium)*pH | C105: 0 | D105: 0
B106: Acid*pH | C106: 2 | D106: 0.9009692328 | E106: 0.4504846164 | F106: 4.147407483 | G106: 0.02733276021
B109: Type II Sum of Squares analysis (Gradient 5 to 13 second(g/sec)):
B111: Source | C111: DF | D111: Sum of squares | E111: Mean squares | F111: F | G111: Pr > F
B112: Means(Calcium) | C112: 1 | D112: 1.091748824 | E112: 1.091748824 | F112: 10.05123611 | G112: 0.003876923265
B113: Acid | C113: 0 | D113: 0
B114: pH | C114: 0 | D114: 0
B115: Means(Calcium)*Acid | C115: 0 | D115: 0
B116: Means(Calcium)*pH | C116: 0 | D116: 0
B117: Acid*pH | C117: 2 | D117: 0.9009692328 | E117: 0.4504846164 | F117: 4.147407483 | G117: 0.02733276021
B120: Type III Sum of Squares analysis (Gradient 5 to 13 second(g/sec)):
B122: Source | C122: DF | D122: Sum of squares | E122: Mean squares | F122: F | G122: Pr > F
B123: Means(Calcium) | C123: 1 | D123: 0.06500685788 | E123: 0.06500685788 | F123: 0.5984886477 | G123: 0.4461326928
B124: Acid | C124: 0 | D124: 0
B125: pH | C125: 0 | D125: 0
B126: Means(Calcium)*Acid | C126: 0 | D126: 0
B127: Means(Calcium)*pH | C127: 0 | D127: 0
B128: Acid*pH | C128: 2 | D128: 0.9009692328 | E128: 0.4504846164 | F128: 4.147407483 | G128: 0.02733276021
B131: Model parameters (Gradient 5 to 13 second(g/sec)):
B133: Source | C133: Value | D133: Standard error | E133: t | F133: Pr > |t| | G133: Lower bound (95%) | H133: Upper bound (95%)
B134: Intercept | C134: 1.574440933 | D134: 0.5791093276 | E134: 2.718728326 | F134: 0.01151510113 | G134: 0.3840646615 | H134: 2.764817204
B135: Means(Calcium) | C135: -891.7684099 | D135: 384.7009534 | E135: -2.318082142 | F135: 0.02857557566 | G135: -1682.532545 | H135: -101.0042752
B136: Acid-A | C136: 0 | D136: 0
B137: Acid-C | C137: 0 | D137: 0
B138: Acid-L | C138: 0 | D138: 0
B139: pH-4 | C139: 0 | D139: 0
B140: pH-6 | C140: 0 | D140: 0
B141: Means(Calcium)*Acid-A | C141: 0 | D141: 0
B142: Means(Calcium)*Acid-C | C142: 0 | D142: 0
B143: Means(Calcium)*Acid-L | C143: 0 | D143: 0
B144: Means(Calcium)*pH-4 | C144: 0 | D144: 0
B145: Means(Calcium)*pH-6 | C145: 0 | D145: 0
B146: Acid-A*pH-4 | C146: 0 | D146: 0
B147: Acid-A*pH-6 | C147: 0 | D147: 0
B148: Acid-C*pH-6 | C148: 0.02066913396 | D148: 0.06888449741 | E148: 0.3000549432 | F148: 0.7665211919 | G148: -0.1209249783 | H148: 0.1622632462
B149: Acid-L*pH-4 | C149: 0 | D149: 0
B150: Acid-L*pH-6 | C150: 0.4613093519 | D150: 0.1772756126 | E150: 2.602215529 | F150: 0.01509212952 | G150: 0.09691411153 | H150: 0.8257045922
B153: Equation of the model (Gradient 5 to 13 second(g/sec)):
B155: Gradient 5 to 13 second(g/sec) = 1.57444093265729-891.768409931491*Means(Calcium)+2.06691339601724E-02*Acid-C*pH-6+0.461309351884061*Acid-L*pH-6

Sheet Linear regression
B1: XLSTAT-Student 2020.3.1.3 - Linear regression - Start time: 08/07/2020 at 10:20:36 / End time: 08/07/2020 at 10:20:37 / Microsoft Excel 14.04734
B2: Y / Dependent variables: Workbook = Extensibility complete data clean- highlighted for Emily.xlsm / Sheet = Calcium comparison / Range = 'Calcium comparison'!$C:$E / 30 rows and 3 columns
B3: X / Quantitative: Workbook = Extensibility complete data clean- highlighted for Emily.xlsm / Sheet = Calcium comparison / Range = 'Calcium comparison'!$B:$B / 30 rows and 1 column
B4: Confidence interval (%): 95
B5: Tolerance: 0.0001
B10: Summary statistics:
B12: Variable | C12: Observations | D12: Obs. with missing data | E12: Obs. without missing data | F12: Minimum | G12: Maximum | H12: Mean | I12: Std. deviation
B13: Peak force (g) | C13: 30 | D13: 0 | E13: 30 | F13: 31.76070786 | G13: 82.85260106 | H13: 48.45640008 | I13: 13.99129466
B14: 5 second force (g) | C14: 30 | D14: 0 | E14: 30 | F14: 1.24179731 | G14: 20.75643203 | H14: 8.40304357 | I14: 4.410304603
B15: Gradient 5 to 13 second(g/sec) | C15: 30 | D15: 0 | E15: 30 | F15: -1.412084072 | G15: 0.8220421068 | H15: 0.1665815259 | I15: 0.3938899193
B16: Means(Calcium) | C16: 30 | D16: 0 | E16: 30 | F16: 0.001319932193 | G16: 0.002122854281 | H16: 0.001686822596 | I16: 0.0002489703923
B19: Correlation matrix:
C21: Means(Calcium) | D21: Peak force (g) | E21: 5 second force (g) | F21: Gradient 5 to 13 second(g/sec)
B22: Means(Calcium) | C22: 1 | D22: 0.7999662103 | E22: 0.7926571146 | F22: -0.4148353341
B23: Peak force (g) | C23: 0.7999662103 | D23: 1 | E23: 0.8688688234 | F23: -0.5827107742
B24: 5 second force (g) | C24: 0.7926571146 | D24: 0.8688688234 | E24: 1 | F24: -0.5374585781
B25: Gradient 5 to 13 second(g/sec) | C25: -0.4148353341 | D25: -0.5827107742 | E25: -0.5374585781 | F25: 1
B28: Regression of variable Peak force (g):
B30: Goodness of fit statistics (Peak force (g)):
B32: Observations | C32: 30
B33: Sum of weights | C33: 30
B34: DF | C34: 28
B35: R² | C35: 0.6399459377
B36: Adjusted R² | C36: 0.627086864
B37: MSE | C37: 73.00010552
B38: RMSE | C38: 8.54400992
B39: MAPE | C39: 11.78351843
B40: DW | C40: 1.716127223
B41: Cp | C41: 2
B42: AIC | C42: 130.6440405
B43: SBC | C43: 133.4464352
B44: PC | C44: 0.4114903569
B47: Analysis of variance (Peak force (g)):
B49: Source | C49: DF | D49: Sum of squares | E49: Mean squares | F49: F | G49: Pr > F
B50: Model | C50: 1 | D50: 3632.930508 | E50: 3632.930508 | F50: 49.7660994 | G50: 1.129128194e-07
B51: Error | C51: 28 | D51: 2044.002954 | E51: 73.00010552
B52: Corrected Total | C52: 29 | D52: 5676.933462
B53: Computed against model Y=Mean(Y)
B56: Type I Sum of Squares analysis (Peak force (g)):
B58: Source | C58: DF | D58: Sum of squares | E58: Mean squares | F58: F | G58: Pr > F
B59: Means(Calcium) | C59: 1 | D59: 3632.930508 | E59: 3632.930508 | F59: 49.7660994 | G59: 1.129128194e-07
B62: Type III Sum of Squares analysis (Peak force (g)):
B64: Source | C64: DF | D64: Sum of squares | E64: Mean squares | F64: F | G64: Pr > F
B65: Means(Calcium) | C65: 1 | D65: 3632.930508 | E65: 3632.930508 | F65: 49.7660994 | G65: 1.129128194e-07
B68: Model parameters (Peak force (g)):
B70: Source | C70: Value | D70: Standard error | E70: t | F70: Pr > |t| | G70: Lower bound (95%) | H70: Upper bound (95%)
B71: Intercept | C71: -27.37538031 | D71: 10.86200065 | E71: -2.520288958 | F71: 0.0177052008 | G71: -49.62518002 | H71: -5.1255806
B72: Means(Calcium) | C72: 44955.39755 | D72: 6372.576259 | E72: 7.054509154 | F72: 1.129128193e-07 | G72: 31901.76683 | H72: 58009.02828
B75: Equation of the model (Peak force (g)):
B77: Peak force (g) = -27.3753803098838+44955.3975545301*Means(Calcium)
B80: Standardized coefficients (Peak force (g)):
B82: Source | C82: Value | D82: Standard error | E82: t | F82: Pr > |t| | G82: Lower bound (95%) | H82: Upper bound (95%)
B83: Means(Calcium) | C83: 0.7999662103 | D83: 0.1133978556 | E83: 7.054509154 | F83: 1.129128193e-07 | G83: 0.5676812331 | H83: 1.032251188
B106: Predictions and residuals (Peak force (g)):
B108: Observation | C108: Weight | D108: Means(Calcium) | E108: Peak force (g) | F108: Pred(Peak force (g)) | G108: Residual | H108: Std. residual | I108: Std. dev. on pred. (Mean) | J108: Lower bound 95% (Mean) | K108: Upper bound 95% (Mean) | L108: Std. dev. on pred. (Observation) | M108: Lower bound 95% (Observation) | N108: Upper bound 95% (Observation) | O108: Adjusted Pred.
B109: Obs1 | C109: 1 | D109: 0.001493655336 | E109: 36.91339471 | F109: 39.77248914 | G109: -2.859094428 | H109: -0.3346314499 | I109: 1.987116404 | J109: 35.70206571 | K109: 43.84291257 | L109: 8.772042927 | M109: 21.80377376 | N109: 57.74120452 | O109: 39.93598327
B110: Obs2 | C110: 1 | D110: 0.001510357531 | E110: 37.55248486 | F110: 40.52334295 | G110: -2.970858092 | H110: -0.3477123879 | I110: 1.922997789 | J110: 36.58426054 | K110: 44.46242535 | L110: 8.75774092 | M110: 22.5839239 | N110: 58.46276199 | O110: 40.68186604
B111: Obs3 | C111: 1 | D111: 0.002048806115 | E111: 82.85260106 | F111: 64.72951312 | G111: 18.12308794 | H111: 2.12114547 | I111: 2.784692719 | J111: 59.02532867 | K111: 70.43369757 | L111: 8.986357385 | M111: 46.32179447 | N111: 83.13723177 | O111: 62.5755633
B112: Obs4 | C112: 1 | D112: 0.002077238225 | E112: 76.53172449 | F112: 66.00768993 | G112: 10.52403456 | H112: 1.231744188 | I112: 2.936536879 | J112: 59.99246682 | K112: 72.02291305 | L112: 9.034564426 | M112: 47.50122364 | N112: 84.51415622 | O112: 64.59800059
B113: Obs5 | C113: 1 | D113: 0.001486395356 | E113: 40.1648618 | F113: 39.44611386 | G113: 0.7187479328 | H113: 0.0841230218 | I113: 2.016103523 | J113: 35.31631301 | K113: 43.57591472 | L113: 8.778654734 | M113: 21.46385481 | N113: 57.42837291 | O113: 39.40373398
B114: Obs6 | C114: 1 | D114: 0.001448699942 | E114: 38.90436456 | F114: 37.75150154 | G114: 1.152863022 | H114: 0.1349323131 | I114: 2.176236618 | J114: 33.29368291 | K114: 42.20932017 | L114: 8.816808455 | M114: 19.69108813 | N114: 55.81191495 | O114: 37.67151856
B115: Obs7 | C115: 1 | D115: 0.001994634965 | E115: 58.56058443 | F115: 62.29422752 | G115: -3.733643091 | H115: -0.4369895548 | I115: 2.506201478 | J115: 57.16050652 | K115: 67.42794853 | L115: 8.90399637 | M115: 44.05521777 | N115: 80.53323728 | O115: 62.64571904
B116: Obs8 | C116: 1 | D116: 0.002038791219 | E116: 71.9717956 | F116: 64.27928947 | G116: 7.692506132 | H116: 0.9003390918 | I116: 2.732059227 | J116: 58.68291984 | K116: 69.8756591 | L116: 8.970186906 | M116: 45.90469455 | N116: 82.65388439 | O116: 63.40315974
B117: Obs9 | C117: 1 | D117: 0.001532421497 | E117: 36.91520712 | F117: 41.5152373 | G117: -4.600030179 | H117: -0.5383924202 | I117: 1.844304899 | J117: 37.73734998 | K117: 45.29312463 | L117: 8.740798938 | M117: 23.61052233 | N117: 59.41995227 | O117: 41.74005233
B118: Obs10 | C118: 1 | D118: 0.001526081055 | E118: 35.22536493 | F118: 41.23020021 | G118: -6.004835279 | H118: -0.7028123018 | I118: 1.866173794 | J118: 37.40751648 | K118: 45.05288394 | L118: 8.745439391 | M118: 23.3159797 | N118: 59.14442071 | O118: 41.53102326
B119: Obs11 | C119: 1 | D119: 0.002095900226 | E119: 82.50461796 | F119: 66.84664757 | G119: 15.65797039 | H119: 1.832625493 | I119: 3.037951911 | J119: 60.62368518 | K119: 73.06960996 | L119: 9.068034921 | M119: 48.27162008 | N119: 85.42167507 | O119: 64.58057223
B120: Obs12 | C120: 1 | D120: 0.002122854281 | E120: 61.20545335 | F120: 68.05837785 | G120: -6.852924505 | H120: -0.802073566 | I120: 3.186566463 | J120: 61.53099235 | K120: 74.58576335 | L120: 9.118898581 | M120: 49.37916087 | N120: 86.73759483 | O120: 69.165626
B121: Obs13 | C121: 1 | D121: 0.001551967341 | E121: 43.33321685 | F121: 42.39392852 | G121: 0.9392883288 | H121: 0.1099353041 | I121: 1.780972463 | J121: 38.7457718 | K121: 46.04208523 | L121: 8.72765538 | M121: 24.51613691 | N121: 60.27172013 | O121: 42.35126249
B122: Obs14 | C122: 1 | D122: 0.001435660652 | E122: 35.93478499 | F122: 37.16531507 | G122: -1.230530081 | H122: -0.1440225482 | I122: 2.234970423 | J122: 32.58718569 | K122: 41.74344444 | L122: 8.83148902 | M122: 19.07482989 | N122: 55.25580025 | O122: 37.25569976
B123: Obs15 | C123: 1 | D123: 0.001509089551 | E123: 39.88877104 | F123: 40.46634039 | G123: -0.5775693472 | H123: -0.06759933013 | I123: 1.927734159 | J123: 36.51755597 | K123: 44.4151248 | L123: 8.758782136 | M123: 22.5247885 | N123: 58.40789227 | O123: 40.49731927
B124: Obs16 | C124: 1 | D124: 0.001374879041 | E124: 31.76070786 | F124: 34.43285355 | G124: -2.672145696 | H124: -0.3127507717 | I124: 2.526859714 | J124: 29.25681607 | K124: 39.60889104 | L124: 8.909833081 | M124: 16.18188784 | N124: 52.68381927 | O124: 34.68897728
B125: Obs17 | C125: 1 | D125: 0.001577009586 | E125: 41.80768379 | F125: 43.51971255 | G125: -1.712028761 | H125: -0.2003776653 | I125: 1.709691606 | J125: 40.01756806 | K125: 47.02185705 | L125: 8.713389174 | M125: 25.67114394 | N125: 61.36828117 | O125: 43.59112448
B126: Obs18 | C126: 1 | D126: 0.001417707985 | E126: 39.55240639 | F126: 36.35824578 | G126: 3.194160608 | H126: 0.3738479517 | I126: 2.318275639 | J126: 31.6094734 | K126: 41.10701815 | L126: 8.852937787 | M126: 18.22382479 | N126: 54.49266677 | O126: 36.10439699
B127: Obs19 | C127: 1 | D127: 0.001319932193 | E127: 56.40180758 | F127: 31.96269617 | G127: 24.43911141 | H127: 2.860379569 | I127: 2.810650137 | J127: 26.20534036 | K127: 37.72005198 | L127: 8.99443493 | M127: 13.53843142 | N127: 50.38696092 | O127: 28.99707511
B128: Obs20 | C128: 1 | D128: 0.001646553084 | E128: 48.35176248 | F128: 46.64606819 | G128: 1.705694296 | H128: 0.1996362728 | I128: 1.580882965 | J128: 43.40777623 | K128: 49.88436014 | L128: 8.689033115 | M128: 28.8473907 | N128: 64.44474567 | O128: 46.58560293
B129: Obs21 | C129: 1 | D129: 0.001874484031 | E129: 51.49062423 | F129: 56.8927945 | G129: -5.402170268 | H129: -0.6322757485 | I129: 1.965574243 | J129: 52.86649818 | K129: 60.91909082 | L129: 8.767188125 | M129: 38.93402373 | N129: 74.85156527 | O129: 57.19467774
B130: Obs22 | C130: 1 | D130: 0.001808280692 | E130: 53.20871193 | F130: 53.91659711 | G130: -0.7078851756 | H130: -0.08285163316 | I130: 1.741382891 | J130: 50.34953596 | K130: 57.48365826 | L130: 8.719662831 | M130: 36.05517749 | N130: 71.77801673 | O130: 53.947277
B131: Obs23 | C131: 1 | D131: 0.001516103943 | E131: 38.31922227 | F131: 40.78167519 | G131: -2.462452921 | H131: -0.2882081065 | I131: 1.90181535 | J131: 36.88598304 | K131: 44.67736733 | L131: 8.75311414 | M131: 22.85173367 | N131: 58.7116167 | O131: 40.91004127
B132: Obs24 | C132: 1 | D132: 0.001709410854 | E132: 39.22805928 | F132: 49.47186423 | G132: -10.24380495 | H132: -1.198945816 | I132: 1.566543051 | J132: 46.26294626 | K132: 52.6807822 | L132: 8.686435555 | M132: 31.6785076 | N132: 67.26522086 | O132: 49.82821137
B133: Obs25 | C133: 1 | D133: 0.001883171709 | E133: 46.33068734 | F133: 57.28335254 | G133: -10.9526652 | H133: -1.281911574 | I133: 1.999740649 | J133: 53.18706951 | K133: 61.37963557 | L133: 8.774911292 | M133: 39.30876158 | N133: 75.2579435 | O133: 57.91811448
B134: Obs26 | C134: 1 | D134: 0.001853628355 | E134: 48.37122942 | F134: 55.95521932 | G134: -7.583989905 | H134: -0.8876382373 | I134: 1.887662174 | J134: 52.08851864 | K134: 59.82192 | L134: 8.750049943 | M134: 38.03155453 | N134: 73.87888411 | O134: 56.34440456
B135: Obs27 | C135: 1 | D135: 0.001374852548 | E135: 41.73803539 | F135: 34.43166257 | G135: 7.306372822 | H135: 0.8551456389 | I135: 2.526992532 | J135: 29.25535302 | K135: 39.60797212 | L135: 8.90987075 | M135: 16.18061969 | N135: 52.68270544 | O135: 33.73126999
B136: Obs28 | C136: 1 | D136: 0.001700970361 | E136: 45.12217563 | F136: 49.09241851 | G136: -3.970242881 | H136: -0.4646814456 | I136: 1.562518884 | J136: 45.89174367 | K136: 52.29309336 | L136: 8.685710724 | M136: 31.30054664 | N136: 66.88429039 | O136: 49.22979659
B137: Obs29 | C137: 1 | D137: 0.001877494538 | E137: 46.34428043 | F137: 57.02813306 | G137: -10.68385263 | H137: -1.250449464 | I137: 1.977305132 | J137: 52.9778071 | K137: 61.07845901 | L137: 8.769825603 | M137: 39.06395966 | N137: 74.99230645 | O137: 57.6327186
B138: Obs30 | C138: 1 | D138: 0.001797645653 | E138: 47.20538062 | F138: 53.43849467 | G138: -6.233114058 | H138: -0.7295302927 | I138: 1.712336235 | J138: 49.9309329 | K138: 56.94605645 | L138: 8.713908474 | M138: 35.58886232 | N138: 71.28812703 | O138: 53.69932818
B141: Interpretation (Peak force (g)):
B143: Given the R2, 64% of the variability of the dependent variable Peak force (g) is explained by the explanatory variable.
B146: Given the p-value of the F statistic computed in the ANOVA table, and given the significance level of 5%, the information brought by the explanatory variables is significantly better than what a basic mean would bring.
B152: Regression of variable 5 second force (g):
B154: Goodness of fit statistics (5 second force (g)):
B156: Observations | C156: 30
B157: Sum of weights | C157: 30
B158: DF | C158: 28
B159: R² | C159: 0.6283053013
B160: Adjusted R² | C160: 0.6150304906
B161: MSE | C161: 7.487959808
B162: RMSE | C162: 2.736413676
B163: MAPE | C163: 34.88707701
B164: DW | C164: 1.530637523
B165: Cp | C165: 2
B166: AIC | C166: 62.32910501
B167: SBC | C167: 65.13149977
B168: PC | C168: 0.4247939414
B171: Analysis of variance (5 second force (g)):
B173: Source | C173: DF | D173: Sum of squares | E173: Mean squares | F173: F | G173: Pr > F
B174: Model | C174: 1 | D174: 354.4099393 | E174: 354.4099393 | F174: 47.33064124 | G174: 1.777480378e-07
B175: Error | C175: 28 | D175: 209.6628746 | E175: 7.487959808
B176: Corrected Total | C176: 29 | D176: 564.0728139
B177: Computed against model Y=Mean(Y)
B180: Type I Sum of Squares analysis (5 second force (g)):
B182: Source | C182: DF | D182: Sum of squares | E182: Mean squares | F182: F | G182: Pr > F
B183: Means(Calcium) | C183: 1 | D183: 354.4099393 | E183: 354.4099393 | F183: 47.33064124 | G183: 1.777480378e-07
B186: Type III Sum of Squares analysis (5 second force (g)):
B188: Source | C188: DF | D188: Sum of squares | E188: Mean squares | F188: F | G188: Pr > F
B189: Means(Calcium) | C189: 1 | D189: 354.4099393 | E189: 354.4099393 | F189: 47.33064124 | G189: 1.777480378e-07
B192: Model parameters (5 second force (g)):
B194: Source | C194: Value | D194: Standard error | E194: t | F194: Pr > |t| | G194: Lower bound (95%) | H194: Upper bound (95%)
B195: Intercept | C195: -15.28207994 | D195: 3.478802976 | E195: -4.392913323 | F195: 0.0001454006004 | G195: -22.4080848 | H195: -8.15607508
B196: Means(Calcium) | C196: 14041.26526 | D196: 2040.962615 | E196: 6.879726829 | F196: 1.777480378e-07 | G196: 9860.542863 | H196: 18221.98766
B199: Equation of the model (5 second force (g)):
B201: 5 second force (g) = -15.2820799406002+14041.2652592657*Means(Calcium)
B204: Standardized coefficients (5 second force (g)):
B206: Source | C206: Value | D206: Standard error | E206: t | F206: Pr > |t| | G206: Lower bound (95%) | H206: Upper bound (95%)
B207: Means(Calcium) | C207: 0.7926571146 | D207: 0.1152163646 | E207: 6.879726829 | F207: 1.777480378e-07 | G207: 0.5566470905 | H207: 1.028667139
B230: Predictions and residuals (5 second force (g)):
B232: Observation | C232: Weight | D232: Means(Calcium) | E232: 5 second force (g) | F232: Pred(5 second force (g)) | G232: Residual | H232: Std. residual | I232: Std. dev. on pred. (Mean) | J232: Lower bound 95% (Mean) | K232: Upper bound 95% (Mean) | L232: Std. dev. on pred. (Observation) | M232: Lower bound 95% (Observation) | N232: Upper bound 95% (Observation) | O232: Adjusted Pred.
B233: Obs1 | C233: 1 | D233: 0.001493655336 | E233: 6.689612603 | F233: 5.690730841 | G233: 0.9988817616 | H233: 0.3650331711 | I233: 0.6364192639 | J233: 4.387085076 | K233: 6.994376606 | L233: 2.809446438 | M233: -0.06415930688 | N233: 11.44562099 | O233: 5.6336109
B234: Obs2 | C234: 1 | D234: 0.001510357531 | E234: 5.568687297 | F234: 5.925250789 | G234: -0.3565634915 | H234: -0.1303032121 | I234: 0.6158838179 | J234: 4.663669978 | K234: 7.1868316 | L234: 2.804865894 | M234: 0.1797434593 | N234: 11.67075812 | O234: 5.94427679
B235: Obs3 | C235: 1 | D235: 0.002048806115 | E235: 14.78617473 | F235: 13.48575019 | G235: 1.30042454 | H235: 0.4752295135 | I235: 0.8918612352 | J235: 11.65885527 | K235: 15.31264511 | L235: 2.878085522 | M235: 7.590259253 | N235: 19.38124113 | O235: 13.33119324
B236: Obs4 | C236: 1 | D236: 0.002077238225 | E236: 20.75643203 | F236: 13.88497299 | G236: 6.871459043 | H236: 2.511118513 | I236: 0.9404927841 | J236: 11.95846085 | K236: 15.81148513 | L236: 2.893524924 | M236: 7.957855871 | N236: 19.81209011 | O236: 12.96454437
B237: Obs5 | C237: 1 | D237: 0.001486395356 | E237: 5.643850893 | F237: 5.58879154 | G237: 0.05505935311 | H237: 0.02012099033 | I237: 0.6457030488 | J237: 4.266128803 | K237: 6.911454276 | L237: 2.811564019 | M237: -0.1704362775 | N237: 11.34801936 | O237: 5.585545048
B238: Obs6 | C238: 1 | D238: 0.001448699942 | E238: 4.185713794 | F238: 5.059500233 | G238: -0.8737864389 | H238: -0.3193181084 | I238: 0.6969893177 | J238: 3.631782337 | K238: 6.487218129 | L238: 2.823783617 | M238: -0.7247582957 | N238: 10.84375876 | O238: 5.120121521
B239: Obs7 | C239: 1 | D239: 0.001994634965 | E239: 8.788126755 | F239: 12.7251187 | G239: -3.936991946 | H239: -1.43874151 | I239: 0.8026680755 | J239: 11.08092768 | K239: 14.36930972 | L239: 2.851707532 | M239: 6.883660626 | N239: 18.56657678 | O239: 13.09575382
B240: Obs8 | C240: 1 | D240: 0.002038791219 | E240: 17.60675629 | F240: 13.34512837 | G240: 4.26162792 | H240: 1.557377072 | I240: 0.875004161 | J240: 11.5527636 | K240: 15.13749315 | L240: 2.872906558 | M240: 7.460246063 | N240: 19.23001068 | O240: 12.85975483
B241: Obs9 | C241: 1 | D241: 0.001532421497 | E241: 7.188025896 | F241: 6.235056786 | G241: 0.9529691104 | H241: 0.3482547681 | I241: 0.5906806283 | J241: 5.025102368 | K241: 7.445011203 | L241: 2.799439839 | M241: 0.5006642262 | N241: 11.96944935 | O241: 6.188482792
B242: Obs10 | C242: 1 | D242: 0.001526081055 | E242: 3.686645114 | F242: 6.146028957 | G242: -2.459383843 | H242: -0.8987617129 | I242: 0.5976846399 | J242: 4.921727472 | K242: 7.370330441 | L242: 2.80092605 | M242: 0.4085920324 | N242: 11.88346588 | O242: 6.269236227
B243: Obs11 | C243: 1 | D243: 0.002095900226 | E243: 13.00405593 | F243: 14.14701109 | G243: -1.14295516 | H243: -0.4176836162 | I243: 0.9729732566 | J243: 12.15396572 | K243: 16.14005645 | L243: 2.904244612 | M243: 8.197935681 | N243: 20.09608649 | O243: 14.31242349
B244: Obs12 | C244: 1 | D244: 0.002122854281 | E244: 12.6524096 | F244: 14.52548013 | G244: -1.873070532 | H244: -0.6844983082 | I244: 1.02057045 | J244: 12.43493633 | K244: 16.61602393 | L244: 2.920534857 | M244: 8.54303567 | N244: 20.50792459 | O244: 14.82811791
B245: Obs13 | C245: 1 | D245: 0.001551967341 | E245: 7.522027532 | F245: 6.509505174 | G245: 1.012522357 | H245: 0.3700180152 | I245: 0.570396974 | J245: 5.341099939 | K245: 7.67791041 | L245: 2.795230315 | M245: 0.7837354334 | N245: 12.23527492 | O245: 6.463512579
B246: Obs14 | C246: 1 | D246: 0.001435660652 | E246: 3.299525891 | F246: 4.876412101 | G246: -1.576886209 | H246: -0.5762601696 | I246: 0.7158001557 | J246: 3.41016195 | K246: 6.342662252 | L246: 2.828485402 | M246: -0.9174775977 | N246: 10.6703018 | O246: 4.992237282
B247: Obs15 | C247: 1 | D247: 0.001509089551 | E247: 5.712722548 | F247: 5.90744674 | G247: -0.1947241924 | H247: -0.07116036368 | I247: 0.617400748 | J247: 4.642758638 | K247: 7.172134842 | L247: 2.805199368 | M247: 0.1612563214 | N247: 11.65363716 | O247: 5.917891094
B248: Obs16 | C248: 1 | D248: 0.001374879041 | E248: 1.24179731 | F248: 4.022961369 | G248: -2.781164059 | H248: -1.016353661 | I248: 0.8092843459 | J248: 2.365217535 | K248: 5.680705203 | L248: 2.853576871 | M248: -1.822325874 | N248: 9.868248612 | O248: 4.289534444
B249: Obs17 | C249: 1 | D249: 0.001577009586 | E249: 6.694014175 | F249: 6.861129966 | G249: -0.1671157914 | H249: -0.06107109931 | I249: 0.5475676569 | J249: 5.739488467 | K249: 7.982771465 | L249: 2.790661238 | M249: 1.144719555 | N249: 12.57754038 | O249: 6.868100679
B250: Obs18 | C250: 1 | D250: 0.001417707985 | E250: 6.490436748 | F250: 4.624333939 | G250: 1.866102809 | H250: 0.6819520109 | I250: 0.7424805476 | J250: 3.103431483 | K250: 6.145236395 | L250: 2.835354858 | M250: -1.183627202 | N250: 10.43229508 | O250: 4.476029581
B251: Obs19 | C251: 1 | D251: 0.001319932193 | E251: 8.134104947 | F251: 3.251438105 | G251: 4.882666843 | H251: 1.784330668 | I251: 0.9001746891 | J251: 1.407513843 | K251: 5.095362367 | L251: 2.880672539 | M251: -2.649352098 | N251: 9.152228307 | O251: 2.658939492
B252: Obs20 | C252: 1 | D252: 0.001646553084 | E252: 10.64992364 | F252: 7.837608679 | G252: 2.812314963 | H252: 1.027737505 | I252: 0.5063137573 | J252: 6.800471963 | K252: 8.874745396 | L252: 2.782860656 | M252: 2.137177037 | N252: 13.53804032 | O252: 7.737914765
B253: Obs21 | C253: 1 | D253: 0.001874484031 | E253: 13.2423881 | F253: 11.03804756 | G253: 2.204340542 | H253: 0.8055582244 | I253: 0.6295198964 | J253: 9.748534507 | K253: 12.32756061 | L253: 2.807891577 | M253: 5.286342399 | N253: 16.78975272 | O253: 10.91486494
B254: Obs22 | C254: 1 | D254: 0.001808280692 | E254: 12.01251723 | F254: 10.10846892 | G254: 1.904048309 | H254: 0.6958188835 | I254: 0.5577175125 | J254: 8.966036389 | K254: 11.25090146 | L254: 2.79267052 | M254: 4.387942688 | N254: 15.82899516 | O254: 10.02594707
B255: Obs23 | C255: 1 | D255: 0.001516103943 | E255: 5.688557055 | F255: 6.005937686 | G255: -0.3173806308 | H255: -0.115984156 | I255: 0.6090996594 | J255: 4.758253593 | K255: 7.253621778 | L255: 2.803384063 | M255: 0.2634657502 | N255: 11.74840962 | O255: 6.022482533
B256: Obs24 | C256: 1 | D256: 0.001709410854 | E256: 3.2611147 | F256: 8.720211302 | G256: -5.459096602 | H256: -1.994982209 | I256: 0.5017210734 | J256: 7.692482272 | K256: 9.747940332 | L256: 2.782028728 | M256: 3.021483787 | N256: 14.41893882 | O256: 8.910114709
B257: Obs25 | C257: 1 | D257: 0.001883171709 | E257: 9.023093021 | F257: 11.16003356 | G257: -2.136940536 | H257: -0.7809274431 | I257: 0.6404624657 | J257: 9.848105668 | K257: 12.47196145 | L257: 2.810365097 | M257: 5.403261621 | N257: 16.91680549 | O257: 11.28387999
B258: Obs26 | C258: 1 | D258: 0.001853628355 | E258: 9.79575731 | F258: 10.74520749 | G258: -0.9494501774 | H258: -0.3469688029 | I258: 0.6045667829 | J258: 9.506808572 | K258: 11.9836064 | L258: 2.802402684 | M258: 5.004745816 | N258: 16.48566916 | O258: 10.79393013
B259: Obs27 | C259: 1 | D259: 0.001374852548 | E259: 6.144076598 | F259: 4.02258938 | G259: 2.121487218 | H259: 0.7752801547 | I259: 0.8093268839 | J259: 2.364758411 | K259: 5.680420349 | L259: 2.853588936 | M259: -1.822722576 | N259: 9.867901335 | O259: 3.819222548
B260: Obs28 | C260: 1 | D260: 0.001700970361 | E260: 5.078053845 | F260: 8.601696101 | G260: -3.523642257 | H260: -1.287686247 | I260: 0.5004322426 | J260: 7.576607122 | K260: 9.626785081 | L260: 2.781796585 | M260: 2.903444111 | N260: 14.29994809 | O260: 8.723620931
B261: Obs29 | C261: 1 | D261: 0.001877494538 | E261: 9.270487256 | F261: 11.08031889 | G261: -1.809831635 | H261: -0.6613881705 | I261: 0.6332769808 | J261: 9.783109801 | K261: 12.37752798 | L261: 2.808736289 | M261: 5.326883417 | N261: 16.83375437 | O261: 11.18273495
B262: Obs30 | C262: 1 | D262: 0.001797645653 | E262: 8.274218243 | F262: 9.959139513 | G262: -1.68492127 | H262: -0.615740699 | I262: 0.5484146594 | J262: 8.835763008 | K262: 11.08251602 | L262: 2.790827556 | M262: 4.242388416 | N262: 15.67589061 | O262: 10.02964744
B265: Interpretation (5 second force (g)):
B267: Given the R2, 63% of the variability of the dependent variable 5 second force (g) is explained by the explanatory variable.
B270: Given the p-value of the F statistic computed in the ANOVA table, and given the significance level of 5%, the information brought by the explanatory variables is significantly better than what a basic mean would bring.
B276: Regression of variable Gradient 5 to 13 second(g/sec):
B278: Goodness of fit statistics (Gradient 5 to 13 second(g/sec)):
B280: Observations | C280: 30
B281: Sum of weights | C281: 30
B282: DF | C282: 28
B283: R² | C283: 0.1720883544
B284: Adjusted R² | C284: 0.1425200814
B285: MSE | C285: 0.1330373822
B286: RMSE | C286: 0.3647428987
B287: MAPE | C287: 125.8007838
B288: DW | C288: 2.062948513
B289: Cp | C289: 2
B290: AIC | C290: -58.58353978
B291: SBC | C291: -55.78114502
B292: PC | C292: 0.9461847378
B295: Analysis of variance (Gradient 5 to 13 second(g/sec)):
B297: Source | C297: DF | D297: Sum of squares | E297: Mean squares | F297: F | G297: Pr > F
B298: Model | C298: 1 | D298: 0.7742820872 | E298: 0.7742820872 | F298: 5.820033997 | G298: 0.02264303032
B299: Error | C299: 28 | D299: 3.725046701 | E299: 0.1330373822
B300: Corrected Total | C300: 29 | D300: 4.499328788
B301: Computed against model Y=Mean(Y)
B304: Type I Sum of Squares analysis (Gradient 5 to 13 second(g/sec)):
B306: Source | C306: DF | D306: Sum of squares | E306: Mean squares | F306: F | G306: Pr > F
B307: Means(Calcium) | C307: 1 | D307: 0.7742820872 | E307: 0.7742820872 | F307: 5.820033997 | G307: 0.02264303032
B310: Type III Sum of Squares analysis (Gradient 5 to 13 second(g/sec)):
B312: Source | C312: DF | D312: Sum of squares | E312: Mean squares | F312: F | G312: Pr > F
B313: Means(Calcium) | C313: 1 | D313: 0.7742820872 | E313: 0.7742820872 | F313: 5.820033997 | G313: 0.02264303032
B316: Model parameters (Gradient 5 to 13 second(g/sec)):
B318: Source | C318: Value | D318: Standard error | E318: t | F318: Pr > |t| | G318: Lower bound (95%) | H318: Upper bound (95%)
B319: Intercept | C319: 1.273644468 | D319: 0.4636976831 | E319: 2.746713029 | F319: 0.01040402851 | G319: 0.3238028222 | H319: 2.223486113
B320: Means(Calcium) | C320: -656.3007543 | D320: 272.0446206 | E320: -2.412474663 | F320: 0.02264303032 | G320: -1213.558898 | H320: -99.04261056
B323: Equation of the model (Gradient 5 to 13 second(g/sec)):
B325: Gradient 5 to 13 second(g/sec) = 1.27364446777435-656.300754301004*Means(Calcium)
B328: Standardized coefficients (Gradient 5 to 13 second(g/sec)):
B330: Source | C330: Value | D330: Standard error | E330: t | F330: Pr > |t| | G330: Lower bound (95%) | H330: Upper bound (95%)
B331: Means(Calcium) | C331: -0.4148353341 | D331: 0.1719542761 | E331: -2.412474663 | F331: 0.02264303032 | G331: -0.7670677013 | H331: -0.06260296697
B354: Predictions and residuals (Gradient 5 to 13 second(g/sec)):
B356: Observation | C356: Weight | D356: Means(Calcium) | E356: Gradient 5 to 13 second(g/sec) | F356: Pred(Gradient 5 to 13 second(g/sec)) | G356: Residual | H356: Std. residual | I356: Std. dev. on pred. (Mean) | J356: Lower bound 95% (Mean) | K356: Upper bound 95% (Mean) | L356: Std. dev. on pred. (Observation) | M356: Lower bound 95% (Observation) | N356: Upper bound 95% (Observation) | O356: Adjusted Pred.
B357: Obs1 | C357: 1 | D357: 0.001493655336 | E357: 0.2032166928 | F357: 0.293357344 | G357: -0.09014065117 | H357: -0.2471347667 | I357: 0.08482979351 | J357: 0.1195913891 | K357: 0.4671232988 | L357: 0.3744776042 | M357: -0.4737252549 | N357: 1.060439943 | O357: 0.2985119367
B358: Obs2 | C358: 1 | D358: 0.001510357531 | E358: 0.3635065708 | F358: 0.2823956809 | G358: 0.0811108899 | H358: 0.2223782565 | I358: 0.08209257649 | J358: 0.1142366609 | K358: 0.4505547009 | L358: 0.373867053 | M358: -0.4834362605 | N358: 1.048227622 | O358: 0.2780676554
B359: Obs3 | C359: 1 | D359: 0.002048806115 | E359: 0.07942248194 | F359: -0.07098853118 | G359: 0.1504110131 | H359: 0.4123754393 | I359: 0.1188782438 | J359: -0.3144995748 | K359: 0.1725225125 | L359: 0.3836266662 | M359: -0.856812134 | N359: 0.7148350717 | O359: -0.08886505283
... 37 more rows

Sheet graphs
A1: Treatment | B1: Peak force (g) | C1: 5 second force (g) | D1: Gradient 5 to 13 second(g/sec)
A2: AD6 | B2: 65.71323039 | C2: 13.49139584 | D2: 0.1899324977
A3: LC6 | B3: 52.75055521 | C3: 12.3404828 | D3: 0.2702958361
A4: LR6 | B4: 46.99010557 | C4: 8.523285496 | D4: 0.3521262119
A5: AC6 | B5: 79.69216278 | C5: 17.77130338 | D5: -0.6663307951
A6: AR6 | B6: 70.33366675 | C6: 12.80311517 | D6: -0.3471305756
A7: LD6 | B7: 47.82708486 | C7: 9.5897135 | D7: 0.2341604284
A8: CR6 | B8: 40.68004509 | C8: 6.592225461 | D8: 0.311905129
A9: LC4 | B9: 52.37678503 | C9: 9.392014295 | D9: 0.2121677894
A10: CC6 | B10: 39.38738652 | C10: 5.270026657 | D10: 0.4040463678
A11: AC4 | B11: 37.32692363 | C11: 5.964307993 | D11: 0.3069336727
A12: LD4 | B12: 38.71683846 | C12: 4.626551025 | D12: 0.306289153
A13: LR4 | B13: 43.43010551 | C13: 5.611065221 | D13: 0.1801397117
A14: AR4 | B14: 35.58747397 | C14: 4.436940996 | D14: 0.2736137034
A15: AD4 | B15: 39.21948887 | C15: 4.550248069 | D15: 0.09368438561
A16: CD6 | B16: 36.3327434 | C16: 3.756692756 | D16: 0.1177740319

Sheet ANCOVA of Ca-pH-acid on peak-qu
B1: XLSTAT-Student 2020.5.1.1079 - ANCOVA - Start time: 03/06/2021 at 09:56:53
B2: Y / Dependent variables: Workbook = Extensibility complete data clean 3-6-2021.xlsm / Sheet = Calcium comparison data / Range = 'Calcium comparison data'!$G:$G,'Calcium comparison data'!$I:$I / 30 rows and 2 columns
B3: X / Quantitative: Workbook = Extensibility complete data clean 3-6-2021.xlsm / Sheet = Calcium comparison data / Range = 'Calcium comparison data'!$F:$F / 30 rows and 1 column
B4: X / Qualitative: Workbook = Extensibility complete data clean 3-6-2021.xlsm / Sheet = Calcium comparison data / Range = 'Calcium comparison data'!$B:$B,'Calcium comparison data'!$D:$D / 30 rows and 2 columns
B5: Constraints: a1=0
B6: Interactions / Level: 2
B7: Confidence interval (%): 95
B8: Tolerance: 0.0001
B9: Model selection: Best model / Adjusted R²
B10: Min variables: 2 / Max variables: 2
B11: Covariances: Corrections = HC0
B12: Use least squares means: No
B14: Please wait until the analysis is finished.
B17: Summary statistics (Quantitative data):
B19: Variable | C19: Observations | D19: Obs. with missing data | E19: Obs. without missing data | F19: Minimum | G19: Maximum | H19: Mean | I19: Std. deviation
B20: Peak force (g) | C20: 30 | D20: 0 | E20: 30 | F20: 31.76070786 | G20: 82.85260106 | H20: 48.45640008 | I20: 13.99129466
B21: Gradient 5 to 13 second(g/sec) | C21: 30 | D21: 0 | E21: 30 | F21: -1.412084072 | G21: 0.8220421068 | H21: 0.1665815259 | I21: 0.3938899193
B22: Means(Calcium) | C22: 30 | D22: 0 | E22: 30 | F22: 0.001319932193 | G22: 0.002122854281 | H22: 0.001686822596 | I22: 0.0002489703923
B25: Summary statistics (Qualitative data):
B27: Variable | C27: Categories | D27: Counts | E27: Frequencies | F27: %
B28: Acid | C28: A | D28: 12 | E28: 12 | F28: 40
C29: C | D29: 6 | E29: 6 | F29: 20
C30: L | D30: 12 | E30: 12 | F30: 40
B31: pH | C31: 4 | D31: 12 | E31: 12 | F31: 40
C32: 6 | D32: 18 | E32: 18 | F32: 60
B35: Correlation matrix:
C37: Means(Calcium) | D37: Acid-A | E37: Acid-C | F37: Acid-L | G37: pH-4 | H37: pH-6 | I37: Means(Calcium)*Acid-A | J37: Means(Calcium)*Acid-C | K37: Means(Calcium)*Acid-L | L37: Means(Calcium)*pH-4 | M37: Means(Calcium)*pH-6 | N37: Acid-A*pH-4 | O37: Acid-A*pH-6 | P37: Acid-C*pH-6 | Q37: Acid-L*pH-4 | R37: Acid-L*pH-6 | S37: Peak force (g) | T37: Gradient 5 to 13 second(g/sec)
B38: Means(Calcium) | C38: 1 | D38: 0.3152002455 | E38: -0.4271155429 | F38: 0.03353813491 | G38: -0.5493765561 | H38: 0.5493765561 | I38: 0.4565903541 | J38: -0.4190287334 | K38: 0.1024637993 | L38: -0.5190830911 | M38: 0.7034113878 | N38: -0.3824177547 | O38: 0.7684576389 | P38: -0.4271155429 | Q38: -0.2904283648 | R38: 0.3315040235 | S38: 0.7999662103 | T38: -0.4148353341
B39: Acid-A | C39: 0.3152002455 | D39: 1 | E39: -0.4082482905 | F39: -0.6666666667 | G39: 0.1666666667 | H39: -0.1666666667 | I39: 0.9794775283 | J39: -0.4076206742 | K39: -0.6599025915 | L39: 0.1536361744 | M39: -0.0421087521 | N39: 0.6123724357 | O39: 0.6123724357 | P39: -0.4082482905 | Q39: -0.4082482905 | R39: -0.4082482905 | S39: 0.3849458379 | T39: -0.4186700583
B40: Acid-C | C40: -0.4271155429 | D40: -0.4082482905 | E40: 1 | F40: -0.4082482905 | G40: -0.4082482905 | H40: 0.4082482905 | I40: -0.3998700265 | J40: 0.9984626604 | K40: -0.4041061573 | L40: -0.4063901855 | M40: 0.2218849731 | N40: -0.25 | O40: -0.25 | P40: 1 | Q40: -0.25 | R40: -0.25 | S40: -0.3541501688 | T40: 0.1429823535
B41: Acid-L | C41: 0.03353813491 | D41: -0.6666666667 | E41: -0.4082482905 | F41: 1 | G41: 0.1666666667 | H41: -0.1666666667 | I41: -0.6529850189 | J41: -0.4076206742 | K41: 0.9898538873 | L41: 0.1781800226 | M41: -0.1390595698 | N41: -0.4082482905 | O41: -0.4082482905 | P41: -0.4082482905 | Q41: 0.6123724357 | R41: 0.6123724357 | S41: -0.09578343592 | T41: 0.3019254555
B42: pH-4 | C42: -0.5493765561 | D42: 0.1666666667 | E42: -0.4082482905 | F42: 0.1666666667 | G42: 1 | H42: -1 | I42: 0.03415829018 | J42: -0.4076206742 | K42: 0.09096935525 | L42: 0.995448591 | M42: -0.9770992379 | N42: 0.6123724357 | O42: -0.4082482905 | P42: -0.4082482905 | Q42: 0.6123724357 | R42: -0.4082482905 | S42: -0.4285441745 | T42: 0.1288274992
B43: pH-6 | C43: 0.5493765561 | D43: -0.1666666667 | E43: 0.4082482905 | F43: -0.1666666667 | G43: -1 | H43: 1 | I43: -0.03415829018 | J43: 0.4076206742 | K43: -0.09096935525 | L43: -0.995448591 | M43: 0.9770992379 | N43: -0.6123724357 | O43: 0.4082482905 | P43: 0.4082482905 | Q43: -0.6123724357 | R43: 0.4082482905 | S43: 0.4285441745 | T43: -0.1288274992
B44: Means(Calcium)*Acid-A | C44: 0.4565903541 | D44: 0.9794775283 | E44: -0.3998700265 | F44: -0.6529850189 | G44: 0.03415829018 | H44: -0.03415829018 | I44: 1 | J44: -0.3992552905 | K44: -0.6463597593 | L44: 0.02411821493 | M44: 0.1040196479 | N44: 0.4417052172 | O44: 0.7579048622 | P44: -0.3998700265 | Q44: -0.3998700265 | R44: -0.3998700265 | S44: 0.5373232514 | T44: -0.4993021718
B45: Means(Calcium)*Acid-C | C45: -0.4190287334 | D45: -0.4076206742 | E45: 0.9984626604 | F45: -0.4076206742 | G45: -0.4076206742 | H45: 0.4076206742 | I45: -0.3992552905 | J45: 1 | K45: -0.4034849089 | L45: -0.4057654258 | M45: 0.2235629779 | N45: -0.2496156651 | O45: -0.2496156651 | P45: 0.9984626604 | Q45: -0.2496156651 | R45: -0.2496156651 | S45: -0.3475942572 | T45: 0.144532634
B46: Means(Calcium)*Acid-L | C46: 0.1024637993 | D46: -0.6599025915 | E46: -0.4041061573 | F46: 0.9898538873 | G46: 0.09096935525 | H46: -0.09096935525 | I46: -0.6463597593 | J46: -0.4034849089 | K46: 1 | L46: 0.1091427097 | M46: -0.06291835768 | N46: -0.4041061573 | O46: -0.4041061573 | P46: -0.4041061573 | Q46: 0.5155204086 | R46: 0.6967980633 | S46: -0.09184432189 | T46: 0.3069049466
B47: Means(Calcium)*pH-4 | C47: -0.5190830911 | D47: 0.1536361744 | E47: -0.4063901855 | F47: 0.1781800226 | G47: 0.995448591 | H47: -0.995448591 | I47: 0.02411821493 | J47: -0.4057654258 | K47: 0.1091427097 | L47: 1 | M47: -0.9726520597 | N47: 0.5945553022 | O47: -0.4063901855 | P47: -0.4063901855 | Q47: 0.6246152544 | R47: -0.4063901855 | S47: -0.4318043422 | T47: 0.1186832083
B48: Means(Calcium)*pH-6 | C48: 0.7034113878 | D48: -0.0421087521 | E48: 0.2218849731 | F48: -0.1390595698 | G48: -0.9770992379 | H48: 0.9770992379 | I48: 0.1040196479 | J48: 0.2235629779 | K48: -0.06291835768 | L48: -0.9726520597 | M48: 1 | N48: -0.5983486402 | O48: 0.5467761621 | P48: 0.2218849731 | Q48: -0.5983486402 | R48: 0.4280361453 | S48: 0.5764727169 | T48: -0.2114256967
B49: Acid-A*pH-4 | C49: -0.3824177547 | D49: 0.6123724357 | E49: -0.25 | F49: -0.4082482905 | G49: 0.6123724357 | H49: -0.6123724357 | I49: 0.4417052172 | J49: -0.2496156651 | K49: -0.4041061573 | L49: 0.5945553022 | M49: -0.5983486402 | N49: 1 | O49: -0.25 | P49: -0.25 | Q49: -0.25 | R49: -0.25 | S49: -0.3941438109 | T49: 0.0722769336
B50: Acid-A*pH-6 | C50: 0.7684576389 | D50: 0.6123724357 | E50: -0.25 | F50: -0.4082482905 | G50: -0.4082482905 | H50: 0.4082482905 | I50: 0.7579048622 | J50: -0.2496156651 | K50: -0.4041061573 | L50: -0.4063901855 | M50: 0.5467761621 | N50: -0.25 | O50: 1 | P50: -0.25 | Q50: -0.25 | R50: -0.25 | S50: 0.8656042516 | T50: -0.5850409403
B51: Acid-C*pH-6 | C51: -0.4271155429 | D51: -0.4082482905 | E51: 1 | F51: -0.4082482905 | G51: -0.4082482905 | H51: 0.4082482905 | I51: -0.3998700265 | J51: 0.9984626604 | K51: -0.4041061573 | L51: -0.4063901855 | M51: 0.2218849731 | N51: -0.25 | O51: -0.25 | P51: 1 | Q51: -0.25 | R51: -0.25 | S51: -0.3541501688 | T51: 0.1429823535
B52: Acid-L*pH-4 | C52: -0.2904283648 | D52: -0.4082482905 | E52: -0.25 | F52: 0.6123724357 | G52: 0.6123724357 | H52: -0.6123724357 | I52: -0.3998700265 | J52: -0.2496156651 | K52: 0.5155204086 | L52: 0.6246152544 | M52: -0.5983486402 | N52: -0.25 | O52: -0.25 | P52: -0.25 | Q52: 1 | R52: -0.25 | S52: -0.130713469 | T52: 0.08550388539
B53: Acid-L*pH-6 | C53: 0.3315040235 | D53: -0.4082482905 | E53: -0.25 | F53: 0.6123724357 | G53: -0.4082482905 | H53: 0.4082482905 | I53: -0.3998700265 | J53: -0.2496156651 | K53: 0.6967980633 | L53: -0.4063901855 | M53: 0.4280361453 | N53: -0.25 | O53: -0.25 | P53: -0.25 | Q53: -0.25 | R53: 1 | S53: 0.01340319714 | T53: 0.2842777678
B54: Peak force (g) | C54: 0.7999662103 | D54: 0.3849458379 | E54: -0.3541501688 | F54: -0.09578343592 | G54: -0.4285441745 | H54: 0.4285441745 | I54: 0.5373232514 | J54: -0.3475942572 | K54: -0.09184432189 | L54: -0.4318043422 | M54: 0.5764727169 | N54: -0.3941438109 | O54: 0.8656042516 | P54: -0.3541501688 | Q54: -0.130713469 | R54: 0.01340319714 | S54: 1 | T54: -0.5827107742
B55: Gradient 5 to 13 second(g/sec) | C55: -0.4148353341 | D55: -0.4186700583 | E55: 0.1429823535 | F55: 0.3019254555 | G55: 0.1288274992 | H55: -0.1288274992 | I55: -0.4993021718 | J55: 0.144532634 | K55: 0.3069049466 | L55: 0.1186832083 | M55: -0.2114256967 | N55: 0.0722769336 | O55: -0.5850409403 | P55: 0.1429823535 | Q55: 0.08550388539 | R55: 0.2842777678 | S55: -0.5827107742 | T55: 1
B58: Multicolinearity statistics:
C60: Means(Calcium) | D60: Acid-A | E60: Acid-C | F60: Acid-L | G60: pH-4 | H60: pH-6 | I60: Means(Calcium)*Acid-A | J60: Means(Calcium)*Acid-C | K60: Means(Calcium)*Acid-L | L60: Means(Calcium)*pH-4 | M60: Means(Calcium)*pH-6 | N60: Acid-A*pH-4 | O60: Acid-A*pH-6 | P60: Acid-C*pH-6 | Q60: Acid-L*pH-4 | R60: Acid-L*pH-6
B61: Tolerance | C61: 0 | D61: 0 | E61: 0 | F61: 0 | G61: 0 | H61: 0 | I61: 0.000534213364 | J61: 0.00107053491 | K61: 0.0004970622286 | L61: 0.0005851054831 | M61: 0.0004046286309 | N61: 0.008335244074 | O61: 0.008335244074 | P61: 0 | Q61: 0.008335244074 | R61: 0.008335244074
B62: VIF | I62: 1871.911239 | J62: 934.1124619 | K62: 2011.820538 | L62: 1709.093538 | M62: 2471.401981 | N62: 119.9724916 | O62: 119.9724916 | Q62: 119.9724916 | R62: 119.9724916
B65: Regression of variable Peak force (g):
B67: Summary of the variables selection Peak force (g):
B69: Nbr. of variables | C69: Variables | D69: MSE | E69: R² | F69: Adjusted R² | G69: Mallows' Cp | H69: Akaike's AIC | I69: Schwarz's SBC | J69: Amemiya's PC
B70: 2 | C70: Means(Calcium)*pH / Acid*pH | D70: 39.79744137 | E70: 0.817730209 | F70: 0.7966990793 | G70: 5.318054591 | H70: 114.2210534 | I70: 119.8258429 | J70: 0.2213276034
B71: The best model for the selected selection criterion is displayed in blue
B74: Goodness of fit statistics (Peak force (g)):
B76: Observations | C76: 30
B77: Sum of weights | C77: 30
B78: DF | C78: 26
B79: R² | C79: 0.817730209
B80: Adjusted R² | C80: 0.7966990793
B81: MSE | C81: 39.79744137
B82: RMSE | C82: 6.30852133
B83: MAPE | C83: 8.81219678
B84: DW | C84: 1.996256558
B85: Cp | C85: 5.318054591
B86: AIC | C86: 114.2210534
B87: SBC | C87: 119.8258429
B88: PC | C88: 0.2383528036
B91: Analysis of variance (Peak force (g)):
B93: Source | C93: DF | D93: Sum of squares | E93: Mean squares | F93: F | G93: Pr > F
B94: Model | C94: 3 | D94: 4642.199986 | E94: 1547.399995 | F94: 38.88189648 | G94: 9.34667041e-10
B95: Error | C95: 26 | D95: 1034.733476 | E95: 39.79744137
B96: Corrected Total | C96: 29 | D96: 5676.933462
B97: Computed against model Y=Mean(Y)
B100: Type I Sum of Squares analysis (Peak force (g)):
B102: Source | C102: DF | D102: Sum of squares | E102: Mean squares | F102: F | G102: Pr > F
B103: Means(Calcium) | C103: 0 | D103: 0
B104: Acid | C104: 0 | D104: 0
B105: pH | C105: 0 | D105: 0
B106: Means(Calcium)*Acid | C106: 0 | D106: 0
B107: Means(Calcium)*pH | C107: 1 | D107: 1886.563032 | E107: 1886.563032 | F107: 47.40412868 | G107: 2.614359183e-07
B108: Acid*pH | C108: 2 | D108: 2755.636954 | E108: 1377.818477 | F108: 34.62078037 | G108: 4.676371185e-08
B111: Type II Sum of Squares analysis (Peak force (g)):
B113: Source | C113: DF | D113: Sum of squares | E113: Mean squares | F113: F | G113: Pr > F
B114: Means(Calcium) | C114: 0 | D114: 0
B115: Acid | C115: 0 | D115: 0
B116: pH | C116: 0 | D116: 0
B117: Means(Calcium)*Acid | C117: 0 | D117: 0
B118: Means(Calcium)*pH | C118: 1 | D118: 3896.001959 | E118: 3896.001959 | F118: 97.8957899 | G118: 2.644296671e-10
B119: Acid*pH | C119: 2 | D119: 2755.636954 | E119: 1377.818477 | F119: 34.62078037 | G119: 4.676371185e-08
B122: Type III Sum of Squares analysis (Peak force (g)):
B124: Source | C124: DF | D124: Sum of squares | E124: Mean squares | F124: F | G124: Pr > F
B125: Means(Calcium) | C125: 0 | D125: 0
B126: Acid | C126: 0 | D126: 0
B127: pH | C127: 0 | D127: 0
B128: Means(Calcium)*Acid | C128: 0 | D128: 0
B129: Means(Calcium)*pH | C129: 1 | D129: 3896.001959 | E129: 3896.001959 | F129: 97.8957899 | G129: 2.644296671e-10
B130: Acid*pH | C130: 2 | D130: 2755.636954 | E130: 1377.818477 | F130: 34.62078037 | G130: 4.676371185e-08
B133: Model parameters (Peak force (g)):
B135: Source | C135: Value | D135: Standard error | E135: t | F135: Pr > |t| | G135: Lower bound (95%) | H135: Upper bound (95%)
B136: Intercept | C136: 41.19342703 | D136: 1.670523728 | E136: 24.65898948 | F136: 1.46425621e-19 | G136: 37.75961633 | H136: 44.62723773
B137: Means(Calcium) | C137: 0 | D137: 0
B138: Acid-A | C138: 0 | D138: 0
B139: Acid-C | C139: 0 | D139: 0
B140: Acid-L | C140: 0 | D140: 0
B141: pH-4 | C141: 0 | D141: 0
B142: pH-6 | C142: 0 | D142: 0
B143: Means(Calcium)*Acid-A | C143: 0 | D143: 0
B144: Means(Calcium)*Acid-C | C144: 0 | D144: 0
B145: Means(Calcium)*Acid-L | C145: 0 | D145: 0
B146: Means(Calcium)*pH-4 | C146: 0 | D146: 0
B147: Means(Calcium)*pH-6 | C147: 15105.70624 | D147: 2025.307287 | E147: 7.45847622 | F147: 6.415724418e-08 | G147: 10942.62749 | H147: 19268.78498
B148: Acid-A*pH-4 | C148: 0 | D148: 0
B149: Acid-A*pH-6 | C149: 0 | D149: 0
B150: Acid-C*pH-6 | C150: -24.80248805 | D150: 3.042540662 | E150: -8.15190027 | F150: 1.24093289e-08 | G150: -31.05651995 | H150: -18.54845615
B151: Acid-L*pH-4 | C151: 0 | D151: 0
B152: Acid-L*pH-6 | C152: -20.30050039 | D152: 3.634397204 | E152: -5.585658159 | F152: 7.216236068e-06 | G152: -27.77111084 | H152: -12.82988995
B155: Equation of the model (Peak force (g)):
B157: Peak force (g) = 41.1934270260267+15105.7062353906*Means(Calcium)*pH-6-24.802488045937*Acid-C*pH-6-20.3005003948634*Acid-L*pH-6
B160: Predictions and residuals (Peak force (g)):
B162: Observation | C162: Weight | D162: Means(Calcium) | E162: Peak force (g) | F162: Pred(Peak force (g)) | G162: Residual | H162: Std. residual | I162: Std. dev. on pred. (Mean) | J162: Lower bound 95% (Mean) | K162: Upper bound 95% (Mean) | L162: Std. dev. on pred. (Observation) | M162: Lower bound 95% (Observation) | N162: Upper bound 95% (Observation)
B163: Obs1 | C163: 1 | D163: 0.001493655336 | E163: 36.91339471 | F163: 41.19342703 | G163: -4.280032315 | H163: -0.6784525392 | I163: 1.820231728 | J163: 37.45188712 | K163: 44.93496693 | L163: 6.565872746 | M163: 27.69708231 | N163: 54.68977175
B164: Obs2 | C164: 1 | D164: 0.001510357531 | E164: 37.55248486 | F164: 41.19342703 | G164: -3.64094217 | H164: -0.5771466846 | I164: 1.820231728 | J164: 37.45188712 | K164: 44.93496693 | L164: 6.565872746 | M164: 27.69708231 | N164: 54.68977175
B165: Obs3 | C165: 1 | D165: 0.002048806115 | E165: 82.85260106 | F165: 72.14209034 | G165: 10.71051072 | H165: 1.697784657 | I165: 2.555248306 | J165: 66.88970222 | K165: 77.39447845 | L165: 6.806374606 | M165: 58.15138697 | N165: 86.13279371
B166: Obs4 | C166: 1 | D166: 0.002077238225 | E166: 76.53172449 | F166: 72.57157744 | G166: 3.96014705 | H166: 0.627745686 | I166: 2.590672912 | J166: 67.24637301 | K166: 77.89678188 | L166: 6.819752745 | M166: 58.55337491 | N166: 86.58977997
B167: Obs5 | C167: 1 | D167: 0.001486395356 | E167: 40.1648618 | F167: 41.19342703 | G167: -1.028565231 | H167: -0.1630437906 | I167: 1.820231728 | J167: 37.45188712 | K167: 44.93496693 | L167: 6.565872746 | M167: 27.69708231 | N167: 54.68977175
B168: Obs6 | C168: 1 | D168: 0.001448699942 | E168: 38.90436456 | F168: 41.19342703 | G168: -2.289062463 | H168: -0.3628524567 | I168: 1.820231728 | J168: 37.45188712 | K168: 44.93496693 | L168: 6.565872746 | M168: 27.69708231 | N168: 54.68977175
B169: Obs7 | C169: 1 | D169: 0.001994634965 | E169: 58.56058443 | F169: 71.32379686 | G169: -12.76321242 | H169: -2.02317021 | I169: 2.488454542 | J169: 66.20870529 | K169: 76.43888842 | L169: 6.781581481 | M169: 57.38405648 | N169: 85.26353723
B170: Obs8 | C170: 1 | D170: 0.002038791219 | E170: 71.9717956 | F170: 71.99080826 | G170: -0.01901265274 | H170: -0.003013804938 | I170: 2.542829323 | J170: 66.76394773 | K170: 77.21766879 | L170: 6.801722013 | M170: 58.00966843 | N170: 85.97194809
B171: Obs9 | C171: 1 | D171: 0.001532421497 | E171: 36.91520712 | F171: 41.19342703 | G171: -4.278219903 | H171: -0.6781652434 | I171: 1.820231728 | J171: 37.45188712 | K171: 44.93496693 | L171: 6.565872746 | M171: 27.69708231 | N171: 54.68977175
B172: Obs10 | C172: 1 | D172: 0.001526081055 | E172: 35.22536493 | F172: 41.19342703 | G172: -5.968062097 | H172: -0.9460318488 | I172: 1.820231728 | J172: 37.45188712 | K172: 44.93496693 | L172: 6.565872746 | M172: 27.69708231 | N172: 54.68977175
B173: Obs11 | C173: 1 | D173: 0.002095900226 | E173: 82.50461796 | F173: 72.85348013 | G173: 9.651137827 | H173: 1.529857366 | I173: 2.614055456 | J173: 67.48021219 | K173: 78.22674808 | L173: 6.828669511 | M173: 58.81694893 | N173: 86.89001134
B174: Obs12 | C174: 1 | D174: 0.002122854281 | E174: 61.20545335 | F174: 73.26064018 | G174: -12.05518683 | H174: -1.910937001 | I174: 2.648004205 | J174: 67.81758958 | K174: 78.70369078 | L174: 6.84173718 | M174: 59.19724799 | N174: 87.32403236
B175: Obs13 | C175: 1 | D175: 0.001551967341 | E175: 43.33321685 | F175: 39.83450173 | G175: 3.498715118 | H175: 0.5546014565 | I175: 2.57793649 | J175: 34.53547738 | K175: 45.13352607 | L175: 6.814924645 | M175: 25.8262235 | N175: 53.84277996
B176: Obs14 | C176: 1 | D176: 0.001435660652 | E176: 35.93478499 | F176: 38.07760705 | G176: -2.14282206 | H176: -0.3396710494 | I176: 2.576243387 | J176: 32.78206293 | K176: 43.37315117 | L176: 6.814284361 | M176: 24.07064494 | N176: 52.08456916
B177: Obs15 | C177: 1 | D177: 0.001509089551 | E177: 39.88877104 | F177: 39.18680242 | G177: 0.7019686227 | H177: 0.1112730838 | I177: 2.575888338 | J177: 33.89198811 | K177: 44.48161672 | L177: 6.814150138 | M177: 25.18011621 | N177: 53.19348862
B178: Obs16 | C178: 1 | D178: 0.001374879041 | E178: 31.76070786 | F178: 37.15945788 | G178: -5.39875002 | H178: -0.855786917 | I178: 2.580224471 | J178: 31.85573052 | K178: 42.46318524 | L178: 6.815790467 | M178: 23.14939993 | N178: 51.16951583
B179: Obs17 | C179: 1 | D179: 0.001577009586 | E179: 41.80768379 | F179: 40.21278251 | G179: 1.594901284 | H179: 0.2528169758 | I179: 2.579900395 | J179: 34.9097213 | K179: 45.51584372 | L179: 6.81566779 | M179: 26.20297672 | N179: 54.22258829
B180: Obs18 | C180: 1 | D180: 0.001417707985 | E180: 39.55240639 | F180: 37.80641933 | G180: 1.745987055 | H180: 0.2767664503 | I180: 2.577072198 | J180: 32.50917156 | K180: 43.1036671 | L180: 6.81459775 | M180: 23.79881304 | N180: 51.81402562
B181: Obs19 | C181: 1 | D181: 0.001319932193 | E181: 56.40180758 | F181: 41.19342703 | G181: 15.20838056 | H181: 2.410767874 | I181: 1.820231728 | J181: 37.45188712 | K181: 44.93496693 | L181: 6.565872746 | M181: 27.69708231 | N181: 54.68977175
B182: Obs20 | C182: 1 | D182: 0.001646553084 | E182: 48.35176248 | F182: 41.19342703 | G182: 7.158335458 | H182: 1.134708925 | I182: 1.820231728 | J182: 37.45188712 | K182: 44.93496693 | L182: 6.565872746 | M182: 27.69708231 | N182: 54.68977175
B183: Obs21 | C183: 1 | D183: 0.001874484031 | E183: 51.49062423 | F183: 49.20833174 | G183: 2.28229249 | H183: 0.3617793094 | I183: 2.57573421 | J183: 43.91383425 | K183: 54.50282924 | L183: 6.814091876 | M183: 35.20176529 | N183: 63.21489819
B184: Obs22 | C184: 1 | D184: 0.001808280692 | E184: 53.20871193 | F184: 48.20828356 | G184: 5.00042837 | H184: 0.7926466613 | I184: 2.576197577 | J184: 42.9128336 | K184: 53.50373352 | L184: 6.814267043 | M184: 34.20135705 | N184: 62.21521007
B185: Obs23 | C185: 1 | D185: 0.001516103943 | E185: 38.31922227 | F185: 41.19342703 | G185: -2.874204759 | H185: -0.4556067276 | I185: 1.820231728 | J185: 37.45188712 | K185: 44.93496693 | L185: 6.565872746 | M185: 27.69708231 | N185: 54.68977175
B186: Obs24 | C186: 1 | D186: 0.001709410854 | E186: 39.22805928 | F186: 41.19342703 | G186: -1.965367743 | H186: -0.3115417449 | I186: 1.820231728 | J186: 37.45188712 | K186: 44.93496693 | L186: 6.565872746 | M186: 27.69708231 | N186: 54.68977175
B187: Obs25 | C187: 1 | D187: 0.001883171709 | E187: 46.33068734 | F187: 49.33956526 | G187: -3.008877924 | H187: -0.4769545455 | I187: 2.575967776 | J187: 44.04458767 | K187: 54.63454286 | L187: 6.814180167 | M187: 35.33281733 | N187: 63.34631319
B188: Obs26 | C188: 1 | D188: 0.001853628355 | E188: 48.37122942 | F188: 48.89329204 | G188: -0.5220626205 | H188: -0.08275514867 | I188: 2.575452256 | J188: 43.59937411 | K188: 54.18720997 | L188: 6.813985302 | M188: 34.88694465 | N188: 62.89963942
B189: Obs27 | C189: 1 | D189: 0.001374852548 | E189: 41.73803539 | F189: 41.19342703 | G189: 0.5446083644 | H189: 0.08632900421 | I189: 1.820231728 | J189: 37.45188712 | K189: 44.93496693 | L189: 6.565872746 | M189: 27.69708231 | N189: 54.68977175
B190: Obs28 | C190: 1 | D190: 0.001700970361 | E190: 45.12217563 | F190: 41.19342703 | G190: 3.928748606 | H190: 0.6227685381 | I190: 1.820231728 | J190: 37.45188712 | K190: 44.93496693 | L190: 6.565872746 | M190: 27.69708231 | N190: 54.68977175
B191: Obs29 | C191: 1 | D191: 0.001877494538 | E191: 46.34428043 | F191: 49.25380758 | G191: -2.909527155 | H191: -0.4612058837 | I191: 2.575807416 | J191: 43.95915961 | K191: 54.54845555 | L191: 6.814119548 | M191: 35.24718425 | N191: 63.26043091
B192: Obs30 | C192: 1 | D192: 0.001797645653 | E192: 47.20538062 | F192: 48.04763378 | G192: -0.8422531611 | H192: -0.1335103929 | I192: 2.576641649 | J192: 42.75127102 | K192: 53.34399654 | L192: 6.814434941 | M192: 34.04036215 | N192: 62.05490541
B195: Interpretation (Peak force (g)):
B197: Using the Best model variables selection method, 2 variables have been retained in the model.
B200: Given the R2, 82% of the variability of the dependent variable Peak force (g) is explained by the 2 explanatory variables.
B203: Given the p-value of the F statistic computed in the ANOVA table, and given the significance level of 5%, the information brought by the explanatory variables is significantly better than what a basic mean would bring.
B207: Based on the Type III sum of squares, the following variables bring significant information to explain the variability of the dependent variable Peak force (g): Means(Calcium)*pH,Acid*pH.
B210: Among the explanatory variables, based on the Type III sum of squares, variable Means(Calcium)*pH is the most influential.
B215: Acid*pH / Tukey (HSD) / Analysis of the differences between the categories with a confidence interval of 95% (Peak force (g)):
B217: Contrast | C217: Difference | D217: Standardized difference | E217: Critical value | F217: Pr > Diff | G217: Significant
B218: Acid-A*pH-6 vs Acid-C*pH-6 | C218: 33.64413705 | D218: 8.356283188 | E218: 2.928450968 | F218: 7.412510894e-08 | G218: Yes
B219: Acid-A*pH-6 vs Acid-A*pH-4 | C219: 31.16363851 | D219: 7.45847622 | E219: 2.928450968 | F219: 6.093694203e-07 | G219: Yes
B220: Acid-A*pH-6 vs Acid-L*pH-4 | C220: 31.16363851 | D220: 7.45847622 | E220: 2.928450968 | F220: 6.093694203e-07 | G220: Yes
B221: Acid-A*pH-6 vs Acid-L*pH-6 | C221: 23.53191321 | D221: 5.870444282 | E221: 2.928450968 | F221: 3.177821619e-05 | G221: Yes
B222: Acid-L*pH-6 vs Acid-C*pH-6 | C222: 10.11222384 | D222: 6.043871791 | E222: 2.928450968 | F222: 2.039666599e-05 | G222: Yes
B223: Acid-L*pH-6 vs Acid-A*pH-4 | C223: 7.631725301 | D223: 3.751347577 | E223: 2.928450968 | F223: 0.007273708482 | G223: Yes
B224: Acid-L*pH-6 vs Acid-L*pH-4 | C224: 7.631725301 | D224: 3.751347577 | E224: 2.928450968 | F224: 0.007273708482 | G224: Yes
B225: Acid-L*pH-4 vs Acid-C*pH-6 | C225: 2.480498541 | D225: 1.209296583 | E225: 2.928450968 | F225: 0.7461057978 | G225: No
B226: Acid-L*pH-4 vs Acid-A*pH-4 | C226: 0
B227: Acid-A*pH-4 vs Acid-C*pH-6 | C227: 2.480498541 | D227: 1.209296583 | E227: 2.928450968 | F227: 0.7461057978 | G227: No
B228: Tukey's d critical value: | E228: 4.141455075
B231: Category | C231: Mean | D231: Groups
B232: Acid-A*pH-6 | C232: 72.35706553 | D232: A
B233: Acid-L*pH-6 | C233: 48.82515233 | E233: B
B234: Acid-A*pH-4 | C234: 41.19342703 | F234: C
B235: Acid-L*pH-4 | C235: 41.19342703 | F235: C
B236: Acid-C*pH-6 | C236: 38.71292848 | F236: C
B239: Regression of variable Gradient 5 to 13 second(g/sec):
B241: Summary of the variables selection Gradient 5 to 13 second(g/sec):
B243: Nbr. of variables | C243: Variables | D243: MSE | E243: R² | F243: Adjusted R² | G243: Mallows' Cp | H243: Akaike's AIC | I243: Schwarz's SBC | J243: Amemiya's PC
B244: 2 | C244: Means(Calcium) / Acid*pH | D244: 0.1086183642 | E244: 0.3723336077 | F244: 0.2999105624 | G244: 1.168069424 | H244: -62.89046891 | I244: -57.28567938 | J244: 0.7621663335
B245: The best model for the selected selection criterion is displayed in blue
B248: Goodness of fit statistics (Gradient 5 to 13 second(g/sec)):
B250: Observations | C250: 30
B251: Sum of weights | C251: 30
B252: DF | C252: 26
B253: R² | C253: 0.3723336077
B254: Adjusted R² | C254: 0.2999105624
B255: MSE | C255: 0.1086183642
B256: RMSE | C256: 0.3295730028
B257: MAPE | C257: 158.0182313
B258: DW | C258: 2.3924626
B259: Cp | C259: 1.168069424
B260: AIC | C260: -62.89046891
B261: SBC | C261: -57.28567938
B262: PC | C262: 0.820794513
B265: Analysis of variance (Gradient 5 to 13 second(g/sec)):
B267: Source | C267: DF | D267: Sum of squares | E267: Mean squares | F267: F | G267: Pr > F
B268: Model | C268: 3 | D268: 1.67525132 | E268: 0.5584171067 | F268: 5.141092954 | G268: 0.00633525437
B269: Error | C269: 26 | D269: 2.824077468 | E269: 0.1086183642
B270: Corrected Total | C270: 29 | D270: 4.499328788
... 46 more rows

Sheet No blocking except rep-ANOVA
B1: XLSTAT-Student 2020.1.3.65336 - ANOVA - Start time: 04/05/2020 at 11:10:48 / End time: 04/05/2020 at 11:10:55 / Microsoft Excel 14.04734
B2: Y / Dependent variables: Workbook = Extensibility complete data clean.xlsm / Sheet = Sheet1 / Range = Sheet1!$H:$J / 225 rows and 3 columns
B3: X / Qualitative: Workbook = Extensibility complete data clean.xlsm / Sheet = Sheet1 / Range = 'Sheet1'!$B:$B,'Sheet1'!$G:$G / 225 rows and 2 columns
B4: Constraints: a1=0
B5: Interactions / Level: 2
B6: Confidence interval (%): 95
B7: Tolerance: 0.0001
B8: Use least squares means: No
B13: Summary statistics (Quantitative data):
B15: Variable | C15: Observations | D15: Obs. with missing data | E15: Obs. without missing data | F15: Minimum | G15: Maximum | H15: Mean | I15: Std. deviation
B16: Peak force (g) | C16: 225 | D16: 0 | E16: 225 | F16: 29.07415241 | G16: 178.0368532 | H16: 48.12077815 | I16: 17.39453
B17: 5 second force (g) | C17: 225 | D17: 0 | E17: 225 | F17: 0.2948030006 | G17: 30.08124464 | H17: 8.245027364 | I17: 5.24790958
B18: Gradient 5 to 13 second(g/sec) | C18: 225 | D18: 0 | E18: 225 | F18: -3.569545386 | G18: 1.782991225 | H18: 0.1563446468 | I18: 0.5554070077
B21: Summary statistics (Qualitative data):
B23: Variable | C23: Categories | D23: Counts | E23: Frequencies | F23: %
B24: ID | C24: AC4 | D24: 17 | E24: 17 | F24: 7.555555556
C25: AC6 | D25: 14 | E25: 14 | F25: 6.222222222
C26: AD4 | D26: 16 | E26: 16 | F26: 7.111111111
C27: AD6 | D27: 15 | E27: 15 | F27: 6.666666667
C28: AR4 | D28: 14 | E28: 14 | F28: 6.222222222
C29: AR6 | D29: 14 | E29: 14 | F29: 6.222222222
C30: CC6 | D30: 15 | E30: 15 | F30: 6.666666667
C31: CD6 | D31: 16 | E31: 16 | F31: 7.111111111
C32: CR6 | D32: 14 | E32: 14 | F32: 6.222222222
C33: LC4 | D33: 16 | E33: 16 | F33: 7.111111111
C34: LC6 | D34: 15 | E34: 15 | F34: 6.666666667
C35: LD4 | D35: 16 | E35: 16 | F35: 7.111111111
C36: LD6 | D36: 15 | E36: 15 | F36: 6.666666667
C37: LR4 | D37: 12 | E37: 12 | F37: 5.333333333
C38: LR6 | D38: 16 | E38: 16 | F38: 7.111111111
B39: Replicate | C39: 1 | D39: 91 | E39: 91 | F39: 40.44444444
C40: 2 | D40: 134 | E40: 134 | F40: 59.55555556
B43: Correlation matrix:
C45: ID-AC4 | D45: ID-AC6 | E45: ID-AD4 | F45: ID-AD6 | G45: ID-AR4 | H45: ID-AR6 | I45: ID-CC6 | J45: ID-CD6 | K45: ID-CR6 | L45: ID-LC4 | M45: ID-LC6 | N45: ID-LD4 | O45: ID-LD6 | P45: ID-LR4 | Q45: ID-LR6 | R45: Replicate-1 | S45: Replicate-2 | T45: ID-AC4*Replicate-1 | U45: ID-AC4*Replicate-2 | V45: ID-AC6*Replicate-1 | W45: ID-AC6*Replicate-2 | X45: ID-AD4*Replicate-1 | Y45: ID-AD4*Replicate-2 | Z45: ID-AD6*Replicate-1 | AA45: ID-AD6*Replicate-2 | AB45: ID-AR4*Replicate-1 | AC45: ID-AR4*Replicate-2 | AD45: ID-AR6*Replicate-1 | AE45: ID-AR6*Replicate-2 | AF45: ID-CC6*Replicate-1 | AG45: ID-CC6*Replicate-2 | AH45: ID-CD6*Replicate-1 | AI45: ID-CD6*Replicate-2 | AJ45: ID-CR6*Replicate-1 | AK45: ID-CR6*Replicate-2 | AL45: ID-LC4*Replicate-1 | AM45: ID-LC4*Replicate-2 | AN45: ID-LC6*Replicate-1 | AO45: ID-LC6*Replicate-2 | AP45: ID-LD4*Replicate-1 | AQ45: ID-LD4*Replicate-2 | AR45: ID-LD6*Replicate-1 | AS45: ID-LD6*Replicate-2 | AT45: ID-LR4*Replicate-1 | AU45: ID-LR4*Replicate-2 | AV45: ID-LR6*Replicate-1 | AW45: ID-LR6*Replicate-2 | AX45: Peak force (g) | AY45: 5 second force (g) | AZ45: Gradient 5 to 13 second(g/sec)
B46: ID-AC4 | C46: 1 | D46: -0.07364030582 | E46: -0.07910057518 | F46: -0.07640623069 | G46: -0.07364030582 | H46: -0.07364030582 | I46: -0.07640623069 | J46: -0.07910057518 | K46: -0.07364030582 | L46: -0.07910057518 | M46: -0.07640623069 | N46: -0.07910057518 | O46: -0.07640623069 | P46: -0.06785683738 | Q46: -0.07910057518 | R46: -0.03000108785 | S46: 0.03000108785 | T46: 0.578976284 | U46: 0.793042866 | V46: -0.05122872728 | W46: -0.05122872728 | X46: -0.03846153846 | Y46: -0.06785683738 | Z46: -0.05122872728 | AA46: -0.05489185656 | AB46: -0.03323356518 | AC46: -0.06481600347 | AD46: -0.04732017706 | AE46: -0.05489185656 | AF46: -0.05122872728 | AG46: -0.05489185656 | AH46: -0.05835622262 | AI46: -0.05122872728 | AJ46: -0.05122872728 | AK46: -0.05122872728 | AL46: -0.05489185656 | AM46: -0.05489185656 | AN46: -0.03846153846 | AO46: -0.06481600347 | AP46: -0.05835622262 | AQ46: -0.05122872728 | AR46: -0.03846153846 | AS46: -0.06481600347 | AT46: -0.04732017706 | AU46: -0.04732017706 | AV46: -0.03846153846 | AW46: -0.06785683738 | AX46: -0.1777967855 | AY46: -0.124521846 | AZ46: 0.07768586609
B47: ID-AC6 | C47: -0.07364030582 | D47: 1 | E47: -0.07127047257 | F47: -0.06884283908 | G47: -0.0663507109 | H47: -0.0663507109 | I47: -0.06884283908 | J47: -0.07127047257 | K47: -0.0663507109 | L47: -0.07127047257 | M47: -0.06884283908 | N47: -0.07127047257 | O47: -0.06884283908 | P47: -0.06113974337 | Q47: -0.07127047257 | R47: 0.05015198821 | S47: -0.05015198821 | T47: -0.04263599062 | U47: -0.05839991918 | V47: 0.6956615227 | W47: 0.6956615227 | X47: -0.03465426156 | Y47: -0.06113974337 | Z47: -0.04615763658 | AA47: -0.04945815562 | AB47: -0.02994380117 | AC47: -0.05839991918 | AD47: -0.04263599062 | AE47: -0.04945815562 | AF47: -0.04615763658 | AG47: -0.04945815562 | AH47: -0.05257958686 | AI47: -0.04615763658 | AJ47: -0.04615763658 | AK47: -0.04615763658 | AL47: -0.04945815562 | AM47: -0.04945815562 | AN47: -0.03465426156 | AO47: -0.05839991918 | AP47: -0.05257958686 | AQ47: -0.04615763658 | AR47: -0.03465426156 | AS47: -0.05839991918 | AT47: -0.04263599062 | AU47: -0.04263599062 | AV47: -0.03465426156 | AW47: -0.06113974337 | AX47: 0.4685662139 | AY47: 0.4686265147 | AZ47: -0.3823906092
B48: ID-AD4 | C48: -0.07910057518 | D48: -0.07127047257 | E48: 1 | F48: -0.07394738666 | G48: -0.07127047257 | H48: -0.07127047257 | I48: -0.07394738666 | J48: -0.07655502392 | K48: -0.07127047257 | L48: -0.07655502392 | M48: -0.07394738666 | N48: -0.07655502392 | O48: -0.07394738666 | P48: -0.06567312307 | Q48: -0.07655502392 | R48: -0.08707000349 | S48: 0.08707000349 | T48: -0.04579735708 | U48: -0.06273014684 | V48: -0.04958012547 | W48: -0.04958012547 | X48: 0.4862358886 | Y48: 0.8578551702 | Z48: -0.04958012547 | AA48: -0.05312537086 | AB48: -0.03216406924 | AC48: -0.06273014684 | AD48: -0.04579735708 | AE48: -0.05312537086 | AF48: -0.04958012547 | AG48: -0.05312537086 | AH48: -0.05647824947 | AI48: -0.04958012547 | AJ48: -0.04958012547 | AK48: -0.04958012547 | AL48: -0.05312537086 | AM48: -0.05312537086 | AN48: -0.03722380008 | AO48: -0.06273014684 | AP48: -0.05647824947 | AQ48: -0.04958012547 | AR48: -0.03722380008 | AS48: -0.06273014684 | AT48: -0.04579735708 | AU48: -0.04579735708 | AV48: -0.03722380008 | AW48: -0.06567312307 | AX48: -0.1419038945 | AY48: -0.1952343612 | AZ48: -0.03128491247
B49: ID-AD6 | C49: -0.07640623069 | D49: -0.06884283908 | E49: -0.07394738666 | F49: 1 | G49: -0.06884283908 | H49: -0.06884283908 | I49: -0.07142857143 | J49: -0.07394738666 | K49: -0.06884283908 | L49: -0.07394738666 | M49: -0.07142857143 | N49: -0.07394738666 | O49: -0.07142857143 | P49: -0.06343614797 | Q49: -0.07394738666 | R49: 0.03388370738 | S49: -0.03388370738 | T49: -0.04423739552 | U49: -0.06059341617 | V49: -0.04789131426 | W49: -0.04789131426 | X49: -0.03595587326 | Y49: -0.06343614797 | Z49: 0.6704783997 | AA49: 0.7184212081 | AB49: -0.0310684883 | AC49: -0.06059341617 | AD49: -0.04423739552 | AE49: -0.05131580058 | AF49: -0.04789131426 | AG49: -0.05131580058 | AH49: -0.05455447256 | AI49: -0.04789131426 | AJ49: -0.04789131426 | AK49: -0.04789131426 | AL49: -0.05131580058 | AM49: -0.05131580058 | AN49: -0.03595587326 | AO49: -0.06059341617 | AP49: -0.05455447256 | AQ49: -0.04789131426 | AR49: -0.03595587326 | AS49: -0.06059341617 | AT49: -0.04423739552 | AU49: -0.04423739552 | AV49: -0.03595587326 | AW49: -0.06343614797 | AX49: 0.2709049334 | AY49: 0.2677784839 | AZ49: 0.01619847363
B50: ID-AR4 | C50: -0.07364030582 | D50: -0.0663507109 | E50: -0.07127047257 | F50: -0.06884283908 | G50: 1 | H50: -0.0663507109 | I50: -0.06884283908 | J50: -0.07127047257 | K50: -0.0663507109 | L50: -0.07127047257 | M50: -0.06884283908 | N50: -0.07127047257 | O50: -0.06884283908 | P50: -0.06113974337 | Q50: -0.07127047257 | R50: -0.09980412272 | S50: 0.09980412272 | T50: -0.04263599062 | U50: -0.05839991918 | V50: -0.04615763658 | W50: -0.04615763658 | X50: -0.03465426156 | Y50: -0.06113974337 | Z50: -0.04615763658 | AA50: -0.04945815562 | AB50: 0.4512958605 | AC50: 0.8801702105 | AD50: -0.04263599062 | AE50: -0.04945815562 | AF50: -0.04615763658 | AG50: -0.04945815562 | AH50: -0.05257958686 | AI50: -0.04615763658 | AJ50: -0.04615763658 | AK50: -0.04615763658 | AL50: -0.04945815562 | AM50: -0.04945815562 | AN50: -0.03465426156 | AO50: -0.05839991918 | AP50: -0.05257958686 | AQ50: -0.04615763658 | AR50: -0.03465426156 | AS50: -0.05839991918 | AT50: -0.04263599062 | AU50: -0.04263599062 | AV50: -0.03465426156 | AW50: -0.06113974337 | AX50: -0.1860128391 | AY50: -0.18733136 | AZ50: 0.05450823458
B51: ID-AR6 | C51: -0.07364030582 | D51: -0.0663507109 | E51: -0.07127047257 | F51: -0.06884283908 | G51: -0.0663507109 | H51: 1 | I51: -0.06884283908 | J51: -0.07127047257 | K51: -0.0663507109 | L51: -0.07127047257 | M51: -0.06884283908 | N51: -0.07127047257 | O51: -0.06884283908 | P51: -0.06113974337 | Q51: -0.07127047257 | R51: 0.01266296048 | S51: -0.01266296048 | T51: -0.04263599062 | U51: -0.05839991918 | V51: -0.04615763658 | W51: -0.04615763658 | X51: -0.03465426156 | Y51: -0.06113974337 | Z51: -0.04615763658 | AA51: -0.04945815562 | AB51: -0.02994380117 | AC51: -0.05839991918 | AD51: 0.6425852872 | AE51: 0.7454050597 | AF51: -0.04615763658 | AG51: -0.04945815562 | AH51: -0.05257958686 | AI51: -0.04615763658 | AJ51: -0.04615763658 | AK51: -0.04615763658 | AL51: -0.04945815562 | AM51: -0.04945815562 | AN51: -0.03465426156 | AO51: -0.05839991918 | AP51: -0.05257958686 | AQ51: -0.04615763658 | AR51: -0.03465426156 | AS51: -0.05839991918 | AT51: -0.04263599062 | AU51: -0.04263599062 | AV51: -0.03465426156 | AW51: -0.06113974337 | AX51: 0.3296722408 | AY51: 0.2242262136 | AZ51: -0.2340220544
B52: ID-CC6 | C52: -0.07640623069 | D52: -0.06884283908 | E52: -0.07394738666 | F52: -0.07142857143 | G52: -0.06884283908 | H52: -0.06884283908 | I52: 1 | J52: -0.07394738666 | K52: -0.06884283908 | L52: -0.07394738666 | M52: -0.07142857143 | N52: -0.07394738666 | O52: -0.07142857143 | P52: -0.06343614797 | Q52: -0.07394738666 | R52: 0.03388370738 | S52: -0.03388370738 | T52: -0.04423739552 | U52: -0.06059341617 | V52: -0.04789131426 | W52: -0.04789131426 | X52: -0.03595587326 | Y52: -0.06343614797 | Z52: -0.04789131426 | AA52: -0.05131580058 | AB52: -0.0310684883 | AC52: -0.06059341617 | AD52: -0.04423739552 | AE52: -0.05131580058 | AF52: 0.6704783997 | AG52: 0.7184212081 | AH52: -0.05455447256 | AI52: -0.04789131426 | AJ52: -0.04789131426 | AK52: -0.04789131426 | AL52: -0.05131580058 | AM52: -0.05131580058 | AN52: -0.03595587326 | AO52: -0.06059341617 | AP52: -0.05455447256 | AQ52: -0.04789131426 | AR52: -0.03595587326 | AS52: -0.06059341617 | AT52: -0.04423739552 | AU52: -0.04423739552 | AV52: -0.03595587326 | AW52: -0.06343614797 | AX52: -0.1344848828 | AY52: -0.1518462118 | AZ52: 0.1194595573
B53: ID-CD6 | C53: -0.07910057518 | D53: -0.07127047257 | E53: -0.07655502392 | F53: -0.07394738666 | G53: -0.07127047257 | H53: -0.07127047257 | I53: -0.07394738666 | J53: 1 | K53: -0.07127047257 | L53: -0.07655502392 | M53: -0.07394738666 | N53: -0.07655502392 | O53: -0.07394738666 | P53: -0.06567312307 | Q53: -0.07655502392 | R53: 0.08910581292 | S53: -0.08910581292 | T53: -0.04579735708 | U53: -0.06273014684 | V53: -0.04958012547 | W53: -0.04958012547 | X53: -0.03722380008 | Y53: -0.06567312307 | Z53: -0.04958012547 | AA53: -0.05312537086 | AB53: -0.03216406924 | AC53: -0.06273014684 | AD53: -0.04579735708 | AE53: -0.05312537086 | AF53: -0.04958012547 | AG53: -0.05312537086 | AH53: 0.7377471337 | AI53: 0.6476403889 | AJ53: -0.04958012547 | AK53: -0.04958012547 | AL53: -0.05312537086 | AM53: -0.05312537086 | AN53: -0.03722380008 | AO53: -0.06273014684 | AP53: -0.05647824947 | AQ53: -0.04958012547 | AR53: -0.03722380008 | AS53: -0.06273014684 | AT53: -0.04579735708 | AU53: -0.04579735708 | AV53: -0.03722380008 | AW53: -0.06567312307 | AX53: -0.187924242 | AY53: -0.2371663014 | AZ53: -0.01925747337
B54: ID-CR6 | C54: -0.07364030582 | D54: -0.0663507109 | E54: -0.07127047257 | F54: -0.06884283908 | G54: -0.0663507109 | H54: -0.0663507109 | I54: -0.06884283908 | J54: -0.07127047257 | K54: 1 | L54: -0.07127047257 | M54: -0.06884283908 | N54: -0.07127047257 | O54: -0.06884283908 | P54: -0.06113974337 | Q54: -0.07127047257 | R54: 0.05015198821 | S54: -0.05015198821 | T54: -0.04263599062 | U54: -0.05839991918 | V54: -0.04615763658 | W54: -0.04615763658 | X54: -0.03465426156 | Y54: -0.06113974337 | Z54: -0.04615763658 | AA54: -0.04945815562 | AB54: -0.02994380117 | AC54: -0.05839991918 | AD54: -0.04263599062 | AE54: -0.04945815562 | AF54: -0.04615763658 | AG54: -0.04945815562 | AH54: -0.05257958686 | AI54: -0.04615763658 | AJ54: 0.6956615227 | AK54: 0.6956615227 | AL54: -0.04945815562 | AM54: -0.04945815562 | AN54: -0.03465426156 | AO54: -0.05839991918 | AP54: -0.05257958686 | AQ54: -0.04615763658 | AR54: -0.03465426156 | AS54: -0.05839991918 | AT54: -0.04263599062 | AU54: -0.04263599062 | AV54: -0.03465426156 | AW54: -0.06113974337 | AX54: -0.110431524 | AY54: -0.0813063566 | AZ54: 0.07230660417
B55: ID-LC4 | C55: -0.07910057518 | D55: -0.07127047257 | E55: -0.07655502392 | F55: -0.07394738666 | G55: -0.07127047257 | H55: -0.07127047257 | I55: -0.07394738666 | J55: -0.07655502392 | K55: -0.07127047257 | L55: 1 | M55: -0.07394738666 | N55: -0.07655502392 | O55: -0.07394738666 | P55: -0.06567312307 | Q55: -0.07655502392 | R55: 0.05387064964 | S55: -0.05387064964 | T55: -0.04579735708 | U55: -0.06273014684 | V55: -0.04958012547 | W55: -0.04958012547 | X55: -0.03722380008 | Y55: -0.06567312307 | Z55: -0.04958012547 | AA55: -0.05312537086 | AB55: -0.03216406924 | AC55: -0.06273014684 | AD55: -0.04579735708 | AE55: -0.05312537086 | AF55: -0.04958012547 | AG55: -0.05312537086 | AH55: -0.05647824947 | AI55: -0.04958012547 | AJ55: -0.04958012547 | AK55: -0.04958012547 | AL55: 0.6939501569 | AM55: 0.6939501569 | AN55: -0.03722380008 | AO55: -0.06273014684 | AP55: -0.05647824947 | AQ55: -0.04958012547 | AR55: -0.03722380008 | AS55: -0.06273014684 | AT55: -0.04579735708 | AU55: -0.04579735708 | AV55: -0.03722380008 | AW55: -0.06567312307 | AX55: 0.06784904215 | AY55: 0.06060747962 | AZ55: 0.02787128708
B56: ID-LC6 | C56: -0.07640623069 | D56: -0.06884283908 | E56: -0.07394738666 | F56: -0.07142857143 | G56: -0.06884283908 | H56: -0.06884283908 | I56: -0.07142857143 | J56: -0.07394738666 | K56: -0.06884283908 | L56: -0.07394738666 | M56: 1 | N56: -0.07394738666 | O56: -0.07142857143 | P56: -0.06343614797 | Q56: -0.07394738666 | R56: -0.0750282092 | S56: 0.0750282092 | T56: -0.04423739552 | U56: -0.06059341617 | V56: -0.04789131426 | W56: -0.04789131426 | X56: -0.03595587326 | Y56: -0.06343614797 | Z56: -0.04789131426 | AA56: -0.05131580058 | AB56: -0.0310684883 | AC56: -0.06059341617 | AD56: -0.04423739552 | AE56: -0.05131580058 | AF56: -0.04789131426 | AG56: -0.05131580058 | AH56: -0.05455447256 | AI56: -0.04789131426 | AJ56: -0.04789131426 | AK56: -0.04789131426 | AL56: -0.05131580058 | AM56: -0.05131580058 | AN56: 0.5033822257 | AO56: 0.8483078263 | AP56: -0.05455447256 | AQ56: -0.04789131426 | AR56: -0.03595587326 | AS56: -0.06059341617 | AT56: -0.04423739552 | AU56: -0.04423739552 | AV56: -0.03595587326 | AW56: -0.06343614797 | AX56: 0.07129361099 | AY56: 0.2090350405 | AZ56: 0.05495544632
B57: ID-LD4 | C57: -0.07910057518 | D57: -0.07127047257 | E57: -0.07655502392 | F57: -0.07394738666 | G57: -0.07127047257 | H57: -0.07127047257 | I57: -0.07394738666 | J57: -0.07655502392 | K57: -0.07127047257 | L57: -0.07655502392 | M57: -0.07394738666 | N57: 1 | O57: -0.07394738666 | P57: -0.06567312307 | Q57: -0.07655502392 | R57: 0.08910581292 | S57: -0.08910581292 | T57: -0.04579735708 | U57: -0.06273014684 | V57: -0.04958012547 | W57: -0.04958012547 | X57: -0.03722380008 | Y57: -0.06567312307 | Z57: -0.04958012547 | AA57: -0.05312537086 | AB57: -0.03216406924 | AC57: -0.06273014684 | AD57: -0.04579735708 | AE57: -0.05312537086 | AF57: -0.04958012547 | AG57: -0.05312537086 | AH57: -0.05647824947 | AI57: -0.04958012547 | AJ57: -0.04958012547 | AK57: -0.04958012547 | AL57: -0.05312537086 | AM57: -0.05312537086 | AN57: -0.03722380008 | AO57: -0.06273014684 | AP57: 0.7377471337 | AQ57: 0.6476403889 | AR57: -0.03722380008 | AS57: -0.06273014684 | AT57: -0.04579735708 | AU57: -0.04579735708 | AV57: -0.03722380008 | AW57: -0.06567312307 | AX57: -0.1499171214 | AY57: -0.1912024671 | AZ57: 0.07486404715
B58: ID-LD6 | C58: -0.07640623069 | D58: -0.06884283908 | E58: -0.07394738666 | F58: -0.07142857143 | G58: -0.06884283908 | H58: -0.06884283908 | I58: -0.07142857143 | J58: -0.07394738666 | K58: -0.06884283908 | L58: -0.07394738666 | M58: -0.07142857143 | N58: -0.07394738666 | O58: 1 | P58: -0.06343614797 | Q58: -0.07394738666 | R58: -0.0750282092 | S58: 0.0750282092 | T58: -0.04423739552 | U58: -0.06059341617 | V58: -0.04789131426 | W58: -0.04789131426 | X58: -0.03595587326 | Y58: -0.06343614797 | Z58: -0.04789131426 | AA58: -0.05131580058 | AB58: -0.0310684883 | AC58: -0.06059341617 | AD58: -0.04423739552 | AE58: -0.05131580058 | AF58: -0.04789131426 | AG58: -0.05131580058 | AH58: -0.05455447256 | AI58: -0.04789131426 | AJ58: -0.04789131426 | AK58: -0.04789131426 | AL58: -0.05131580058 | AM58: -0.05131580058 | AN58: -0.03595587326 | AO58: -0.06059341617 | AP58: -0.05455447256 | AQ58: -0.04789131426 | AR58: 0.5033822257 | AS58: 0.8483078263 | AT58: -0.04423739552 | AU58: -0.04423739552 | AV58: -0.03595587326 | AW58: -0.06343614797 | AX58: -0.004522562311 | AY58: 0.0686337638 | AZ58: 0.03752835781
B59: ID-LR4 | C59: -0.06785683738 | D59: -0.06113974337 | E59: -0.06567312307 | F59: -0.06343614797 | G59: -0.06113974337 | H59: -0.06113974337 | I59: -0.06343614797 | J59: -0.06567312307 | K59: -0.06113974337 | L59: -0.06567312307 | M59: -0.06343614797 | N59: -0.06567312307 | O59: -0.06343614797 | P59: 1 | Q59: -0.06567312307 | R59: 0.04621321531 | S59: -0.04621321531 | T59: -0.03928749955 | U59: -0.0538133808 | V59: -0.04253256697 | W59: -0.04253256697 | X59: -0.03193262936 | Y59: -0.05633802817 | Z59: -0.04253256697 | AA59: -0.04557387406 | AB59: -0.02759211309 | AC59: -0.0538133808 | AD59: -0.03928749955 | AE59: -0.04557387406 | AF59: -0.04253256697 | AG59: -0.04557387406 | AH59: -0.04845015831 | AI59: -0.04253256697 | AJ59: -0.04253256697 | AK59: -0.04253256697 | AL59: -0.04557387406 | AM59: -0.04557387406 | AN59: -0.03193262936 | AO59: -0.0538133808 | AP59: -0.04845015831 | AQ59: -0.04253256697 | AR59: -0.03193262936 | AS59: -0.0538133808 | AT59: 0.6973531171 | AU59: 0.6973531171 | AV59: -0.03193262936 | AW59: -0.05633802817 | AX59: -0.0641490896 | AY59: -0.1193964066 | AZ59: 0.01019162907
B60: ID-LR6 | C60: -0.07910057518 | D60: -0.07127047257 | E60: -0.07655502392 | F60: -0.07394738666 | G60: -0.07127047257 | H60: -0.07127047257 | I60: -0.07394738666 | J60: -0.07655502392 | K60: -0.07127047257 | L60: -0.07655502392 | M60: -0.07394738666 | N60: -0.07655502392 | O60: -0.07394738666 | P60: -0.06567312307 | Q60: 1 | R60: -0.08707000349 | S60: 0.08707000349 | T60: -0.04579735708 | U60: -0.06273014684 | V60: -0.04958012547 | W60: -0.04958012547 | X60: -0.03722380008 | Y60: -0.06567312307 | Z60: -0.04958012547 | AA60: -0.05312537086 | AB60: -0.03216406924 | AC60: -0.06273014684 | AD60: -0.04579735708 | AE60: -0.05312537086 | AF60: -0.04958012547 | AG60: -0.05312537086 | AH60: -0.05647824947 | AI60: -0.04958012547 | AJ60: -0.04958012547 | AK60: -0.04958012547 | AL60: -0.05312537086 | AM60: -0.05312537086 | AN60: -0.03722380008 | AO60: -0.06273014684 | AP60: -0.05647824947 | AQ60: -0.04958012547 | AR60: -0.03722380008 | AS60: -0.06273014684 | AT60: -0.04579735708 | AU60: -0.04579735708 | AV60: 0.4862358886 | AW60: 0.8578551702 | AX60: -0.01802512398 | AY60: 0.01470332716 | AZ60: 0.09774949877
B61: Replicate-1 | C61: -0.03000108785 | D61: 0.05015198821 | E61: -0.08707000349 | F61: 0.03388370738 | G61: -0.09980412272 | H61: 0.01266296048 | I61: 0.03388370738 | J61: 0.08910581292 | K61: 0.05015198821 | L61: 0.05387064964 | M61: -0.0750282092 | N61: 0.08910581292 | O61: -0.0750282092 | P61: 0.04621321531 | Q61: -0.08707000349 | R61: 1 | S61: -1 | T61: 0.2008562133 | U61: -0.186834792 | V61: 0.2174465273 | W61: -0.1476689103 | X61: 0.1632546506 | Y61: -0.1956001206 | Z61: 0.2174465273 | AA61: -0.1582280309 | AB61: 0.1410638859 | AC61: -0.186834792 | AD61: 0.2008562133 | AE61: -0.1582280309 | AF61: 0.2174465273 | AG61: -0.1582280309 | AH61: 0.2477000431 | AI61: -0.1476689103 | AJ61: 0.2174465273 | AK61: -0.1476689103 | AL61: 0.2329951225 | AM61: -0.1582280309 | AN61: 0.1632546506 | AO61: -0.186834792 | AP61: 0.2477000431 | AQ61: -0.1476689103 | AR61: 0.1632546506 | AS61: -0.186834792 | AT61: 0.2008562133 | AU61: -0.1364023538 | AV61: 0.1632546506 | AW61: -0.1956001206 | AX61: 0.0923422673 | AY61: 0.01250235048 | AZ61: 0.1333290802
B62: Replicate-2 | C62: 0.03000108785 | D62: -0.05015198821 | E62: 0.08707000349 | F62: -0.03388370738 | G62: 0.09980412272 | H62: -0.01266296048 | I62: -0.03388370738 | J62: -0.08910581292 | K62: -0.05015198821 | L62: -0.05387064964 | M62: 0.0750282092 | N62: -0.08910581292 | O62: 0.0750282092 | P62: -0.04621321531 | Q62: 0.08707000349 | R62: -1 | S62: 1 | T62: -0.2008562133 | U62: 0.186834792 | V62: -0.2174465273 | W62: 0.1476689103 | X62: -0.1632546506 | Y62: 0.1956001206 | Z62: -0.2174465273 | AA62: 0.1582280309 | AB62: -0.1410638859 | AC62: 0.186834792 | AD62: -0.2008562133 | AE62: 0.1582280309 | AF62: -0.2174465273 | AG62: 0.1582280309 | AH62: -0.2477000431 | AI62: 0.1476689103 | AJ62: -0.2174465273 | AK62: 0.1476689103 | AL62: -0.2329951225 | AM62: 0.1582280309 | AN62: -0.1632546506 | AO62: 0.186834792 | AP62: -0.2477000431 | AQ62: 0.1476689103 | AR62: -0.1632546506 | AS62: 0.186834792 | AT62: -0.2008562133 | AU62: 0.1364023538 | AV62: -0.1632546506 | AW62: 0.1956001206 | AX62: -0.0923422673 | AY62: -0.01250235048 | AZ62: -0.1333290802
B63: ID-AC4*Replicate-1 | C63: 0.578976284 | D63: -0.04263599062 | E63: -0.04579735708 | F63: -0.04423739552 | G63: -0.04263599062 | H63: -0.04263599062 | I63: -0.04423739552 | J63: -0.04579735708 | K63: -0.04263599062 | L63: -0.04579735708 | M63: -0.04423739552 | N63: -0.04579735708 | O63: -0.04423739552 | P63: -0.03928749955 | Q63: -0.04579735708 | R63: 0.2008562133 | S63: -0.2008562133 | T63: 1 | U63: -0.03752692884 | V63: -0.02966021815 | W63: -0.02966021815 | X63: -0.02226831862 | Y63: -0.03928749955 | Z63: -0.02966021815 | AA63: -0.03178108313 | AB63: -0.01924144607 | AC63: -0.03752692884 | AD63: -0.02739726027 | AE63: -0.03178108313 | AF63: -0.02966021815 | AG63: -0.03178108313 | AH63: -0.03378686892 | AI63: -0.02966021815 | AJ63: -0.02966021815 | AK63: -0.02966021815 | AL63: -0.03178108313 | AM63: -0.03178108313 | AN63: -0.02226831862 | AO63: -0.03752692884 | AP63: -0.03378686892 | AQ63: -0.02966021815 | AR63: -0.02226831862 | AS63: -0.03752692884 | AT63: -0.02739726027 | AU63: -0.02739726027 | AV63: -0.02226831862 | AW63: -0.03928749955 | AX63: -0.1068839142 | AY63: -0.04916779024 | AZ63: 0.01399984971
B64: ID-AC4*Replicate-2 | C64: 0.793042866 | D64: -0.05839991918 | E64: -0.06273014684 | F64: -0.06059341617 | G64: -0.05839991918 | H64: -0.05839991918 | I64: -0.06059341617 | J64: -0.06273014684 | K64: -0.05839991918 | L64: -0.06273014684 | M64: -0.06059341617 | N64: -0.06273014684 | O64: -0.06059341617 | P64: -0.0538133808 | Q64: -0.06273014684 | R64: -0.186834792 | S64: 0.186834792 | T64: -0.03752692884 | U64: 1 | V64: -0.0406265767 | W64: -0.0406265767 | X64: -0.03050164869 | Y64: -0.0538133808 | Z64: -0.0406265767 | AA64: -0.04353159525 | AB64: -0.02635564178 | AC64: -0.05140186916 | AD64: -0.03752692884 | AE64: -0.04353159525 | AF64: -0.0406265767 | AG64: -0.04353159525 | AH64: -0.04627898603 | AI64: -0.0406265767 | AJ64: -0.0406265767 | AK64: -0.0406265767 | AL64: -0.04353159525 | AM64: -0.04353159525 | AN64: -0.03050164869 | AO64: -0.05140186916 | AP64: -0.04627898603 | AQ64: -0.0406265767 | AR64: -0.03050164869 | AS64: -0.05140186916 | AT64: -0.03752692884 | AU64: -0.03752692884 | AV64: -0.03050164869 | AW64: -0.0538133808 | AX64: -0.1380539587 | AY64: -0.1158808462 | AZ64: 0.08475304033
B65: ID-AC6*Replicate-1 | C65: -0.05122872728 | D65: 0.6956615227 | E65: -0.04958012547 | F65: -0.04789131426 | G65: -0.04615763658 | H65: -0.04615763658 | I65: -0.04789131426 | J65: -0.04958012547 | K65: -0.04615763658 | L65: -0.04958012547 | M65: -0.04789131426 | N65: -0.04958012547 | O65: -0.04789131426 | P65: -0.04253256697 | Q65: -0.04958012547 | R65: 0.2174465273 | S65: -0.2174465273 | T65: -0.02966021815 | U65: -0.0406265767 | V65: 1 | W65: -0.03211009174 | X65: -0.02410763636 | Y65: -0.04253256697 | Z65: -0.03211009174 | AA65: -0.03440613585 | AB65: -0.02083075032 | AC65: -0.0406265767 | AD65: -0.02966021815 | AE65: -0.03440613585 | AF65: -0.03211009174 | AG65: -0.03440613585 | AH65: -0.03657759546 | AI65: -0.03211009174 | AJ65: -0.03211009174 | AK65: -0.03211009174 | AL65: -0.03440613585 | AM65: -0.03440613585 | AN65: -0.02410763636 | AO65: -0.0406265767 | AP65: -0.03657759546 | AQ65: -0.03211009174 | AR65: -0.02410763636 | AS65: -0.0406265767 | AT65: -0.02966021815 | AU65: -0.02966021815 | AV65: -0.02410763636 | AW65: -0.04253256697 | AX65: 0.3585939039 | AY65: 0.2238492342 | AZ65: -0.02487299981
B66: ID-AC6*Replicate-2 | C66: -0.05122872728 | D66: 0.6956615227 | E66: -0.04958012547 | F66: -0.04789131426 | G66: -0.04615763658 | H66: -0.04615763658 | I66: -0.04789131426 | J66: -0.04958012547 | K66: -0.04615763658 | L66: -0.04958012547 | M66: -0.04789131426 | N66: -0.04958012547 | O66: -0.04789131426 | P66: -0.04253256697 | Q66: -0.04958012547 | R66: -0.1476689103 | S66: 0.1476689103 | T66: -0.02966021815 | U66: -0.0406265767 | V66: -0.03211009174 | W66: 1 | X66: -0.02410763636 | Y66: -0.04253256697 | Z66: -0.03211009174 | AA66: -0.03440613585 | AB66: -0.02083075032 | AC66: -0.0406265767 | AD66: -0.02966021815 | AE66: -0.03440613585 | AF66: -0.03211009174 | AG66: -0.03440613585 | AH66: -0.03657759546 | AI66: -0.03211009174 | AJ66: -0.03211009174 | AK66: -0.03211009174 | AL66: -0.03440613585 | AM66: -0.03440613585 | AN66: -0.02410763636 | AO66: -0.0406265767 | AP66: -0.03657759546 | AQ66: -0.03211009174 | AR66: -0.02410763636 | AS66: -0.0406265767 | AT66: -0.02966021815 | AU66: -0.02966021815 | AV66: -0.02410763636 | AW66: -0.04253256697 | AX66: 0.2933330678 | AY66: 0.4281616354 | AZ66: -0.5071558671
B67: ID-AD4*Replicate-1 | C67: -0.03846153846 | D67: -0.03465426156 | E67: 0.4862358886 | F67: -0.03595587326 | G67: -0.03465426156 | H67: -0.03465426156 | I67: -0.03595587326 | J67: -0.03722380008 | K67: -0.03465426156 | L67: -0.03722380008 | M67: -0.03595587326 | N67: -0.03722380008 | O67: -0.03595587326 | P67: -0.03193262936 | Q67: -0.03722380008 | R67: 0.1632546506 | S67: -0.1632546506 | T67: -0.02226831862 | U67: -0.03050164869 | V67: -0.02410763636 | W67: -0.02410763636 | X67: 1 | Y67: -0.03193262936 | Z67: -0.02410763636 | AA67: -0.02583146191 | AB67: -0.01563932479 | AC67: -0.03050164869 | AD67: -0.02226831862 | AE67: -0.02583146191 | AF67: -0.02410763636 | AG67: -0.02583146191 | AH67: -0.02746175182 | AI67: -0.02410763636 | AJ67: -0.02410763636 | AK67: -0.02410763636 | AL67: -0.02583146191 | AM67: -0.02583146191 | AN67: -0.01809954751 | AO67: -0.03050164869 | AP67: -0.02746175182 | AQ67: -0.02410763636 | AR67: -0.01809954751 | AS67: -0.03050164869 | AT67: -0.02226831862 | AU67: -0.02226831862 | AV67: -0.01809954751 | AW67: -0.03193262936 | AX67: -0.06167066316 | AY67: -0.06683201909 | AZ67: 0.005934063875
B68: ID-AD4*Replicate-2 | C68: -0.06785683738 | D68: -0.06113974337 | E68: 0.8578551702 | F68: -0.06343614797 | G68: -0.06113974337 | H68: -0.06113974337 | I68: -0.06343614797 | J68: -0.06567312307 | K68: -0.06113974337 | L68: -0.06567312307 | M68: -0.06343614797 | N68: -0.06567312307 | O68: -0.06343614797 | P68: -0.05633802817 | Q68: -0.06567312307 | R68: -0.1956001206 | S68: 0.1956001206 | T68: -0.03928749955 | U68: -0.0538133808 | V68: -0.04253256697 | W68: -0.04253256697 | X68: -0.03193262936 | Y68: 1 | Z68: -0.04253256697 | AA68: -0.04557387406 | AB68: -0.02759211309 | AC68: -0.0538133808 | AD68: -0.03928749955 | AE68: -0.04557387406 | AF68: -0.04253256697 | AG68: -0.04557387406 | AH68: -0.04845015831 | AI68: -0.04253256697 | AJ68: -0.04253256697 | AK68: -0.04253256697 | AL68: -0.04557387406 | AM68: -0.04557387406 | AN68: -0.03193262936 | AO68: -0.0538133808 | AP68: -0.04845015831 | AQ68: -0.04253256697 | AR68: -0.03193262936 | AS68: -0.0538133808 | AT68: -0.03928749955 | AU68: -0.03928749955 | AV68: -0.03193262936 | AW68: -0.05633802817 | AX68: -0.1260425927 | AY68: -0.1840069929 | AZ68: -0.03927367755
B69: ID-AD6*Replicate-1 | C69: -0.05122872728 | D69: -0.04615763658 | E69: -0.04958012547 | F69: 0.6704783997 | G69: -0.04615763658 | H69: -0.04615763658 | I69: -0.04789131426 | J69: -0.04958012547 | K69: -0.04615763658 | L69: -0.04958012547 | M69: -0.04789131426 | N69: -0.04958012547 | O69: -0.04789131426 | P69: -0.04253256697 | Q69: -0.04958012547 | R69: 0.2174465273 | S69: -0.2174465273 | T69: -0.02966021815 | U69: -0.0406265767 | V69: -0.03211009174 | W69: -0.03211009174 | X69: -0.02410763636 | Y69: -0.04253256697 | Z69: 1 | AA69: -0.03440613585 | AB69: -0.02083075032 | AC69: -0.0406265767 | AD69: -0.02966021815 | AE69: -0.03440613585 | AF69: -0.03211009174 | AG69: -0.03440613585 | AH69: -0.03657759546 | AI69: -0.03211009174 | AJ69: -0.03211009174 | AK69: -0.03211009174 | AL69: -0.03440613585 | AM69: -0.03440613585 | AN69: -0.02410763636 | AO69: -0.0406265767 | AP69: -0.03657759546 | AQ69: -0.03211009174 | AR69: -0.02410763636 | AS69: -0.0406265767 | AT69: -0.02966021815 | AU69: -0.02966021815 | AV69: -0.02410763636 | AW69: -0.04253256697 | AX69: 0.1077873425 | AY69: 0.01858578869 | AZ69: 0.07308082825
B70: ID-AD6*Replicate-2 | C70: -0.05489185656 | D70: -0.04945815562 | E70: -0.05312537086 | F70: 0.7184212081 | G70: -0.04945815562 | H70: -0.04945815562 | I70: -0.05131580058 | J70: -0.05312537086 | K70: -0.04945815562 | L70: -0.05312537086 | M70: -0.05131580058 | N70: -0.05312537086 | O70: -0.05131580058 | P70: -0.04557387406 | Q70: -0.05312537086 | R70: -0.1582280309 | S70: 0.1582280309 | T70: -0.03178108313 | U70: -0.04353159525 | V70: -0.03440613585 | W70: -0.03440613585 | X70: -0.02583146191 | Y70: -0.04557387406 | Z70: -0.03440613585 | AA70: 1 | AB70: -0.0223202609 | AC70: -0.04353159525 | AD70: -0.03178108313 | AE70: -0.03686635945 | AF70: -0.03440613585 | AG70: -0.03686635945 | AH70: -0.03919309008 | AI70: -0.03440613585 | AJ70: -0.03440613585 | AK70: -0.03440613585 | AL70: -0.03686635945 | AM70: -0.03686635945 | AN70: -0.02583146191 | AO70: -0.04353159525 | AP70: -0.03919309008 | AQ70: -0.03440613585 | AR70: -0.02583146191 | AS70: -0.04353159525 | AT70: -0.03178108313 | AU70: -0.03178108313 | AV70: -0.02583146191 | AW70: -0.04557387406 | AX70: 0.2638618408 | AY70: 0.3432828402 | AZ70: -0.04669819953
B71: ID-AR4*Replicate-1 | C71: -0.03323356518 | D71: -0.02994380117 | E71: -0.03216406924 | F71: -0.0310684883 | G71: 0.4512958605 | H71: -0.02994380117 | I71: -0.0310684883 | J71: -0.03216406924 | K71: -0.02994380117 | L71: -0.03216406924 | M71: -0.0310684883 | N71: -0.03216406924 | O71: -0.0310684883 | P71: -0.02759211309 | Q71: -0.03216406924 | R71: 0.1410638859 | S71: -0.1410638859 | T71: -0.01924144607 | U71: -0.02635564178 | V71: -0.02083075032 | W71: -0.02083075032 | X71: -0.01563932479 | Y71: -0.02759211309 | Z71: -0.02083075032 | AA71: -0.0223202609 | AB71: 1 | AC71: -0.02635564178 | AD71: -0.01924144607 | AE71: -0.0223202609 | AF71: -0.02083075032 | AG71: -0.0223202609 | AH71: -0.02372894989 | AI71: -0.02083075032 | AJ71: -0.02083075032 | AK71: -0.02083075032 | AL71: -0.0223202609 | AM71: -0.0223202609 | AN71: -0.01563932479 | AO71: -0.02635564178 | AP71: -0.02372894989 | AQ71: -0.02083075032 | AR71: -0.01563932479 | AS71: -0.02635564178 | AT71: -0.01924144607 | AU71: -0.01924144607 | AV71: -0.01563932479 | AW71: -0.02759211309 | AX71: -0.07505379974 | AY71: -0.02346608485 | AZ71: 0.01767362477
B72: ID-AR4*Replicate-2 | C72: -0.06481600347 | D72: -0.05839991918 | E72: -0.06273014684 | F72: -0.06059341617 | G72: 0.8801702105 | H72: -0.05839991918 | I72: -0.06059341617 | J72: -0.06273014684 | K72: -0.05839991918 | L72: -0.06273014684 | M72: -0.06059341617 | N72: -0.06273014684 | O72: -0.06059341617 | P72: -0.0538133808 | Q72: -0.06273014684 | R72: -0.186834792 | S72: 0.186834792 | T72: -0.03752692884 | U72: -0.05140186916 | V72: -0.0406265767 | W72: -0.0406265767 | X72: -0.03050164869 | Y72: -0.0538133808 | Z72: -0.0406265767 | AA72: -0.04353159525 | AB72: -0.02635564178 | AC72: 1 | AD72: -0.03752692884 | AE72: -0.04353159525 | AF72: -0.0406265767 | AG72: -0.04353159525 | AH72: -0.04627898603 | AI72: -0.0406265767 | AJ72: -0.0406265767 | AK72: -0.0406265767 | AL72: -0.04353159525 | AM72: -0.04353159525 | AN72: -0.03050164869 | AO72: -0.05140186916 | AP72: -0.04627898603 | AQ72: -0.0406265767 | AR72: -0.03050164869 | AS72: -0.05140186916 | AT72: -0.03752692884 | AU72: -0.03752692884 | AV72: -0.03050164869 | AW72: -0.0538133808 | AX72: -0.1684532019 | AY72: -0.1973699826 | AZ72: 0.05166034561
B73: ID-AR6*Replicate-1 | C73: -0.04732017706 | D73: -0.04263599062 | E73: -0.04579735708 | F73: -0.04423739552 | G73: -0.04263599062 | H73: 0.6425852872 | I73: -0.04423739552 | J73: -0.04579735708 | K73: -0.04263599062 | L73: -0.04579735708 | M73: -0.04423739552 | N73: -0.04579735708 | O73: -0.04423739552 | P73: -0.03928749955 | Q73: -0.04579735708 | R73: 0.2008562133 | S73: -0.2008562133 | T73: -0.02739726027 | U73: -0.03752692884 | V73: -0.02966021815 | W73: -0.02966021815 | X73: -0.02226831862 | Y73: -0.03928749955 | Z73: -0.02966021815 | AA73: -0.03178108313 | AB73: -0.01924144607 | AC73: -0.03752692884 | AD73: 1 | AE73: -0.03178108313 | AF73: -0.02966021815 | AG73: -0.03178108313 | AH73: -0.03378686892 | AI73: -0.02966021815 | AJ73: -0.02966021815 | AK73: -0.02966021815 | AL73: -0.03178108313 | AM73: -0.03178108313 | AN73: -0.02226831862 | AO73: -0.03752692884 | AP73: -0.03378686892 | AQ73: -0.02966021815 | AR73: -0.02226831862 | AS73: -0.03752692884 | AT73: -0.02739726027 | AU73: -0.02739726027 | AV73: -0.02226831862 | AW73: -0.03928749955 | AX73: 0.327915914 | AY73: 0.1504363492 | AZ73: -0.2654645233
B74: ID-AR6*Replicate-2 | C74: -0.05489185656 | D74: -0.04945815562 | E74: -0.05312537086 | F74: -0.05131580058 | G74: -0.04945815562 | H74: 0.7454050597 | I74: -0.05131580058 | J74: -0.05312537086 | K74: -0.04945815562 | L74: -0.05312537086 | M74: -0.05131580058 | N74: -0.05312537086 | O74: -0.05131580058 | P74: -0.04557387406 | Q74: -0.05312537086 | R74: -0.1582280309 | S74: 0.1582280309 | T74: -0.03178108313 | U74: -0.04353159525 | V74: -0.03440613585 | W74: -0.03440613585 | X74: -0.02583146191 | Y74: -0.04557387406 | Z74: -0.03440613585 | AA74: -0.03686635945 | AB74: -0.0223202609 | AC74: -0.04353159525 | AD74: -0.03178108313 | AE74: 1 | AF74: -0.03440613585 | AG74: -0.03686635945 | AH74: -0.03919309008 | AI74: -0.03440613585 | AJ74: -0.03440613585 | AK74: -0.03440613585 | AL74: -0.03686635945 | AM74: -0.03686635945 | AN74: -0.02583146191 | AO74: -0.04353159525 | AP74: -0.03919309008 | AQ74: -0.03440613585 | AR74: -0.02583146191 | AS74: -0.04353159525 | AT74: -0.03178108313 | AU74: -0.03178108313 | AV74: -0.02583146191 | AW74: -0.04557387406 | AX74: 0.1447546836 | AY74: 0.1616131702 | AZ74: -0.07431610747
B75: ID-CC6*Replicate-1 | C75: -0.05122872728 | D75: -0.04615763658 | E75: -0.04958012547 | F75: -0.04789131426 | G75: -0.04615763658 | H75: -0.04615763658 | I75: 0.6704783997 | J75: -0.04958012547 | K75: -0.04615763658 | L75: -0.04958012547 | M75: -0.04789131426 | N75: -0.04958012547 | O75: -0.04789131426 | P75: -0.04253256697 | Q75: -0.04958012547 | R75: 0.2174465273 | S75: -0.2174465273 | T75: -0.02966021815 | U75: -0.0406265767 | V75: -0.03211009174 | W75: -0.03211009174 | X75: -0.02410763636 | Y75: -0.04253256697 | Z75: -0.03211009174 | AA75: -0.03440613585 | AB75: -0.02083075032 | AC75: -0.0406265767 | AD75: -0.02966021815 | AE75: -0.03440613585 | AF75: 1 | AG75: -0.03440613585 | AH75: -0.03657759546 | AI75: -0.03211009174 | AJ75: -0.03211009174 | AK75: -0.03211009174 | AL75: -0.03440613585 | AM75: -0.03440613585 | AN75: -0.02410763636 | AO75: -0.0406265767 | AP75: -0.03657759546 | AQ75: -0.03211009174 | AR75: -0.02410763636 | AS75: -0.0406265767 | AT75: -0.02966021815 | AU75: -0.02966021815 | AV75: -0.02410763636 | AW75: -0.04253256697 | AX75: -0.04942989327 | AY75: -0.02474228903 | AZ75: 0.0627203272
B76: ID-CC6*Replicate-2 | C76: -0.05489185656 | D76: -0.04945815562 | E76: -0.05312537086 | F76: -0.05131580058 | G76: -0.04945815562 | H76: -0.04945815562 | I76: 0.7184212081 | J76: -0.05312537086 | K76: -0.04945815562 | L76: -0.05312537086 | M76: -0.05131580058 | N76: -0.05312537086 | O76: -0.05131580058 | P76: -0.04557387406 | Q76: -0.05312537086 | R76: -0.1582280309 | S76: 0.1582280309 | T76: -0.03178108313 | U76: -0.04353159525 | V76: -0.03440613585 | W76: -0.03440613585 | X76: -0.02583146191 | Y76: -0.04557387406 | Z76: -0.03440613585 | AA76: -0.03686635945 | AB76: -0.0223202609 | AC76: -0.04353159525 | AD76: -0.03178108313 | AE76: -0.03686635945 | AF76: -0.03440613585 | AG76: 1 | AH76: -0.03919309008 | AI76: -0.03440613585 | AJ76: -0.03440613585 | AK76: -0.03440613585 | AL76: -0.03686635945 | AM76: -0.03686635945 | AN76: -0.02583146191 | AO76: -0.04353159525 | AP76: -0.03919309008 | AQ76: -0.03440613585 | AR76: -0.02583146191 | AS76: -0.04353159525 | AT76: -0.03178108313 | AU76: -0.03178108313 | AV76: -0.02583146191 | AW76: -0.04557387406 | AX76: -0.1348126383 | AY76: -0.1813453267 | AZ76: 0.1021122523
B77: ID-CD6*Replicate-1 | C77: -0.05835622262 | D77: -0.05257958686 | E77: -0.05647824947 | F77: -0.05455447256 | G77: -0.05257958686 | H77: -0.05257958686 | I77: -0.05455447256 | J77: 0.7377471337 | K77: -0.05257958686 | L77: -0.05647824947 | M77: -0.05455447256 | N77: -0.05647824947 | O77: -0.05455447256 | P77: -0.04845015831 | Q77: -0.05647824947 | R77: 0.2477000431 | S77: -0.2477000431 | T77: -0.03378686892 | U77: -0.04627898603 | V77: -0.03657759546 | W77: -0.03657759546 | X77: -0.02746175182 | Y77: -0.04845015831 | Z77: -0.03657759546 | AA77: -0.03919309008 | AB77: -0.02372894989 | AC77: -0.04627898603 | AD77: -0.03378686892 | AE77: -0.03919309008 | AF77: -0.03657759546 | AG77: -0.03919309008 | AH77: 1 | AI77: -0.03657759546 | AJ77: -0.03657759546 | AK77: -0.03657759546 | AL77: -0.03919309008 | AM77: -0.03919309008 | AN77: -0.02746175182 | AO77: -0.04627898603 | AP77: -0.04166666667 | AQ77: -0.03657759546 | AR77: -0.02746175182 | AS77: -0.04627898603 | AT77: -0.03378686892 | AU77: -0.03378686892 | AV77: -0.02746175182 | AW77: -0.04845015831 | AX77: -0.09681767905 | AY77: -0.09871684489 | AZ77: -0.01836749617
B78: ID-CD6*Replicate-2 | C78: -0.05122872728 | D78: -0.04615763658 | E78: -0.04958012547 | F78: -0.04789131426 | G78: -0.04615763658 | H78: -0.04615763658 | I78: -0.04789131426 | J78: 0.6476403889 | K78: -0.04615763658 | L78: -0.04958012547 | M78: -0.04789131426 | N78: -0.04958012547 | O78: -0.04789131426 | P78: -0.04253256697 | Q78: -0.04958012547 | R78: -0.1476689103 | S78: 0.1476689103 | T78: -0.02966021815 | U78: -0.0406265767 | V78: -0.03211009174 | W78: -0.03211009174 | X78: -0.02410763636 | Y78: -0.04253256697 | Z78: -0.03211009174 | AA78: -0.03440613585 | AB78: -0.02083075032 | AC78: -0.0406265767 | AD78: -0.02966021815 | AE78: -0.03440613585 | AF78: -0.03211009174 | AG78: -0.03440613585 | AH78: -0.03657759546 | AI78: 1 | AJ78: -0.03211009174 | AK78: -0.03211009174 | AL78: -0.03440613585 | AM78: -0.03440613585 | AN78: -0.02410763636 | AO78: -0.0406265767 | AP78: -0.03657759546 | AQ78: -0.03211009174 | AR78: -0.02410763636 | AS78: -0.0406265767 | AT78: -0.02966021815 | AU78: -0.02966021815 | AV78: -0.02410763636 | AW78: -0.04253256697 | AX78: -0.1689119944 | AY78: -0.2396624929 | AZ78: -0.007776212908
B79: ID-CR6*Replicate-1 | C79: -0.05122872728 | D79: -0.04615763658 | E79: -0.04958012547 | F79: -0.04789131426 | G79: -0.04615763658 | H79: -0.04615763658 | I79: -0.04789131426 | J79: -0.04958012547 | K79: 0.6956615227 | L79: -0.04958012547 | M79: -0.04789131426 | N79: -0.04958012547 | O79: -0.04789131426 | P79: -0.04253256697 | Q79: -0.04958012547 | R79: 0.2174465273 | S79: -0.2174465273 | T79: -0.02966021815 | U79: -0.0406265767 | V79: -0.03211009174 | W79: -0.03211009174 | X79: -0.02410763636 | Y79: -0.04253256697 | Z79: -0.03211009174 | AA79: -0.03440613585 | AB79: -0.02083075032 | AC79: -0.0406265767 | AD79: -0.02966021815 | AE79: -0.03440613585 | AF79: -0.03211009174 | AG79: -0.03440613585 | AH79: -0.03657759546 | AI79: -0.03211009174 | AJ79: 1 | AK79: -0.03211009174 | AL79: -0.03440613585 | AM79: -0.03440613585 | AN79: -0.02410763636 | AO79: -0.0406265767 | AP79: -0.03657759546 | AQ79: -0.03211009174 | AR79: -0.02410763636 | AS79: -0.0406265767 | AT79: -0.02966021815 | AU79: -0.02966021815 | AV79: -0.02410763636 | AW79: -0.04253256697 | AX79: -0.06518048759 | AY79: -0.05307832023 | AZ79: 0.05669239932
B80: ID-CR6*Replicate-2 | C80: -0.05122872728 | D80: -0.04615763658 | E80: -0.04958012547 | F80: -0.04789131426 | G80: -0.04615763658 | H80: -0.04615763658 | I80: -0.04789131426 | J80: -0.04958012547 | K80: 0.6956615227 | L80: -0.04958012547 | M80: -0.04789131426 | N80: -0.04958012547 | O80: -0.04789131426 | P80: -0.04253256697 | Q80: -0.04958012547 | R80: -0.1476689103 | S80: 0.1476689103 | T80: -0.02966021815 | U80: -0.0406265767 | V80: -0.03211009174 | W80: -0.03211009174 | X80: -0.02410763636 | Y80: -0.04253256697 | Z80: -0.03211009174 | AA80: -0.03440613585 | AB80: -0.02083075032 | AC80: -0.0406265767 | AD80: -0.02966021815 | AE80: -0.03440613585 | AF80: -0.03211009174 | AG80: -0.03440613585 | AH80: -0.03657759546 | AI80: -0.03211009174 | AJ80: -0.03211009174 | AK80: 1 | AL80: -0.03440613585 | AM80: -0.03440613585 | AN80: -0.02410763636 | AO80: -0.0406265767 | AP80: -0.03657759546 | AQ80: -0.03211009174 | AR80: -0.02410763636 | AS80: -0.0406265767 | AT80: -0.02966021815 | AU80: -0.02966021815 | AV80: -0.02410763636 | AW80: -0.04253256697 | AX80: -0.08846543673 | AY80: -0.06004508744 | AZ80: 0.04390944539
B81: ID-LC4*Replicate-1 | C81: -0.05489185656 | D81: -0.04945815562 | E81: -0.05312537086 | F81: -0.05131580058 | G81: -0.04945815562 | H81: -0.04945815562 | I81: -0.05131580058 | J81: -0.05312537086 | K81: -0.04945815562 | L81: 0.6939501569 | M81: -0.05131580058 | N81: -0.05312537086 | O81: -0.05131580058 | P81: -0.04557387406 | Q81: -0.05312537086 | R81: 0.2329951225 | S81: -0.2329951225 | T81: -0.03178108313 | U81: -0.04353159525 | V81: -0.03440613585 | W81: -0.03440613585 | X81: -0.02583146191 | Y81: -0.04557387406 | Z81: -0.03440613585 | AA81: -0.03686635945 | AB81: -0.0223202609 | AC81: -0.04353159525 | AD81: -0.03178108313 | AE81: -0.03686635945 | AF81: -0.03440613585 | AG81: -0.03686635945 | AH81: -0.03919309008 | AI81: -0.03440613585 | AJ81: -0.03440613585 | AK81: -0.03440613585 | AL81: 1 | AM81: -0.03686635945 | AN81: -0.02583146191 | AO81: -0.04353159525 | AP81: -0.03919309008 | AQ81: -0.03440613585 | AR81: -0.02583146191 | AS81: -0.04353159525 | AT81: -0.03178108313 | AU81: -0.03178108313 | AV81: -0.02583146191 | AW81: -0.04557387406 | AX81: 0.09161234626 | AY81: -0.004067385673 | AZ81: 0.08659044908
B82: ID-LC4*Replicate-2 | C82: -0.05489185656 | D82: -0.04945815562 | E82: -0.05312537086 | F82: -0.05131580058 | G82: -0.04945815562 | H82: -0.04945815562 | I82: -0.05131580058 | J82: -0.05312537086 | K82: -0.04945815562 | L82: 0.6939501569 | M82: -0.05131580058 | N82: -0.05312537086 | O82: -0.05131580058 | P82: -0.04557387406 | Q82: -0.05312537086 | R82: -0.1582280309 | S82: 0.1582280309 | T82: -0.03178108313 | U82: -0.04353159525 | V82: -0.03440613585 | W82: -0.03440613585 | X82: -0.02583146191 | Y82: -0.04557387406 | Z82: -0.03440613585 | AA82: -0.03686635945 | AB82: -0.0223202609 | AC82: -0.04353159525 | AD82: -0.03178108313 | AE82: -0.03686635945 | AF82: -0.03440613585 | AG82: -0.03686635945 | AH82: -0.03919309008 | AI82: -0.03440613585 | AJ82: -0.03440613585 | AK82: -0.03440613585 | AL82: -0.03686635945 | AM82: 1 | AN82: -0.02583146191 | AO82: -0.04353159525 | AP82: -0.03919309008 | AQ82: -0.03440613585 | AR82: -0.02583146191 | AS82: -0.04353159525 | AT82: -0.03178108313 | AU82: -0.03178108313 | AV82: -0.02583146191 | AW82: -0.04557387406 | AX82: 0.002555360631 | AY82: 0.08818452565 | AZ82: -0.04790788099
B83: ID-LC6*Replicate-1 | C83: -0.03846153846 | D83: -0.03465426156 | E83: -0.03722380008 | F83: -0.03595587326 | G83: -0.03465426156 | H83: -0.03465426156 | I83: -0.03595587326 | J83: -0.03722380008 | K83: -0.03465426156 | L83: -0.03722380008 | M83: 0.5033822257 | N83: -0.03722380008 | O83: -0.03595587326 | P83: -0.03193262936 | Q83: -0.03722380008 | R83: 0.1632546506 | S83: -0.1632546506 | T83: -0.02226831862 | U83: -0.03050164869 | V83: -0.02410763636 | W83: -0.02410763636 | X83: -0.01809954751 | Y83: -0.03193262936 | Z83: -0.02410763636 | AA83: -0.02583146191 | AB83: -0.01563932479 | AC83: -0.03050164869 | AD83: -0.02226831862 | AE83: -0.02583146191 | AF83: -0.02410763636 | AG83: -0.02583146191 | AH83: -0.02746175182 | AI83: -0.02410763636 | AJ83: -0.02410763636 | AK83: -0.02410763636 | AL83: -0.02583146191 | AM83: -0.02583146191 | AN83: 1 | AO83: -0.03050164869 | AP83: -0.02746175182 | AQ83: -0.02410763636 | AR83: -0.01809954751 | AS83: -0.03050164869 | AT83: -0.02226831862 | AU83: -0.02226831862 | AV83: -0.01809954751 | AW83: -0.03193262936 | AX83: 0.0261215218 | AY83: 0.1283971741 | AZ83: 0.1616094133
B84: ID-LC6*Replicate-2 | C84: -0.06481600347 | D84: -0.05839991918 | E84: -0.06273014684 | F84: -0.06059341617 | G84: -0.05839991918 | H84: -0.05839991918 | I84: -0.06059341617 | J84: -0.06273014684 | K84: -0.05839991918 | L84: -0.06273014684 | M84: 0.8483078263 | N84: -0.06273014684 | O84: -0.06059341617 | P84: -0.0538133808 | Q84: -0.06273014684 | R84: -0.186834792 | S84: 0.186834792 | T84: -0.03752692884 | U84: -0.05140186916 | V84: -0.0406265767 | W84: -0.0406265767 | X84: -0.03050164869 | Y84: -0.0538133808 | Z84: -0.0406265767 | AA84: -0.04353159525 | AB84: -0.02635564178 | AC84: -0.05140186916 | AD84: -0.03752692884 | AE84: -0.04353159525 | AF84: -0.0406265767 | AG84: -0.04353159525 | AH84: -0.04627898603 | AI84: -0.0406265767 | AJ84: -0.0406265767 | AK84: -0.0406265767 | AL84: -0.04353159525 | AM84: -0.04353159525 | AN84: -0.03050164869 | AO84: 1 | AP84: -0.04627898603 | AQ84: -0.0406265767 | AR84: -0.03050164869 | AS84: -0.05140186916 | AT84: -0.03752692884 | AU84: -0.03752692884 | AV84: -0.03050164869 | AW84: -0.0538133808 | AX84: 0.06646384429 | AY84: 0.1631257252 | AZ84: -0.03546364602
B85: ID-LD4*Replicate-1 | C85: -0.05835622262 | D85: -0.05257958686 | E85: -0.05647824947 | F85: -0.05455447256 | G85: -0.05257958686 | H85: -0.05257958686 | I85: -0.05455447256 | J85: -0.05647824947 | K85: -0.05257958686 | L85: -0.05647824947 | M85: -0.05455447256 | N85: 0.7377471337 | O85: -0.05455447256 | P85: -0.04845015831 | Q85: -0.05647824947 | R85: 0.2477000431 | S85: -0.2477000431 | T85: -0.03378686892 | U85: -0.04627898603 | V85: -0.03657759546 | W85: -0.03657759546 | X85: -0.02746175182 | Y85: -0.04845015831 | Z85: -0.03657759546 | AA85: -0.03919309008 | AB85: -0.02372894989 | AC85: -0.04627898603 | AD85: -0.03378686892 | AE85: -0.03919309008 | AF85: -0.03657759546 | AG85: -0.03919309008 | AH85: -0.04166666667 | AI85: -0.03657759546 | AJ85: -0.03657759546 | AK85: -0.03657759546 | AL85: -0.03919309008 | AM85: -0.03919309008 | AN85: -0.02746175182 | AO85: -0.04627898603 | AP85: 1 | AQ85: -0.03657759546 | AR85: -0.02746175182 | AS85: -0.04627898603 | AT85: -0.03378686892 | AU85: -0.03378686892 | AV85: -0.02746175182 | AW85: -0.04845015831 | AX85: -0.1152773411 | AY85: -0.09965888836 | AZ85: 0.0556789137
B86: ID-LD4*Replicate-2 | C86: -0.05122872728 | D86: -0.04615763658 | E86: -0.04958012547 | F86: -0.04789131426 | G86: -0.04615763658 | H86: -0.04615763658 | I86: -0.04789131426 | J86: -0.04958012547 | K86: -0.04615763658 | L86: -0.04958012547 | M86: -0.04789131426 | N86: 0.6476403889 | O86: -0.04789131426 | P86: -0.04253256697 | Q86: -0.04958012547 | R86: -0.1476689103 | S86: 0.1476689103 | T86: -0.02966021815 | U86: -0.0406265767 | V86: -0.03211009174 | W86: -0.03211009174 | X86: -0.02410763636 | Y86: -0.04253256697 | Z86: -0.03211009174 | AA86: -0.03440613585 | AB86: -0.02083075032 | AC86: -0.0406265767 | AD86: -0.02966021815 | AE86: -0.03440613585 | AF86: -0.03211009174 | AG86: -0.03440613585 | AH86: -0.03657759546 | AI86: -0.03211009174 | AJ86: -0.03211009174 | AK86: -0.03211009174 | AL86: -0.03440613585 | AM86: -0.03440613585 | AN86: -0.02410763636 | AO86: -0.0406265767 | AP86: -0.03657759546 | AQ86: 1 | AR86: -0.02410763636 | AS86: -0.0406265767 | AT86: -0.02966021815 | AU86: -0.02966021815 | AV86: -0.02410763636 | AW86: -0.04253256697 | AX86: -0.09181420693 | AY86: -0.1705580031 | AZ86: 0.04797913161
B87: ID-LD6*Replicate-1 | C87: -0.03846153846 | D87: -0.03465426156 | E87: -0.03722380008 | F87: -0.03595587326 | G87: -0.03465426156 | H87: -0.03465426156 | I87: -0.03595587326 | J87: -0.03722380008 | K87: -0.03465426156 | L87: -0.03722380008 | M87: -0.03595587326 | N87: -0.03722380008 | O87: 0.5033822257 | P87: -0.03193262936 | Q87: -0.03722380008 | R87: 0.1632546506 | S87: -0.1632546506 | T87: -0.02226831862 | U87: -0.03050164869 | V87: -0.02410763636 | W87: -0.02410763636 | X87: -0.01809954751 | Y87: -0.03193262936 | Z87: -0.02410763636 | AA87: -0.02583146191 | AB87: -0.01563932479 | AC87: -0.03050164869 | AD87: -0.02226831862 | AE87: -0.02583146191 | AF87: -0.02410763636 | AG87: -0.02583146191 | AH87: -0.02746175182 | AI87: -0.02410763636 | AJ87: -0.02410763636 | AK87: -0.02410763636 | AL87: -0.02583146191 | AM87: -0.02583146191 | AN87: -0.01809954751 | AO87: -0.03050164869 | AP87: -0.02746175182 | AQ87: -0.02410763636 | AR87: 1 | AS87: -0.03050164869 | AT87: -0.02226831862 | AU87: -0.02226831862 | AV87: -0.01809954751 | AW87: -0.03193262936 | AX87: -0.01387597389 | AY87: 0.01999083856 | AZ87: 0.05403089943
B88: ID-LD6*Replicate-2 | C88: -0.06481600347 | D88: -0.05839991918 | E88: -0.06273014684 | F88: -0.06059341617 | G88: -0.05839991918 | H88: -0.05839991918 | I88: -0.06059341617 | J88: -0.06273014684 | K88: -0.05839991918 | L88: -0.06273014684 | M88: -0.06059341617 | N88: -0.06273014684 | O88: 0.8483078263 | P88: -0.0538133808 | Q88: -0.06273014684 | R88: -0.186834792 | S88: 0.186834792 | T88: -0.03752692884 | U88: -0.05140186916 | V88: -0.0406265767 | W88: -0.0406265767 | X88: -0.03050164869 | Y88: -0.0538133808 | Z88: -0.0406265767 | AA88: -0.04353159525 | AB88: -0.02635564178 | AC88: -0.05140186916 | AD88: -0.03752692884 | AE88: -0.04353159525 | AF88: -0.0406265767 | AG88: -0.04353159525 | AH88: -0.04627898603 | AI88: -0.0406265767 | AJ88: -0.0406265767 | AK88: -0.0406265767 | AL88: -0.04353159525 | AM88: -0.04353159525 | AN88: -0.03050164869 | AO88: -0.05140186916 | AP88: -0.04627898603 | AQ88: -0.0406265767 | AR88: -0.03050164869 | AS88: 1 | AT88: -0.03752692884 | AU88: -0.03752692884 | AV88: -0.03050164869 | AW88: -0.0538133808 | AX88: 0.003271652987 | AY88: 0.06714389577 | AZ88: 0.01030173002
B89: ID-LR4*Replicate-1 | C89: -0.04732017706 | D89: -0.04263599062 | E89: -0.04579735708 | F89: -0.04423739552 | G89: -0.04263599062 | H89: -0.04263599062 | I89: -0.04423739552 | J89: -0.04579735708 | K89: -0.04263599062 | L89: -0.04579735708 | M89: -0.04423739552 | N89: -0.04579735708 | O89: -0.04423739552 | P89: 0.6973531171 | Q89: -0.04579735708 | R89: 0.2008562133 | S89: -0.2008562133 | T89: -0.02739726027 | U89: -0.03752692884 | V89: -0.02966021815 | W89: -0.02966021815 | X89: -0.02226831862 | Y89: -0.03928749955 | Z89: -0.02966021815 | AA89: -0.03178108313 | AB89: -0.01924144607 | AC89: -0.03752692884 | AD89: -0.02739726027 | AE89: -0.03178108313 | AF89: -0.02966021815 | AG89: -0.03178108313 | AH89: -0.03378686892 | AI89: -0.02966021815 | AJ89: -0.02966021815 | AK89: -0.02966021815 | AL89: -0.03178108313 | AM89: -0.03178108313 | AN89: -0.02226831862 | AO89: -0.03752692884 | AP89: -0.03378686892 | AQ89: -0.02966021815 | AR89: -0.02226831862 | AS89: -0.03752692884 | AT89: 1 | AU89: -0.02739726027 | AV89: -0.02226831862 | AW89: -0.03928749955 | AX89: -0.0608717042 | AY89: -0.06641257956 | AZ89: 0.04972798262
B90: ID-LR4*Replicate-2 | C90: -0.04732017706 | D90: -0.04263599062 | E90: -0.04579735708 | F90: -0.04423739552 | G90: -0.04263599062 | H90: -0.04263599062 | I90: -0.04423739552 | J90: -0.04579735708 | K90: -0.04263599062 | L90: -0.04579735708 | M90: -0.04423739552 | N90: -0.04579735708 | O90: -0.04423739552 | P90: 0.6973531171 | Q90: -0.04579735708 | R90: -0.1364023538 | S90: 0.1364023538 | T90: -0.02739726027 | U90: -0.03752692884 | V90: -0.02966021815 | W90: -0.02966021815 | X90: -0.02226831862 | Y90: -0.03928749955 | Z90: -0.02966021815 | AA90: -0.03178108313 | AB90: -0.01924144607 | AC90: -0.03752692884 | AD90: -0.02739726027 | AE90: -0.03178108313 | AF90: -0.02966021815 | AG90: -0.03178108313 | AH90: -0.03378686892 | AI90: -0.02966021815 | AJ90: -0.02966021815 | AK90: -0.02966021815 | AL90: -0.03178108313 | AM90: -0.03178108313 | AN90: -0.02226831862 | AO90: -0.03752692884 | AP90: -0.03378686892 | AQ90: -0.02966021815 | AR90: -0.02226831862 | AS90: -0.03752692884 | AT90: -0.02739726027 | AU90: 1 | AV90: -0.02226831862 | AW90: -0.03928749955 | AX90: -0.02859743098 | AY90: -0.100110333 | AZ90: -0.03551365402
B91: ID-LR6*Replicate-1 | C91: -0.03846153846 | D91: -0.03465426156 | E91: -0.03722380008 | F91: -0.03595587326 | G91: -0.03465426156 | H91: -0.03465426156 | I91: -0.03595587326 | J91: -0.03722380008 | K91: -0.03465426156 | L91: -0.03722380008 | M91: -0.03595587326 | N91: -0.03722380008 | O91: -0.03595587326 | P91: -0.03193262936 | Q91: 0.4862358886 | R91: 0.1632546506 | S91: -0.1632546506 | T91: -0.02226831862 | U91: -0.03050164869 | V91: -0.02410763636 | W91: -0.02410763636 | X91: -0.01809954751 | Y91: -0.03193262936 | Z91: -0.02410763636 | AA91: -0.02583146191 | AB91: -0.01563932479 | AC91: -0.03050164869 | AD91: -0.02226831862 | AE91: -0.02583146191 | AF91: -0.02410763636 | AG91: -0.02583146191 | AH91: -0.02746175182 | AI91: -0.02410763636 | AJ91: -0.02410763636 | AK91: -0.02410763636 | AL91: -0.02583146191 | AM91: -0.02583146191 | AN91: -0.01809954751 | AO91: -0.03050164869 | AP91: -0.02746175182 | AQ91: -0.02410763636 | AR91: -0.01809954751 | AS91: -0.03050164869 | AT91: -0.02226831862 | AU91: -0.02226831862 | AV91: 1 | AW91: -0.03193262936 | AX91: -0.01377060641 | AY91: 0.02634713787 | AZ91: 0.1073251632
B92: ID-LR6*Replicate-2 | C92: -0.06785683738 | D92: -0.06113974337 | E92: -0.06567312307 | F92: -0.06343614797 | G92: -0.06113974337 | H92: -0.06113974337 | I92: -0.06343614797 | J92: -0.06567312307 | K92: -0.06113974337 | L92: -0.06567312307 | M92: -0.06343614797 | N92: -0.06567312307 | O92: -0.06343614797 | P92: -0.05633802817 | Q92: 0.8578551702 | R92: -0.1956001206 | S92: 0.1956001206 | T92: -0.03928749955 | U92: -0.0538133808 | V92: -0.04253256697 | W92: -0.04253256697 | X92: -0.03193262936 | Y92: -0.05633802817 | Z92: -0.04253256697 | AA92: -0.04557387406 | AB92: -0.02759211309 | AC92: -0.0538133808 | AD92: -0.03928749955 | AE92: -0.04557387406 | AF92: -0.04253256697 | AG92: -0.04557387406 | AH92: -0.04845015831 | AI92: -0.04253256697 | AJ92: -0.04253256697 | AK92: -0.04253256697 | AL92: -0.04557387406 | AM92: -0.04557387406 | AN92: -0.03193262936 | AO92: -0.0538133808 | AP92: -0.04845015831 | AQ92: -0.04253256697 | AR92: -0.03193262936 | AS92: -0.0538133808 | AT92: -0.03928749955 | AU92: -0.03928749955 | AV92: -0.03193262936 | AW92: 1 | AX92: -0.01251886947 | AY92: 0.001323210394 | AZ92: 0.04868941727
B93: Peak force (g) | C93: -0.1777967855 | D93: 0.4685662139 | E93: -0.1419038945 | F93: 0.2709049334 | G93: -0.1860128391 | H93: 0.3296722408 | I93: -0.1344848828 | J93: -0.187924242 | K93: -0.110431524 | L93: 0.06784904215 | M93: 0.07129361099 | N93: -0.1499171214 | O93: -0.004522562311 | P93: -0.0641490896 | Q93: -0.01802512398 | R93: 0.0923422673 | S93: -0.0923422673 | T93: -0.1068839142 | U93: -0.1380539587 | V93: 0.3585939039 | W93: 0.2933330678 | X93: -0.06167066316 | Y93: -0.1260425927 | Z93: 0.1077873425 | AA93: 0.2638618408 | AB93: -0.07505379974 | AC93: -0.1684532019 | AD93: 0.327915914 | AE93: 0.1447546836 | AF93: -0.04942989327 | AG93: -0.1348126383 | AH93: -0.09681767905 | AI93: -0.1689119944 | AJ93: -0.06518048759 | AK93: -0.08846543673 | AL93: 0.09161234626 | AM93: 0.002555360631 | AN93: 0.0261215218 | AO93: 0.06646384429 | AP93: -0.1152773411 | AQ93: -0.09181420693 | AR93: -0.01387597389 | AS93: 0.003271652987 | AT93: -0.0608717042 | AU93: -0.02859743098 | AV93: -0.01377060641 | AW93: -0.01251886947 | AX93: 1 | AY93: 0.8216434711 | AZ93: -0.4337035171
B94: 5 second force (g) | C94: -0.124521846 | D94: 0.4686265147 | E94: -0.1952343612 | F94: 0.2677784839 | G94: -0.18733136 | H94: 0.2242262136 | I94: -0.1518462118 | J94: -0.2371663014 | K94: -0.0813063566 | L94: 0.06060747962 | M94: 0.2090350405 | N94: -0.1912024671 | O94: 0.0686337638 | P94: -0.1193964066 | Q94: 0.01470332716 | R94: 0.01250235048 | S94: -0.01250235048 | T94: -0.04916779024 | U94: -0.1158808462 | V94: 0.2238492342 | W94: 0.4281616354 | X94: -0.06683201909 | Y94: -0.1840069929 | Z94: 0.01858578869 | AA94: 0.3432828402 | AB94: -0.02346608485 | AC94: -0.1973699826 | AD94: 0.1504363492 | AE94: 0.1616131702 | AF94: -0.02474228903 | AG94: -0.1813453267 | AH94: -0.09871684489 | AI94: -0.2396624929 | AJ94: -0.05307832023 | AK94: -0.06004508744 | AL94: -0.004067385673 | AM94: 0.08818452565 | AN94: 0.1283971741 | AO94: 0.1631257252 | AP94: -0.09965888836 | AQ94: -0.1705580031 | AR94: 0.01999083856 | AS94: 0.06714389577 | AT94: -0.06641257956 | AU94: -0.100110333 | AV94: 0.02634713787 | AW94: 0.001323210394 | AX94: 0.8216434711 | AY94: 1 | AZ94: -0.338717602
B95: Gradient 5 to 13 second(g/sec) | C95: 0.07768586609 | D95: -0.3823906092 | E95: -0.03128491247 | F95: 0.01619847363 | G95: 0.05450823458 | H95: -0.2340220544 | I95: 0.1194595573 | J95: -0.01925747337 | K95: 0.07230660417 | L95: 0.02787128708 | M95: 0.05495544632 | N95: 0.07486404715 | O95: 0.03752835781 | P95: 0.01019162907 | Q95: 0.09774949877 | R95: 0.1333290802 | S95: -0.1333290802 | T95: 0.01399984971 | U95: 0.08475304033 | V95: -0.02487299981 | W95: -0.5071558671 | X95: 0.005934063875 | Y95: -0.03927367755 | Z95: 0.07308082825 | AA95: -0.04669819953 | AB95: 0.01767362477 | AC95: 0.05166034561 | AD95: -0.2654645233 | AE95: -0.07431610747 | AF95: 0.0627203272 | AG95: 0.1021122523 | AH95: -0.01836749617 | AI95: -0.007776212908 | AJ95: 0.05669239932 | AK95: 0.04390944539 | AL95: 0.08659044908 | AM95: -0.04790788099 | AN95: 0.1616094133 | AO95: -0.03546364602 | AP95: 0.0556789137 | AQ95: 0.04797913161 | AR95: 0.05403089943 | AS95: 0.01030173002 | AT95: 0.04972798262 | AU95: -0.03551365402 | AV95: 0.1073251632 | AW95: 0.04868941727 | AX95: -0.4337035171 | AY95: -0.338717602 | AZ95: 1
B98: Regression of variable Peak force (g):
B100: Goodness of fit statistics (Peak force (g)):
B102: Observations | C102: 225
B103: Sum of weights | C103: 225
B104: DF | C104: 195
B105: R² | C105: 0.598870455
B106: Adjusted R² | C106: 0.5392152919
B107: MSE | C107: 139.419479
B108: RMSE | C108: 11.80760259
B109: MAPE | C109: 11.99627203
B110: DW | C110: 1.892687046
B111: Cp | C111: 30
B112: AIC | C112: 1138.736935
B113: SBC | C113: 1241.219947
B114: PC | C114: 0.5245540204
B117: Analysis of variance (Peak force (g)):
B119: Source | C119: DF | D119: Sum of squares | E119: Mean squares | F119: F | G119: Pr > F
B120: Model | C120: 29 | D120: 40588.8086 | E120: 1399.61409 | F120: 10.03887047 | G120: 1.820856449e-25
B121: Error | C121: 195 | D121: 27186.7984 | E121: 139.419479
B122: Corrected Total | C122: 224 | D122: 67775.607
B123: Computed against model Y=Mean(Y)
B126: Type I Sum of Squares analysis (Peak force (g)):
B128: Source | C128: DF | D128: Sum of squares | E128: Mean squares | F128: F | G128: Pr > F
B129: ID | C129: 14 | D129: 37406.81744 | E129: 2671.915531 | F129: 19.16457837 | G129: 1.320447343e-29
B130: Replicate | C130: 1 | D130: 296.1259041 | E130: 296.1259041 | F130: 2.123992331 | G130: 0.1466166244
B131: ID*Replicate | C131: 14 | D131: 2885.865259 | E131: 206.1332328 | F131: 1.478510996 | G131: 0.1218921492
B134: Type II Sum of Squares analysis (Peak force (g)):
B136: Source | C136: DF | D136: Sum of squares | E136: Mean squares | F136: F | G136: Pr > F
B137: ID | C137: 14 | D137: 37125.01435 | E137: 2651.786739 | F137: 19.02020262 | G137: 1.984709621e-29
B138: Replicate | C138: 1 | D138: 296.1259041 | E138: 296.1259041 | F138: 2.123992331 | G138: 0.1466166244
B139: ID*Replicate | C139: 14 | D139: 2885.865259 | E139: 206.1332328 | F139: 1.478510996 | G139: 0.1218921492
B142: Type III Sum of Squares analysis (Peak force (g)):
B144: Source | C144: DF | D144: Sum of squares | E144: Mean squares | F144: F | G144: Pr > F
B145: ID | C145: 14 | D145: 36513.65536 | E145: 2608.11824 | F145: 18.70698599 | G145: 4.83174832e-29
B146: Replicate | C146: 1 | D146: 247.3638963 | E146: 247.3638963 | F146: 1.774242008 | G146: 0.1844126786
B147: ID*Replicate | C147: 14 | D147: 2885.865259 | E147: 206.1332328 | F147: 1.478510996 | G147: 0.1218921492
B150: Model parameters (Peak force (g)):
B152: Source | C152: Value | D152: Standard error | E152: t | F152: Pr > |t| | G152: Lower bound (95%) | H152: Upper bound (95%)
B153: Intercept | C153: 36.91339471 | D153: 4.820433572 | E153: 7.657691815 | F153: 8.598710961e-13 | G153: 27.40651609 | H153: 46.42027333
B154: ID-AC4 | C154: 0 | D154: 0
B155: ID-AC6 | C155: 45.93920635 | D155: 6.569143647 | E155: 6.993180363 | F155: 4.181610613e-11 | G155: 32.98351464 | H155: 58.89489806
B156: ID-AD4 | C156: 3.251467085 | D156: 7.621774699 | E156: 0.4266023614 | F156: 0.6701395629 | G156: -11.78022786 | H156: 18.28316202
B157: ID-AD6 | C157: 21.64718972 | D157: 6.569143647 | E157: 3.295283356 | F157: 0.001167942787 | G157: 8.69149801 | H157: 34.60288144
B158: ID-AR4 | C158: 0.001812411977 | D158: 8.349235862 | E158: 0.0002170751919 | F158: 0.9998270209 | G158: -16.46458438 | H158: 16.4682092
B159: ID-AR6 | C159: 45.59122325 | D159: 6.817122535 | E159: 6.687751763 | F159: 2.333204741e-10 | G159: 32.14646657 | H159: 59.03597993
B160: ID-CC6 | C160: 6.419822134 | D160: 6.569143647 | E160: 0.9772692576 | F160: 0.3296466957 | G160: -6.535869579 | H160: 19.37551385
B161: ID-CD6 | C161: 2.975376327 | D161: 6.223152983 | E161: 0.4781139617 | F161: 0.6331046541 | G161: -9.297951197 | H161: 15.24870385
B162: ID-CR6 | C162: 4.894289083 | D162: 6.569143647 | E162: 0.7450421769 | F162: 0.4571432417 | G162: -8.06140263 | H162: 17.8499808
B163: ID-LC4 | C163: 19.48841287 | D163: 6.376834222 | E163: 3.056126629 | F163: 0.002556294712 | G163: 6.911994586 | H163: 32.06483116
B164: ID-LC6 | C164: 14.57722952 | D164: 7.621774699 | E164: 1.912576807 | F164: 0.0572676829 | G164: -0.4544654184 | H164: 29.60892446
B165: ID-LD4 | C165: 1.405827556 | D165: 6.223152983 | E165: 0.2259027795 | F165: 0.8215136338 | G165: -10.86749997 | H165: 13.67915508
B166: ID-LD6 | C166: 9.417292626 | D166: 7.621774699 | E166: 1.235577408 | F166: 0.2181021499 | G166: -5.614402313 | H166: 24.44898757
B167: ID-LR4 | C167: 4.82464068 | D167: 6.817122535 | E167: 0.7077239194 | F167: 0.479961733 | G167: -8.620116001 | H167: 18.26939736
B168: ID-LR6 | C168: 9.430885716 | D168: 7.621774699 | E168: 1.237360863 | F168: 0.2174410648 | G168: -5.600809224 | H168: 24.46258066
B169: Replicate-1 | C169: 0 | D169: 0
B170: Replicate-2 | C170: 0.6390901449 | D170: 5.992585245 | E170: 0.1066468175 | F170: 0.9151788113 | G170: -11.17951075 | H170: 12.45769104
B171: ID-AC4*Replicate-1 | C171: 0 | D171: 0
B172: ID-AC4*Replicate-2 | C172: 0 | D172: 0
B173: ID-AC6*Replicate-1 | C173: 0 | D173: 0
B174: ID-AC6*Replicate-2 | C174: -6.959966715 | D174: 8.703172683 | E174: -0.7997045408 | F174: 0.4248550903 | G174: -24.12439914 | H174: 10.20446571
B175: ID-AD4*Replicate-1 | C175: 0 | D175: 0
B176: ID-AD4*Replicate-2 | C176: -1.899587377 | D176: 9.076576313 | E176: -0.2092845707 | F176: 0.8344445699 | G176: -19.80044795 | H176: 16.0012732
B177: ID-AD6*Replicate-1 | C177: 0 | D177: 0
B178: ID-AD6*Replicate-2 | C178: 12.77212102 | D178: 8.558947436 | E178: 1.492253705 | F178: 0.1372487202 | G178: -4.107869783 | H178: 29.65211183
B179: ID-AR4*Replicate-1 | C179: 0 | D179: 0
B180: ID-AR4*Replicate-2 | C180: -2.328932339 | D180: 9.749806955 | E180: -0.2388695848 | F180: 0.811457566 | G180: -21.55754111 | H180: 16.89967644
B181: ID-AR6*Replicate-1 | C181: 0 | D181: 0
B182: ID-AR6*Replicate-2 | C182: -21.93825476 | D182: 8.750719548 | E182: -2.507022952 | F182: 0.01299199501 | G182: -39.1964593 | H182: -4.680050214
B183: ID-CC6*Replicate-1 | C183: 0 | D183: 0
B184: ID-CC6*Replicate-2 | C184: -8.037522003 | D184: 8.558947436 | E184: -0.9390783228 | F184: 0.3488522703 | G184: -24.91751281 | H184: 8.842468804
B185: ID-CD6*Replicate-1 | C185: 0 | D185: 0
B186: ID-CD6*Replicate-2 | C186: -8.767153325 | D186: 8.445069541 | E186: -1.038138678 | F186: 0.3004910588 | G186: -25.42255369 | H186: 7.888247037
B187: ID-CR6*Replicate-1 | C187: 0 | D187: 0
B188: ID-CR6*Replicate-2 | C188: -2.894367552 | D188: 8.703172683 | E188: -0.3325646471 | F188: 0.7398201708 | G188: -20.05879998 | H188: 14.27006487
B189: ID-LC4*Replicate-1 | C189: 0 | D189: 0
B190: ID-LC4*Replicate-2 | C190: -8.689135245 | D190: 8.412249857 | E190: -1.032914546 | F190: 0.3029232299 | G190: -25.27980849 | H190: 7.901538003
B191: ID-LC6*Replicate-1 | C191: 0 | D191: 0
B192: ID-LC6*Replicate-2 | C192: 1.078997555 | D192: 9.134574196 | E192: 0.1181223702 | F192: 0.9060922844 | G192: -16.93624668 | H192: 19.09424179
B193: ID-LD4*Replicate-1 | C193: 0 | D193: 0
B194: ID-LD4*Replicate-2 | C194: 0.2697468718 | D194: 8.445069541 | E194: 0.03194134405 | F194: 0.9745514969 | G194: -16.38565349 | H194: 16.92514723
B195: ID-LD6*Replicate-1 | C195: 0 | D195: 0
B196: ID-LD6*Replicate-2 | C196: 1.401451933 | D196: 9.134574196 | E196: 0.1534227981 | F196: 0.8782235186 | G196: -16.6137923 | H196: 19.41669617
B197: ID-LR4*Replicate-1 | C197: 0 | D197: 0
B198: ID-LR4*Replicate-2 | C198: 2.745050097 | D198: 9.076576313 | E198: 0.3024323272 | F198: 0.7626448599 | G198: -15.15581048 | H198: 20.64591067
B199: ID-LR6*Replicate-1 | C199: 0 | D199: 0
B200: ID-LR6*Replicate-2 | C200: 0.222010045 | D200: 9.076576313 | E200: 0.0244596682 | F200: 0.980510966 | G200: -17.67885053 | H200: 18.12287062
B203: Equation of the model (Peak force (g)):
B205: Peak force (g) = 36.9133947109163+45.9392063503527*ID-AC6+3.25146708456828*ID-AD4+21.6471897228414*ID-AD6+1.8124119766244E-03*ID-AR4+45.591223251001*ID-AR6+6.41982213424597*ID-CC6+2.97537632692295*ID-CD6+4.89428908262376*ID-CR6+19.488412872678*ID-LC4+14.5772295212807*ID-LC6+1.40582755588872*ID-LD4+9.41729262620632*ID-LD6+4.82464067955412*ID-LR4+9.43088571602467*ID-LR6+0.639090144851355*Replicate-2-6.95996671460721*ID-AC6*Replicate-2-1.89958737703915*ID-AD4*Replicate-2+12.7721210240632*ID-AD6*Replicate-2-2.32893233875916*ID-AR4*Replicate-2-21.9382547579486*ID-AR6*Replicate-2-8.03752200269655*ID-CC6*Replicate-2-8.76715332476964*ID-CD6*Replicate-2-2.89436755221764*ID-CR6*Replicate-2-8.68913524463116*ID-LC4*Replicate-2+1.07899755517601*ID-LC6*Replicate-2+0.26974687175826*ID-LD4*Replicate-2+1.40145193303147*ID-LD6*Replicate-2+2.74505009693785*ID-LR4*Replicate-2+0.222010045021298*ID-LR6*Replicate-2
B208: Standardized coefficients (Peak force (g)):
B210: Source | C210: Value | D210: Standard error | E210: t | F210: Pr > |t| | G210: Lower bound (95%) | H210: Upper bound (95%)
B211: ID-AC4 | C211: 0 | D211: 0
B212: ID-AC6 | C212: 0.6393825312 | D212: 0.09142943525 | E212: 6.993180363 | F212: 4.181610613e-11 | G212: 0.4590650286 | H212: 0.8197000337
B213: ID-AD4 | C213: 0.04814869596 | D213: 0.1128655167 | E213: 0.4266023614 | F213: 0.6701395629 | G213: -0.1744451334 | H213: 0.2707425253
B214: ID-AD6 | C214: 0.3111206471 | D214: 0.09441392847 | E214: 3.295283356 | F214: 0.001167942787 | G214: 0.1249171149 | H214: 0.4973241793
B215: ID-AR4 | C215: 2.522517582e-05 | D215: 0.1162047842 | E215: 0.0002170751919 | F215: 0.9998270209 | G215: -0.2291543209 | H215: 0.2292047713
B216: ID-AR6 | C216: 0.6345392974 | D216: 0.09488080896 | E216: 6.687751763 | F216: 2.333204741e-10 | G216: 0.4474149816 | H216: 0.8216636132
B217: ID-CC6 | C217: 0.09226782978 | D217: 0.09441392847 | E217: 0.9772692576 | F217: 0.3296466957 | G217: -0.09393570245 | H217: 0.278471362
B218: ID-CD6 | C218: 0.04406026154 | D218: 0.09215430852 | E218: 0.4781139617 | F218: 0.6331046541 | G218: -0.1376868391 | H218: 0.2258073621
B219: ID-CR6 | C219: 0.06811878547 | D219: 0.09142943525 | E219: 0.7450421769 | F219: 0.4571432417 | G219: -0.1121987171 | H219: 0.2484362881
B220: ID-LC4 | C220: 0.2885902399 | D220: 0.09443006622 | E220: 3.056126629 | F220: 0.002556294712 | G220: 0.1023548808 | H220: 0.4748255991
B221: ID-LC6 | C221: 0.2095088157 | D221: 0.1095426938 | E221: 1.912576807 | F221: 0.0572676829 | G221: -0.006531728915 | H221: 0.4255493602
B222: ID-LD4 | C222: 0.02081791443 | D222: 0.09215430852 | E222: 0.2259027795 | F222: 0.8215136338 | G222: -0.1609291862 | H222: 0.202565015
B223: ID-LD6 | C223: 0.1353484777 | D223: 0.1095426938 | E223: 1.235577408 | F223: 0.2181021499 | G223: -0.08069206687 | H223: 0.3513890223
B224: ID-LR4 | C224: 0.06246222237 | D224: 0.08825789358 | E224: 0.7077239194 | F224: 0.479961733 | G224: -0.1116003529 | H224: 0.2365247977
B225: ID-LR6 | C225: 0.1396553731 | D225: 0.1128655167 | E225: 1.237360863 | F225: 0.2174410648 | G225: -0.08293845621 | H225: 0.3622492025
B226: Replicate-1 | C226: 0 | D226: 0
B227: Replicate-2 | C227: 0.0180720429 | D227: 0.1694569358 | E227: 0.1066468175 | F227: 0.9151788113 | G227: -0.3161316124 | H227: 0.3522756982
B228: ID-AC4*Replicate-1 | C228: 0 | D228: 0
B229: ID-AC4*Replicate-2 | C229: 0 | D229: 0
B230: ID-AC6*Replicate-1 | C230: 0 | D230: 0
B231: ID-AC6*Replicate-2 | C231: -0.06962359793 | D231: 0.08706165136 | E231: -0.7997045408 | F231: 0.4248550903 | G231: -0.2413269395 | H231: 0.1020797436
B232: ID-AD4*Replicate-1 | C232: 0 | D232: 0
B233: ID-AD4*Replicate-2 | C233: -0.02459301263 | D233: 0.1175099175 | E233: -0.2092845707 | F233: 0.8344445699 | G233: -0.2563465479 | H233: 0.2071605226
B234: ID-AD6*Replicate-1 | C234: 0 | D234: 0
B235: ID-AD6*Replicate-2 | C235: 0.1362730319 | D235: 0.09132028383 | E235: 1.492253705 | F235: 0.1372487202 | G235: -0.04382920182 | H235: 0.3163752657
B236: ID-AR4*Replicate-1 | C236: 0 | D236: 0
... 3390 more rows

Sheet Refined Stretch Quality ANOVA
B1: XLSTAT-Student 2020.1.3.65336 - ANOVA - Start time: 01/05/2020 at 12:18:39 / End time: 01/05/2020 at 12:19:24 / Microsoft Excel 14.04734
B2: Y / Dependent variables: Workbook = Extensibility complete data clean.xlsm / Sheet = Sheet1 / Range = Sheet1!$J:$J / 225 rows and 1 column
B3: X / Qualitative: Workbook = Extensibility complete data clean.xlsm / Sheet = Sheet1 / Range = Sheet1!$C:$G / 225 rows and 5 columns
B4: Constraints: a1=0
B5: Interactions / Level: 2
B6: Confidence interval (%): 95
B7: Tolerance: 0.0001
B8: Use least squares means: No
B13: Summary statistics (Quantitative data):
B15: Variable | C15: Observations | D15: Obs. with missing data | E15: Obs. without missing data | F15: Minimum | G15: Maximum | H15: Mean | I15: Std. deviation
B16: Gradient 5 to 13 second(g/sec) | C16: 225 | D16: 0 | E16: 225 | F16: -3.569545386 | G16: 1.782991225 | H16: 0.1563446468 | I16: 0.5554070077
B19: Summary statistics (Qualitative data):
B21: Variable | C21: Categories | D21: Counts | E21: Frequencies | F21: %
B22: Acid | C22: A | D22: 90 | E22: 90 | F22: 40
C23: C | D23: 45 | E23: 45 | F23: 20
C24: L | D24: 90 | E24: 90 | F24: 40
B25: pH | C25: 4 | D25: 91 | E25: 91 | F25: 40.44444444
C26: 6 | D26: 134 | E26: 134 | F26: 59.55555556
B27: salt | C27: C | D27: 77 | E27: 77 | F27: 34.22222222
C28: D | D28: 78 | E28: 78 | F28: 34.66666667
C29: R | D29: 70 | E29: 70 | F29: 31.11111111
B30: Day | C30: 10 | D30: 113 | E30: 113 | F30: 50.22222222
C31: 30 | D31: 112 | E31: 112 | F31: 49.77777778
B32: Replicate | C32: 1 | D32: 91 | E32: 91 | F32: 40.44444444
C33: 2 | D33: 134 | E33: 134 | F33: 59.55555556
B36: Correlation matrix:
C38: Acid-A | D38: Acid-C | E38: Acid-L | F38: Acid-A*pH-4 | G38: Acid-A*pH-6 | H38: Acid-C*pH-6 | I38: Acid-L*pH-4 | J38: Acid-L*pH-6 | K38: Acid-A*salt-C | L38: Acid-A*salt-D | M38: Acid-A*salt-R | N38: Acid-C*salt-C | O38: Acid-C*salt-D | P38: Acid-C*salt-R | Q38: Acid-L*salt-C | R38: Acid-L*salt-D | S38: Acid-L*salt-R | T38: Acid-A*Day-10 | U38: Acid-A*Day-30 | V38: Acid-C*Day-10 | W38: Acid-C*Day-30 | X38: Acid-L*Day-10 | Y38: Acid-L*Day-30 | Z38: Acid-A*Replicate-1 | AA38: Acid-A*Replicate-2 | AB38: Acid-C*Replicate-1 | AC38: Acid-C*Replicate-2 | AD38: Acid-L*Replicate-1 | AE38: Acid-L*Replicate-2 | AF38: pH-4*salt-C | AG38: pH-4*salt-D | AH38: pH-4*salt-R | AI38: pH-6*salt-C | AJ38: pH-6*salt-D | AK38: pH-6*salt-R | AL38: pH-4*Day-10 | AM38: pH-4*Day-30 | AN38: pH-6*Day-10 | AO38: pH-6*Day-30 | AP38: pH-4*Replicate-1 | AQ38: pH-4*Replicate-2 | AR38: pH-6*Replicate-1 | AS38: pH-6*Replicate-2 | AT38: salt-C*Replicate-1 | AU38: salt-C*Replicate-2 | AV38: salt-D*Replicate-1 | AW38: salt-D*Replicate-2 | AX38: salt-R*Replicate-1 | AY38: salt-R*Replicate-2 | AZ38: Gradient 5 to 13 second(g/sec)
B39: Acid-A | C39: 1 | D39: -0.4082482905 | E39: -0.6666666667 | F39: 0.6293388719 | G39: 0.5953113508 | H39: -0.4082482905 | I39: -0.4025700127 | J39: -0.4139108118 | K39: 0.4895821909 | L39: 0.4895821909 | M39: 0.4617336565 | N39: -0.2182178902 | O39: -0.2259129979 | P39: -0.2103183474 | Q39: -0.3263881273 | R39: -0.3263881273 | S39: -0.3078224377 | T39: 0.6123724357 | U39: 0.6123724357 | V39: -0.2687928375 | W39: -0.2755133223 | X39: -0.4139108118 | Y39: -0.4025700127 | Z39: 0.5077524003 | AA39: 0.7133922984 | AB39: -0.2755133223 | AC39: -0.2687928375 | AD39: -0.350438322 | AE39: -0.464420364 | AF39: 0.09744743036 | AG39: 0.08311716349 | AH39: 0.1021606548 | AI39: -0.08234386623 | AJ39: -0.07648351958 | AK39: -0.08234386623 | AL39: 0.1160483026 | AM39: 0.1235157993 | AN39: -0.1076013225 | AO39: -0.1027290898 | AP39: -0.0346449758 | AQ39: 0.2533201986 | AR39: -0.04222003309 | AS39: -0.163456749 | AT39: 0.005194822718 | AU39: 0 | AV39: -0.05641693337 | AW39: 0.04536092116 | AX39: -0.03972914352 | AY39: 0.03202261464 | AZ39: -0.2433192334
B40: Acid-C | C40: -0.4082482905 | D40: 1 | E40: -0.4082482905 | F40: -0.2569265186 | G40: -0.2430348413 | H40: 1 | I40: -0.2465227792 | J40: -0.253467572 | K40: -0.1998710925 | L40: -0.1998710925 | M40: -0.1885019759 | N40: 0.5345224838 | O40: 0.5533715711 | P40: 0.5151726348 | Q40: -0.1998710925 | R40: -0.1998710925 | S40: -0.1885019759 | T40: -0.25 | U40: -0.25 | V40: 0.6584052984 | W40: 0.6748670569 | X40: -0.253467572 | Y40: -0.2465227792 | Z40: -0.2072890494 | AA40: -0.2912411863 | AB40: 0.6748670569 | AC40: 0.6584052984 | AD40: -0.2145987688 | AE40: -0.2843982295 | AF40: -0.2072890494 | AG40: -0.2035946394 | AH40: -0.1807299549 | AI40: 0.1736865035 | AJ40: 0.1873455967 | AK40: 0.1456725513 | AL40: -0.2569265186 | AM40: -0.2465227792 | AN40: 0.2147593846 | AO40: 0.2274382891 | AP40: -0.2182178902 | AQ40: -0.2843982295 | AR40: 0.310252614 | AS40: 0.1443250527 | AT40: 0.01908699745 | AU40: -0.02777777778 | AV40: 0.07537783614 | AW40: -0.05555555556 | AX40: 0.06256036899 | AY40: -0.05042511393 | AZ40: 0.1057884251
B41: Acid-L | C41: -0.6666666667 | D41: -0.4082482905 | E41: 1 | F41: -0.419559248 | G41: -0.3968742339 | H41: -0.4082482905 | I41: 0.603855019 | J41: 0.6208662177 | K41: -0.3263881273 | L41: -0.3263881273 | M41: -0.3078224377 | N41: -0.2182178902 | O41: -0.2259129979 | P41: -0.2103183474 | Q41: 0.4895821909 | R41: 0.4895821909 | S41: 0.4617336565 | T41: -0.4082482905 | U41: -0.4082482905 | V41: -0.2687928375 | W41: -0.2755133223 | X41: 0.6208662177 | Y41: 0.603855019 | Z41: -0.3385016002 | AA41: -0.4755948656 | AB41: -0.2755133223 | AC41: -0.2687928375 | AD41: 0.525657483 | AE41: 0.696630546 | AF41: 0.07180336974 | AG41: 0.08311716349 | AH41: 0.04540473545 | AI41: -0.05947057005 | AJ41: -0.07648351958 | AK41: -0.03659727388 | AL41: 0.09373132135 | AM41: 0.07776920699 | AN41: -0.06774898081 | AO41: -0.08297349561 | AP41: 0.2128191371 | AQ41: -0.02111001655 | AR41: -0.2111001655 | AS41: 0.04561583692 | AT41: -0.02077929087 | AU41: 0.02268046058 | AV41: -0.005128812124 | AW41: -8.057718255e-17 | AX41: -0.01135118386 | AY41: 0.00914931847 | AZ41: 0.1569433459
B42: Acid-A*pH-4 | C42: 0.6293388719 | D42: -0.2569265186 | E42: -0.419559248 | F42: 1 | G42: -0.2497683826 | H42: -0.2569265186 | I42: -0.2533529576 | J42: -0.2604901634 | K42: 0.3338420634 | L42: 0.3021214282 | M42: 0.2699779358 | N42: -0.1373330009 | O42: -0.1421758312 | P42: -0.1323615115 | Q42: -0.2054087358 | R42: -0.2054087358 | S42: -0.1937246257 | T42: 0.3990560821 | U42: 0.3717234737 | V42: -0.1691617811 | W42: -0.1733912435 | X42: -0.2604901634 | Y42: -0.2533529576 | Z42: 0.1887209953 | AA42: 0.5553832331 | AB42: -0.1733912435 | AC42: -0.1691617811 | AD42: -0.2205444583 | AE42: -0.292277788 | AF42: 0.3123373678 | AG42: 0.2915940813 | AH42: 0.2930453856 | AI42: -0.2533529576 | AJ42: -0.2604901634 | AK42: -0.2533529576 | AL42: 0.3814248147 | AM42: 0.380641992 | AN42: -0.3310642862 | AO42: -0.3381766035 | AP42: 0.1634263172 | AQ42: 0.5726835575 | AR42: -0.292277788 | AS42: -0.3779862881 | AT42: -0.02142437429 | AU42: 0.04373217338 | AV42: -0.08941584275 | AW42: 0.07106478174 | AX42: -0.08314098856 | AY42: 0.04986201826 | AZ42: 0.06311615511
B43: Acid-A*pH-6 | C43: 0.5953113508 | D43: -0.2430348413 | E43: -0.3968742339 | F43: -0.2497683826 | G43: 1 | H43: -0.2430348413 | I43: -0.239654498 | J43: -0.2464058045 | K43: 0.2648520225 | L43: 0.2976487781 | M43: 0.2961834485 | N43: -0.129907587 | O43: -0.1344885719 | P43: -0.1252048995 | Q43: -0.1943025569 | R43: -0.1943025569 | S43: -0.1832501912 | T43: 0.3504223293 | U43: 0.3786821945 | V43: -0.1600154272 | W43: -0.1640162081 | X43: -0.2464058045 | Y43: -0.239654498 | Z43: 0.4375364031 | AA43: 0.3146625898 | AB43: -0.1640162081 | AC43: -0.1600154272 | AD43: -0.2086199109 | AE43: -0.2764747142 | AF43: -0.2015138449 | AG43: -0.1979223635 | AH43: -0.1756947036 | AI43: 0.1593474411 | AJ43: 0.1740287709 | AK43: 0.1593474411 | AL43: -0.2497683826 | AM43: -0.239654498 | AN43: 0.2082243181 | AO43: 0.2216487246 | AP43: -0.2121382013 | AQ43: -0.2764747142 | AR43: 0.2495871099 | AS43: 0.1871422563 | AT43: 0.02862394646 | AU43: -0.04521578442 | AV43: 0.02215374193 | AW43: -0.01695591916 | AX43: 0.03645900825 | AY43: -0.01165338997 | AZ43: -0.3684332533
B44: Acid-C*pH-6 | C44: -0.4082482905 | D44: 1 | E44: -0.4082482905 | F44: -0.2569265186 | G44: -0.2430348413 | H44: 1 | I44: -0.2465227792 | J44: -0.253467572 | K44: -0.1998710925 | L44: -0.1998710925 | M44: -0.1885019759 | N44: 0.5345224838 | O44: 0.5533715711 | P44: 0.5151726348 | Q44: -0.1998710925 | R44: -0.1998710925 | S44: -0.1885019759 | T44: -0.25 | U44: -0.25 | V44: 0.6584052984 | W44: 0.6748670569 | X44: -0.253467572 | Y44: -0.2465227792 | Z44: -0.2072890494 | AA44: -0.2912411863 | AB44: 0.6748670569 | AC44: 0.6584052984 | AD44: -0.2145987688 | AE44: -0.2843982295 | AF44: -0.2072890494 | AG44: -0.2035946394 | AH44: -0.1807299549 | AI44: 0.1736865035 | AJ44: 0.1873455967 | AK44: 0.1456725513 | AL44: -0.2569265186 | AM44: -0.2465227792 | AN44: 0.2147593846 | AO44: 0.2274382891 | AP44: -0.2182178902 | AQ44: -0.2843982295 | AR44: 0.310252614 | AS44: 0.1443250527 | AT44: 0.01908699745 | AU44: -0.02777777778 | AV44: 0.07537783614 | AW44: -0.05555555556 | AX44: 0.06256036899 | AY44: -0.05042511393 | AZ44: 0.1057884251
B45: Acid-L*pH-4 | C45: -0.4025700127 | D45: -0.2465227792 | E45: 0.603855019 | F45: -0.2533529576 | G45: -0.239654498 | H45: -0.2465227792 | I45: 1 | J45: -0.2499421211 | K45: -0.1970911088 | L45: -0.1970911088 | M45: -0.1858801239 | N45: -0.1317719683 | O45: -0.1364186976 | P45: -0.1270017897 | Q45: 0.3230907033 | R45: 0.3230907033 | S45: 0.2214870308 | T45: -0.2465227792 | U45: -0.2465227792 | V45: -0.162311904 | W45: -0.1663701025 | X45: 0.3891144386 | Y45: 0.3502009041 | Z45: -0.2044058902 | AA45: -0.2871903466 | AB45: -0.1663701025 | AC45: -0.162311904 | AD45: 0.4994913445 | AE45: 0.2671157515 | AF45: 0.3023855731 | AG45: 0.312551279 | AH45: 0.2423989615 | AI45: -0.2430939227 | AJ45: -0.2499421211 | AK45: -0.2430939227 | AL45: 0.380641992 | AM45: 0.3502009041 | AN45: -0.3176584822 | AO45: -0.3244828 | AP45: 0.4878290143 | AQ45: 0.2671157515 | AR45: -0.2804425677 | AS45: -0.3626804689 | AT45: 0.05589420683 | AU45: -0.02241116175 | AV45: 0.08066430792 | AW45: -0.05042511393 | AX45: 0.03209137922 | AY45: -0.07358111502 | AZ45: 0.07234510311
B46: Acid-L*pH-6 | C46: -0.4139108118 | D46: -0.253467572 | E46: 0.6208662177 | F46: -0.2604901634 | G46: -0.2464058045 | H46: -0.253467572 | I46: -0.2499421211 | J46: 1 | K46: -0.2026433621 | L46: -0.2026433621 | M46: -0.1911165526 | N46: -0.1354841162 | O46: -0.1402617485 | P46: -0.1305795569 | Q46: 0.2769648757 | R46: 0.2769648757 | S46: 0.3430601472 | T46: -0.253467572 | U46: -0.253467572 | V46: -0.1668843924 | W46: -0.1710569143 | X46: 0.3715083799 | Y46: 0.3891144386 | Z46: -0.2101642082 | AA46: -0.2952807854 | AB46: -0.1710569143 | AC46: -0.1668843924 | AD46: 0.1473025428 | AE46: 0.5835240016 | AF46: -0.2101642082 | AG46: -0.2064185557 | AH46: -0.1832367314 | AI46: 0.1668338961 | AJ46: 0.152902599 | AK46: 0.1946189639 | AL46: -0.2604901634 | AM46: -0.2499421211 | AN46: 0.2301096455 | AO46: 0.2183273426 | AP46: -0.2212446352 | AQ46: -0.2883429148 | AR46: 0.01937482037 | AS46: 0.4120959053 | AT46: -0.08021155833 | AU46: 0.04959148148 | AV46: -0.08556092271 | AW46: 0.04959148148 | AX46: -0.04534955894 | AY46: 0.08347869263 | AZ46: 0.1194959983
B47: Acid-A*salt-C | C47: 0.4895821909 | D47: -0.1998710925 | E47: -0.3263881273 | F47: 0.3338420634 | G47: 0.2648520225 | H47: -0.1998710925 | I47: -0.1970911088 | J47: -0.2026433621 | K47: 1 | L47: -0.1597938144 | M47: -0.1507043834 | N47: -0.1068355928 | O47: -0.1106029805 | P47: -0.1029681173 | Q47: -0.1597938144 | R47: -0.1597938144 | S47: -0.1507043834 | T47: 0.2836880022 | U47: 0.3159252752 | V47: -0.1315961863 | W47: -0.1348864159 | X47: -0.2026433621 | Y47: -0.1970911088 | Z47: 0.3081209416 | AA47: 0.3008376108 | AB47: -0.1348864159 | AC47: -0.1315961863 | AD47: -0.1715683615 | AE47: -0.2273719393 | AF47: 0.4539194945 | AG47: -0.162770732 | AH47: -0.1444907741 | AI47: 0.2580679768 | AJ47: -0.2026433621 | AK47: -0.1970911088 | AL47: 0.08007698143 | AM47: 0.06299979724 | AN47: -0.08761066923 | AO47: -0.03843834868 | AP47: 0.03658069842 | AQ47: 0.1026841016 | AR47: -0.0173362769 | AS47: -0.1049396828 | AT47: 0.3171732107 | AU47: 0.3803998212 | AV47: -0.165724355 | AW47: -0.1998710925 | AX47: -0.1444907741 | AY47: -0.1970911088 | AZ47: -0.208429038
B48: Acid-A*salt-D | C48: 0.4895821909 | D48: -0.1998710925 | E48: -0.3263881273 | F48: 0.3021214282 | G48: 0.2976487781 | H48: -0.1998710925 | I48: -0.1970911088 | J48: -0.2026433621 | K48: -0.1597938144 | L48: 1 | M48: -0.1507043834 | N48: -0.1068355928 | O48: -0.1106029805 | P48: -0.1029681173 | Q48: -0.1597938144 | R48: -0.1597938144 | S48: -0.1507043834 | T48: 0.3159252752 | U48: 0.2836880022 | V48: -0.1315961863 | W48: -0.1348864159 | X48: -0.2026433621 | Y48: -0.1970911088 | Z48: 0.2352216652 | AA48: 0.3601354316 | AB48: -0.1348864159 | AC48: -0.1315961863 | AD48: -0.1715683615 | AE48: -0.2273719393 | AF48: -0.165724355 | AG48: 0.4279295051 | AH48: -0.1444907741 | AI48: -0.1970911088 | AJ48: 0.2769648757 | AK48: -0.1970911088 | AL48: 0.04835634618 | AM48: 0.06299979724 | AN48: -0.03096583999 | AO48: -0.0665183112 | AP48: -0.03376679854 | AQ48: 0.1326891963 | AR48: -0.0173362769 | AS48: -0.07792431825 | AT48: -0.162770732 | AU48: -0.1998710925 | AV48: 0.2352216652 | AW48: 0.4448743671 | AX48: -0.1444907741 | AY48: -0.1970911088 | AZ48: -0.01160523586
B49: Acid-A*salt-R | C49: 0.4617336565 | D49: -0.1885019759 | E49: -0.3078224377 | F49: 0.2699779358 | G49: 0.2961834485 | H49: -0.1885019759 | I49: -0.1858801239 | J49: -0.1911165526 | K49: -0.1507043834 | L49: -0.1507043834 | M49: 1 | N49: -0.1007585444 | O49: -0.1043116346 | P49: -0.09711105959 | Q49: -0.1507043834 | R49: -0.1507043834 | S49: -0.1421319797 | T49: 0.2827529639 | U49: 0.2827529639 | V49: -0.1241106997 | W49: -0.1272137737 | X49: -0.1911165526 | Y49: -0.1858801239 | Z49: 0.1862377027 | AA49: 0.3686111909 | AB49: -0.1272137737 | AC49: -0.1241106997 | AD49: -0.1618091678 | AE49: -0.2144385128 | AF49: -0.1562975816 | AG49: -0.1535119673 | AH49: 0.453365844 | AI49: -0.1858801239 | AJ49: -0.1911165526 | AK49: 0.2893815566 | AL49: 0.03812665505 | AM49: 0.05175071633 | AN49: -0.03588227649 | AO49: -0.04287256689 | AP49: -0.05435630818 | AQ49: 0.1301948114 | AR49: -0.02645669963 | AS49: -0.05165294807 | AT49: -0.1535119673 | AU49: -0.1885019759 | AV49: -0.1562975816 | AW49: -0.1885019759 | AX49: 0.242780966 | AY49: 0.4591178711 | AZ49: -0.1313684286
B50: Acid-C*salt-C | C50: -0.2182178902 | D50: 0.5345224838 | E50: -0.2182178902 | F50: -0.1373330009 | G50: -0.129907587 | H50: 0.5345224838 | I50: -0.1317719683 | J50: -0.1354841162 | K50: -0.1068355928 | L50: -0.1068355928 | M50: -0.1007585444 | N50: 1 | O50: -0.07394738666 | P50: -0.06884283908 | Q50: -0.1068355928 | R50: -0.1068355928 | S50: -0.1007585444 | T50: -0.133630621 | U50: -0.133630621 | V50: 0.3319362744 | W50: 0.3803365946 | X50: -0.1354841162 | Y50: -0.1317719683 | Z50: -0.1108006576 | AA50: -0.1556749623 | AB50: 0.3215216573 | AC50: 0.3919247577 | AD50: -0.1147078669 | AE50: -0.152017248 | AF50: -0.1108006576 | AG50: -0.1088259124 | AH50: -0.09660422437 | AI50: 0.5420619603 | AJ50: -0.1354841162 | AK50: -0.1317719683 | AL50: -0.1373330009 | AM50: -0.1317719683 | AN50: 0.1017489788 | AO50: 0.1345039515 | AP50: -0.1166423687 | AQ50: -0.152017248 | AR50: 0.1381974982 | AS50: 0.1020304649 | AT50: 0.2482591126 | AU50: 0.2227177016 | AV50: -0.1108006576 | AW50: -0.133630621 | AX50: -0.09660422437 | AY50: -0.1317719683 | AZ50: 0.1194595573
B51: Acid-C*salt-D | C51: -0.2259129979 | D51: 0.5533715711 | E51: -0.2259129979 | F51: -0.1421758312 | G51: -0.1344885719 | H51: 0.5533715711 | I51: -0.1364186976 | J51: -0.1402617485 | K51: -0.1106029805 | L51: -0.1106029805 | M51: -0.1043116346 | N51: -0.07394738666 | O51: 1 | P51: -0.07127047257 | Q51: -0.1106029805 | R51: -0.1106029805 | S51: -0.1043116346 | T51: -0.1383428928 | U51: -0.1383428928 | V51: 0.4329158108 | W51: 0.3062206916 | X51: -0.1402617485 | Y51: -0.1364186976 | Z51: -0.1147078669 | AA51: -0.1611645928 | AB51: 0.420387478 | AC51: 0.316471032 | AD51: -0.1187528579 | AE51: -0.1573778951 | AF51: -0.1147078669 | AG51: -0.1126634855 | AH51: -0.1000108191 | AI51: -0.1364186976 | AJ51: 0.5458011519 | AK51: -0.1364186976 | AL51: -0.1421758312 | AM51: -0.1364186976 | AN51: 0.1635761992 | AO51: 0.08150636861 | AP51: -0.1207555768 | AQ51: -0.1573778951 | AR51: 0.2047701021 | AS51: 0.05007688213 | AT51: -0.1126634855 | AU51: -0.1383428928 | AV51: 0.3252228727 | AW51: 0.1642821852 | AX51: -0.1000108191 | AY51: -0.1364186976 | AZ51: -0.01925747337
B52: Acid-C*salt-R | C52: -0.2103183474 | D52: 0.5151726348 | E52: -0.2103183474 | F52: -0.1323615115 | G52: -0.1252048995 | H52: 0.5151726348 | I52: -0.1270017897 | J52: -0.1305795569 | K52: -0.1029681173 | L52: -0.1029681173 | M52: -0.09711105959 | N52: -0.06884283908 | O52: -0.07127047257 | P52: 1 | Q52: -0.1029681173 | R52: -0.1029681173 | S52: -0.09711105959 | T52: -0.1287931587 | U52: -0.1287931587 | V52: 0.2868818773 | W52: 0.3989602119 | X52: -0.1305795569 | Y52: -0.1270017897 | Z52: -0.1067896457 | AA52: -0.1500394893 | AB52: 0.3382254029 | AC52: 0.3488285398 | AD52: -0.1105554131 | AE52: -0.1465141852 | AF52: -0.1067896457 | AG52: -0.1048863868 | AH52: -0.09310712702 | AI52: -0.1270017897 | AJ52: -0.1305795569 | AK52: 0.5224391803 | AL52: -0.1323615115 | AM52: -0.1270017897 | AN52: 0.07651275214 | AO52: 0.1510032603 | AP52: -0.1124198855 | AQ52: -0.1465141852 | AR52: 0.1531739209 | AS52: 0.08034847229 | AT52: -0.1048863868 | AU52: -0.1287931587 | AV52: -0.1067896457 | AW52: -0.1287931587 | AX52: 0.3097602495 | AY52: 0.1977186953 | AZ52: 0.07230660417
B53: Acid-L*salt-C | C53: -0.3263881273 | D53: -0.1998710925 | E53: 0.4895821909 | F53: -0.2054087358 | G53: -0.1943025569 | H53: -0.1998710925 | I53: 0.3230907033 | J53: 0.2769648757 | K53: -0.1597938144 | L53: -0.1597938144 | M53: -0.1507043834 | N53: -0.1068355928 | O53: -0.1106029805 | P53: -0.1029681173 | Q53: 1 | R53: -0.1597938144 | S53: -0.1507043834 | T53: -0.1998710925 | U53: -0.1998710925 | V53: -0.1315961863 | W53: -0.1348864159 | X53: 0.2769648757 | Y53: 0.3230907033 | Z53: -0.165724355 | AA53: -0.2328427763 | AB53: -0.1348864159 | AC53: -0.1315961863 | AD53: 0.2553759482 | AE53: 0.3427248587 | AF53: 0.4174698563 | AG53: -0.162770732 | AH53: -0.1444907741 | AI53: 0.29057934 | AJ53: -0.2026433621 | AK53: -0.1970911088 | AL53: 0.04835634618 | AM53: 0.06299979724 | AN53: -0.05928825461 | AO53: -0.03843834868 | AP53: 0.1069281954 | AQ53: 0.01266881773 | AR53: -0.1073515608 | AS53: 0.003121775461 | AT53: 0.2802544459 | AU53: 0.4126370941 | AV53: -0.165724355 | AW53: -0.1998710925 | AX53: -0.1444907741 | AY53: -0.1970911088 | AZ53: 0.0605556395
B54: Acid-L*salt-D | C54: -0.3263881273 | D54: -0.1998710925 | E54: 0.4895821909 | F54: -0.2054087358 | G54: -0.1943025569 | H54: -0.1998710925 | I54: 0.3230907033 | J54: 0.2769648757 | K54: -0.1597938144 | L54: -0.1597938144 | M54: -0.1507043834 | N54: -0.1068355928 | O54: -0.1106029805 | P54: -0.1029681173 | Q54: -0.1597938144 | R54: 1 | S54: -0.1507043834 | T54: -0.1998710925 | U54: -0.1998710925 | V54: -0.1315961863 | W54: -0.1348864159 | X54: 0.3409126407 | Y54: 0.2580679768 | Z54: -0.165724355 | AA54: -0.2328427763 | AB54: -0.1348864159 | AC54: -0.1315961863 | AD54: 0.2909546407 | AE54: 0.312719764 | AF54: -0.165724355 | AG54: 0.4279295051 | AH54: -0.1444907741 | AI54: -0.1970911088 | AJ54: 0.2769648757 | AK54: -0.1970911088 | AL54: 0.08007698143 | AM54: 0.03048843399 | AN54: -0.03096583999 | AO54: -0.0665183112 | AP54: 0.1421019439 | AQ54: -0.0173362769 | AR54: -0.1073515608 | AS54: 0.003121775461 | AT54: -0.162770732 | AU54: -0.1998710925 | AV54: 0.3081209416 | AW54: 0.3803998212 | AX54: -0.1444907741 | AY54: -0.1970911088 | AZ54: 0.08298469496
B55: Acid-L*salt-R | C55: -0.3078224377 | D55: -0.1885019759 | E55: 0.4617336565 | F55: -0.1937246257 | G55: -0.1832501912 | H55: -0.1885019759 | I55: 0.2214870308 | J55: 0.3430601472 | K55: -0.1507043834 | L55: -0.1507043834 | M55: -0.1421319797 | N55: -0.1007585444 | O55: -0.1043116346 | P55: -0.09711105959 | Q55: -0.1507043834 | R55: -0.1507043834 | S55: 1 | T55: -0.1885019759 | U55: -0.1885019759 | V55: -0.1241106997 | W55: -0.1272137737 | X55: 0.2762880598 | Y55: 0.2893815566 | Z55: -0.1562975816 | AA55: -0.2195981563 | AB55: -0.1272137737 | AC55: -0.1241106997 | AD55: 0.2096914726 | AE55: 0.3495069268 | AF55: -0.1562975816 | AG55: -0.1535119673 | AH55: 0.3691318928 | AI55: -0.1858801239 | AJ55: -0.1911165526 | AK55: 0.3572760824 | AL55: 0.005005043521 | AM55: 0.01780345343 | AN55: -0.006308971691 | AO55: -0.01355242236 | AP55: 0.05582539759 | AQ55: -0.02645669963 | AR55: -0.08911730403 | AS55: 0.06118116179 | AT55: -0.1535119673 | AU55: -0.1885019759 | AV55: -0.1562975816 | AW55: -0.1885019759 | AX55: 0.2848979416 | AY55: 0.4251706082 | AZ55: 0.08304655977
B56: Acid-A*Day-10 | C56: 0.6123724357 | D56: -0.25 | E56: -0.4082482905 | F56: 0.3990560821 | G56: 0.3504223293 | H56: -0.25 | I56: -0.2465227792 | J56: -0.253467572 | K56: 0.2836880022 | L56: 0.3159252752 | M56: 0.2827529639 | N56: -0.133630621 | O56: -0.1383428928 | P56: -0.1287931587 | Q56: -0.1998710925 | R56: -0.1998710925 | S56: -0.1885019759 | T56: 1 | U56: -0.25 | V56: -0.1646013246 | W56: -0.1687167642 | X56: -0.253467572 | Y56: -0.2465227792 | Z56: 0.5150818803 | AA56: 0.2708032083 | AB56: -0.1687167642 | AC56: -0.1646013246 | AD56: -0.2145987688 | AE56: -0.2843982295 | AF56: 0.07537783614 | AG56: 0.05089865986 | AH56: 0.06256036899 | AI56: -0.07843906611 | AJ56: -0.03306098765 | AK56: -0.05042511393 | AL56: 0.3990560821 | AM56: -0.2465227792 | AN56: 0.1903549091 | AO56: -0.3290596523 | AP56: 0.1757866338 | AQ56: 0 | AR56: -0.0258543845 | AS56: -0.1117355246 | AT56: 0.08271032227 | AU56: -0.08333333333 | AV56: 0.04397040442 | AW56: -0.02777777778 | AX56: 0.02780460844 | AY56: -0.02241116175 | AZ56: -0.2606637229
B57: Acid-A*Day-30 | C57: 0.6123724357 | D57: -0.25 | E57: -0.4082482905 | F57: 0.3717234737 | G57: 0.3786821945 | H57: -0.25 | I57: -0.2465227792 | J57: -0.253467572 | K57: 0.3159252752 | L57: 0.2836880022 | M57: 0.2827529639 | N57: -0.133630621 | O57: -0.1383428928 | P57: -0.1287931587 | Q57: -0.1998710925 | R57: -0.1998710925 | S57: -0.1885019759 | T57: -0.25 | U57: 1 | V57: -0.1646013246 | W57: -0.1687167642 | X57: -0.253467572 | Y57: -0.2465227792 | Z57: 0.1067852679 | AA57: 0.6029203505 | AB57: -0.1687167642 | AC57: -0.1646013246 | AD57: -0.2145987688 | AE57: -0.2843982295 | AF57: 0.04397040442 | AG57: 0.05089865986 | AH57: 0.06256036899 | AI57: -0.02241116175 | AJ57: -0.0606118107 | AK57: -0.05042511393 | AL57: -0.2569265186 | AM57: 0.397798121 | AN57: -0.322139077 | AO57: 0.2032427264 | AP57: -0.2182178902 | AQ57: 0.310252614 | AR57: -0.0258543845 | AS57: -0.08845729034 | AT57: -0.07634798978 | AU57: 0.08333333333 | AV57: -0.1130667542 | AW57: 0.08333333333 | AX57: -0.07646267321 | AY57: 0.0616306948 | AZ57: -0.03734026025
B58: Acid-C*Day-10 | C58: -0.2687928375 | D58: 0.6584052984 | E58: -0.2687928375 | F58: -0.1691617811 | G58: -0.1600154272 | H58: 0.6584052984 | I58: -0.162311904 | J58: -0.1668843924 | K58: -0.1315961863 | L58: -0.1315961863 | M58: -0.1241106997 | N58: 0.3319362744 | O58: 0.4329158108 | P58: 0.2868818773 | Q58: -0.1315961863 | R58: -0.1315961863 | S58: -0.1241106997 | T58: -0.1646013246 | U58: -0.1646013246 | V58: 1 | W58: -0.1110840115 | X58: -0.1668843924 | Y58: -0.162311904 | Z58: -0.1364802084 | AA58: -0.1917547401 | AB58: 0.4322616969 | AC58: 0.4458128079 | AD58: -0.1412929664 | AE58: -0.1872493012 | AF58: -0.1364802084 | AG58: -0.1340477893 | AH58: -0.1189935599 | AI58: 0.1017802952 | AJ58: 0.1670492979 | AK58: 0.06405283815 | AL58: -0.1691617811 | AM58: -0.162311904 | AN58: 0.5109635445 | AO58: -0.2166546186 | AP58: -0.1436758151 | AQ58: -0.1872493012 | AR58: 0.195760633 | AS58: 0.1026876358 | AT58: -0.005521854958 | AU58: -0.01496375678 | AV58: 0.07500771785 | AW58: -0.01496375678 | AX58: 0.021427162 | AY58: -0.04912953292 | AZ58: 0.08266061756
B59: Acid-C*Day-30 | C59: -0.2755133223 | D59: 0.6748670569 | E59: -0.2755133223 | F59: -0.1733912435 | G59: -0.1640162081 | H59: 0.6748670569 | I59: -0.1663701025 | J59: -0.1710569143 | K59: -0.1348864159 | L59: -0.1348864159 | M59: -0.1272137737 | N59: 0.3803365946 | O59: 0.3062206916 | P59: 0.3989602119 | Q59: -0.1348864159 | R59: -0.1348864159 | S59: -0.1272137737 | T59: -0.1687167642 | U59: -0.1687167642 | V59: -0.1110840115 | W59: 1 | X59: -0.1710569143 | Y59: -0.1663701025 | Z59: -0.1398925507 | AA59: -0.1965490822 | AB59: 0.4672836849 | AC59: 0.4322616969 | AD59: -0.1448256395 | AE59: -0.1919309961 | AF59: -0.1398925507 | AG59: -0.1373993151 | AH59: -0.1219686927 | AI59: 0.1295450995 | AJ59: 0.08358830314 | AK59: 0.1295450995 | AL59: -0.1733912435 | AM59: -0.1663701025 | AN59: -0.2174010508 | AO59: 0.5127239485 | AP59: -0.1472680654 | AQ59: -0.1919309961 | AR59: 0.2177240944 | AS59: 0.08988688231 | AT59: 0.03061615174 | AU59: -0.02200653447 | AV59: 0.0259879442 | AW59: -0.05868409191 | AX59: 0.06159622944 | AY59: -0.01841250146 | AZ59: 0.05863865752
B60: Acid-L*Day-10 | C60: -0.4139108118 | D60: -0.253467572 | E60: 0.6208662177 | F60: -0.2604901634 | G60: -0.2464058045 | H60: -0.253467572 | I60: 0.3891144386 | J60: 0.3715083799 | K60: -0.2026433621 | L60: -0.2026433621 | M60: -0.1911165526 | N60: -0.1354841162 | O60: -0.1402617485 | P60: -0.1305795569 | Q60: 0.2769648757 | R60: 0.3409126407 | S60: 0.2762880598 | T60: -0.253467572 | U60: -0.253467572 | V60: -0.1668843924 | W60: -0.1710569143 | X60: 1 | Y60: -0.2499421211 | Z60: -0.2101642082 | AA60: -0.2952807854 | AB60: -0.1710569143 | AC60: -0.1668843924 | AD60: 0.5121804012 | AE60: 0.2758062664 | AF60: 0.03904236279 | AG60: 0.07754718839 | AH60: 0.02359402729 | AI60: -0.05544664644 | AJ60: -0.03837745932 | AK60: -0.02766157862 | AL60: 0.3630235256 | AM60: -0.2499421211 | AN60: 0.2301096455 | AO60: -0.3336238045 | AP60: 0.1394803135 | AQ60: -0.006268324236 | AR60: 0.01937482037 | AS60: -0.1189290723 | AT60: 0.04599543904 | AU60: -0.0606118107 | AV60: 0.07019318417 | AW60: -0.03306098765 | AX60: 0.0580658204 | AY60: -0.05544664644 | AZ60: 0.1784932898
B61: Acid-L*Day-30 | C61: -0.4025700127 | D61: -0.2465227792 | E61: 0.603855019 | F61: -0.2533529576 | G61: -0.239654498 | H61: -0.2465227792 | I61: 0.3502009041 | J61: 0.3891144386 | K61: -0.1970911088 | L61: -0.1970911088 | M61: -0.1858801239 | N61: -0.1317719683 | O61: -0.1364186976 | P61: -0.1270017897 | Q61: 0.3230907033 | R61: 0.2580679768 | S61: 0.2893815566 | T61: -0.2465227792 | U61: -0.2465227792 | V61: -0.162311904 | W61: -0.1663701025 | X61: -0.2499421211 | Y61: 1 | Z61: -0.2044058902 | AA61: -0.2871903466 | AB61: -0.1663701025 | AC61: -0.162311904 | AD61: 0.1284798919 | AE61: 0.5800062196 | AF61: 0.04898984146 | AG61: 0.02381207281 | AH61: 0.03209137922 | AI61: -0.01707684581 | AJ61: -0.05544664644 | AK61: -0.01707684581 | AL61: -0.2533529576 | AM61: 0.3502009041 | AN61: -0.3176584822 | AO61: 0.2367466419 | AP61: 0.1210402817 | AQ61: -0.01970051096 | AR61: -0.2804425677 | AS61: 0.1772710347 | AT61: -0.07243432926 | AU61: 0.08964464698 | AV61: -0.07770802438 | AW61: 0.03361674262 | AX61: -0.0730624119 | AY61: 0.06767955801 | AZ61: 0.0123560675
B62: Acid-A*Replicate-1 | C62: 0.5077524003 | D62: -0.2072890494 | E62: -0.3385016002 | F62: 0.1887209953 | G62: 0.4375364031 | H62: -0.2072890494 | I62: -0.2044058902 | J62: -0.2101642082 | K62: 0.3081209416 | L62: 0.2352216652 | M62: 0.1862377027 | N62: -0.1108006576 | O62: -0.1147078669 | P62: -0.1067896457 | Q62: -0.165724355 | R62: -0.165724355 | S62: -0.1562975816 | T62: 0.5150818803 | U62: 0.1067852679 | V62: -0.1364802084 | W62: -0.1398925507 | X62: -0.2101642082 | Y62: -0.2044058902 | Z62: 1 | AA62: -0.2414844346 | AB62: -0.1398925507 | AC62: -0.1364802084 | AD62: -0.1779358992 | AE62: -0.2358105546 | AF62: 0.04119318182 | AG62: -0.02493810048 | AH62: -0.03196173109 | AI62: 0.017315375 | AJ62: 0.007891541415 | AK62: -0.01435909146 | AL62: 0.1887209953 | AM62: -0.2044058902 | AN62: 0.008829871476 | AO62: 0.0007295236633 | AP62: 0.2645514107 | AQ62: -0.2358105546 | AR62: 0.348843713 | AS62: -0.3049604174 | AT62: 0.2987776269 | AU62: -0.2072890494 | AV62: 0.21875 | AW62: -0.2072890494 | AX62: 0.2038215311 | AY62: -0.2044058902 | AZ62: -0.08291121526
B63: Acid-A*Replicate-2 | C63: 0.7133922984 | D63: -0.2912411863 | E63: -0.4755948656 | F63: 0.5553832331 | G63: 0.3146625898 | H63: -0.2912411863 | I63: -0.2871903466 | J63: -0.2952807854 | K63: 0.3008376108 | L63: 0.3601354316 | M63: 0.3686111909 | N63: -0.1556749623 | O63: -0.1611645928 | P63: -0.1500394893 | Q63: -0.2328427763 | R63: -0.2328427763 | S63: -0.2195981563 | T63: 0.2708032083 | U63: 0.6029203505 | V63: -0.1917547401 | W63: -0.1965490822 | X63: -0.2952807854 | Y63: -0.2871903466 | Z63: -0.2414844346 | AA63: 1 | AB63: -0.1965490822 | AC63: -0.1917547401 | AD63: -0.25 | AE63: -0.3313139109 | AF63: 0.0762582425 | AG63: 0.113909093 | AH63: 0.1410730213 | AI63: -0.1068375572 | AJ63: -0.09257086407 | AK63: -0.08107287297 | AL63: -0.02279182851 | AM63: 0.3053973901 | AN63: -0.1283854916 | AO63: -0.1163083703 | AP63: -0.2542161489 | AQ63: 0.4771554411 | AR63: -0.3313139109 | AS63: 0.06394214939 | AT63: -0.2371805772 | AU63: 0.1686133184 | AV63: -0.2414844346 | AW63: 0.2197082633 | AX63: -0.2105440258 | AY63: 0.2023386533 | AZ63: -0.2066352035
B64: Acid-C*Replicate-1 | C64: -0.2755133223 | D64: 0.6748670569 | E64: -0.2755133223 | F64: -0.1733912435 | G64: -0.1640162081 | H64: 0.6748670569 | I64: -0.1663701025 | J64: -0.1710569143 | K64: -0.1348864159 | L64: -0.1348864159 | M64: -0.1272137737 | N64: 0.3215216573 | O64: 0.420387478 | P64: 0.3382254029 | Q64: -0.1348864159 | R64: -0.1348864159 | S64: -0.1272137737 | T64: -0.1687167642 | U64: -0.1687167642 | V64: 0.4322616969 | W64: 0.4672836849 | X64: -0.1710569143 | Y64: -0.1663701025 | Z64: -0.1398925507 | AA64: -0.1965490822 | AB64: 1 | AC64: -0.1110840115 | AD64: -0.1448256395 | AE64: -0.1919309961 | AF64: -0.1398925507 | AG64: -0.1373993151 | AH64: -0.1219686927 | AI64: 0.0925556993 | AJ64: 0.1563440796 | AK64: 0.0925556993 | AL64: -0.1733912435 | AM64: -0.1663701025 | AN64: 0.1370571842 | AO64: 0.1613000292 | AP64: -0.1472680654 | AQ64: -0.1919309961 | AR64: 0.5932412608 | AS64: -0.2482134729 | AT64: 0.1566277519 | AU64: -0.1687167642 | AV64: 0.2333385628 | AW64: -0.1687167642 | AX64: 0.1992699211 | AY64: -0.1663701025 | AZ64: 0.05655542673
B65: Acid-C*Replicate-2 | C65: -0.2687928375 | D65: 0.6584052984 | E65: -0.2687928375 | F65: -0.1691617811 | G65: -0.1600154272 | H65: 0.6584052984 | I65: -0.162311904 | J65: -0.1668843924 | K65: -0.1315961863 | L65: -0.1315961863 | M65: -0.1241106997 | N65: 0.3919247577 | O65: 0.316471032 | P65: 0.3488285398 | Q65: -0.1315961863 | R65: -0.1315961863 | S65: -0.1241106997 | T65: -0.1646013246 | U65: -0.1646013246 | V65: 0.4458128079 | W65: 0.4322616969 | X65: -0.1668843924 | Y65: -0.162311904 | Z65: -0.1364802084 | AA65: -0.1917547401 | AB65: -0.1110840115 | AC65: 1 | AD65: -0.1412929664 | AE65: -0.1872493012 | AF65: -0.1364802084 | AG65: -0.1340477893 | AH65: -0.1189935599 | AI65: 0.1395077522 | AJ65: 0.09284181117 | AK65: 0.1017802952 | AL65: -0.1691617811 | AM65: -0.162311904 | AN65: 0.1494327347 | AO65: 0.1417813313 | AP65: -0.1436758151 | AQ65: -0.1872493012 | AR65: -0.1872493012 | AS65: 0.4475341738 | AT65: -0.1340477893 | AU65: 0.134673811 | AV65: -0.1364802084 | AW65: 0.09726441908 | AX65: -0.1189935599 | AY65: 0.1017802952 | AZ65: 0.08478541547
B66: Acid-L*Replicate-1 | C66: -0.350438322 | D66: -0.2145987688 | E66: 0.525657483 | F66: -0.2205444583 | G66: -0.2086199109 | H66: -0.2145987688 | I66: 0.4994913445 | J66: 0.1473025428 | K66: -0.1715683615 | L66: -0.1715683615 | M66: -0.1618091678 | N66: -0.1147078669 | O66: -0.1187528579 | P66: -0.1105554131 | Q66: 0.2553759482 | R66: 0.2909546407 | S66: 0.2096914726 | T66: -0.2145987688 | U66: -0.2145987688 | V66: -0.1412929664 | W66: -0.1448256395 | X66: 0.5121804012 | Y66: 0.1284798919 | Z66: -0.1779358992 | AA66: -0.25 | AB66: -0.1448256395 | AC66: -0.1412929664 | AD66: 1 | AE66: -0.2441260396 | AF66: 0.09936680083 | AG66: 0.1412160673 | AH66: 0.07501163671 | AI66: -0.08794345542 | AJ66: -0.09594936276 | AK66: -0.08794345542 | AL66: 0.1414434064 | AM66: 0.1284798919 | AN66: 0.0466856333 | AO66: -0.282463185 | AP66: 0.5820211829 | AQ66: -0.2441260396 | AR66: 0.09828450946 | AS66: -0.3157143626 | AT66: 0.2465429684 | AU66: -0.2145987688 | AV66: 0.2726809883 | AW66: -0.2145987688 | AX66: 0.22844453 | AY66: -0.2116139396 | AZ66: 0.2142038956
B67: Acid-L*Replicate-2 | C67: -0.464420364 | D67: -0.2843982295 | E67: 0.696630546 | F67: -0.292277788 | G67: -0.2764747142 | H67: -0.2843982295 | I67: 0.2671157515 | J67: 0.5835240016 | K67: -0.2273719393 | L67: -0.2273719393 | M67: -0.2144385128 | N67: -0.152017248 | O67: -0.1573778951 | P67: -0.1465141852 | Q67: 0.3427248587 | R67: 0.312719764 | S67: 0.3495069268 | T67: -0.2843982295 | U67: -0.2843982295 | V67: -0.1872493012 | W67: -0.1919309961 | X67: 0.2758062664 | Y67: 0.5800062196 | Z67: -0.2358105546 | AA67: -0.3313139109 | AB67: -0.1919309961 | AC67: -0.1872493012 | AD67: -0.2441260396 | AE67: 1 | AF67: -0.001948847558 | AG67: -0.02434514017 | AH67: -0.0115019366 | AI67: 0.006373694721 | AJ67: -0.006268324236 | AK67: 0.0324479004 | AL67: -0.01243735268 | AM67: -0.01970051096 | AN67: -0.1166019058 | AO67: 0.143628893 | AP67: -0.2482431265 | AQ67: 0.1818181818 | AR67: -0.3235294118 | AS67: 0.3182553293 | AT67: -0.2316078199 | AU67: 0.206835076 | AV67: -0.2358105546 | AW67: 0.1809806915 | AX67: -0.2055971167 | AY67: 0.1888931345 | AZ67: -0.001741539318
B68: pH-4*salt-C | C68: 0.09744743036 | D68: -0.2072890494 | E68: 0.07180336974 | F68: 0.3123373678 | G68: -0.2015138449 | H68: -0.2072890494 | I68: 0.3023855731 | J68: -0.2101642082 | K68: 0.4539194945 | L68: -0.165724355 | M68: -0.1562975816 | N68: -0.1108006576 | O68: -0.1147078669 | P68: -0.1067896457 | Q68: 0.4174698563 | R68: -0.165724355 | S68: -0.1562975816 | T68: 0.07537783614 | U68: 0.04397040442 | V68: -0.1364802084 | W68: -0.1398925507 | X68: 0.03904236279 | Y68: 0.04898984146 | Z68: 0.04119318182 | AA68: 0.0762582425 | AB68: -0.1398925507 | AC68: -0.1364802084 | AD68: 0.09936680083 | AE68: -0.001948847558 | AF68: 1 | AG68: -0.1688117571 | AH68: -0.1498533622 | AI68: -0.2044058902 | AJ68: -0.2101642082 | AK68: -0.2044058902 | AL68: 0.3123373678 | AM68: 0.3023855731 | AN68: -0.2671036121 | AO68: -0.2728418501 | AP68: 0.2988197281 | AQ68: 0.3196109996 | AR68: -0.2358105546 | AS68: -0.3049604174 | AT68: 0.334746041 | AU68: 0.3894521534 | AV68: -0.171875 | AW68: -0.2072890494 | AX68: -0.1498533622 | AY68: -0.2044058902 | AZ68: 0.0782830964
B69: pH-4*salt-D | C69: 0.08311716349 | D69: -0.2035946394 | E69: 0.08311716349 | F69: 0.2915940813 | G69: -0.1979223635 | H69: -0.2035946394 | I69: 0.312551279 | J69: -0.2064185557 | K69: -0.162770732 | L69: 0.4279295051 | M69: -0.1535119673 | N69: -0.1088259124 | O69: -0.1126634855 | P69: -0.1048863868 | Q69: -0.162770732 | R69: 0.4279295051 | S69: -0.1535119673 | T69: 0.05089865986 | U69: 0.05089865986 | V69: -0.1340477893 | W69: -0.1373993151 | X69: 0.07754718839 | Y69: 0.02381207281 | Z69: -0.02493810048 | AA69: 0.113909093 | AB69: -0.1373993151 | AC69: -0.1340477893 | AD69: 0.1412160673 | AE69: -0.02434514017 | AF69: -0.1688117571 | AG69: 1 | AH69: -0.1471826 | AI69: -0.2007628654 | AJ69: -0.2064185557 | AK69: -0.2007628654 | AL69: 0.3228959268 | AM69: 0.280469145 | AN69: -0.2623431569 | AO69: -0.267979125 | AP69: 0.2735098299 | AQ69: 0.3309623109 | AR69: -0.2316078199 | AS69: -0.299525259 | AT69: -0.1658031088 | AU69: -0.2035946394 | AV69: 0.2987776269 | AW69: 0.4008269464 | AX69: -0.1471826 | AY69: -0.2007628654 | AZ69: 0.03206698239
B70: pH-4*salt-R | C70: 0.1021606548 | D70: -0.1807299549 | E70: 0.04540473545 | F70: 0.2930453856 | G70: -0.1756947036 | H70: -0.1807299549 | I70: 0.2423989615 | J70: -0.1832367314 | K70: -0.1444907741 | L70: -0.1444907741 | M70: 0.453365844 | N70: -0.09660422437 | O70: -0.1000108191 | P70: -0.09310712702 | Q70: -0.1444907741 | R70: -0.1444907741 | S70: 0.3691318928 | T70: 0.06256036899 | U70: 0.06256036899 | V70: -0.1189935599 | W70: -0.1219686927 | X70: 0.02359402729 | Y70: 0.03209137922 | Z70: -0.03196173109 | AA70: 0.1410730213 | AB70: -0.1219686927 | AC70: -0.1189935599 | AD70: 0.07501163671 | AE70: -0.0115019366 | AF70: -0.1498533622 | AG70: -0.1471826 | AH70: 1 | AI70: -0.178216203 | AJ70: -0.1832367314 | AK70: -0.178216203 | AL70: 0.2588466243 | AM70: 0.2774502252 | AN70: -0.2328807233 | AO70: -0.2378837444 | AP70: 0.1835407555 | AQ70: 0.3443392269 | AR70: -0.2055971167 | AS70: -0.2658870916 | AT70: -0.1471826 | AU70: -0.1807299549 | AV70: -0.1498533622 | AW70: -0.1807299549 | AX70: 0.2607267105 | AY70: 0.41765528 | AZ70: 0.04834969178
B71: pH-6*salt-C | C71: -0.08234386623 | D71: 0.1736865035 | E71: -0.05947057005 | F71: -0.2533529576 | G71: 0.1593474411 | H71: 0.1736865035 | I71: -0.2430939227 | J71: 0.1668338961 | K71: 0.2580679768 | L71: -0.1970911088 | M71: -0.1858801239 | N71: 0.5420619603 | O71: -0.1364186976 | P71: -0.1270017897 | Q71: 0.29057934 | R71: -0.1970911088 | S71: -0.1858801239 | T71: -0.07843906611 | U71: -0.02241116175 | V71: 0.1017802952 | W71: 0.1295450995 | X71: -0.05544664644 | Y71: -0.01707684581 | Z71: 0.017315375 | AA71: -0.1068375572 | AB71: 0.0925556993 | AC71: 0.1395077522 | AD71: -0.08794345542 | AE71: 0.006373694721 | AF71: -0.2044058902 | AG71: -0.2007628654 | AH71: -0.178216203 | AI71: 1 | AJ71: -0.2499421211 | AK71: -0.2430939227 | AL71: -0.2533529576 | AM71: -0.2430939227 | AN71: 0.1745809014 | AO71: 0.261147922 | AP71: -0.2151827231 | AQ71: -0.2804425677 | AR71: 0.1888931345 | AS71: 0.2476994917 | AT71: 0.3767155471 | AU71: 0.4818399775 | AV71: -0.2044058902 | AW71: -0.2465227792 | AX71: -0.178216203 | AY71: -0.2430939227 | AZ71: -0.1231962229
B72: pH-6*salt-D | C72: -0.07648351958 | D72: 0.1873455967 | E72: -0.07648351958 | F72: -0.2604901634 | G72: 0.1740287709 | H72: 0.1873455967 | I72: -0.2499421211 | J72: 0.152902599 | K72: -0.2026433621 | L72: 0.2769648757 | M72: -0.1911165526 | N72: -0.1354841162 | O72: 0.5458011519 | P72: -0.1305795569 | Q72: -0.2026433621 | R72: 0.2769648757 | S72: -0.1911165526 | T72: -0.03306098765 | U72: -0.0606118107 | V72: 0.1670492979 | W72: 0.08358830314 | X72: -0.03837745932 | Y72: -0.05544664644 | Z72: 0.007891541415 | AA72: -0.09257086407 | AB72: 0.1563440796 | AC72: 0.09284181117 | AD72: -0.09594936276 | AE72: -0.006268324236 | AF72: -0.2101642082 | AG72: -0.2064185557 | AH72: -0.1832367314 | AI72: -0.2499421211 | AJ72: 1 | AK72: -0.2499421211 | AL72: -0.2604901634 | AM72: -0.2499421211 | AN72: 0.2785198093 | AO72: 0.1703315907 | AP72: -0.2212446352 | AQ72: -0.2883429148 | AR72: 0.2245199772 | AS72: 0.2273915653 | AT72: -0.2064185557 | AU72: -0.253467572 | AV72: 0.4128522193 | AW72: 0.4628538271 | AX72: -0.1832367314 | AY72: -0.2499421211 | AZ72: 0.02095849169
B73: pH-6*salt-R | C73: -0.08234386623 | D73: 0.1456725513 | E73: -0.03659727388 | F73: -0.2533529576 | G73: 0.1593474411 | H73: 0.1456725513 | I73: -0.2430939227 | J73: 0.1946189639 | K73: -0.1970911088 | L73: -0.1970911088 | M73: 0.2893815566 | N73: -0.1317719683 | O73: -0.1364186976 | P73: 0.5224391803 | Q73: -0.1970911088 | R73: -0.1970911088 | S73: 0.3572760824 | T73: -0.05042511393 | U73: -0.05042511393 | V73: 0.06405283815 | W73: 0.1295450995 | X73: -0.02766157862 | Y73: -0.01707684581 | Z73: -0.01435909146 | AA73: -0.08107287297 | AB73: 0.0925556993 | AC73: 0.1017802952 | AD73: -0.08794345542 | AE73: 0.0324479004 | AF73: -0.2044058902 | AG73: -0.2007628654 | AH73: -0.178216203 | AI73: -0.2430939227 | AJ73: -0.2499421211 | AK73: 1 | AL73: -0.2533529576 | AM73: -0.2430939227 | AN73: 0.1991928705 | AO73: 0.2367466419 | AP73: -0.2151827231 | AQ73: -0.2804425677 | AR73: 0.1628189288 | AS73: 0.271175644 | AT73: -0.2007628654 | AU73: -0.2465227792 | AV73: -0.2044058902 | AW73: -0.2465227792 | AX73: 0.41765528 | AY73: 0.5197137117 | AZ73: -0.03514919068
B74: pH-4*Day-10 | C74: 0.1160483026 | D74: -0.2569265186 | E74: 0.09373132135 | F74: 0.3814248147 | G74: -0.2497683826 | H74: -0.2569265186 | I74: 0.380641992 | J74: -0.2604901634 | K74: 0.08007698143 | L74: 0.04835634618 | M74: 0.03812665505 | N74: -0.1373330009 | O74: -0.1421758312 | P74: -0.1323615115 | Q74: 0.04835634618 | R74: 0.08007698143 | S74: 0.005005043521 | T74: 0.3990560821 | U74: -0.2569265186 | V74: -0.1691617811 | W74: -0.1733912435 | X74: 0.3630235256 | Y74: -0.2533529576 | Z74: 0.1887209953 | AA74: -0.02279182851 | AB74: -0.1733912435 | AC74: -0.1691617811 | AD74: 0.1414434064 | AE74: -0.01243735268 | AF74: 0.3123373678 | AG74: 0.3228959268 | AH74: 0.2588466243 | AI74: -0.2533529576 | AJ74: -0.2604901634 | AK74: -0.2533529576 | AL74: 1 | AM74: -0.2533529576 | AN74: -0.3310642862 | AO74: -0.3381766035 | AP74: 0.5212941651 | AQ74: 0.2674030826 | AR74: -0.292277788 | AS74: -0.3779862881 | AT74: 0.1037830079 | AU74: -0.06559826007 | AV74: 0.06510462283 | AW74: -0.0382656517 | AX74: 0.01945529531 | AY74: -0.06039797298 | AZ74: 0.115569027
B75: pH-4*Day-30 | C75: 0.1235157993 | D75: -0.2465227792 | E75: 0.07776920699 | F75: 0.380641992 | G75: -0.239654498 | H75: -0.2465227792 | I75: 0.3502009041 | J75: -0.2499421211 | K75: 0.06299979724 | L75: 0.06299979724 | M75: 0.05175071633 | N75: -0.1317719683 | O75: -0.1364186976 | P75: -0.1270017897 | Q75: 0.06299979724 | R75: 0.03048843399 | S75: 0.01780345343 | T75: -0.2465227792 | U75: 0.397798121 | V75: -0.162311904 | W75: -0.1663701025 | X75: -0.2499421211 | Y75: 0.3502009041 | Z75: -0.2044058902 | AA75: 0.3053973901 | AB75: -0.1663701025 | AC75: -0.162311904 | AD75: 0.1284798919 | AE75: -0.01970051096 | AF75: 0.3023855731 | AG75: 0.280469145 | AH75: 0.2774502252 | AI75: -0.2430939227 | AJ75: -0.2499421211 | AK75: -0.2430939227 | AL75: -0.2533529576 | AM75: 1 | AN75: -0.3176584822 | AO75: -0.3244828 | AP75: 0.1210402817 | AQ75: 0.5800062196 | AR75: -0.2804425677 | AS75: -0.3626804689 | AT75: -0.07243432926 | AU75: 0.08964464698 | AV75: -0.07770802438 | AW75: 0.0616306948 | AX75: -0.0730624119 | AY75: 0.03942742341 | AZ75: 0.01858469264
B76: pH-6*Day-10 | C76: -0.1076013225 | D76: 0.2147593846 | E76: -0.06774898081 | F76: -0.3310642862 | G76: 0.2082243181 | H76: 0.2147593846 | I76: -0.3176584822 | J76: 0.2301096455 | K76: -0.08761066923 | L76: -0.03096583999 | M76: -0.03588227649 | N76: 0.1017489788 | O76: 0.1635761992 | P76: 0.07651275214 | Q76: -0.05928825461 | R76: -0.03096583999 | S76: -0.006308971691 | T76: 0.1903549091 | U76: -0.322139077 | V76: 0.5109635445 | W76: -0.2174010508 | X76: 0.2301096455 | Y76: -0.3176584822 | Z76: 0.008829871476 | AA76: -0.1283854916 | AB76: 0.1370571842 | AC76: 0.1494327347 | AD76: 0.0466856333 | AE76: -0.1166019058 | AF76: -0.2671036121 | AG76: -0.2623431569 | AH76: -0.2328807233 | AI76: 0.1745809014 | AJ76: 0.2785198093 | AK76: 0.1991928705 | AL76: -0.3310642862 | AM76: -0.3176584822 | AN76: 1 | AO76: -0.4240118906 | AP76: -0.2811860389 | AQ76: -0.3664631326 | AR76: 0.3831205477 | AS76: 0.2009686148 | AT76: 0.01714174036 | AU76: -0.07809432169 | AV76: 0.09160991656 | AW76: -0.02928537063 | AX76: 0.07246987545 | AY76: -0.04692682123 | AZ76: -0.1201634279
B77: pH-6*Day-30 | C77: -0.1027290898 | D77: 0.2274382891 | E77: -0.08297349561 | F77: -0.3381766035 | G77: 0.2216487246 | H77: 0.2274382891 | I77: -0.3244828 | J77: 0.2183273426 | K77: -0.03843834868 | L77: -0.0665183112 | M77: -0.04287256689 | N77: 0.1345039515 | O77: 0.08150636861 | P77: 0.1510032603 | Q77: -0.03843834868 | R77: -0.0665183112 | S77: -0.01355242236 | T77: -0.3290596523 | U77: 0.2032427264 | V77: -0.2166546186 | W77: 0.5127239485 | X77: -0.3336238045 | Y77: 0.2367466419 | Z77: 0.0007295236633 | AA77: -0.1163083703 | AB77: 0.1613000292 | AC77: 0.1417813313 | AD77: -0.282463185 | AE77: 0.143628893 | AF77: -0.2728418501 | AG77: -0.267979125 | AH77: -0.2378837444 | AI77: 0.261147922 | AJ77: 0.1703315907 | AK77: 0.2367466419 | AL77: -0.3381766035 | AM77: -0.3244828 | AN77: -0.4240118906 | AO77: 1 | AP77: -0.2872268124 | AQ77: -0.3743359301 | AR77: 0.1211086833 | AS77: 0.448601412 | AT77: -0.04630521646 | AU77: 0.05806935041 | AV77: -0.08134188846 | AW77: 0.009678225068 | AX77: -0.02596807844 | AY77: 0.06593768129 | AZ77: 0.0007784141311
B78: pH-4*Replicate-1 | C78: -0.0346449758 | D78: -0.2182178902 | E78: 0.2128191371 | F78: 0.1634263172 | G78: -0.2121382013 | H78: -0.2182178902 | I78: 0.4878290143 | J78: -0.2212446352 | K78: 0.03658069842 | L78: -0.03376679854 | M78: -0.05435630818 | N78: -0.1166423687 | O78: -0.1207555768 | P78: -0.1124198855 | Q78: 0.1069281954 | R78: 0.1421019439 | S78: 0.05582539759 | T78: 0.1757866338 | U78: -0.2182178902 | V78: -0.1436758151 | W78: -0.1472680654 | X78: 0.1394803135 | Y78: 0.1210402817 | Z78: 0.2645514107 | AA78: -0.2542161489 | AB78: -0.1472680654 | AC78: -0.1436758151 | AD78: 0.5820211829 | AE78: -0.2482431265 | AF78: 0.2988197281 | AG78: 0.2735098299 | AH78: 0.1835407555 | AI78: -0.2151827231 | AJ78: -0.2212446352 | AK78: -0.2151827231 | AL78: 0.5212941651 | AM78: 0.1210402817 | AN78: -0.2811860389 | AO78: -0.2872268124 | AP78: 1 | AQ78: -0.2482431265 | AR78: -0.2482431265 | AS78: -0.3210387576 | AT78: 0.3082191992 | AU78: -0.2182178902 | AV78: 0.2645514107 | AW78: -0.2182178902 | AX78: 0.1835407555 | AY78: -0.2151827231 | AZ78: 0.1091739597
B79: pH-4*Replicate-2 | C79: 0.2533201986 | D79: -0.2843982295 | E79: -0.02111001655 | F79: 0.5726835575 | G79: -0.2764747142 | H79: -0.2843982295 | I79: 0.2671157515 | J79: -0.2883429148 | K79: 0.1026841016 | L79: 0.1326891963 | M79: 0.1301948114 | N79: -0.152017248 | O79: -0.1573778951 | P79: -0.1465141852 | Q79: 0.01266881773 | R79: -0.0173362769 | S79: -0.02645669963 | T79: 0 | U79: 0.310252614 | V79: -0.1872493012 | W79: -0.1919309961 | X79: -0.006268324236 | Y79: -0.01970051096 | Z79: -0.2358105546 | AA79: 0.4771554411 | AB79: -0.1919309961 | AC79: -0.1872493012 | AD79: -0.2441260396 | AE79: 0.1818181818 | AF79: 0.3196109996 | AG79: 0.3309623109 | AH79: 0.3443392269 | AI79: -0.2804425677 | AJ79: -0.2883429148 | AK79: -0.2804425677 | AL79: 0.2674030826 | AM79: 0.5800062196 | AN79: -0.3664631326 | AO79: -0.3743359301 | AP79: -0.2482431265 | AQ79: 1 | AR79: -0.3235294118 | AS79: -0.4184022408 | AT79: -0.2316078199 | AU79: 0.206835076 | AV79: -0.2358105546 | AW79: 0.206835076 | AX79: -0.2055971167 | AY79: 0.1628189288 | AZ79: 0.03333950301
B80: pH-6*Replicate-1 | C80: -0.04222003309 | D80: 0.310252614 | E80: -0.2111001655 | F80: -0.292277788 | G80: 0.2495871099 | H80: 0.310252614 | I80: -0.2804425677 | J80: 0.01937482037 | K80: -0.0173362769 | L80: -0.0173362769 | M80: -0.02645669963 | N80: 0.1381974982 | O80: 0.2047701021 | P80: 0.1531739209 | Q80: -0.1073515608 | R80: -0.1073515608 | S80: -0.08911730403 | T80: -0.0258543845 | U80: -0.0258543845 | V80: 0.195760633 | W80: 0.2177240944 | X80: 0.01937482037 | Y80: -0.2804425677 | Z80: 0.348843713 | AA80: -0.3313139109 | AB80: 0.5932412608 | AC80: -0.1872493012 | AD80: 0.09828450946 | AE80: -0.3235294118 | AF80: -0.2358105546 | AG80: -0.2316078199 | AH80: -0.2055971167 | AI80: 0.1888931345 | AJ80: 0.2245199772 | AK80: 0.1628189288 | AL80: -0.292277788 | AM80: -0.2804425677 | AN80: 0.3831205477 | AO80: 0.1211086833 | AP80: -0.2482431265 | AQ80: -0.3235294118 | AR80: 1 | AS80: -0.4184022408 | AT80: 0.3013533566 | AU80: -0.2843982295 | AV80: 0.348843713 | AW80: -0.2843982295 | AX80: 0.3443392269 | AY80: -0.2804425677 | AZ80: 0.05913098024
B81: pH-6*Replicate-2 | C81: -0.163456749 | D81: 0.1443250527 | E81: 0.04561583692 | F81: -0.3779862881 | G81: 0.1871422563 | H81: 0.1443250527 | I81: -0.3626804689 | J81: 0.4120959053 | K81: -0.1049396828 | L81: -0.07792431825 | M81: -0.05165294807 | N81: 0.1020304649 | O81: 0.05007688213 | P81: 0.08034847229 | Q81: 0.003121775461 | R81: 0.003121775461 | S81: 0.06118116179 | T81: -0.1117355246 | U81: -0.08845729034 | V81: 0.1026876358 | W81: 0.08988688231 | X81: -0.1189290723 | Y81: 0.1772710347 | Z81: -0.3049604174 | AA81: 0.06394214939 | AB81: -0.2482134729 | AC81: 0.4475341738 | AD81: -0.3157143626 | AE81: 0.3182553293 | AF81: -0.3049604174 | AG81: -0.299525259 | AH81: -0.2658870916 | AI81: 0.2476994917 | AJ81: 0.2273915653 | AK81: 0.271175644 | AL81: -0.3779862881 | AM81: -0.3626804689 | AN81: 0.2009686148 | AO81: 0.448601412 | AP81: -0.3210387576 | AQ81: -0.4184022408 | AR81: -0.4184022408 | AS81: 1 | AT81: -0.299525259 | AU81: 0.2374379899 | AV81: -0.3049604174 | AW81: 0.2374379899 | AX81: -0.2658870916 | AY81: 0.271175644 | AZ81: -0.1671082334
B82: salt-C*Replicate-1 | C82: 0.005194822718 | D82: 0.01908699745 | E82: -0.02077929087 | F82: -0.02142437429 | G82: 0.02862394646 | H82: 0.01908699745 | I82: 0.05589420683 | J82: -0.08021155833 | K82: 0.3171732107 | L82: -0.162770732 | M82: -0.1535119673 | N82: 0.2482591126 | O82: -0.1126634855 | P82: -0.1048863868 | Q82: 0.2802544459 | R82: -0.162770732 | S82: -0.1535119673 | T82: 0.08271032227 | U82: -0.07634798978 | V82: -0.005521854958 | W82: 0.03061615174 | X82: 0.04599543904 | Y82: -0.07243432926 | Z82: 0.2987776269 | AA82: -0.2371805772 | AB82: 0.1566277519 | AC82: -0.1340477893 | AD82: 0.2465429684 | AE82: -0.2316078199 | AF82: 0.334746041 | AG82: -0.1658031088 | AH82: -0.1471826 | AI82: 0.3767155471 | AJ82: -0.2064185557 | AK82: -0.2007628654 | AL82: 0.1037830079 | AM82: -0.07243432926 | AN82: 0.01714174036 | AO82: -0.04630521646 | AP82: 0.3082191992 | AQ82: -0.2316078199 | AR82: 0.3013533566 | AS82: -0.299525259 | AT82: 1 | AU82: -0.2035946394 | AV82: -0.1688117571 | AW82: -0.2035946394 | AX82: -0.1471826 | AY82: -0.2007628654 | AZ82: 0.1323208082
B83: salt-C*Replicate-2 | C83: 0 | D83: -0.02777777778 | E83: 0.02268046058 | F83: 0.04373217338 | G83: -0.04521578442 | H83: -0.02777777778 | I83: -0.02241116175 | J83: 0.04959148148 | K83: 0.3803998212 | L83: -0.1998710925 | M83: -0.1885019759 | N83: 0.2227177016 | O83: -0.1383428928 | P83: -0.1287931587 | Q83: 0.4126370941 | R83: -0.1998710925 | S83: -0.1885019759 | T83: -0.08333333333 | U83: 0.08333333333 | V83: -0.01496375678 | W83: -0.02200653447 | X83: -0.0606118107 | Y83: 0.08964464698 | Z83: -0.2072890494 | AA83: 0.1686133184 | AB83: -0.1687167642 | AC83: 0.134673811 | AD83: -0.2145987688 | AE83: 0.206835076 | AF83: 0.3894521534 | AG83: -0.2035946394 | AH83: -0.1807299549 | AI83: 0.4818399775 | AJ83: -0.253467572 | AK83: -0.2465227792 | AL83: -0.06559826007 | AM83: 0.08964464698 | AN83: -0.07809432169 | AO83: 0.05806935041 | AP83: -0.2182178902 | AQ83: 0.206835076 | AR83: -0.2843982295 | AS83: 0.2374379899 | AT83: -0.2035946394 | AU83: 1 | AV83: -0.2072890494 | AW83: -0.25 | AX83: -0.1807299549 | AY83: -0.2465227792 | AZ83: -0.1684632693
B84: salt-D*Replicate-1 | C84: -0.05641693337 | D84: 0.07537783614 | E84: -0.005128812124 | F84: -0.08941584275 | G84: 0.02215374193 | H84: 0.07537783614 | I84: 0.08066430792 | J84: -0.08556092271 | K84: -0.165724355 | L84: 0.2352216652 | M84: -0.1562975816 | N84: -0.1108006576 | O84: 0.3252228727 | P84: -0.1067896457 | Q84: -0.165724355 | R84: 0.3081209416 | S84: -0.1562975816 | T84: 0.04397040442 | U84: -0.1130667542 | V84: 0.07500771785 | W84: 0.0259879442 | X84: 0.07019318417 | Y84: -0.07770802438 | Z84: 0.21875 | AA84: -0.2414844346 | AB84: 0.2333385628 | AC84: -0.1364802084 | AD84: 0.2726809883 | AE84: -0.2358105546 | AF84: -0.171875 | AG84: 0.2987776269 | AH84: -0.1498533622 | AI84: -0.2044058902 | AJ84: 0.4128522193 | AK84: -0.2044058902 | AL84: 0.06510462283 | AM84: -0.07770802438 | AN84: 0.09160991656 | AO84: -0.08134188846 | AP84: 0.2645514107 | AQ84: -0.2358105546 | AR84: 0.348843713 | AS84: -0.3049604174 | AT84: -0.1688117571 | AU84: -0.2072890494 | AV84: 1 | AW84: -0.2072890494 | AX84: -0.1498533622 | AY84: -0.2044058902 | AZ84: 0.0789307765
B85: salt-D*Replicate-2 | C85: 0.04536092116 | D85: -0.05555555556 | E85: -8.057718255e-17 | F85: 0.07106478174 | G85: -0.01695591916 | H85: -0.05555555556 | I85: -0.05042511393 | J85: 0.04959148148 | K85: -0.1998710925 | L85: 0.4448743671 | M85: -0.1885019759 | N85: -0.133630621 | O85: 0.1642821852 | P85: -0.1287931587 | Q85: -0.1998710925 | R85: 0.3803998212 | S85: -0.1885019759 | T85: -0.02777777778 | U85: 0.08333333333 | V85: -0.01496375678 | W85: -0.05868409191 | X85: -0.03306098765 | Y85: 0.03361674262 | Z85: -0.2072890494 | AA85: 0.2197082633 | AB85: -0.1687167642 | AC85: 0.09726441908 | AD85: -0.2145987688 | AE85: 0.1809806915 | AF85: -0.2072890494 | AG85: 0.4008269464 | AH85: -0.1807299549 | AI85: -0.2465227792 | AJ85: 0.4628538271 | AK85: -0.2465227792 | AL85: -0.0382656517 | AM85: 0.0616306948 | AN85: -0.02928537063 | AO85: 0.009678225068 | AP85: -0.2182178902 | AQ85: 0.206835076 | AR85: -0.2843982295 | AS85: 0.2374379899 | AT85: -0.2035946394 | AU85: -0.25 | AV85: -0.2072890494 | AW85: 1 | AX85: -0.1807299549 | AY85: -0.2465227792 | AZ85: -0.02067714257
B86: salt-R*Replicate-1 | C86: -0.03972914352 | D86: 0.06256036899 | E86: -0.01135118386 | F86: -0.08314098856 | G86: 0.03645900825 | H86: 0.06256036899 | I86: 0.03209137922 | J86: -0.04534955894 | K86: -0.1444907741 | L86: -0.1444907741 | M86: 0.242780966 | N86: -0.09660422437 | O86: -0.1000108191 | P86: 0.3097602495 | Q86: -0.1444907741 | R86: -0.1444907741 | S86: 0.2848979416 | T86: 0.02780460844 | U86: -0.07646267321 | V86: 0.021427162 | W86: 0.06159622944 | X86: 0.0580658204 | Y86: -0.0730624119 | Z86: 0.2038215311 | AA86: -0.2105440258 | AB86: 0.1992699211 | AC86: -0.1189935599 | AD86: 0.22844453 | AE86: -0.2055971167 | AF86: -0.1498533622 | AG86: -0.1471826 | AH86: 0.2607267105 | AI86: -0.178216203 | AJ86: -0.1832367314 | AK86: 0.41765528 | AL86: 0.01945529531 | AM86: -0.0730624119 | AN86: 0.07246987545 | AO86: -0.02596807844 | AP86: 0.1835407555 | AQ86: -0.2055971167 | AR86: 0.3443392269 | AS86: -0.2658870916 | AT86: -0.1471826 | AU86: -0.1807299549 | AV86: -0.1498533622 | AW86: -0.1807299549 | AX86: 1 | AY86: -0.178216203 | AZ86: -0.02722793505
B87: salt-R*Replicate-2 | C87: 0.03202261464 | D87: -0.05042511393 | E87: 0.00914931847 | F87: 0.04986201826 | G87: -0.01165338997 | H87: -0.05042511393 | I87: -0.07358111502 | J87: 0.08347869263 | K87: -0.1970911088 | L87: -0.1970911088 | M87: 0.4591178711 | N87: -0.1317719683 | O87: -0.1364186976 | P87: 0.1977186953 | Q87: -0.1970911088 | R87: -0.1970911088 | S87: 0.4251706082 | T87: -0.02241116175 | U87: 0.0616306948 | V87: -0.04912953292 | W87: -0.01841250146 | X87: -0.05544664644 | Y87: 0.06767955801 | Z87: -0.2044058902 | AA87: 0.2023386533 | AB87: -0.1663701025 | AC87: 0.1017802952 | AD87: -0.2116139396 | AE87: 0.1888931345 | AF87: -0.2044058902 | AG87: -0.2007628654 | AH87: 0.41765528 | AI87: -0.2430939227 | AJ87: -0.2499421211 | AK87: 0.5197137117 | AL87: -0.06039797298 | AM87: 0.03942742341 | AN87: -0.04692682123 | AO87: 0.06593768129 | AP87: -0.2151827231 | AQ87: 0.1628189288 | AR87: -0.2804425677 | AS87: 0.271175644 | AT87: -0.2007628654 | AU87: -0.2465227792 | AV87: -0.2044058902 | AW87: -0.2465227792 | AX87: -0.178216203 | AY87: 1 | AZ87: 0.02576813612
B88: Gradient 5 to 13 second(g/sec) | C88: -0.2433192334 | D88: 0.1057884251 | E88: 0.1569433459 | F88: 0.06311615511 | G88: -0.3684332533 | H88: 0.1057884251 | I88: 0.07234510311 | J88: 0.1194959983 | K88: -0.208429038 | L88: -0.01160523586 | M88: -0.1313684286 | N88: 0.1194595573 | O88: -0.01925747337 | P88: 0.07230660417 | Q88: 0.0605556395 | R88: 0.08298469496 | S88: 0.08304655977 | T88: -0.2606637229 | U88: -0.03734026025 | V88: 0.08266061756 | W88: 0.05863865752 | X88: 0.1784932898 | Y88: 0.0123560675 | Z88: -0.08291121526 | AA88: -0.2066352035 | AB88: 0.05655542673 | AC88: 0.08478541547 | AD88: 0.2142038956 | AE88: -0.001741539318 | AF88: 0.0782830964 | AG88: 0.03206698239 | AH88: 0.04834969178 | AI88: -0.1231962229 | AJ88: 0.02095849169 | AK88: -0.03514919068 | AL88: 0.115569027 | AM88: 0.01858469264 | AN88: -0.1201634279 | AO88: 0.0007784141311 | AP88: 0.1091739597 | AQ88: 0.03333950301 | AR88: 0.05913098024 | AS88: -0.1671082334 | AT88: 0.1323208082 | AU88: -0.1684632693 | AV88: 0.0789307765 | AW88: -0.02067714257 | AX88: -0.02722793505 | AY88: 0.02576813612 | AZ88: 1
B91: Regression of variable Gradient 5 to 13 second(g/sec):
B93: Goodness of fit statistics (Gradient 5 to 13 second(g/sec)):
B95: Observations | C95: 225
B96: Sum of weights | C96: 225
B97: DF | C97: 202
B98: R² | C98: 0.3360363151
B99: Adjusted R² | C99: 0.2637234386
B100: MSE | C100: 0.2271243437
B101: RMSE | C101: 0.4765756432
B102: MAPE | C102: 141.9850647
B103: DW | C103: 2.026832461
B104: Cp | C104: 23
B105: AIC | C105: -311.770328
B106: SBC | C106: -233.2000187
B107: PC | C107: 0.8151633359
B110: Analysis of variance (Gradient 5 to 13 second(g/sec)):
B112: Source | C112: DF | D112: Sum of squares | E112: Mean squares | F112: F | G112: Pr > F
B113: Model | C113: 22 | D113: 23.21971806 | E113: 1.05544173 | F113: 4.646977566 | G113: 1.269263898e-09
B114: Error | C114: 202 | D114: 45.87911743 | E114: 0.2271243437
B115: Corrected Total | C115: 224 | D115: 69.09883549
B116: Computed against model Y=Mean(Y)
B119: Type I Sum of Squares analysis (Gradient 5 to 13 second(g/sec)):
B121: Source | C121: DF | D121: Sum of squares | E121: Mean squares | F121: F | G121: Pr > F
B122: Acid | C122: 2 | D122: 4.094398333 | E122: 2.047199166 | F122: 9.013561175 | G122: 0.0001779877909
B123: Acid*pH | C123: 2 | D123: 5.405019378 | E123: 2.702509689 | F123: 11.89881122 | G123: 1.302664219e-05
B124: Acid*salt | C124: 6 | D124: 1.989449991 | E124: 0.3315749986 | F124: 1.459883133 | G124: 0.1936818818
B125: Acid*Day | C125: 3 | D125: 2.371473494 | E125: 0.7904911647 | F125: 3.480433457 | G125: 0.01689815802
B126: Acid*Replicate | C126: 3 | D126: 3.402568254 | E126: 1.134189418 | F126: 4.993693759 | G126: 0.002311848575
B127: pH*salt | C127: 2 | D127: 1.859698313 | E127: 0.9298491566 | F127: 4.094009217 | G127: 0.01807526913
B128: pH*Day | C128: 1 | D128: 1.305822872 | E128: 1.305822872 | F128: 5.749374334 | G128: 0.01740475901
B129: pH*Replicate | C129: 1 | D129: 0.9646396651 | E129: 0.9646396651 | F129: 4.247187462 | G129: 0.04059645661
B130: salt*Replicate | C130: 2 | D130: 1.826647759 | E130: 0.9133238795 | F130: 4.021250495 | G130: 0.01938487708
B133: Type II Sum of Squares analysis (Gradient 5 to 13 second(g/sec)):
B135: Source | C135: DF | D135: Sum of squares | E135: Mean squares | F135: F | G135: Pr > F
B136: Acid | C136: 0 | D136: 0
B137: Acid*pH | C137: 1 | D137: 4.949872389 | E137: 4.949872389 | F137: 21.79366733 | G137: 5.526558802e-06
B138: Acid*salt | C138: 4 | D138: 3.402415407 | E138: 0.8506038517 | F138: 3.745102078 | G138: 0.005802853082
B139: Acid*Day | C139: 2 | D139: 2.608751809 | E139: 1.304375905 | F139: 5.743003516 | G139: 0.003751262531
B140: Acid*Replicate | C140: 2 | D140: 1.920968742 | E140: 0.9604843712 | F140: 4.228892225 | G140: 0.01587902768
B141: pH*salt | C141: 2 | D141: 2.051714928 | E141: 1.025857464 | F141: 4.516721754 | G141: 0.01205059456
B142: pH*Day | C142: 1 | D142: 2.013703889 | E142: 2.013703889 | F142: 8.866085669 | G142: 0.003260486056
B143: pH*Replicate | C143: 1 | D143: 1.100250386 | E143: 1.100250386 | F143: 4.844264461 | G143: 0.02887116411
B144: salt*Replicate | C144: 2 | D144: 1.826647759 | E144: 0.9133238795 | F144: 4.021250495 | G144: 0.01938487708
B147: Type III Sum of Squares analysis (Gradient 5 to 13 second(g/sec)):
B149: Source | C149: DF | D149: Sum of squares | E149: Mean squares | F149: F | G149: Pr > F
B150: Acid | C150: 2 | D150: 5.990827357 | E150: 2.995413678 | F150: 13.18843075 | G150: 4.136434803e-06
B151: Acid*pH | C151: 1 | D151: 4.949872389 | E151: 4.949872389 | F151: 21.79366733 | G151: 5.526558802e-06
B152: Acid*salt | C152: 4 | D152: 3.402415407 | E152: 0.8506038517 | F152: 3.745102078 | G152: 0.005802853082
B153: Acid*Day | C153: 2 | D153: 2.608751809 | E153: 1.304375905 | F153: 5.743003516 | G153: 0.003751262531
B154: Acid*Replicate | C154: 2 | D154: 1.920968742 | E154: 0.9604843712 | F154: 4.228892225 | G154: 0.01587902768
B155: pH*salt | C155: 2 | D155: 2.051714928 | E155: 1.025857464 | F155: 4.516721754 | G155: 0.01205059456
B156: pH*Day | C156: 1 | D156: 2.013703889 | E156: 2.013703889 | F156: 8.866085669 | G156: 0.003260486056
B157: pH*Replicate | C157: 1 | D157: 1.100250386 | E157: 1.100250386 | F157: 4.844264461 | G157: 0.02887116411
B158: salt*Replicate | C158: 2 | D158: 1.826647759 | E158: 0.9133238795 | F158: 4.021250495 | G158: 0.01938487708
B161: Model parameters (Gradient 5 to 13 second(g/sec)):
B163: Source | C163: Value | D163: Standard error | E163: t | F163: Pr > |t| | G163: Lower bound (95%) | H163: Upper bound (95%)
B164: Intercept | C164: 0.2863644727 | D164: 0.1473448066 | E164: 1.943498922 | F164: 0.05334525701 | G164: -0.004166684672 | H164: 0.57689563
B165: Acid-A | C165: 0 | D165: 0
B166: Acid-C | C166: 0.2545776832 | D166: 0.2164277398 | E166: 1.176271043 | F166: 0.2408709326 | G166: -0.1721696395 | H166: 0.6813250059
B167: Acid-L | C167: 0.4156352485 | D167: 0.1740352762 | E167: 2.388224144 | F167: 0.01785109528 | G167: 0.07247642679 | H167: 0.7587940702
B168: Acid-A*pH-4 | C168: 0 | D168: 0
B169: Acid-A*pH-6 | C169: -0.7947786794 | D169: 0.1794304601 | E169: -4.429452385 | F169: 1.546924447e-05 | G169: -1.148575603 | H169: -0.4409817561
B170: Acid-C*pH-6 | C170: 0 | D170: 0
B171: Acid-L*pH-4 | C171: 0 | D171: 0
B172: Acid-L*pH-6 | C172: -0.1079469763 | D172: 0.177478466 | E172: -0.6082257684 | F172: 0.5437210162 | G172: -0.4578950019 | H172: 0.2420010492
B173: Acid-A*salt-C | C173: 0 | D173: 0
B174: Acid-A*salt-D | C174: 0.21857734 | D174: 0.2080417601 | E174: 1.050641659 | F174: 0.2946784938 | G174: -0.1916346977 | H174: 0.6287893777
B175: Acid-A*salt-R | C175: 0.001380129492 | D175: 0.1879721143 | E175: 0.007342203374 | F175: 0.9941490679 | G175: -0.3692590345 | H175: 0.3720192935
B176: Acid-C*salt-C | C176: 0 | D176: 0
B177: Acid-C*salt-D | C177: -0.6616275485 | D177: 0.2266318983 | E177: -2.919392871 | F177: 0.00390516979 | G177: -1.1084952 | H177: -0.2147598967
B178: Acid-C*salt-R | C178: -0.326262297 | D178: 0.1961167494 | E178: -1.663612609 | F178: 0.09774047275 | G178: -0.7129608682 | H178: 0.06043627415
B179: Acid-L*salt-C | C179: 0 | D179: 0
B180: Acid-L*salt-D | C180: -0.09632495513 | D180: 0.2089512602 | E180: -0.4609924583 | F180: 0.6452999678 | G180: -0.5083303246 | H180: 0.3156804143
B181: Acid-L*salt-R | C181: -0.1143444805 | D181: 0.1826330589 | E181: -0.6260886239 | F181: 0.5319636235 | G181: -0.4744562157 | H181: 0.2457672547
B182: Acid-A*Day-10 | C182: 0 | D182: 0
B183: Acid-A*Day-30 | C183: 0.5466746954 | D183: 0.1275556769 | E183: 4.28577315 | F183: 2.817682475e-05 | G183: 0.2951632963 | H183: 0.7981860945
B184: Acid-C*Day-10 | C184: 0 | D184: 0
B185: Acid-C*Day-30 | C185: -0.071167431 | D185: 0.143124467 | E185: -0.4972415443 | F185: 0.6195595158 | G185: -0.3533770182 | H185: 0.2110421562
B186: Acid-L*Day-10 | C186: 0 | D186: 0
B187: Acid-L*Day-30 | C187: 0.210051069 | D187: 0.1446149733 | E187: 1.452484928 | F187: 0.147918362 | G187: -0.07509746481 | H187: 0.4951996029
B188: Acid-A*Replicate-1 | C188: 0 | D188: 0
B189: Acid-A*Replicate-2 | C189: -0.1489945681 | D189: 0.1623577759 | E189: -0.9176928374 | F189: 0.3598740954 | G189: -0.4691279589 | H189: 0.1711388227
B190: Acid-C*Replicate-1 | C190: 0 | D190: 0
B191: Acid-C*Replicate-2 | C191: 0.2757847472 | D191: 0.1730394141 | E191: 1.593768383 | F191: 0.1125514093 | G191: -0.06541045614 | H191: 0.6169799505
B192: Acid-L*Replicate-1 | C192: 0 | D192: 0
B193: Acid-L*Replicate-2 | C193: -0.3431532243 | D193: 0.1875591594 | E193: -1.829573268 | F193: 0.06878785826 | G193: -0.7129781332 | H193: 0.0266716846
B194: pH-4*salt-C | C194: 0 | D194: 0
B195: pH-4*salt-D | C195: -0.5172564491 | D195: 0.1720993888 | E195: -3.005568193 | F195: 0.002986804243 | G195: -0.8565981319 | H195: -0.1779147663
B196: pH-4*salt-R | C196: -0.2598341186 | D196: 0.1769496957 | E196: -1.468406699 | F196: 0.143549255 | G196: -0.6087395269 | H196: 0.08907128968
B197: pH-6*salt-C | C197: 0 | D197: 0
B198: pH-6*salt-D | C198: 0 | D198: 0
B199: pH-6*salt-R | C199: 0 | D199: 0
B200: pH-4*Day-10 | C200: 0 | D200: 0
B201: pH-4*Day-30 | C201: -0.4786493568 | D201: 0.1607501985 | E201: -2.977597298 | F201: 0.003260486056 | G201: -0.7956129628 | H201: -0.1616857507
B202: pH-6*Day-10 | C202: 0 | D202: 0
B203: pH-6*Day-30 | C203: 0 | D203: 0
B204: pH-4*Replicate-1 | C204: 0 | D204: 0
B205: pH-4*Replicate-2 | C205: 0.3824082414 | D205: 0.1737454023 | E205: 2.200968982 | F205: 0.02887116411 | G205: 0.03982098632 | H205: 0.7249954964
B206: pH-6*Replicate-1 | C206: 0 | D206: 0
B207: pH-6*Replicate-2 | C207: 0 | D207: 0
B208: salt-C*Replicate-1 | C208: 0 | D208: 0
B209: salt-C*Replicate-2 | C209: -0.4612969189 | D209: 0.1628196069 | E209: -2.833177943 | F209: 0.005076112713 | G209: -0.7823409375 | H209: -0.1402529003
B210: salt-D*Replicate-1 | C210: 0.2647810643 | D210: 0.1626397914 | E210: 1.628021421 | F210: 0.1050790279 | G210: -0.05590839831 | H210: 0.5854705268
B211: salt-D*Replicate-2 | C211: 0 | D211: 0
B212: salt-R*Replicate-1 | C212: 0 | D212: 0
B213: salt-R*Replicate-2 | C213: 0 | D213: 0
B216: Equation of the model (Gradient 5 to 13 second(g/sec)):
B218: Gradient 5 to 13 second(g/sec) = 0.286364472688692+0.254577683201777*Acid-C+0.415635248507054*Acid-L-0.794778679384879*Acid-A*pH-6-0.107946976349097*Acid-L*pH-6+0.218577340002246*Acid-A*salt-D+1.38012949215406E-03*Acid-A*salt-R-0.661627548453663*Acid-C*salt-D-0.326262297045901*Acid-C*salt-R-9.63249551315709E-02*Acid-L*salt-D-0.114344480512258*Acid-L*salt-R+0.546674695394567*Acid-A*Day-30-7.11674309951832E-02*Acid-C*Day-30+0.210051069038107*Acid-L*Day-30-0.148994568077255*Acid-A*Replicate-2+0.27578474716104*Acid-C*Replicate-2-0.343153224284867*Acid-L*Replicate-2-0.517256449113394*pH-4*salt-D-0.259834118615125*pH-4*salt-R-0.478649356750346*pH-4*Day-30+0.382408241364272*pH-4*Replicate-2-0.461296918906777*salt-C*Replicate-2+0.264781064255094*salt-D*Replicate-1
B221: Standardized coefficients (Gradient 5 to 13 second(g/sec)):
B223: Source | C223: Value | D223: Standard error | E223: t | F223: Pr > |t| | G223: Lower bound (95%) | H223: Upper bound (95%)
B224: Acid-A | C224: 0 | D224: 0
B225: Acid-C | C225: 0.1837537522 | D225: 0.1562171859 | E225: 1.176271043 | F225: 0.2408709326 | G225: -0.1242717621 | H225: 0.4917792665
B226: Acid-L | C226: 0.3674293861 | D226: 0.1538504612 | E226: 2.388224144 | F226: 0.01785109528 | G226: 0.06407052601 | H226: 0.6707882461
B227: Acid-A*pH-4 | C227: 0 | D227: 0
B228: Acid-A*pH-6 | C228: -0.5638836559 | D228: 0.1273032436 | E228: -4.429452385 | F228: 1.546924447e-05 | G228: -0.8148973126 | H228: -0.3128699993
B229: Acid-C*pH-6 | C229: 0 | D229: 0
B230: Acid-L*pH-4 | C230: 0 | D230: 0
B231: Acid-L*pH-6 | C231: -0.07855779594 | D231: 0.1291589407 | E231: -0.6082257684 | F231: 0.5437210162 | G231: -0.3332304742 | H231: 0.1761148823
B232: Acid-A*salt-C | C232: 0 | D232: 0
B233: Acid-A*salt-D | C233: 0.1359440566 | D233: 0.1293914585 | E233: 1.050641659 | F233: 0.2946784938 | G233: -0.119187095 | H233: 0.3910752081
B234: Acid-A*salt-R | C234: 0.000822063455 | D234: 0.1119641357 | E234: 0.007342203374 | F234: 0.9941490679 | G234: -0.2199462872 | H234: 0.2215904141
B235: Acid-C*salt-C | C235: 0 | D235: 0
B236: Acid-C*salt-D | C236: -0.3068457348 | D236: 0.1051060095 | E236: -2.919392871 | F236: 0.00390516979 | G236: -0.5140913873 | H236: -0.09960008235
... 658 more rows

Sheet Stretch Quality ANOVA
B1: XLSTAT-Student 2020.1.3.65336 - ANOVA - Start time: 01/05/2020 at 08:18:27 / End time: 01/05/2020 at 08:18:33 / Microsoft Excel 14.04734
B2: Y / Dependent variables: Workbook = Extensibility complete data clean.xlsm / Sheet = Sheet1 / Range = Sheet1!$J:$J / 225 rows and 1 column
B3: X / Qualitative: Workbook = Extensibility complete data clean.xlsm / Sheet = Sheet1 / Range = 'Sheet1'!$C:$G / 225 rows and 5 columns
B4: Constraints: a1=0
B5: Interactions / Level: 2
B6: Confidence interval (%): 95
B7: Tolerance: 0.0001
B8: Use least squares means: No
B13: Summary statistics (Quantitative data):
B15: Variable | C15: Observations | D15: Obs. with missing data | E15: Obs. without missing data | F15: Minimum | G15: Maximum | H15: Mean | I15: Std. deviation
B16: Gradient 5 to 13 second(g/sec) | C16: 225 | D16: 0 | E16: 225 | F16: -3.569545386 | G16: 1.782991225 | H16: 0.1563446468 | I16: 0.5554070077
B19: Summary statistics (Qualitative data):
B21: Variable | C21: Categories | D21: Counts | E21: Frequencies | F21: %
B22: Acid | C22: A | D22: 90 | E22: 90 | F22: 40
C23: C | D23: 45 | E23: 45 | F23: 20
C24: L | D24: 90 | E24: 90 | F24: 40
B25: pH | C25: 4 | D25: 91 | E25: 91 | F25: 40.44444444
C26: 6 | D26: 134 | E26: 134 | F26: 59.55555556
B27: salt | C27: C | D27: 77 | E27: 77 | F27: 34.22222222
C28: D | D28: 78 | E28: 78 | F28: 34.66666667
C29: R | D29: 70 | E29: 70 | F29: 31.11111111
B30: Day | C30: 10 | D30: 113 | E30: 113 | F30: 50.22222222
C31: 30 | D31: 112 | E31: 112 | F31: 49.77777778
B32: Replicate | C32: 1 | D32: 91 | E32: 91 | F32: 40.44444444
C33: 2 | D33: 134 | E33: 134 | F33: 59.55555556
B36: Correlation matrix:
C38: Acid-A | D38: Acid-C | E38: Acid-L | F38: pH-4 | G38: pH-6 | H38: salt-C | I38: salt-D | J38: salt-R | K38: Day-10 | L38: Day-30 | M38: Replicate-1 | N38: Replicate-2 | O38: Acid-A*pH-4 | P38: Acid-A*pH-6 | Q38: Acid-C*pH-6 | R38: Acid-L*pH-4 | S38: Acid-L*pH-6 | T38: Acid-A*salt-C | U38: Acid-A*salt-D | V38: Acid-A*salt-R | W38: Acid-C*salt-C | X38: Acid-C*salt-D | Y38: Acid-C*salt-R | Z38: Acid-L*salt-C | AA38: Acid-L*salt-D | AB38: Acid-L*salt-R | AC38: Acid-A*Day-10 | AD38: Acid-A*Day-30 | AE38: Acid-C*Day-10 | AF38: Acid-C*Day-30 | AG38: Acid-L*Day-10 | AH38: Acid-L*Day-30 | AI38: Acid-A*Replicate-1 | AJ38: Acid-A*Replicate-2 | AK38: Acid-C*Replicate-1 | AL38: Acid-C*Replicate-2 | AM38: Acid-L*Replicate-1 | AN38: Acid-L*Replicate-2 | AO38: pH-4*salt-C | AP38: pH-4*salt-D | AQ38: pH-4*salt-R | AR38: pH-6*salt-C | AS38: pH-6*salt-D | AT38: pH-6*salt-R | AU38: pH-4*Day-10 | AV38: pH-4*Day-30 | AW38: pH-6*Day-10 | AX38: pH-6*Day-30 | AY38: pH-4*Replicate-1 | AZ38: pH-4*Replicate-2 | BA38: pH-6*Replicate-1 | BB38: pH-6*Replicate-2 | BC38: salt-C*Day-10 | BD38: salt-C*Day-30 | BE38: salt-D*Day-10 | BF38: salt-D*Day-30 | BG38: salt-R*Day-10 | BH38: salt-R*Day-30 | BI38: salt-C*Replicate-1 | BJ38: salt-C*Replicate-2 | BK38: salt-D*Replicate-1 | BL38: salt-D*Replicate-2 | BM38: salt-R*Replicate-1 | BN38: salt-R*Replicate-2 | BO38: Day-10*Replicate-1 | BP38: Day-10*Replicate-2 | BQ38: Day-30*Replicate-1 | BR38: Day-30*Replicate-2 | BS38: Gradient 5 to 13 second(g/sec)
B39: Acid-A | C39: 1 | D39: -0.4082482905 | E39: -0.6666666667 | F39: 0.1959418251 | G39: -0.1959418251 | H39: 0.003824266547 | I39: -0.003812575091 | J39: 0 | K39: -0.003628909534 | L39: 0.003628909534 | M39: -0.06284926467 | N39: 0.06284926467 | O39: 0.6293388719 | P39: 0.5953113508 | Q39: -0.4082482905 | R39: -0.4025700127 | S39: -0.4139108118 | T39: 0.4895821909 | U39: 0.4895821909 | V39: 0.4617336565 | W39: -0.2182178902 | X39: -0.2259129979 | Y39: -0.2103183474 | Z39: -0.3263881273 | AA39: -0.3263881273 | AB39: -0.3078224377 | AC39: 0.6123724357 | AD39: 0.6123724357 | AE39: -0.2687928375 | AF39: -0.2755133223 | AG39: -0.4139108118 | AH39: -0.4025700127 | AI39: 0.5077524003 | AJ39: 0.7133922984 | AK39: -0.2755133223 | AL39: -0.2687928375 | AM39: -0.350438322 | AN39: -0.464420364 | AO39: 0.09744743036 | AP39: 0.08311716349 | AQ39: 0.1021606548 | AR39: -0.08234386623 | AS39: -0.07648351958 | AT39: -0.08234386623 | AU39: 0.1160483026 | AV39: 0.1235157993 | AW39: -0.1076013225 | AX39: -0.1027290898 | AY39: -0.0346449758 | AZ39: 0.2533201986 | BA39: -0.04222003309 | BB39: -0.163456749 | BC39: 0.004894908614 | BD39: 0 | BE39: -0.01862662521 | BF39: 0.01484784677 | BG39: 0.01013207109 | BH39: -0.009898564515 | BI39: 0.005194822718 | BJ39: 0 | BK39: -0.05641693337 | BL39: 0.04536092116 | BM39: -0.03972914352 | BN39: 0.03202261464 | BO39: -0.004148127937 | BP39: 0 | BQ39: -0.08206099399 | BR39: 0.06462243563 | BS39: -0.2433192334
B40: Acid-C | C40: -0.4082482905 | D40: 1 | E40: -0.4082482905 | F40: -0.412038978 | G40: 0.412038978 | H40: -0.009367501681 | I40: 0.009338863578 | J40: -4.263392845e-17 | K40: -0.01333346502 | L40: 0.01333346502 | M40: 0.1086696206 | N40: -0.1086696206 | O40: -0.2569265186 | P40: -0.2430348413 | Q40: 1 | R40: -0.2465227792 | S40: -0.253467572 | T40: -0.1998710925 | U40: -0.1998710925 | V40: -0.1885019759 | W40: 0.5345224838 | X40: 0.5533715711 | Y40: 0.5151726348 | Z40: -0.1998710925 | AA40: -0.1998710925 | AB40: -0.1885019759 | AC40: -0.25 | AD40: -0.25 | AE40: 0.6584052984 | AF40: 0.6748670569 | AG40: -0.253467572 | AH40: -0.2465227792 | AI40: -0.2072890494 | AJ40: -0.2912411863 | AK40: 0.6748670569 | AL40: 0.6584052984 | AM40: -0.2145987688 | AN40: -0.2843982295 | AO40: -0.2072890494 | AP40: -0.2035946394 | AQ40: -0.1807299549 | AR40: 0.1736865035 | AS40: 0.1873455967 | AT40: 0.1456725513 | AU40: -0.2569265186 | AV40: -0.2465227792 | AW40: 0.2147593846 | AX40: 0.2274382891 | AY40: -0.2182178902 | AZ40: -0.2843982295 | BA40: 0.310252614 | BB40: 0.1443250527 | BC40: -0.01199002844 | BD40: 0 | BE40: 0.01710964777 | BF40: -0.006061608062 | BG40: -0.02481840421 | BH40: 0.02424643225 | BI40: 0.01908699745 | BJ40: -0.02777777778 | BK40: 0.07537783614 | BL40: -0.05555555556 | BM40: 0.06256036899 | BN40: -0.05042511393 | BO40: -0.01524119525 | BP40: 0 | BQ40: 0.1696001313 | BR40: -0.1117355246 | BS40: 0.1057884251
B41: Acid-L | C41: -0.6666666667 | D41: -0.4082482905 | E41: 1 | F41: 0.1404865916 | G41: -0.1404865916 | H41: 0.003824266547 | I41: -0.003812575091 | J41: -6.962091363e-17 | K41: 0.01451563814 | L41: -0.01451563814 | M41: -0.02587910898 | N41: 0.02587910898 | O41: -0.419559248 | P41: -0.3968742339 | Q41: -0.4082482905 | R41: 0.603855019 | S41: 0.6208662177 | T41: -0.3263881273 | U41: -0.3263881273 | V41: -0.3078224377 | W41: -0.2182178902 | X41: -0.2259129979 | Y41: -0.2103183474 | Z41: 0.4895821909 | AA41: 0.4895821909 | AB41: 0.4617336565 | AC41: -0.4082482905 | AD41: -0.4082482905 | AE41: -0.2687928375 | AF41: -0.2755133223 | AG41: 0.6208662177 | AH41: 0.603855019 | AI41: -0.3385016002 | AJ41: -0.4755948656 | AK41: -0.2755133223 | AL41: -0.2687928375 | AM41: 0.525657483 | AN41: 0.696630546 | AO41: 0.07180336974 | AP41: 0.08311716349 | AQ41: 0.04540473545 | AR41: -0.05947057005 | AS41: -0.07648351958 | AT41: -0.03659727388 | AU41: 0.09373132135 | AV41: 0.07776920699 | AW41: -0.06774898081 | AX41: -0.08297349561 | AY41: 0.2128191371 | AZ41: -0.02111001655 | BA41: -0.2111001655 | BB41: 0.04561583692 | BC41: 0.004894908614 | BD41: 0 | BE41: 0.004656656302 | BF41: -0.009898564515 | BG41: 0.01013207109 | BH41: -0.009898564515 | BI41: -0.02077929087 | BJ41: 0.02268046058 | BK41: -0.005128812124 | BL41: -8.057718255e-17 | BM41: -0.01135118386 | BN41: 0.00914931847 | BO41: 0.01659251175 | BP41: 0 | BQ41: -0.05641693337 | BR41: 0.0266092382 | BS41: 0.1569433459
B42: pH-4 | C42: 0.1959418251 | D42: -0.412038978 | E42: 0.1404865916 | F42: 1 | G42: -1 | H42: 0.0354590394 | I42: 0.008626231474 | J42: -0.04520800884 | K42: 0.0235050686 | L42: -0.0235050686 | M42: -0.01484336559 | N42: 0.01484336559 | O42: 0.6235490628 | P42: -0.4005593105 | Q42: -0.412038978 | R42: 0.598299657 | S42: -0.4177540773 | T42: 0.1172408357 | U42: 0.09096674406 | V42: 0.07340257022 | W42: -0.220244098 | X42: -0.2280106566 | Y42: -0.2122712059 | Z42: 0.09096674406 | AA42: 0.09096674406 | AB42: 0.01853353932 | AC42: 0.1313091249 | AD42: 0.1086696206 | AE42: -0.2712886463 | AF42: -0.2780715324 | AG42: 0.09870013914 | AH42: 0.07316384882 | AI42: -0.008873887591 | AJ42: 0.227928823 | AK42: -0.2780715324 | AL42: -0.2712886463 | AM42: 0.2209882376 | AN42: -0.0262228041 | AO42: 0.5030811658 | AP42: 0.4941149995 | AQ42: 0.4386234422 | AR42: -0.406307976 | AS42: -0.4177540773 | AT42: -0.406307976 | AU42: 0.6235490628 | AV42: 0.598299657 | AW42: -0.5309354242 | AX42: -0.5423416114 | AY42: 0.5296049691 | AZ42: 0.6902216651 | BA42: -0.4687326233 | BB42: -0.6061853198 | BC42: 0.04972932862 | BD42: -0.004210862265 | BE42: 0.0003098831552 | BF42: 0.0108687587 | BG42: -0.01899142126 | BH42: -0.03853468992 | BI42: 0.02742522619 | BJ42: 0.01811160343 | BK42: -0.008873887591 | BL42: 0.01811160343 | BM42: -0.04293071004 | BN42: -0.01816411781 | BO42: 0.031928914 | BP42: -0.005150907949 | BQ42: -0.06006939293 | BR42: 0.01989981019 | BS42: 0.1107446609
